Workbook

Sheet Input
B16: For Contract Works, please select the period of the contract --> | I16: Over 48 months

Sheet Output
C2: Aggregate | D2: =IF(C2 = "", 12, VLOOKUP(C2, Metadata!$S$1:$T$11, 2, FALSE)) -> 12
C8: Voluntary Deductible | D8: 0
C9: Applicable Discount | D9: =IF(OR(C2 = "", C2 = "Aggregate"), 0, VLOOKUP(D8, 'Voluntary Deductible'!$B$3:$C$13, 2, FALSE)) -> 0
C11: Magnitude Discount | D11: ='Loss Limit Discount'!$D$93 -> 0
C12: Contract Works Discount | D12: ='Contract Works Discount'!$D$101 -> 0
C14: Class | D14: Sum Insured* | E14: Premium
C15: Fire | D15: =VLOOKUP($C15, Results!$B$22:$M$35, Output!$D$2, FALSE) -> 0 | E15: =VLOOKUP($C15, Results!$B$5:$M$18, Output!$D$2, FALSE) * (1 - $D$9) -> 0 | F15: =IF(AND(E15 = 0, D15 <> 0), "!!!","") -> 
C16: Standing Charges | D16: =VLOOKUP($C16, Results!$B$22:$M$35, Output!$D$2, FALSE) + VLOOKUP("Advance Standing Charges", Results!$B$22:$M$35, Output!$D$2, FALSE) -> 0 | E16: =(VLOOKUP($C16, Results!$B$5:$M$18, Output!$D$2, FALSE) * (1 - $D$9)) + VLOOKUP("Advance Standing Charges", Results!$B$5:$M$18, Output!$D$2, FALSE) -> 0
C17: Working Expenses | D17: =VLOOKUP($C17, Results!$B$22:$M$35, Output!$D$2, FALSE) -> 0 | E17: =VLOOKUP($C17, Results!$B$5:$M$18, Output!$D$2, FALSE) * (1 - $D$9) -> 0
C18: Net Profit | D18: =VLOOKUP($C18, Results!$B$22:$M$35, Output!$D$2, FALSE) -> 0 | E18: =VLOOKUP($C18, Results!$B$5:$M$18, Output!$D$2, FALSE) * (1 - $D$9) -> 0
C19: Gross Profit | D19: =VLOOKUP($C19, Results!$B$22:$M$35, Output!$D$2, FALSE) -> 0 | E19: =VLOOKUP($C19, Results!$B$5:$M$18, Output!$D$2, FALSE) * (1 - $D$9) -> 0
C20: Revenue | D20: =VLOOKUP($C20, Results!$B$22:$M$35, Output!$D$2, FALSE) -> 0 | E20: =VLOOKUP($C20, Results!$B$5:$M$18, Output!$D$2, FALSE) * (1 - $D$9) -> 0
C21: Motor | D21: =VLOOKUP($C21, Results!$B$22:$M$35, Output!$D$2, FALSE) -> 0 | E21: =VLOOKUP($C21, Results!$B$5:$M$18, Output!$D$2, FALSE) -> 0
C22: Contract Works | D22: =VLOOKUP($C22, Results!$B$22:$M$35, Output!$D$2, FALSE) -> 0 | E22: =VLOOKUP($C22, Results!$B$5:$M$18, Output!$D$2, FALSE) * (1 - $D$9) -> 0
C23: Money | D23: =VLOOKUP($C23, Results!$B$22:$M$35, Output!$D$2, FALSE) -> 0 | E23: =VLOOKUP($C23, Results!$B$5:$M$18, Output!$D$2, FALSE) * (1 - $D$9) -> 0
C24: Goods In Transit | D24: =VLOOKUP($C24, Results!$B$22:$M$35, Output!$D$2, FALSE) -> 0 | E24: =VLOOKUP($C24, Results!$B$5:$M$18, Output!$D$2, FALSE) * (1 - $D$9) -> 0
C25: Total | D25: =SUM(D15:D24) -> 0 | E25: =SUM(E15:E24) -> 0
C26: * Declared values only

Sheet Results (hidden)
B3: Gross Written Premium
B4: Class | C4: Domestic - Monthly | D4: Domestic (Tertiary) - Monthly | E4: Domestic - Annual | F4: Domestic (Tertiary) - Annual | G4: Commercial - Monthly | H4: Commercial - Annual | I4: Fire (Office) - Monthly | J4: Fire (Office) - Annual | K4: Municipalities - Monthly | L4: Municipalities - Annual | M4: Aggregate
B5: Fire | C5: =SUMIF('Domestic - Monthly'!$D:$D, Results!$B5, 'Domestic - Monthly'!$S:$S) -> 0 | D5: =SUMIF('Domestic (Tertiary) - Monthly'!$D:$D, Results!$B5, 'Domestic (Tertiary) - Monthly'!$S:$S) -> 0 | E5: =SUMIF('Domestic - Annual'!$D:$D, Results!$B5, 'Domestic - Annual'!$S:$S) -> 0 | F5: =SUMIF('Domestic (Tertiary) - Annual'!$D:$D, Results!$B5, 'Domestic (Tertiary) - Annual'!$S:$S) -> 0 | G5: =SUMIF('Commercial - Monthly'!$D:$D, Results!$B5, 'Commercial - Monthly'!$S:$S) -> 0 | H5: =SUMIF('Commercial - Annual'!$D:$D, Results!$B5, 'Commercial - Annual'!$S:$S) -> 0 | I5: =SUMIF('Fire (Office) - Monthly'!$D:$D, Results!$B5, 'Fire (Office) - Monthly'!$S:$S) -> 0 | J5: =SUMIF('Fire (Office) - Annual'!$D:$D, Results!$B5, 'Fire (Office) - Annual'!$S:$S) -> 0 | K5: =SUMIF('Municipalities - Monthly'!$D:$D, Results!$B5, 'Municipalities - Monthly'!$S:$S) -> 0 | L5: =SUMIF('Municipalities - Annual'!$D:$D, Results!$B5, 'Municipalities - Annual'!$S:$S) -> 0 | M5: =SUM(C5:L5) -> 0
B6: Extensions | M6: =SUM(C6:L6) -> 0
B7: Static Risk | C7: =SUMIF('Domestic - Monthly'!$D:$D, Results!$B7, 'Domestic - Monthly'!$S:$S) -> 0 | D7: =SUMIF('Domestic (Tertiary) - Monthly'!$D:$D, Results!$B7, 'Domestic (Tertiary) - Monthly'!$S:$S) -> 0 | E7: =SUMIF('Domestic - Annual'!$D:$D, Results!$B7, 'Domestic - Annual'!$S:$S) -> 0 | F7: =SUMIF('Domestic (Tertiary) - Annual'!$D:$D, Results!$B7, 'Domestic (Tertiary) - Annual'!$S:$S) -> 0 | G7: =SUMIF('Commercial - Monthly'!$D:$D, Results!$B7, 'Commercial - Monthly'!$S:$S) -> 0 | H7: =SUMIF('Commercial - Annual'!$D:$D, Results!$B7, 'Commercial - Annual'!$S:$S) -> 0 | I7: =SUMIF('Fire (Office) - Monthly'!$D:$D, Results!$B7, 'Fire (Office) - Monthly'!$S:$S) -> 0 | J7: =SUMIF('Fire (Office) - Annual'!$D:$D, Results!$B7, 'Fire (Office) - Annual'!$S:$S) -> 0 | K7: =SUMIF('Municipalities - Monthly'!$D:$D, Results!$B7, 'Municipalities - Monthly'!$S:$S) -> 0 | L7: =SUMIF('Municipalities - Annual'!$D:$D, Results!$B7, 'Municipalities - Annual'!$S:$S) -> 0 | M7: 0
B8: Escalation | M8: 0
B9: Standing Charges | C9: =SUMIF('Domestic - Monthly'!$D:$D, Results!$B9, 'Domestic - Monthly'!$S:$S) -> 0 | D9: =SUMIF('Domestic (Tertiary) - Monthly'!$D:$D, Results!$B9, 'Domestic (Tertiary) - Monthly'!$S:$S) -> 0 | E9: =SUMIF('Domestic - Annual'!$D:$D, Results!$B9, 'Domestic - Annual'!$S:$S) -> 0 | F9: =SUMIF('Domestic (Tertiary) - Annual'!$D:$D, Results!$B9, 'Domestic (Tertiary) - Annual'!$S:$S) -> 0 | G9: =SUMIF('Commercial - Monthly'!$D:$D, Results!$B9, 'Commercial - Monthly'!$S:$S) -> 0 | H9: =SUMIF('Commercial - Annual'!$D:$D, Results!$B9, 'Commercial - Annual'!$S:$S) -> 0 | I9: =SUMIF('Fire (Office) - Monthly'!$D:$D, Results!$B9, 'Fire (Office) - Monthly'!$S:$S) -> 0 | J9: =SUMIF('Fire (Office) - Annual'!$D:$D, Results!$B9, 'Fire (Office) - Annual'!$S:$S) -> 0 | K9: =SUMIF('Municipalities - Monthly'!$D:$D, Results!$B9, 'Municipalities - Monthly'!$S:$S) -> 0 | L9: =SUMIF('Municipalities - Annual'!$D:$D, Results!$B9, 'Municipalities - Annual'!$S:$S) -> 0 | M9: 0
B10: Advance Standing Charges | C10: =SUMIF('Domestic - Monthly'!$D:$D, Results!$B10, 'Domestic - Monthly'!$S:$S) -> 0 | D10: =SUMIF('Domestic (Tertiary) - Monthly'!$D:$D, Results!$B10, 'Domestic (Tertiary) - Monthly'!$S:$S) -> 0 | E10: =SUMIF('Domestic - Annual'!$D:$D, Results!$B10, 'Domestic - Annual'!$S:$S) -> 0 | F10: =SUMIF('Domestic (Tertiary) - Annual'!$D:$D, Results!$B10, 'Domestic (Tertiary) - Annual'!$S:$S) -> 0 | G10: =SUMIF('Commercial - Monthly'!$D:$D, Results!$B10, 'Commercial - Monthly'!$S:$S) -> 0 | H10: =SUMIF('Commercial - Annual'!$D:$D, Results!$B10, 'Commercial - Annual'!$S:$S) -> 0 | I10: =SUMIF('Fire (Office) - Monthly'!$D:$D, Results!$B10, 'Fire (Office) - Monthly'!$S:$S) -> 0 | J10: =SUMIF('Fire (Office) - Annual'!$D:$D, Results!$B10, 'Fire (Office) - Annual'!$S:$S) -> 0 | K10: =SUMIF('Municipalities - Monthly'!$D:$D, Results!$B10, 'Municipalities - Monthly'!$S:$S) -> 0 | L10: =SUMIF('Municipalities - Annual'!$D:$D, Results!$B10, 'Municipalities - Annual'!$S:$S) -> 0 | M10: 0
B11: Working Expenses | C11: =SUMIF('Domestic - Monthly'!$D:$D, Results!$B11, 'Domestic - Monthly'!$S:$S) -> 0 | D11: =SUMIF('Domestic (Tertiary) - Monthly'!$D:$D, Results!$B11, 'Domestic (Tertiary) - Monthly'!$S:$S) -> 0 | E11: =SUMIF('Domestic - Annual'!$D:$D, Results!$B11, 'Domestic - Annual'!$S:$S) -> 0 | F11: =SUMIF('Domestic (Tertiary) - Annual'!$D:$D, Results!$B11, 'Domestic (Tertiary) - Annual'!$S:$S) -> 0 | G11: =SUMIF('Commercial - Monthly'!$D:$D, Results!$B11, 'Commercial - Monthly'!$S:$S) -> 0 | H11: =SUMIF('Commercial - Annual'!$D:$D, Results!$B11, 'Commercial - Annual'!$S:$S) -> 0 | I11: =SUMIF('Fire (Office) - Monthly'!$D:$D, Results!$B11, 'Fire (Office) - Monthly'!$S:$S) -> 0 | J11: =SUMIF('Fire (Office) - Annual'!$D:$D, Results!$B11, 'Fire (Office) - Annual'!$S:$S) -> 0 | K11: =SUMIF('Municipalities - Monthly'!$D:$D, Results!$B11, 'Municipalities - Monthly'!$S:$S) -> 0 | L11: =SUMIF('Municipalities - Annual'!$D:$D, Results!$B11, 'Municipalities - Annual'!$S:$S) -> 0 | M11: 0
B12: Net Profit | C12: =SUMIF('Domestic - Monthly'!$D:$D, Results!$B12, 'Domestic - Monthly'!$S:$S) -> 0 | D12: =SUMIF('Domestic (Tertiary) - Monthly'!$D:$D, Results!$B12, 'Domestic (Tertiary) - Monthly'!$S:$S) -> 0 | E12: =SUMIF('Domestic - Annual'!$D:$D, Results!$B12, 'Domestic - Annual'!$S:$S) -> 0 | F12: =SUMIF('Domestic (Tertiary) - Annual'!$D:$D, Results!$B12, 'Domestic (Tertiary) - Annual'!$S:$S) -> 0 | G12: =SUMIF('Commercial - Monthly'!$D:$D, Results!$B12, 'Commercial - Monthly'!$S:$S) -> 0 | H12: =SUMIF('Commercial - Annual'!$D:$D, Results!$B12, 'Commercial - Annual'!$S:$S) -> 0 | I12: =SUMIF('Fire (Office) - Monthly'!$D:$D, Results!$B12, 'Fire (Office) - Monthly'!$S:$S) -> 0 | J12: =SUMIF('Fire (Office) - Annual'!$D:$D, Results!$B12, 'Fire (Office) - Annual'!$S:$S) -> 0 | K12: =SUMIF('Municipalities - Monthly'!$D:$D, Results!$B12, 'Municipalities - Monthly'!$S:$S) -> 0 | L12: =SUMIF('Municipalities - Annual'!$D:$D, Results!$B12, 'Municipalities - Annual'!$S:$S) -> 0 | M12: 0
B13: Gross Profit | C13: =SUMIF('Domestic - Monthly'!$D:$D, Results!$B13, 'Domestic - Monthly'!$S:$S) -> 0 | D13: =SUMIF('Domestic (Tertiary) - Monthly'!$D:$D, Results!$B13, 'Domestic (Tertiary) - Monthly'!$S:$S) -> 0 | E13: =SUMIF('Domestic - Annual'!$D:$D, Results!$B13, 'Domestic - Annual'!$S:$S) -> 0 | F13: =SUMIF('Domestic (Tertiary) - Annual'!$D:$D, Results!$B13, 'Domestic (Tertiary) - Annual'!$S:$S) -> 0 | G13: =SUMIF('Commercial - Monthly'!$D:$D, Results!$B13, 'Commercial - Monthly'!$S:$S) -> 0 | H13: =SUMIF('Commercial - Annual'!$D:$D, Results!$B13, 'Commercial - Annual'!$S:$S) -> 0 | I13: =SUMIF('Fire (Office) - Monthly'!$D:$D, Results!$B13, 'Fire (Office) - Monthly'!$S:$S) -> 0 | J13: =SUMIF('Fire (Office) - Annual'!$D:$D, Results!$B13, 'Fire (Office) - Annual'!$S:$S) -> 0 | K13: =SUMIF('Municipalities - Monthly'!$D:$D, Results!$B13, 'Municipalities - Monthly'!$S:$S) -> 0 | L13: =SUMIF('Municipalities - Annual'!$D:$D, Results!$B13, 'Municipalities - Annual'!$S:$S) -> 0 | M13: 0
B14: Revenue | C14: =SUMIF('Domestic - Monthly'!$D:$D, Results!$B14, 'Domestic - Monthly'!$S:$S) -> 0 | D14: =SUMIF('Domestic (Tertiary) - Monthly'!$D:$D, Results!$B14, 'Domestic (Tertiary) - Monthly'!$S:$S) -> 0 | E14: =SUMIF('Domestic - Annual'!$D:$D, Results!$B14, 'Domestic - Annual'!$S:$S) -> 0 | F14: =SUMIF('Domestic (Tertiary) - Annual'!$D:$D, Results!$B14, 'Domestic (Tertiary) - Annual'!$S:$S) -> 0 | G14: =SUMIF('Commercial - Monthly'!$D:$D, Results!$B14, 'Commercial - Monthly'!$S:$S) -> 0 | H14: =SUMIF('Commercial - Annual'!$D:$D, Results!$B14, 'Commercial - Annual'!$S:$S) -> 0 | I14: =SUMIF('Fire (Office) - Monthly'!$D:$D, Results!$B14, 'Fire (Office) - Monthly'!$S:$S) -> 0 | J14: =SUMIF('Fire (Office) - Annual'!$D:$D, Results!$B14, 'Fire (Office) - Annual'!$S:$S) -> 0 | K14: =SUMIF('Municipalities - Monthly'!$D:$D, Results!$B14, 'Municipalities - Monthly'!$S:$S) -> 0 | L14: =SUMIF('Municipalities - Annual'!$D:$D, Results!$B14, 'Municipalities - Annual'!$S:$S) -> 0 | M14: 0
B15: Motor | C15: =SUMIF('Domestic - Monthly'!$D:$D, Results!$B15, 'Domestic - Monthly'!$S:$S) -> 0 | D15: =SUMIF('Domestic (Tertiary) - Monthly'!$D:$D, Results!$B15, 'Domestic (Tertiary) - Monthly'!$S:$S) -> 0 | E15: =SUMIF('Domestic - Annual'!$D:$D, Results!$B15, 'Domestic - Annual'!$S:$S) -> 0 | F15: =SUMIF('Domestic (Tertiary) - Annual'!$D:$D, Results!$B15, 'Domestic (Tertiary) - Annual'!$S:$S) -> 0 | G15: =SUMIF('Commercial - Monthly'!$D:$D, Results!$B15, 'Commercial - Monthly'!$S:$S) -> 0 | H15: =SUMIF('Commercial - Annual'!$D:$D, Results!$B15, 'Commercial - Annual'!$S:$S) -> 0 | I15: =SUMIF('Fire (Office) - Monthly'!$D:$D, Results!$B15, 'Fire (Office) - Monthly'!$S:$S) -> 0 | J15: =SUMIF('Fire (Office) - Annual'!$D:$D, Results!$B15, 'Fire (Office) - Annual'!$S:$S) -> 0 | K15: =SUMIF('Municipalities - Monthly'!$D:$D, Results!$B15, 'Municipalities - Monthly'!$S:$S) -> 0 | L15: =SUMIF('Municipalities - Annual'!$D:$D, Results!$B15, 'Municipalities - Annual'!$S:$S) -> 0 | M15: 0
B16: Contract Works | C16: =SUMIF('Domestic - Monthly'!$D:$D, Results!$B16, 'Domestic - Monthly'!$S:$S) -> 0 | D16: =SUMIF('Domestic (Tertiary) - Monthly'!$D:$D, Results!$B16, 'Domestic (Tertiary) - Monthly'!$S:$S) -> 0 | E16: =SUMIF('Domestic - Annual'!$D:$D, Results!$B16, 'Domestic - Annual'!$S:$S) -> 0 | F16: =SUMIF('Domestic (Tertiary) - Annual'!$D:$D, Results!$B16, 'Domestic (Tertiary) - Annual'!$S:$S) -> 0 | G16: =SUMIF('Commercial - Monthly'!$D:$D, Results!$B16, 'Commercial - Monthly'!$S:$S) -> 0 | H16: =SUMIF('Commercial - Annual'!$D:$D, Results!$B16, 'Commercial - Annual'!$S:$S) -> 0 | I16: =SUMIF('Fire (Office) - Monthly'!$D:$D, Results!$B16, 'Fire (Office) - Monthly'!$S:$S) -> 0 | J16: =SUMIF('Fire (Office) - Annual'!$D:$D, Results!$B16, 'Fire (Office) - Annual'!$S:$S) -> 0 | K16: =SUMIF('Municipalities - Monthly'!$D:$D, Results!$B16, 'Municipalities - Monthly'!$S:$S) -> 0 | L16: =SUMIF('Municipalities - Annual'!$D:$D, Results!$B16, 'Municipalities - Annual'!$S:$S) -> 0 | M16: 0
B17: Money | C17: =SUMIF('Domestic - Monthly'!$D:$D, Results!$B17, 'Domestic - Monthly'!$S:$S) -> 0 | D17: =SUMIF('Domestic (Tertiary) - Monthly'!$D:$D, Results!$B17, 'Domestic (Tertiary) - Monthly'!$S:$S) -> 0 | E17: =SUMIF('Domestic - Annual'!$D:$D, Results!$B17, 'Domestic - Annual'!$S:$S) -> 0 | F17: =SUMIF('Domestic (Tertiary) - Annual'!$D:$D, Results!$B17, 'Domestic (Tertiary) - Annual'!$S:$S) -> 0 | G17: =SUMIF('Commercial - Monthly'!$D:$D, Results!$B17, 'Commercial - Monthly'!$S:$S) -> 0 | H17: =SUMIF('Commercial - Annual'!$D:$D, Results!$B17, 'Commercial - Annual'!$S:$S) -> 0 | I17: =SUMIF('Fire (Office) - Monthly'!$D:$D, Results!$B17, 'Fire (Office) - Monthly'!$S:$S) -> 0 | J17: =SUMIF('Fire (Office) - Annual'!$D:$D, Results!$B17, 'Fire (Office) - Annual'!$S:$S) -> 0 | K17: =SUMIF('Municipalities - Monthly'!$D:$D, Results!$B17, 'Municipalities - Monthly'!$S:$S) -> 0 | L17: =SUMIF('Municipalities - Annual'!$D:$D, Results!$B17, 'Municipalities - Annual'!$S:$S) -> 0 | M17: 0
B18: Goods In Transit | C18: =SUMIF('Domestic - Monthly'!$D:$D, Results!$B18, 'Domestic - Monthly'!$S:$S) -> 0 | D18: =SUMIF('Domestic (Tertiary) - Monthly'!$D:$D, Results!$B18, 'Domestic (Tertiary) - Monthly'!$S:$S) -> 0 | E18: =SUMIF('Domestic - Annual'!$D:$D, Results!$B18, 'Domestic - Annual'!$S:$S) -> 0 | F18: =SUMIF('Domestic (Tertiary) - Annual'!$D:$D, Results!$B18, 'Domestic (Tertiary) - Annual'!$S:$S) -> 0 | G18: =SUMIF('Commercial - Monthly'!$D:$D, Results!$B18, 'Commercial - Monthly'!$S:$S) -> 0 | H18: =SUMIF('Commercial - Annual'!$D:$D, Results!$B18, 'Commercial - Annual'!$S:$S) -> 0 | I18: =SUMIF('Fire (Office) - Monthly'!$D:$D, Results!$B18, 'Fire (Office) - Monthly'!$S:$S) -> 0 | J18: =SUMIF('Fire (Office) - Annual'!$D:$D, Results!$B18, 'Fire (Office) - Annual'!$S:$S) -> 0 | K18: =SUMIF('Municipalities - Monthly'!$D:$D, Results!$B18, 'Municipalities - Monthly'!$S:$S) -> 0 | L18: =SUMIF('Municipalities - Annual'!$D:$D, Results!$B18, 'Municipalities - Annual'!$S:$S) -> 0 | M18: 0
B20: Sum Insured
B21: Class | C21: Domestic - Monthly | D21: Domestic (Tertiary) - Monthly | E21: Domestic - Annual | F21: Domestic (Tertiary) - Annual | G21: Commercial - Monthly | H21: Commercial - Annual | I21: Fire (Office) - Monthly | J21: Fire (Office) - Monthly | K21: Municipalities - Monthly | L21: Municipalities - Annual | M21: Aggregate
B22: Fire | C22: =SUMIF('Domestic - Monthly'!$D:$D, Results!$B22, 'Domestic - Monthly'!$E:$E) - SUMIF('Domestic - Monthly'!$B:$B, "F1-MC", 'Domestic - Monthly'!$E:$E) -> 0 | D22: =SUMIF('Domestic (Tertiary) - Monthly'!$D:$D, Results!$B22, 'Domestic (Tertiary) - Monthly'!$E:$E) -> 0 | E22: =SUMIF('Domestic - Annual'!$D:$D, Results!$B22, 'Domestic - Annual'!$E:$E) - SUMIF('Domestic - Annual'!$B:$B, "F1-MC", 'Domestic - Annual'!$E:$E) -> 0 | F22: =SUMIF('Domestic (Tertiary) - Annual'!$D:$D, Results!$B22, 'Domestic (Tertiary) - Annual'!$E:$E) -> 0 | G22: =SUMIF('Commercial - Monthly'!$D:$D, Results!$B22, 'Commercial - Monthly'!$E:$E) -> 0 | H22: =SUMIF('Commercial - Annual'!$D:$D, Results!$B22, 'Commercial - Annual'!$E:$E) -> 0 | I22: =SUMIF('Fire (Office) - Monthly'!$D:$D, Results!$B22, 'Fire (Office) - Monthly'!$E:$E) -> 0 | J22: =SUMIF('Fire (Office) - Annual'!$D:$D, Results!$B22, 'Fire (Office) - Annual'!$E:$E) -> 0 | K22: =SUMIF('Municipalities - Monthly'!$D:$D, Results!$B22, 'Municipalities - Monthly'!$E:$E) -> 0 | L22: =SUMIF('Municipalities - Annual'!$D:$D, Results!$B22, 'Municipalities - Annual'!$E:$E) -> 0 | M22: =SUM(C22:L22) -> 0
B23: Extensions | M23: =SUM(C23:L23) -> 0
B24: Static Risk | C24: =SUMIF('Domestic - Monthly'!$D:$D, Results!$B24, 'Domestic - Monthly'!$E:$E) -> 0 | D24: =SUMIF('Domestic (Tertiary) - Monthly'!$D:$D, Results!$B24, 'Domestic (Tertiary) - Monthly'!$E:$E) -> 0 | E24: =SUMIF('Domestic - Annual'!$D:$D, Results!$B24, 'Domestic - Annual'!$E:$E) -> 0 | F24: =SUMIF('Domestic (Tertiary) - Annual'!$D:$D, Results!$B24, 'Domestic (Tertiary) - Annual'!$E:$E) -> 0 | G24: =SUMIF('Commercial - Monthly'!$D:$D, Results!$B24, 'Commercial - Monthly'!$E:$E) -> 0 | H24: =SUMIF('Commercial - Annual'!$D:$D, Results!$B24, 'Commercial - Annual'!$E:$E) -> 0 | I24: =SUMIF('Fire (Office) - Monthly'!$D:$D, Results!$B24, 'Fire (Office) - Monthly'!$E:$E) -> 0 | J24: =SUMIF('Fire (Office) - Annual'!$D:$D, Results!$B24, 'Fire (Office) - Annual'!$E:$E) -> 0 | K24: =SUMIF('Municipalities - Monthly'!$D:$D, Results!$B24, 'Municipalities - Monthly'!$E:$E) -> 0 | L24: =SUMIF('Municipalities - Annual'!$D:$D, Results!$B24, 'Municipalities - Annual'!$E:$E) -> 0 | M24: 0
B25: Escalation | M25: 0
B26: Standing Charges | C26: =SUMIF('Domestic - Monthly'!$D:$D, Results!$B26, 'Domestic - Monthly'!$E:$E) -> 0 | D26: =SUMIF('Domestic (Tertiary) - Monthly'!$D:$D, Results!$B26, 'Domestic (Tertiary) - Monthly'!$E:$E) -> 0 | E26: =SUMIF('Domestic - Annual'!$D:$D, Results!$B26, 'Domestic - Annual'!$E:$E) -> 0 | F26: =SUMIF('Domestic (Tertiary) - Annual'!$D:$D, Results!$B26, 'Domestic (Tertiary) - Annual'!$E:$E) -> 0 | G26: =SUMIF('Commercial - Monthly'!$D:$D, Results!$B26, 'Commercial - Monthly'!$E:$E) -> 0 | H26: =SUMIF('Commercial - Annual'!$D:$D, Results!$B26, 'Commercial - Annual'!$E:$E) -> 0 | I26: =SUMIF('Fire (Office) - Monthly'!$D:$D, Results!$B26, 'Fire (Office) - Monthly'!$E:$E) -> 0 | J26: =SUMIF('Fire (Office) - Annual'!$D:$D, Results!$B26, 'Fire (Office) - Annual'!$E:$E) -> 0 | K26: =SUMIF('Municipalities - Monthly'!$D:$D, Results!$B26, 'Municipalities - Monthly'!$E:$E) -> 0 | L26: =SUMIF('Municipalities - Annual'!$D:$D, Results!$B26, 'Municipalities - Annual'!$E:$E) -> 0 | M26: 0
B27: Advance Standing Charges | C27: =SUMIF('Domestic - Monthly'!$D:$D, Results!$B27, 'Domestic - Monthly'!$E:$E) -> 0 | D27: =SUMIF('Domestic (Tertiary) - Monthly'!$D:$D, Results!$B27, 'Domestic (Tertiary) - Monthly'!$E:$E) -> 0 | E27: =SUMIF('Domestic - Annual'!$D:$D, Results!$B27, 'Domestic - Annual'!$E:$E) -> 0 | F27: =SUMIF('Domestic (Tertiary) - Annual'!$D:$D, Results!$B27, 'Domestic (Tertiary) - Annual'!$E:$E) -> 0 | G27: =SUMIF('Commercial - Monthly'!$D:$D, Results!$B27, 'Commercial - Monthly'!$E:$E) -> 0 | H27: =SUMIF('Commercial - Annual'!$D:$D, Results!$B27, 'Commercial - Annual'!$E:$E) -> 0 | I27: =SUMIF('Fire (Office) - Monthly'!$D:$D, Results!$B27, 'Fire (Office) - Monthly'!$E:$E) -> 0 | J27: =SUMIF('Fire (Office) - Annual'!$D:$D, Results!$B27, 'Fire (Office) - Annual'!$E:$E) -> 0 | K27: =SUMIF('Municipalities - Monthly'!$D:$D, Results!$B27, 'Municipalities - Monthly'!$E:$E) -> 0 | L27: =SUMIF('Municipalities - Annual'!$D:$D, Results!$B27, 'Municipalities - Annual'!$E:$E) -> 0 | M27: 0
B28: Working Expenses | C28: =SUMIF('Domestic - Monthly'!$D:$D, Results!$B28, 'Domestic - Monthly'!$E:$E) -> 0 | D28: =SUMIF('Domestic (Tertiary) - Monthly'!$D:$D, Results!$B28, 'Domestic (Tertiary) - Monthly'!$E:$E) -> 0 | E28: =SUMIF('Domestic - Annual'!$D:$D, Results!$B28, 'Domestic - Annual'!$E:$E) -> 0 | F28: =SUMIF('Domestic (Tertiary) - Annual'!$D:$D, Results!$B28, 'Domestic (Tertiary) - Annual'!$E:$E) -> 0 | G28: =SUMIF('Commercial - Monthly'!$D:$D, Results!$B28, 'Commercial - Monthly'!$E:$E) -> 0 | H28: =SUMIF('Commercial - Annual'!$D:$D, Results!$B28, 'Commercial - Annual'!$E:$E) -> 0 | I28: =SUMIF('Fire (Office) - Monthly'!$D:$D, Results!$B28, 'Fire (Office) - Monthly'!$E:$E) -> 0 | J28: =SUMIF('Fire (Office) - Annual'!$D:$D, Results!$B28, 'Fire (Office) - Annual'!$E:$E) -> 0 | K28: =SUMIF('Municipalities - Monthly'!$D:$D, Results!$B28, 'Municipalities - Monthly'!$E:$E) -> 0 | L28: =SUMIF('Municipalities - Annual'!$D:$D, Results!$B28, 'Municipalities - Annual'!$E:$E) -> 0 | M28: 0
B29: Net Profit | C29: =SUMIF('Domestic - Monthly'!$D:$D, Results!$B29, 'Domestic - Monthly'!$E:$E) -> 0 | D29: =SUMIF('Domestic (Tertiary) - Monthly'!$D:$D, Results!$B29, 'Domestic (Tertiary) - Monthly'!$E:$E) -> 0 | E29: =SUMIF('Domestic - Annual'!$D:$D, Results!$B29, 'Domestic - Annual'!$E:$E) -> 0 | F29: =SUMIF('Domestic (Tertiary) - Annual'!$D:$D, Results!$B29, 'Domestic (Tertiary) - Annual'!$E:$E) -> 0 | G29: =SUMIF('Commercial - Monthly'!$D:$D, Results!$B29, 'Commercial - Monthly'!$E:$E) -> 0 | H29: =SUMIF('Commercial - Annual'!$D:$D, Results!$B29, 'Commercial - Annual'!$E:$E) -> 0 | I29: =SUMIF('Fire (Office) - Monthly'!$D:$D, Results!$B29, 'Fire (Office) - Monthly'!$E:$E) -> 0 | J29: =SUMIF('Fire (Office) - Annual'!$D:$D, Results!$B29, 'Fire (Office) - Annual'!$E:$E) -> 0 | K29: =SUMIF('Municipalities - Monthly'!$D:$D, Results!$B29, 'Municipalities - Monthly'!$E:$E) -> 0 | L29: =SUMIF('Municipalities - Annual'!$D:$D, Results!$B29, 'Municipalities - Annual'!$E:$E) -> 0 | M29: 0
B30: Gross Profit | C30: =SUMIF('Domestic - Monthly'!$D:$D, Results!$B30, 'Domestic - Monthly'!$E:$E) -> 0 | D30: =SUMIF('Domestic (Tertiary) - Monthly'!$D:$D, Results!$B30, 'Domestic (Tertiary) - Monthly'!$E:$E) -> 0 | E30: =SUMIF('Domestic - Annual'!$D:$D, Results!$B30, 'Domestic - Annual'!$E:$E) -> 0 | F30: =SUMIF('Domestic (Tertiary) - Annual'!$D:$D, Results!$B30, 'Domestic (Tertiary) - Annual'!$E:$E) -> 0 | G30: =SUMIF('Commercial - Monthly'!$D:$D, Results!$B30, 'Commercial - Monthly'!$E:$E) -> 0 | H30: =SUMIF('Commercial - Annual'!$D:$D, Results!$B30, 'Commercial - Annual'!$E:$E) -> 0 | I30: =SUMIF('Fire (Office) - Monthly'!$D:$D, Results!$B30, 'Fire (Office) - Monthly'!$E:$E) -> 0 | J30: =SUMIF('Fire (Office) - Annual'!$D:$D, Results!$B30, 'Fire (Office) - Annual'!$E:$E) -> 0 | K30: =SUMIF('Municipalities - Monthly'!$D:$D, Results!$B30, 'Municipalities - Monthly'!$E:$E) -> 0 | L30: =SUMIF('Municipalities - Annual'!$D:$D, Results!$B30, 'Municipalities - Annual'!$E:$E) -> 0 | M30: 0
B31: Revenue | C31: =SUMIF('Domestic - Monthly'!$D:$D, Results!$B31, 'Domestic - Monthly'!$E:$E) -> 0 | D31: =SUMIF('Domestic (Tertiary) - Monthly'!$D:$D, Results!$B31, 'Domestic (Tertiary) - Monthly'!$E:$E) -> 0 | E31: =SUMIF('Domestic - Annual'!$D:$D, Results!$B31, 'Domestic - Annual'!$E:$E) -> 0 | F31: =SUMIF('Domestic (Tertiary) - Annual'!$D:$D, Results!$B31, 'Domestic (Tertiary) - Annual'!$E:$E) -> 0 | G31: =SUMIF('Commercial - Monthly'!$D:$D, Results!$B31, 'Commercial - Monthly'!$E:$E) -> 0 | H31: =SUMIF('Commercial - Annual'!$D:$D, Results!$B31, 'Commercial - Annual'!$E:$E) -> 0 | I31: =SUMIF('Fire (Office) - Monthly'!$D:$D, Results!$B31, 'Fire (Office) - Monthly'!$E:$E) -> 0 | J31: =SUMIF('Fire (Office) - Annual'!$D:$D, Results!$B31, 'Fire (Office) - Annual'!$E:$E) -> 0 | K31: =SUMIF('Municipalities - Monthly'!$D:$D, Results!$B31, 'Municipalities - Monthly'!$E:$E) -> 0 | L31: =SUMIF('Municipalities - Annual'!$D:$D, Results!$B31, 'Municipalities - Annual'!$E:$E) -> 0 | M31: 0
B32: Motor | C32: =SUMIF('Domestic - Monthly'!$D:$D, Results!$B32, 'Domestic - Monthly'!$E:$E) - SUMIF('Domestic - Monthly'!$B:$B, "M1", 'Domestic - Monthly'!$E:$E) -> 0 | D32: =SUMIF('Domestic (Tertiary) - Monthly'!$D:$D, Results!$B32, 'Domestic (Tertiary) - Monthly'!$E:$E) - SUMIF('Domestic (Tertiary) - Monthly'!$B:$B, "M1", 'Domestic (Tertiary) - Monthly'!$E:$E) -> 0 | E32: =SUMIF('Domestic - Annual'!$D:$D, Results!$B32, 'Domestic - Annual'!$E:$E) - SUMIF('Domestic - Annual'!$B:$B, "M1", 'Domestic - Annual'!$E:$E) -> 0 | F32: =SUMIF('Domestic (Tertiary) - Annual'!$D:$D, Results!$B32, 'Domestic (Tertiary) - Annual'!$E:$E) - SUMIF('Domestic (Tertiary) - Annual'!$B:$B, "M1", 'Domestic (Tertiary) - Annual'!$E:$E) -> 0 | G32: =SUMIF('Commercial - Monthly'!$D:$D, Results!$B32, 'Commercial - Monthly'!$E:$E) - SUMIF('Commercial - Monthly'!$B:$B, "M1", 'Commercial - Monthly'!$E:$E) -> 0 | H32: =SUMIF('Commercial - Annual'!$D:$D, Results!$B32, 'Commercial - Annual'!$E:$E) - SUMIF('Commercial - Annual'!$B:$B, "M1", 'Commercial - Annual'!$E:$E) -> 0 | I32: =SUMIF('Fire (Office) - Monthly'!$D:$D, Results!$B32, 'Fire (Office) - Monthly'!$E:$E) - SUMIF('Fire (Office) - Monthly'!$B:$B, "M1", 'Fire (Office) - Monthly'!$E:$E) -> 0 | J32: =SUMIF('Fire (Office) - Annual'!$D:$D, Results!$B32, 'Fire (Office) - Annual'!$E:$E) - SUMIF('Fire (Office) - Annual'!$B:$B, "M1", 'Fire (Office) - Annual'!$E:$E) -> 0 | K32: =SUMIF('Municipalities - Monthly'!$D:$D, Results!$B32, 'Municipalities - Monthly'!$E:$E) - SUMIF('Municipalities - Monthly'!$B:$B, "M1", 'Municipalities - Monthly'!$E:$E) -> 0 | L32: =SUMIF('Municipalities - Annual'!$D:$D, Results!$B32, 'Municipalities - Annual'!$E:$E) - SUMIF('Municipalities - Annual'!$B:$B, "M1", 'Municipalities - Annual'!$E:$E) -> 0 | M32: 0
B33: Contract Works | C33: =SUMIF('Domestic - Monthly'!$D:$D, Results!$B33, 'Domestic - Monthly'!$E:$E) -> 0 | D33: =SUMIF('Domestic (Tertiary) - Monthly'!$D:$D, Results!$B33, 'Domestic (Tertiary) - Monthly'!$E:$E) -> 0 | E33: =SUMIF('Domestic - Annual'!$D:$D, Results!$B33, 'Domestic - Annual'!$E:$E) -> 0 | F33: =SUMIF('Domestic (Tertiary) - Annual'!$D:$D, Results!$B33, 'Domestic (Tertiary) - Annual'!$E:$E) -> 0 | G33: =SUMIF('Commercial - Monthly'!$D:$D, Results!$B33, 'Commercial - Monthly'!$E:$E) -> 0 | H33: =SUMIF('Commercial - Annual'!$D:$D, Results!$B33, 'Commercial - Annual'!$E:$E) -> 0 | I33: =SUMIF('Fire (Office) - Monthly'!$D:$D, Results!$B33, 'Fire (Office) - Monthly'!$E:$E) -> 0 | J33: =SUMIF('Fire (Office) - Annual'!$D:$D, Results!$B33, 'Fire (Office) - Annual'!$E:$E) -> 0 | K33: =SUMIF('Municipalities - Monthly'!$D:$D, Results!$B33, 'Municipalities - Monthly'!$E:$E) -> 0 | L33: =SUMIF('Municipalities - Annual'!$D:$D, Results!$B33, 'Municipalities - Annual'!$E:$E) -> 0 | M33: 0
B34: Money | C34: =SUMIF('Domestic - Monthly'!$D:$D, Results!$B34, 'Domestic - Monthly'!$E:$E) -> 0 | D34: =SUMIF('Domestic (Tertiary) - Monthly'!$D:$D, Results!$B34, 'Domestic (Tertiary) - Monthly'!$E:$E) -> 0 | E34: =SUMIF('Domestic - Annual'!$D:$D, Results!$B34, 'Domestic - Annual'!$E:$E) -> 0 | F34: =SUMIF('Domestic (Tertiary) - Annual'!$D:$D, Results!$B34, 'Domestic (Tertiary) - Annual'!$E:$E) -> 0 | G34: =SUMIF('Commercial - Monthly'!$D:$D, Results!$B34, 'Commercial - Monthly'!$E:$E) -> 0 | H34: =SUMIF('Commercial - Annual'!$D:$D, Results!$B34, 'Commercial - Annual'!$E:$E) -> 0 | I34: =SUMIF('Fire (Office) - Monthly'!$D:$D, Results!$B34, 'Fire (Office) - Monthly'!$E:$E) -> 0 | J34: =SUMIF('Fire (Office) - Annual'!$D:$D, Results!$B34, 'Fire (Office) - Annual'!$E:$E) -> 0 | K34: =SUMIF('Municipalities - Monthly'!$D:$D, Results!$B34, 'Municipalities - Monthly'!$E:$E) -> 0 | L34: =SUMIF('Municipalities - Annual'!$D:$D, Results!$B34, 'Municipalities - Annual'!$E:$E) -> 0 | M34: 0
B35: Goods In Transit | C35: =SUMIF('Domestic - Monthly'!$D:$D, Results!$B35, 'Domestic - Monthly'!$E:$E) -> 0 | D35: =SUMIF('Domestic (Tertiary) - Monthly'!$D:$D, Results!$B35, 'Domestic (Tertiary) - Monthly'!$E:$E) -> 0 | E35: =SUMIF('Domestic - Annual'!$D:$D, Results!$B35, 'Domestic - Annual'!$E:$E) -> 0 | F35: =SUMIF('Domestic (Tertiary) - Annual'!$D:$D, Results!$B35, 'Domestic (Tertiary) - Annual'!$E:$E) -> 0 | G35: =SUMIF('Commercial - Monthly'!$D:$D, Results!$B35, 'Commercial - Monthly'!$E:$E) -> 0 | H35: =SUMIF('Commercial - Annual'!$D:$D, Results!$B35, 'Commercial - Annual'!$E:$E) -> 0 | I35: =SUMIF('Fire (Office) - Monthly'!$D:$D, Results!$B35, 'Fire (Office) - Monthly'!$E:$E) -> 0 | J35: =SUMIF('Fire (Office) - Annual'!$D:$D, Results!$B35, 'Fire (Office) - Annual'!$E:$E) -> 0 | K35: =SUMIF('Municipalities - Monthly'!$D:$D, Results!$B35, 'Municipalities - Monthly'!$E:$E) -> 0 | L35: =SUMIF('Municipalities - Annual'!$D:$D, Results!$B35, 'Municipalities - Annual'!$E:$E) -> 0 | M35: 0

Sheet Domestic - Monthly
A1: Domestic - Monthly | V1: Cells with green borders have a drop-down selection!
A2: Category | B2: Code | C2: Description | D2: Total Code | E2: Sum Insured/No. of insured items | F2: Rate | G2: Is Percent | H2: Add To Sum Insured Discount | I2: Receive Sum Insured Discount | J2: Add To CW Discount | K2: Receive CW Discount | L2: Contract Period Discount | M2: Minimum Premium | N2: Has Fire Extension Discount | O2: Amount within free extension threshold | P2: Special Dispensation Rate | Q2: N/A To Special Dispensation | R2: Unique Code | S2: Premium | T2: System ID
B3: Fire
A4: Domestic Fire | B4: F1 | C4: Domestic Fire | D4: Fire | F4: 3.63e-06 | G4: TRUE | H4: TRUE | I4: TRUE | J4: FALSE | K4: FALSE | M4: 3 | N4: FALSE | P4: 0 | Q4: TRUE | R4: DM001 | S4: =IF(E4 = 0, 0, MAX((E4 * F4) * (IF(I4 = TRUE, 1 - 'Loss Limit Discount'!$D$93, 1)) + ('Fire Extensions'!$D$12 * F4) * (1 - 'Loss Limit Discount'!$D$93), M4)) -> 0 | T4: 148
A5: Domestic Fire | B5: F1-MC | C5: Mayors and Councilors | D5: Fire | F5: 5.45 | G5: FALSE | H5: FALSE | I5: FALSE | J5: FALSE | K5: FALSE | M5: 0 | N5: FALSE | P5: 0 | Q5: TRUE | S5: =IF(E5 = 0, 0, MAX((F5 * E5) * (IF(I5 = TRUE, 1 - 'Loss Limit Discount'!$D$93, 1)), M5 * E5)) -> 0 | T5: 2876
A6: Extension | B6: Sasria Extensions
A7: Extension | B7: EX | C7: Rent | D7: Fire | F7: =$F$4 -> 3.63e-06 | G7: TRUE | H7: TRUE | I7: TRUE | J7: FALSE | K7: FALSE | M7: 0 | N7: TRUE | O7: =IF(E7 < 'Fire Extensions'!$D$6, 'Domestic - Monthly'!E7, 'Fire Extensions'!$D$6) -> 0 | P7: 0 | Q7: TRUE | R7: DM002 | T7: 154
A8: Extension | B8: EX | C8: Claims Preparation Costs | D8: Fire | F8: =$F$4 -> 3.63e-06 | G8: TRUE | H8: TRUE | I8: TRUE | J8: FALSE | K8: FALSE | M8: 0 | N8: TRUE | O8: =IF(E8 < 'Fire Extensions'!$D$6, 'Domestic - Monthly'!E8, 'Fire Extensions'!$D$6) -> 0 | P8: 0 | Q8: TRUE | R8: DM003 | T8: 155
A9: Extension | B9: EX | C9: Capital Additions | D9: Fire | F9: 3.63e-06 | G9: TRUE | H9: TRUE | I9: TRUE | J9: FALSE | K9: FALSE | M9: 0 | N9: TRUE | O9: =IF(E9 < 'Fire Extensions'!$D$6, 'Domestic - Monthly'!E9, 'Fire Extensions'!$D$6) -> 0 | P9: 0 | Q9: TRUE | R9: DM004 | T9: 156
A10: Extension | B10: EX | C10: Professional fees | D10: Fire | F10: 3.63e-06 | G10: TRUE | H10: TRUE | I10: TRUE | J10: FALSE | K10: FALSE | M10: 0 | N10: TRUE | O10: =IF(E10 < 'Fire Extensions'!$D$6, 'Domestic - Monthly'!E10, 'Fire Extensions'!$D$6) -> 0 | P10: 0 | Q10: TRUE | R10: DM005 | T10: 157
A11: Extension | B11: EX | C11: Clearance costs | D11: Fire | F11: 3.63e-06 | G11: TRUE | H11: TRUE | I11: TRUE | J11: FALSE | K11: FALSE | M11: 0 | N11: TRUE | O11: =IF(E11 < 'Fire Extensions'!$D$6, 'Domestic - Monthly'!E11, 'Fire Extensions'!$D$6) -> 0 | P11: 0 | Q11: TRUE | R11: DM006 | T11: 158
A12: Extension | B12: EX | C12: Security Costs (During and after a loss) | D12: Fire | F12: 3.63e-06 | G12: TRUE | H12: TRUE | I12: TRUE | J12: FALSE | K12: FALSE | M12: 0 | N12: TRUE | O12: =IF(E12 < 'Fire Extensions'!$D$6, 'Domestic - Monthly'!E12, 'Fire Extensions'!$D$6) -> 0 | P12: 0 | Q12: TRUE | R12: DM007 | T12: 159
A13: Extension | B13: EX | C13: Statutory Duties | D13: Fire | F13: 3.63e-06 | G13: TRUE | H13: TRUE | I13: TRUE | J13: FALSE | K13: FALSE | M13: 0 | N13: TRUE | O13: =IF(E13 < 'Fire Extensions'!$D$6, 'Domestic - Monthly'!E13, 'Fire Extensions'!$D$6) -> 0 | P13: 0 | Q13: TRUE | R13: DM010 | T13: 163
A14: Extension | B14: EX | C14: Additional Premises | D14: Fire | F14: 3.63e-06 | G14: TRUE | H14: TRUE | I14: TRUE | J14: FALSE | K14: FALSE | M14: 0 | N14: TRUE | O14: =IF(E14 < 'Fire Extensions'!$D$6, 'Domestic - Monthly'!E14, 'Fire Extensions'!$D$6) -> 0 | P14: 0 | Q14: TRUE | R14: DM011 | T14: 164
A15: Extension | B15: EX | C15: Acquisition Limits | D15: Fire | F15: 3.63e-06 | G15: TRUE | H15: TRUE | I15: TRUE | J15: FALSE | K15: FALSE | M15: 0 | N15: TRUE | O15: =IF(E15 < 'Fire Extensions'!$D$6, 'Domestic - Monthly'!E15, 'Fire Extensions'!$D$6) -> 0 | P15: 0 | Q15: TRUE | R15: DM012 | T15: 165
A16: Extension | B16: EX | C16: Import Surcharges | D16: Fire | F16: 3.63e-06 | G16: TRUE | H16: TRUE | I16: TRUE | J16: FALSE | K16: FALSE | M16: 0 | N16: TRUE | O16: =IF(E16 < 'Fire Extensions'!$D$6, 'Domestic - Monthly'!E16, 'Fire Extensions'!$D$6) -> 0 | P16: 0 | Q16: TRUE | R16: DM014 | T16: 167
A17: Extension | B17: EX | C17: Fire Protection System Update | D17: Fire | F17: 3.63e-06 | G17: TRUE | H17: TRUE | I17: TRUE | J17: FALSE | K17: FALSE | M17: 0 | N17: TRUE | O17: =IF(E17 < 'Fire Extensions'!$D$6, 'Domestic - Monthly'!E17, 'Fire Extensions'!$D$6) -> 0 | P17: 0 | Q17: TRUE | R17: DM015 | T17: 168
A18: Extension | B18: EX | C18: Goods in the open | D18: Fire | F18: 3.63e-06 | G18: TRUE | H18: TRUE | I18: TRUE | J18: FALSE | K18: FALSE | M18: 0 | N18: TRUE | O18: =IF(E18 < 'Fire Extensions'!$D$6, 'Domestic - Monthly'!E18, 'Fire Extensions'!$D$6) -> 0 | P18: 0 | Q18: TRUE | R18: DM019 | T18: 172
A19: Extension | B19: EX | C19: Fire Extinguishing | D19: Fire | F19: 3.63e-06 | G19: TRUE | H19: TRUE | I19: TRUE | J19: FALSE | K19: FALSE | M19: 0 | N19: TRUE | O19: =IF(E19 < 'Fire Extensions'!$D$6, 'Domestic - Monthly'!E19, 'Fire Extensions'!$D$6) -> 0 | P19: 0 | Q19: TRUE | R19: DM020 | T19: 173
A20: Extension | B20: EX | C20: Imminent Danger (Protection of property prior a loss) | D20: Fire | F20: 3.63e-06 | G20: TRUE | H20: TRUE | I20: TRUE | J20: FALSE | K20: FALSE | M20: 0 | N20: TRUE | O20: =IF(E20 < 'Fire Extensions'!$D$6, 'Domestic - Monthly'!E20, 'Fire Extensions'!$D$6) -> 0 | P20: 0 | Q20: TRUE | T20: 2875
A21: Other Extension | B21: Other Extensions
A22: Other Extension | B22: EX | C22: Other | D22: Fire | F22: =$F$4 -> 3.63e-06 | G22: TRUE | H22: TRUE | I22: TRUE | J22: FALSE | K22: FALSE | M22: 0 | N22: TRUE | O22: =IF(E22 < 'Fire Extensions'!$D$6, 'Domestic - Monthly'!E22, 'Fire Extensions'!$D$6) -> 0 | P22: 0 | Q22: TRUE | R22: DM021 | T22: 175
A23: Other Extension | B23: EX | C23: Other | D23: Fire | F23: 3.63e-06 | G23: TRUE | H23: TRUE | I23: TRUE | J23: FALSE | K23: FALSE | M23: 0 | N23: TRUE | O23: =IF(E23 < 'Fire Extensions'!$D$6, 'Domestic - Monthly'!E23, 'Fire Extensions'!$D$6) -> 0 | P23: 0 | Q23: TRUE | R23: DM022 | T23: 176
A24: Other Extension | B24: EX | C24: Other | D24: Fire | F24: 3.63e-06 | G24: TRUE | H24: TRUE | I24: TRUE | J24: FALSE | K24: FALSE | M24: 0 | N24: TRUE | O24: =IF(E24 < 'Fire Extensions'!$D$6, 'Domestic - Monthly'!E24, 'Fire Extensions'!$D$6) -> 0 | P24: 0 | Q24: TRUE | R24: DM023 | T24: 177
A25: Other Extension | B25: EX | C25: Other | D25: Fire | F25: 3.63e-06 | G25: TRUE | H25: TRUE | I25: TRUE | J25: FALSE | K25: FALSE | M25: 0 | N25: TRUE | O25: =IF(E25 < 'Fire Extensions'!$D$6, 'Domestic - Monthly'!E25, 'Fire Extensions'!$D$6) -> 0 | P25: 0 | Q25: TRUE | R25: DM024 | T25: 178
A26: Other Extension | B26: EX | C26: Other | D26: Fire | F26: 3.63e-06 | G26: TRUE | H26: TRUE | I26: TRUE | J26: FALSE | K26: FALSE | M26: 0 | N26: TRUE | O26: =IF(E26 < 'Fire Extensions'!$D$6, 'Domestic - Monthly'!E26, 'Fire Extensions'!$D$6) -> 0 | P26: 0 | Q26: TRUE | R26: DM025 | T26: 179
A27: Other Extension | B27: EX | C27: Other | D27: Fire | F27: 3.63e-06 | G27: TRUE | H27: TRUE | I27: TRUE | J27: FALSE | K27: FALSE | M27: 0 | N27: TRUE | O27: =IF(E27 < 'Fire Extensions'!$D$6, 'Domestic - Monthly'!E27, 'Fire Extensions'!$D$6) -> 0 | P27: 0 | Q27: TRUE | R27: DM026 | T27: 180
A28: Other Extension | B28: EX | C28: Other | D28: Fire | F28: 3.63e-06 | G28: TRUE | H28: TRUE | I28: TRUE | J28: FALSE | K28: FALSE | M28: 0 | N28: TRUE | O28: =IF(E28 < 'Fire Extensions'!$D$6, 'Domestic - Monthly'!E28, 'Fire Extensions'!$D$6) -> 0 | P28: 0 | Q28: TRUE | R28: DM027 | T28: 181
A29: Other Extension | B29: EX | C29: Other | D29: Fire | F29: 3.63e-06 | G29: TRUE | H29: TRUE | I29: TRUE | J29: FALSE | K29: FALSE | M29: 0 | N29: TRUE | O29: =IF(E29 < 'Fire Extensions'!$D$6, 'Domestic - Monthly'!E29, 'Fire Extensions'!$D$6) -> 0 | P29: 0 | Q29: TRUE | R29: DM028 | T29: 182
A30: Other Extension | B30: EX | C30: Other | D30: Fire | F30: 3.63e-06 | G30: TRUE | H30: TRUE | I30: TRUE | J30: FALSE | K30: FALSE | M30: 0 | N30: TRUE | O30: =IF(E30 < 'Fire Extensions'!$D$6, 'Domestic - Monthly'!E30, 'Fire Extensions'!$D$6) -> 0 | P30: 0 | Q30: TRUE | R30: DM029 | T30: 183
A31: Other Extension | B31: EX | C31: Other | D31: Fire | F31: 3.63e-06 | G31: TRUE | H31: TRUE | I31: TRUE | J31: FALSE | K31: FALSE | M31: 0 | N31: TRUE | O31: =IF(E31 < 'Fire Extensions'!$D$6, 'Domestic - Monthly'!E31, 'Fire Extensions'!$D$6) -> 0 | P31: 0 | Q31: TRUE | R31: DM030 | T31: 184
A32: Other Extension | B32: EX | C32: Other | D32: Fire | F32: 3.63e-06 | G32: TRUE | H32: TRUE | I32: TRUE | J32: FALSE | K32: FALSE | M32: 0 | N32: TRUE | O32: =IF(E32 < 'Fire Extensions'!$D$6, 'Domestic - Monthly'!E32, 'Fire Extensions'!$D$6) -> 0 | P32: 0 | Q32: TRUE | R32: DM031 | T32: 185
A33: Other Extension | B33: EX | C33: Other | D33: Fire | F33: 3.63e-06 | G33: TRUE | H33: TRUE | I33: TRUE | J33: FALSE | K33: FALSE | M33: 0 | N33: TRUE | O33: =IF(E33 < 'Fire Extensions'!$D$6, 'Domestic - Monthly'!E33, 'Fire Extensions'!$D$6) -> 0 | P33: 0 | Q33: TRUE | R33: DM032 | T33: 186
A34: Other Extension | B34: EX | C34: Other | D34: Fire | F34: 3.63e-06 | G34: TRUE | H34: TRUE | I34: TRUE | J34: FALSE | K34: FALSE | M34: 0 | N34: TRUE | O34: =IF(E34 < 'Fire Extensions'!$D$6, 'Domestic - Monthly'!E34, 'Fire Extensions'!$D$6) -> 0 | P34: 0 | Q34: TRUE | R34: DM033 | T34: 187
A35: Other Extension | B35: EX | C35: Other | D35: Fire | F35: 3.63e-06 | G35: TRUE | H35: TRUE | I35: TRUE | J35: FALSE | K35: FALSE | M35: 0 | N35: TRUE | O35: =IF(E35 < 'Fire Extensions'!$D$6, 'Domestic - Monthly'!E35, 'Fire Extensions'!$D$6) -> 0 | P35: 0 | Q35: TRUE | R35: DM034 | T35: 188
A36: Other Extension | B36: EX | C36: Other | D36: Fire | F36: 3.63e-06 | G36: TRUE | H36: TRUE | I36: TRUE | J36: FALSE | K36: FALSE | M36: 0 | N36: TRUE | O36: =IF(E36 < 'Fire Extensions'!$D$6, 'Domestic - Monthly'!E36, 'Fire Extensions'!$D$6) -> 0 | P36: 0 | Q36: TRUE | R36: DM035 | T36: 189
A37: Other Extension | B37: EX | C37: Other | D37: Fire | F37: 3.63e-06 | G37: TRUE | H37: TRUE | I37: TRUE | J37: FALSE | K37: FALSE | M37: 0 | N37: TRUE | O37: =IF(E37 < 'Fire Extensions'!$D$6, 'Domestic - Monthly'!E37, 'Fire Extensions'!$D$6) -> 0 | P37: 0 | Q37: TRUE | R37: DM036 | T37: 190
A38: Other Extension | B38: EX | C38: Other | D38: Fire | F38: 3.63e-06 | G38: TRUE | H38: TRUE | I38: TRUE | J38: FALSE | K38: FALSE | M38: 0 | N38: TRUE | O38: =IF(E38 < 'Fire Extensions'!$D$6, 'Domestic - Monthly'!E38, 'Fire Extensions'!$D$6) -> 0 | P38: 0 | Q38: TRUE | R38: DM037 | T38: 191
A39: Other Extension | B39: EX | C39: Other | D39: Fire | F39: 3.63e-06 | G39: TRUE | H39: TRUE | I39: TRUE | J39: FALSE | K39: FALSE | M39: 0 | N39: TRUE | O39: =IF(E39 < 'Fire Extensions'!$D$6, 'Domestic - Monthly'!E39, 'Fire Extensions'!$D$6) -> 0 | P39: 0 | Q39: TRUE | R39: DM038 | T39: 192
A40: Other Extension | B40: EX | C40: Other | D40: Fire | F40: 3.63e-06 | G40: TRUE | H40: TRUE | I40: TRUE | J40: FALSE | K40: FALSE | M40: 0 | N40: TRUE | O40: =IF(E40 < 'Fire Extensions'!$D$6, 'Domestic - Monthly'!E40, 'Fire Extensions'!$D$6) -> 0 | P40: 0 | Q40: TRUE | R40: DM039 | T40: 193
A41: Other Extension | B41: EX | C41: Other | D41: Fire | F41: 3.63e-06 | G41: TRUE | H41: TRUE | I41: TRUE | J41: FALSE | K41: FALSE | M41: 0 | N41: TRUE | O41: =IF(E41 < 'Fire Extensions'!$D$6, 'Domestic - Monthly'!E41, 'Fire Extensions'!$D$6) -> 0 | P41: 0 | Q41: TRUE | R41: DM040 | T41: 194
A42: Other Extension | B42: EX | C42: Other | D42: Fire | F42: 3.63e-06 | G42: TRUE | H42: TRUE | I42: TRUE | J42: FALSE | K42: FALSE | M42: 0 | N42: TRUE | O42: =IF(E42 < 'Fire Extensions'!$D$6, 'Domestic - Monthly'!E42, 'Fire Extensions'!$D$6) -> 0 | P42: 0 | Q42: TRUE | R42: DM041 | T42: 195
A43: Other Extension | B43: EX | C43: Other | D43: Fire | F43: 3.63e-06 | G43: TRUE | H43: TRUE | I43: TRUE | J43: FALSE | K43: FALSE | M43: 0 | N43: TRUE | O43: =IF(E43 < 'Fire Extensions'!$D$6, 'Domestic - Monthly'!E43, 'Fire Extensions'!$D$6) -> 0 | P43: 0 | Q43: TRUE | R43: DM042 | T43: 196
A44: Other Extension | B44: EX | C44: Other | D44: Fire | F44: 3.63e-06 | G44: TRUE | H44: TRUE | I44: TRUE | J44: FALSE | K44: FALSE | M44: 0 | N44: TRUE | O44: =IF(E44 < 'Fire Extensions'!$D$6, 'Domestic - Monthly'!E44, 'Fire Extensions'!$D$6) -> 0 | P44: 0 | Q44: TRUE | R44: DM043 | T44: 197
A45: Other Extension | B45: EX | C45: Other | D45: Fire | F45: 3.63e-06 | G45: TRUE | H45: TRUE | I45: TRUE | J45: FALSE | K45: FALSE | M45: 0 | N45: TRUE | O45: =IF(E45 < 'Fire Extensions'!$D$6, 'Domestic - Monthly'!E45, 'Fire Extensions'!$D$6) -> 0 | P45: 0 | Q45: TRUE | R45: DM044 | T45: 198
A46: Other Extension | B46: EX | C46: Other | D46: Fire | F46: 3.63e-06 | G46: TRUE | H46: TRUE | I46: TRUE | J46: FALSE | K46: FALSE | M46: 0 | N46: TRUE | O46: =IF(E46 < 'Fire Extensions'!$D$6, 'Domestic - Monthly'!E46, 'Fire Extensions'!$D$6) -> 0 | P46: 0 | Q46: TRUE | R46: DM045 | T46: 199
A47: Other Extension | B47: EX | C47: Other | D47: Fire | F47: 3.63e-06 | G47: TRUE | H47: TRUE | I47: TRUE | J47: FALSE | K47: FALSE | M47: 0 | N47: TRUE | O47: =IF(E47 < 'Fire Extensions'!$D$6, 'Domestic - Monthly'!E47, 'Fire Extensions'!$D$6) -> 0 | P47: 0 | Q47: TRUE | R47: DM046 | T47: 200
A48: Other Extension | B48: EX | C48: Other | D48: Fire | F48: 3.63e-06 | G48: TRUE | H48: TRUE | I48: TRUE | J48: FALSE | K48: FALSE | M48: 0 | N48: TRUE | O48: =IF(E48 < 'Fire Extensions'!$D$6, 'Domestic - Monthly'!E48, 'Fire Extensions'!$D$6) -> 0 | P48: 0 | Q48: TRUE | R48: DM047 | T48: 201
A49: Other Extension | B49: EX | C49: Other | D49: Fire | F49: 3.63e-06 | G49: TRUE | H49: TRUE | I49: TRUE | J49: FALSE | K49: FALSE | M49: 0 | N49: TRUE | O49: =IF(E49 < 'Fire Extensions'!$D$6, 'Domestic - Monthly'!E49, 'Fire Extensions'!$D$6) -> 0 | P49: 0 | Q49: TRUE | R49: DM048 | T49: 202
A50: Other Extension | B50: EX | C50: Other | D50: Fire | F50: 3.63e-06 | G50: TRUE | H50: TRUE | I50: TRUE | J50: FALSE | K50: FALSE | M50: 0 | N50: TRUE | O50: =IF(E50 < 'Fire Extensions'!$D$6, 'Domestic - Monthly'!E50, 'Fire Extensions'!$D$6) -> 0 | P50: 0 | Q50: TRUE | R50: DM049 | T50: 203
A51: Other Extension | B51: EX | C51: Other | D51: Fire | F51: 3.63e-06 | G51: TRUE | H51: TRUE | I51: TRUE | J51: FALSE | K51: FALSE | M51: 0 | N51: TRUE | O51: =IF(E51 < 'Fire Extensions'!$D$6, 'Domestic - Monthly'!E51, 'Fire Extensions'!$D$6) -> 0 | P51: 0 | Q51: TRUE | R51: DM050 | T51: 204
A52: Escalation | B52: Escalation and or Inflation
A53: Escalation UL | B53: Charge on U/L
A54: Escalation UL | C54: First Year (90-100%) | D54: Fire | F54: =IF(C54 = "", 0, VLOOKUP(C54, Escalation!$C$6:$D$50, 2, FALSE)) -> 3.63e-06 | G54: TRUE | H54: FALSE | I54: TRUE | J54: FALSE | K54: FALSE | M54: 0 | P54: 0 | Q54: TRUE | R54: DM051 | S54: =IF(E54 = 0, 0, MAX((E54 * F54) * (IF(I54 = TRUE, 1 - 'Loss Limit Discount'!$D$93, 1)), M54)) -> 0 | T54: 1825
A55: Escalation UL | C55: Second Year (90-100%) | D55: Fire | F55: =IF(C55 = "", 0, VLOOKUP(C55, Escalation!$C$6:$D$50, 2, FALSE)) -> 1.815e-06 | G55: TRUE | H55: FALSE | I55: TRUE | J55: FALSE | K55: FALSE | M55: 0 | P55: 0 | Q55: TRUE | R55: DM052 | S55: =IF(E55 = 0, 0, MAX((E55 * F55) * (IF(I55 = TRUE, 1 - 'Loss Limit Discount'!$D$93, 1)), M55)) -> 0 | T55: 1826
A56: Escalation UL | C56: Third Year (90-100%) | D56: Fire | F56: =IF(C56 = "", 0, VLOOKUP(C56, Escalation!$C$6:$D$50, 2, FALSE)) -> 9.075e-07 | G56: TRUE | H56: FALSE | I56: TRUE | J56: FALSE | K56: FALSE | M56: 0 | P56: 0 | Q56: TRUE | R56: DM053 | S56: =IF(E56 = 0, 0, MAX((E56 * F56) * (IF(I56 = TRUE, 1 - 'Loss Limit Discount'!$D$93, 1)), M56)) -> 0 | T56: 1827
A57: Escalation UL | C57: Fourth Year (90-100%) | D57: Fire | F57: =IF(C57 = "", 0, VLOOKUP(C57, Escalation!$C$6:$D$50, 2, FALSE)) -> 7.26e-07 | G57: TRUE | H57: FALSE | I57: TRUE | J57: FALSE | K57: FALSE | M57: 0 | P57: 0 | Q57: TRUE | R57: DM054 | S57: =IF(E57 = 0, 0, MAX((E57 * F57) * (IF(I57 = TRUE, 1 - 'Loss Limit Discount'!$D$93, 1)), M57)) -> 0 | T57: 1828
A58: Escalation UL | C58: Fifth Year (90-100%) | D58: Fire | F58: =IF(C58 = "", 0, VLOOKUP(C58, Escalation!$C$6:$D$50, 2, FALSE)) -> 5.445e-07 | G58: TRUE | H58: FALSE | I58: TRUE | J58: FALSE | K58: FALSE | M58: 0 | P58: 0 | Q58: TRUE | R58: DM055 | S58: =IF(E58 = 0, 0, MAX((E58 * F58) * (IF(I58 = TRUE, 1 - 'Loss Limit Discount'!$D$93, 1)), M58)) -> 0 | T58: 1829
A59: Escalation Not UL | B59: Not Charged on U/L
A60: Escalation Not UL | C60: First Year | D60: Fire | F60: =$F$4 -> 3.63e-06 | G60: TRUE | H60: FALSE | I60: TRUE | J60: FALSE | K60: FALSE | M60: 0 | P60: 0 | Q60: TRUE | R60: DM097 | S60: =IF(E60 = 0, 0, MAX((E60 * F60) * (IF(I60 = TRUE, 1 - 'Loss Limit Discount'!$D$93, 1)), M60)) -> 0 | T60: 214
A61: Escalation Not UL | C61: Second Year | D61: Fire | F61: =$F$4 * 0.5 -> 1.815e-06 | G61: TRUE | H61: FALSE | I61: TRUE | J61: FALSE | K61: FALSE | M61: 0 | P61: 0 | Q61: TRUE | R61: DM098 | S61: =IF(E61 = 0, 0, MAX((E61 * F61) * (IF(I61 = TRUE, 1 - 'Loss Limit Discount'!$D$93, 1)), M61)) -> 0 | T61: 215
A62: Escalation Not UL | C62: Third Year | D62: Fire | F62: =$F$4 * 0.25 -> 9.075e-07 | G62: TRUE | H62: FALSE | I62: TRUE | J62: FALSE | K62: FALSE | M62: 0 | P62: 0 | Q62: TRUE | R62: DM099 | S62: =IF(E62 = 0, 0, MAX((E62 * F62) * (IF(I62 = TRUE, 1 - 'Loss Limit Discount'!$D$93, 1)), M62)) -> 0 | T62: 216
A63: Escalation Not UL | C63: Fourth Year | D63: Fire | F63: =$F$4 * 0.2 -> 7.26e-07 | G63: TRUE | H63: FALSE | I63: TRUE | J63: FALSE | K63: FALSE | M63: 0 | P63: 0 | Q63: TRUE | R63: DM100 | S63: =IF(E63 = 0, 0, MAX((E63 * F63) * (IF(I63 = TRUE, 1 - 'Loss Limit Discount'!$D$93, 1)), M63)) -> 0 | T63: 217
A64: Escalation Not UL | C64: Fifth Year | D64: Fire | F64: =$F$4 * 0.15 -> 5.445e-07 | H64: FALSE | I64: TRUE | J64: FALSE | K64: FALSE | M64: 0 | S64: =IF(E64 = 0, 0, MAX((E64 * F64) * (IF(I64 = TRUE, 1 - 'Loss Limit Discount'!$D$93, 1)), M64)) -> 0
B66: Business Interruption
B67: Specified Standing Charges
A68: Business Interruption | B68: SC | C68: 12 Months | D68: Standing Charges | F68: =_xlfn.IFNA(VLOOKUP(C68, Metadata!$D$2:$E$8, 2, FALSE),0) -> 3.63e-06 | G68: TRUE | H68: TRUE | I68: TRUE | J68: FALSE | K68: FALSE | M68: 5 | N68: FALSE | P68: 0 | Q68: TRUE | R68: DM101 | S68: =IF(E68 = 0, 0, MAX((E68 * F68) * (IF(I68 = TRUE, 1 - 'Loss Limit Discount'!$D$93, 1)), M68)) -> 0 | T68: 220
A69: Business Interruption | B69: AICOW | C69: Additional Increase In Cost Of Working | D69: Standing Charges | F69: =F68 * 1.5 -> 5.445e-06 | G69: TRUE | H69: TRUE | I69: TRUE | J69: FALSE | K69: FALSE | M69: 0 | N69: FALSE | P69: 0 | Q69: TRUE | R69: DM108 | S69: =IF(E69 = 0, 0, MAX((E69 * F69) * (IF(I69 = TRUE, 1 - 'Loss Limit Discount'!$D$93, 1)), M69)) -> 0 | T69: 398
B70: Working Expenses
A71: Business Interruption | B71: WE | C71: 12 Months | D71: Working Expenses | F71: =_xlfn.IFNA(VLOOKUP(C71, Metadata!$D$10:$E$16, 2, FALSE),0) -> 3.63e-06 | G71: TRUE | H71: TRUE | I71: TRUE | J71: FALSE | K71: FALSE | M71: 5 | N71: FALSE | P71: 0 | Q71: TRUE | R71: DM109 | S71: =IF(E71 = 0, 0, MAX((E71 * F71) * (IF(I71 = TRUE, 1 - 'Loss Limit Discount'!$D$93, 1)), M71)) -> 0 | T71: 228
A72: Business Interruption | B72: AICOW | C72: Additional Increase In Cost Of Working | D72: Working Expenses | F72: =F71 * 1.5 -> 5.445e-06 | G72: TRUE | H72: TRUE | I72: TRUE | J72: FALSE | K72: FALSE | M72: 0 | N72: FALSE | P72: 0 | Q72: TRUE | R72: DM116 | S72: =IF(E72 = 0, 0, MAX((E72 * F72) * (IF(I72 = TRUE, 1 - 'Loss Limit Discount'!$D$93, 1)), M72)) -> 0 | T72: 244
B73: Revenue
A74: Business Interruption | B74: R | C74: 12 Months | D74: Revenue | F74: =_xlfn.IFNA(VLOOKUP(C74, Metadata!$D$34:$E$40, 2, FALSE),0) -> 3.63e-06 | G74: TRUE | H74: TRUE | I74: TRUE | J74: FALSE | K74: FALSE | M74: 5 | N74: FALSE | P74: 0 | Q74: TRUE | R74: DM117 | S74: =IF(E74 = 0, 0, MAX((E74 * F74) * (IF(I74 = TRUE, 1 - 'Loss Limit Discount'!$D$93, 1)), M74)) -> 0 | T74: 236
A75: Business Interruption | B75: AICOW | C75: Additional Increase In Cost Of Working | D75: Revenue | F75: =F74 * 1.5 -> 5.445e-06 | G75: TRUE | H75: TRUE | I75: TRUE | J75: FALSE | K75: FALSE | M75: 0 | N75: FALSE | P75: 0 | Q75: TRUE | R75: DM124 | S75: =IF(E75 = 0, 0, MAX((E75 * F75) * (IF(I75 = TRUE, 1 - 'Loss Limit Discount'!$D$93, 1)), M75)) -> 0 | T75: 1672
B76: Net Profit
A77: Business Interruption | B77: NP | C77: 12 Months | D77: Net Profit | F77: =_xlfn.IFNA(VLOOKUP(C77, Metadata!$D$18:$E$24, 2, FALSE),0) -> 3.63e-06 | G77: TRUE | H77: TRUE | I77: TRUE | J77: FALSE | K77: FALSE | M77: 5 | N77: FALSE | P77: 0 | Q77: TRUE | R77: DM117 | S77: =IF(E77 = 0, 0, MAX((E77 * F77) * (IF(I77 = TRUE, 1 - 'Loss Limit Discount'!$D$93, 1)), M77)) -> 0 | T77: 1604
A78: Business Interruption | B78: AICOW | C78: Additional Increase In Cost Of Working | D78: Net Profit | F78: =F77 * 1.5 -> 5.445e-06 | G78: TRUE | H78: TRUE | I78: TRUE | J78: FALSE | K78: FALSE | M78: 0 | N78: FALSE | P78: 0 | Q78: TRUE | R78: DM124 | S78: =IF(E78 = 0, 0, MAX((E78 * F78) * (IF(I78 = TRUE, 1 - 'Loss Limit Discount'!$D$93, 1)), M78)) -> 0 | T78: 1668
B79: Gross Profit
A80: Business Interruption | B80: GP | C80: 12 Months | D80: Gross Profit | F80: =_xlfn.IFNA(VLOOKUP(C80, Metadata!$D$26:$E$32, 2, FALSE),0) -> 3.63e-06 | G80: TRUE | H80: TRUE | I80: TRUE | J80: FALSE | K80: FALSE | M80: 5 | N80: FALSE | P80: 0 | Q80: TRUE | R80: DM125 | S80: =IF(E80 = 0, 0, MAX((E80 * F80) * (IF(I80 = TRUE, 1 - 'Loss Limit Discount'!$D$93, 1)), M80)) -> 0
A81: Business Interruption | B81: AICOW | C81: Additional Increase In Cost Of Working | D81: Gross Profit | F81: =F80 * 1.5 -> 5.445e-06 | G81: TRUE | H81: TRUE | I81: TRUE | J81: FALSE | K81: FALSE | M81: 0 | N81: FALSE | P81: 0 | Q81: TRUE | R81: DM132 | S81: =IF(E81 = 0, 0, MAX((E81 * F81) * (IF(I81 = TRUE, 1 - 'Loss Limit Discount'!$D$93, 1)), M81)) -> 0
T82: 248
B83: Motor | T83: 249
B84: Motor | T84: 250
A85: Motor | B85: M1 | C85: Cars (Primary use: Domestic/Private) | D85: Motor | F85: 2.02 | G85: FALSE | H85: FALSE | I85: FALSE | J85: FALSE | K85: FALSE | M85: 2.02 | N85: FALSE | P85: 0 | Q85: TRUE | R85: DM133 | S85: =IF(E85 = 0, 0, MAX((F85 * E85) * (IF(I85 = TRUE, 1 - 'Loss Limit Discount'!$D$93, 1)), M85 * E85)) -> 0 | T85: 251
A86: Motor | B86: M2 | C86: Light Commercial Vehicles (3500kg GVM or less) | D86: Motor | F86: 7.062e-05 | G86: FALSE | H86: FALSE | I86: FALSE | J86: FALSE | K86: FALSE | M86: 4.54 | N86: FALSE | P86: 0 | Q86: TRUE | R86: DM134 | S86: =IF(E86 = 0, 0, MAX((E86 * F86) * (IF(I86 = TRUE, 1 - 'Loss Limit Discount'!$D$93, 1)), M86)) -> 0 | T86: 252
A87: Motor | B87: M3 | C87: Taxis | D87: Motor | F87: 2.13e-05 | G87: FALSE | H87: FALSE | I87: FALSE | J87: FALSE | K87: FALSE | M87: 4.54 | N87: FALSE | P87: 0 | Q87: TRUE | R87: DM135 | S87: =IF(E87 = 0, 0, MAX((E87 * F87) * (IF(I87 = TRUE, 1 - 'Loss Limit Discount'!$D$93, 1)), M87)) -> 0
A88: Motor | B88: M4 | C88: Ferries & Traders | D88: Motor | F88: 8.68e-06 | G88: TRUE | H88: FALSE | I88: FALSE | J88: FALSE | K88: FALSE | M88: 10 | N88: FALSE | P88: 8.68e-06 | Q88: TRUE | R88: CM144 | S88: =IF(E88 = 0, 0, MAX((E88 * F88) * (IF(I88 = TRUE, 1 - 'Loss Limit Discount'!$D$93, 1)), M88)) -> 0
A89: Motor | B89: M5 | C89: Buses | D89: Motor | F89: 0.00056499 | G89: TRUE | H89: FALSE | I89: FALSE | J89: FALSE | K89: FALSE | M89: 200 | N89: FALSE | P89: 0 | Q89: TRUE | R89: DM136 | S89: =IF(E89 = 0, 0, MAX((E89 * F89) * (IF(I89 = TRUE, 1 - 'Loss Limit Discount'!$D$93, 1)), M89)) -> 0
A90: Motor | B90: M6 | C90: Mobile Plant | D90: Motor | F90: 5.663e-05 | G90: TRUE | H90: FALSE | I90: FALSE | J90: FALSE | K90: FALSE | M90: 50 | N90: FALSE | P90: 0 | Q90: TRUE | R90: DM137 | S90: =IF(E90 = 0, 0, MAX((E90 * F90) * (IF(I90 = TRUE, 1 - 'Loss Limit Discount'!$D$93, 1)), M90)) -> 0
A91: Motor | B91: M8 | C91: Heavy Commercial Vehicles (>3500kg GVM) | D91: Motor | F91: 0.00034506 | G91: TRUE | H91: FALSE | I91: FALSE | J91: FALSE | K91: FALSE | M91: 5.45 | N91: FALSE | P91: 1.879e-05 | Q91: TRUE | S91: =IF(E91 = 0, 0, MAX((E91 * F91) * (IF(I91 = TRUE, 1 - 'Loss Limit Discount'!$D$93, 1)), M91)) -> 0
B93: Contract Work / Construction Plant
B94: Contract Works
A95: Contract Works | B95: CW | C95: =Input!$I$16 -> Over 48 months | D95: Contract Works | F95: 1.133e-05 | G95: TRUE | H95: FALSE | I95: FALSE | J95: TRUE | K95: TRUE | M95: 50 | N95: FALSE | P95: 7.26e-05 | Q95: FALSE | R95: CA173 | S95: =IF(E95 = 0, 0, MAX((E95 * F95) * (IF(I95 = TRUE, 1 - 'Loss Limit Discount'!$D$93, 1)) * (IF(K95 = TRUE, 1 - 'Contract Works Discount'!$D$101, 1)), M95)) -> 0
B96: Construction plant
A97: Contract Works | B97: CW | C97: On Fee Basis | D97: Contract Works | F97: 0.00019188 | G97: TRUE | H97: FALSE | I97: FALSE | J97: FALSE | K97: FALSE | M97: 50 | N97: FALSE | P97: 0.00123 | Q97: FALSE | R97: CA176 | S97: =IF(E97 = 0, 0, MAX((E97 * F97) * (IF(I97 = TRUE, 1 - 'Loss Limit Discount'!$D$38, 1)) * (IF(K97 = TRUE, 1 - 'Contract Works Discount'!$D$96, 1)), M97)) -> 0
A98: Contract Works | B98: CW | C98: On Value Basis | D98: Contract Works | F98: 5.663e-05 | G98: TRUE | H98: FALSE | I98: FALSE | J98: FALSE | K98: FALSE | M98: 50 | N98: FALSE | P98: 0.000363 | Q98: FALSE | R98: CA177 | S98: =IF(E98 = 0, 0, MAX((E98 * F98) * (IF(I98 = TRUE, 1 - 'Loss Limit Discount'!$D$38, 1)) * (IF(K98 = TRUE, 1 - 'Contract Works Discount'!$D$96, 1)), M98)) -> 0
B99: Mobile plant
A100: Contract Works | B100: CW | C100: On Value Basis | D100: Contract Works | F100: =F98 -> 5.663e-05 | G100: TRUE | H100: FALSE | I100: FALSE | J100: FALSE | K100: FALSE | M100: 50 | N100: FALSE | P100: 0.000363 | Q100: FALSE | R100: CA179 | S100: =IF(E100 = 0, 0, MAX((E100 * F100) * (IF(I100 = TRUE, 1 - 'Loss Limit Discount'!$D$38, 1)) * (IF(K100 = TRUE, 1 - 'Contract Works Discount'!$D$96, 1)), M100)) -> 0

Sheet Domestic - Annual
A1: Domestic - Annual | V1: Cells with green borders have a drop-down selection!
A2: Category | B2: Code | C2: Description | D2: Total Code | E2: Sum Insured/No. of insured items | F2: Rate | G2: Is Percent | H2: Add To Sum Insured Discount | I2: Receive Sum Insured Discount | J2: Add To CW Discount | K2: Receive CW Discount | L2: Contract Period Discount | M2: Minimum Premium | N2: Has Fire Extension Discount | O2: Amount within free extension threshold | P2: Special Dispensation Rate | Q2: N/A To Special Dispensation | R2: Unique Code | S2: Premium | T2: System ID
B3: Fire
A4: Domestic Fire | B4: F1 | C4: Domestic Fire | D4: Fire | F4: 3.63e-05 | G4: TRUE | H4: TRUE | I4: TRUE | J4: FALSE | K4: FALSE | M4: 30 | N4: FALSE | P4: 0 | Q4: TRUE | R4: DA001 | S4: =IF(E4 = 0, 0, MAX((E4 * F4) * (IF(I4 = TRUE, 1 - 'Loss Limit Discount'!$D$93, 1)) + ('Fire Extensions'!$D$25 * F4)* (1 - 'Loss Limit Discount'!$D$93), M4)) -> 0 | T4: 400
A5: Domestic Fire | B5: F1-MC | C5: Mayors and Councilors | D5: Fire | F5: 54.47 | G5: FALSE | H5: FALSE | I5: FALSE | J5: FALSE | K5: FALSE | M5: 0 | N5: FALSE | P5: 0 | Q5: TRUE | S5: =IF(E5 = 0, 0, MAX((F5 * E5) * (IF(I5 = TRUE, 1 - 'Loss Limit Discount'!$L$11, 1)) * (IF(K5 = TRUE, 1 - 'Contract Works Discount'!$D$11, 1)), M5 * E5)) -> 0 | T5: 2877
A6: Extension | B6: Sasria Extensions
A7: Extension | B7: EX | C7: Rent | D7: Fire | F7: =$F$4 -> 3.63e-05 | G7: TRUE | H7: TRUE | I7: TRUE | J7: FALSE | K7: FALSE | M7: 0 | N7: TRUE | O7: =IF(E7 < 'Fire Extensions'!$D$19, 'Domestic - Annual'!E7, 'Fire Extensions'!$D$19) -> 0 | P7: 0 | Q7: TRUE | R7: DA002 | T7: 406
A8: Extension | B8: EX | C8: Claims Preparation Costs | D8: Fire | F8: =$F$4 -> 3.63e-05 | G8: TRUE | H8: TRUE | I8: TRUE | J8: FALSE | K8: FALSE | M8: 0 | N8: TRUE | O8: =IF(E8 < 'Fire Extensions'!$D$19, 'Domestic - Annual'!E8, 'Fire Extensions'!$D$19) -> 0 | P8: 0 | Q8: TRUE | R8: DA003 | T8: 407
A9: Extension | B9: EX | C9: Capital Additions | D9: Fire | F9: 3.63e-05 | G9: TRUE | H9: TRUE | I9: TRUE | J9: FALSE | K9: FALSE | M9: 0 | N9: TRUE | O9: =IF(E9 < 'Fire Extensions'!$D$19, 'Domestic - Annual'!E9, 'Fire Extensions'!$D$19) -> 0 | P9: 0 | Q9: TRUE | R9: DA004 | T9: 408
A10: Extension | B10: EX | C10: Professional fees | D10: Fire | F10: 3.63e-05 | G10: TRUE | H10: TRUE | I10: TRUE | J10: FALSE | K10: FALSE | M10: 0 | N10: TRUE | O10: =IF(E10 < 'Fire Extensions'!$D$19, 'Domestic - Annual'!E10, 'Fire Extensions'!$D$19) -> 0 | P10: 0 | Q10: TRUE | R10: DA005 | T10: 409
A11: Extension | B11: EX | C11: Clearance costs | D11: Fire | F11: 3.63e-05 | G11: TRUE | H11: TRUE | I11: TRUE | J11: FALSE | K11: FALSE | M11: 0 | N11: TRUE | O11: =IF(E11 < 'Fire Extensions'!$D$19, 'Domestic - Annual'!E11, 'Fire Extensions'!$D$19) -> 0 | P11: 0 | Q11: TRUE | R11: DA006 | T11: 410
A12: Extension | B12: EX | C12: Security Costs (During and after a loss) | D12: Fire | F12: 3.63e-05 | G12: TRUE | H12: TRUE | I12: TRUE | J12: FALSE | K12: FALSE | M12: 0 | N12: TRUE | O12: =IF(E12 < 'Fire Extensions'!$D$19, 'Domestic - Annual'!E12, 'Fire Extensions'!$D$19) -> 0 | P12: 0 | Q12: TRUE | R12: DA007 | T12: 411
A13: Extension | B13: EX | C13: Statutory Duties | D13: Fire | F13: 3.63e-05 | G13: TRUE | H13: TRUE | I13: TRUE | J13: FALSE | K13: FALSE | M13: 0 | N13: TRUE | O13: =IF(E13 < 'Fire Extensions'!$D$19, 'Domestic - Annual'!E13, 'Fire Extensions'!$D$19) -> 0 | P13: 0 | Q13: TRUE | R13: DA010 | T13: 415
A14: Extension | B14: EX | C14: Additional Premises | D14: Fire | F14: 3.63e-05 | G14: TRUE | H14: TRUE | I14: TRUE | J14: FALSE | K14: FALSE | M14: 0 | N14: TRUE | O14: =IF(E14 < 'Fire Extensions'!$D$19, 'Domestic - Annual'!E14, 'Fire Extensions'!$D$19) -> 0 | P14: 0 | Q14: TRUE | R14: DA011 | T14: 416
A15: Extension | B15: EX | C15: Acquisition Limits | D15: Fire | F15: 3.63e-05 | G15: TRUE | H15: TRUE | I15: TRUE | J15: FALSE | K15: FALSE | M15: 0 | N15: TRUE | O15: =IF(E15 < 'Fire Extensions'!$D$19, 'Domestic - Annual'!E15, 'Fire Extensions'!$D$19) -> 0 | P15: 0 | Q15: TRUE | R15: DA012 | T15: 417
A16: Extension | B16: EX | C16: Import Surcharges | D16: Fire | F16: 3.63e-05 | G16: TRUE | H16: TRUE | I16: TRUE | J16: FALSE | K16: FALSE | M16: 0 | N16: TRUE | O16: =IF(E16 < 'Fire Extensions'!$D$19, 'Domestic - Annual'!E16, 'Fire Extensions'!$D$19) -> 0 | P16: 0 | Q16: TRUE | R16: DA014 | T16: 419
A17: Extension | B17: EX | C17: Fire Protection System Update | D17: Fire | F17: 3.63e-05 | G17: TRUE | H17: TRUE | I17: TRUE | J17: FALSE | K17: FALSE | M17: 0 | N17: TRUE | O17: =IF(E17 < 'Fire Extensions'!$D$19, 'Domestic - Annual'!E17, 'Fire Extensions'!$D$19) -> 0 | P17: 0 | Q17: TRUE | R17: DA015 | T17: 420
A18: Extension | B18: EX | C18: Goods in the open | D18: Fire | F18: 3.63e-05 | G18: TRUE | H18: TRUE | I18: TRUE | J18: FALSE | K18: FALSE | M18: 0 | N18: TRUE | O18: =IF(E18 < 'Fire Extensions'!$D$19, 'Domestic - Annual'!E18, 'Fire Extensions'!$D$19) -> 0 | P18: 0 | Q18: TRUE | R18: DA019 | T18: 424
A19: Extension | B19: EX | C19: Fire Extinguishing | D19: Fire | F19: 3.63e-05 | G19: TRUE | H19: TRUE | I19: TRUE | J19: FALSE | K19: FALSE | M19: 0 | N19: TRUE | O19: =IF(E19 < 'Fire Extensions'!$D$19, 'Domestic - Annual'!E19, 'Fire Extensions'!$D$19) -> 0 | P19: 0 | Q19: TRUE | R19: DA020 | T19: 425
A20: Extension | B20: EX | C20: Imminent Danger (Protection of property prior a loss) | D20: Fire | F20: 3.63e-05 | G20: TRUE | H20: TRUE | I20: TRUE | J20: FALSE | K20: FALSE | M20: 0 | N20: TRUE | O20: =IF(E20 < 'Fire Extensions'!$D$19, 'Domestic - Annual'!E20, 'Fire Extensions'!$D$19) -> 0 | P20: 0 | Q20: TRUE | T20: 2874
A21: Other Extension | B21: Other Extensions
A22: Other Extension | B22: EX | C22: Other | D22: Fire | F22: =$F$4 -> 3.63e-05 | G22: TRUE | H22: TRUE | I22: TRUE | J22: FALSE | K22: FALSE | M22: 0 | N22: TRUE | O22: =IF(E22 < 'Fire Extensions'!$D$19, 'Domestic - Annual'!E22, 'Fire Extensions'!$D$19) -> 0 | P22: 0 | Q22: TRUE | R22: DA021 | T22: 427
A23: Other Extension | B23: EX | C23: Other | D23: Fire | F23: 3.63e-05 | G23: TRUE | H23: TRUE | I23: TRUE | J23: FALSE | K23: FALSE | M23: 0 | N23: TRUE | O23: =IF(E23 < 'Fire Extensions'!$D$19, 'Domestic - Annual'!E23, 'Fire Extensions'!$D$19) -> 0 | P23: 0 | Q23: TRUE | R23: DA022 | T23: 428
A24: Other Extension | B24: EX | C24: Other | D24: Fire | F24: 3.63e-05 | G24: TRUE | H24: TRUE | I24: TRUE | J24: FALSE | K24: FALSE | M24: 0 | N24: TRUE | O24: =IF(E24 < 'Fire Extensions'!$D$19, 'Domestic - Annual'!E24, 'Fire Extensions'!$D$19) -> 0 | P24: 0 | Q24: TRUE | R24: DA023 | T24: 429
A25: Other Extension | B25: EX | C25: Other | D25: Fire | F25: 3.63e-05 | G25: TRUE | H25: TRUE | I25: TRUE | J25: FALSE | K25: FALSE | M25: 0 | N25: TRUE | O25: =IF(E25 < 'Fire Extensions'!$D$19, 'Domestic - Annual'!E25, 'Fire Extensions'!$D$19) -> 0 | P25: 0 | Q25: TRUE | R25: DA024 | T25: 430
A26: Other Extension | B26: EX | C26: Other | D26: Fire | F26: 3.63e-05 | G26: TRUE | H26: TRUE | I26: TRUE | J26: FALSE | K26: FALSE | M26: 0 | N26: TRUE | O26: =IF(E26 < 'Fire Extensions'!$D$19, 'Domestic - Annual'!E26, 'Fire Extensions'!$D$19) -> 0 | P26: 0 | Q26: TRUE | R26: DA025 | T26: 431
A27: Other Extension | B27: EX | C27: Other | D27: Fire | F27: 3.63e-05 | G27: TRUE | H27: TRUE | I27: TRUE | J27: FALSE | K27: FALSE | M27: 0 | N27: TRUE | O27: =IF(E27 < 'Fire Extensions'!$D$19, 'Domestic - Annual'!E27, 'Fire Extensions'!$D$19) -> 0 | P27: 0 | Q27: TRUE | R27: DA026 | T27: 432
A28: Other Extension | B28: EX | C28: Other | D28: Fire | F28: 3.63e-05 | G28: TRUE | H28: TRUE | I28: TRUE | J28: FALSE | K28: FALSE | M28: 0 | N28: TRUE | O28: =IF(E28 < 'Fire Extensions'!$D$19, 'Domestic - Annual'!E28, 'Fire Extensions'!$D$19) -> 0 | P28: 0 | Q28: TRUE | R28: DA027 | T28: 433
A29: Other Extension | B29: EX | C29: Other | D29: Fire | F29: 3.63e-05 | G29: TRUE | H29: TRUE | I29: TRUE | J29: FALSE | K29: FALSE | M29: 0 | N29: TRUE | O29: =IF(E29 < 'Fire Extensions'!$D$19, 'Domestic - Annual'!E29, 'Fire Extensions'!$D$19) -> 0 | P29: 0 | Q29: TRUE | R29: DA028 | T29: 434
A30: Other Extension | B30: EX | C30: Other | D30: Fire | F30: 3.63e-05 | G30: TRUE | H30: TRUE | I30: TRUE | J30: FALSE | K30: FALSE | M30: 0 | N30: TRUE | O30: =IF(E30 < 'Fire Extensions'!$D$19, 'Domestic - Annual'!E30, 'Fire Extensions'!$D$19) -> 0 | P30: 0 | Q30: TRUE | R30: DA029 | T30: 435
A31: Other Extension | B31: EX | C31: Other | D31: Fire | F31: 3.63e-05 | G31: TRUE | H31: TRUE | I31: TRUE | J31: FALSE | K31: FALSE | M31: 0 | N31: TRUE | O31: =IF(E31 < 'Fire Extensions'!$D$19, 'Domestic - Annual'!E31, 'Fire Extensions'!$D$19) -> 0 | P31: 0 | Q31: TRUE | R31: DA030 | T31: 436
A32: Other Extension | B32: EX | C32: Other | D32: Fire | F32: 3.63e-05 | G32: TRUE | H32: TRUE | I32: TRUE | J32: FALSE | K32: FALSE | M32: 0 | N32: TRUE | O32: =IF(E32 < 'Fire Extensions'!$D$19, 'Domestic - Annual'!E32, 'Fire Extensions'!$D$19) -> 0 | P32: 0 | Q32: TRUE | R32: DA031 | T32: 437
A33: Other Extension | B33: EX | C33: Other | D33: Fire | F33: 3.63e-05 | G33: TRUE | H33: TRUE | I33: TRUE | J33: FALSE | K33: FALSE | M33: 0 | N33: TRUE | O33: =IF(E33 < 'Fire Extensions'!$D$19, 'Domestic - Annual'!E33, 'Fire Extensions'!$D$19) -> 0 | P33: 0 | Q33: TRUE | R33: DA032 | T33: 438
A34: Other Extension | B34: EX | C34: Other | D34: Fire | F34: 3.63e-05 | G34: TRUE | H34: TRUE | I34: TRUE | J34: FALSE | K34: FALSE | M34: 0 | N34: TRUE | O34: =IF(E34 < 'Fire Extensions'!$D$19, 'Domestic - Annual'!E34, 'Fire Extensions'!$D$19) -> 0 | P34: 0 | Q34: TRUE | R34: DA033 | T34: 439
A35: Other Extension | B35: EX | C35: Other | D35: Fire | F35: 3.63e-05 | G35: TRUE | H35: TRUE | I35: TRUE | J35: FALSE | K35: FALSE | M35: 0 | N35: TRUE | O35: =IF(E35 < 'Fire Extensions'!$D$19, 'Domestic - Annual'!E35, 'Fire Extensions'!$D$19) -> 0 | P35: 0 | Q35: TRUE | R35: DA034 | T35: 440
A36: Other Extension | B36: EX | C36: Other | D36: Fire | F36: 3.63e-05 | G36: TRUE | H36: TRUE | I36: TRUE | J36: FALSE | K36: FALSE | M36: 0 | N36: TRUE | O36: =IF(E36 < 'Fire Extensions'!$D$19, 'Domestic - Annual'!E36, 'Fire Extensions'!$D$19) -> 0 | P36: 0 | Q36: TRUE | R36: DA035 | T36: 441
A37: Other Extension | B37: EX | C37: Other | D37: Fire | F37: 3.63e-05 | G37: TRUE | H37: TRUE | I37: TRUE | J37: FALSE | K37: FALSE | M37: 0 | N37: TRUE | O37: =IF(E37 < 'Fire Extensions'!$D$19, 'Domestic - Annual'!E37, 'Fire Extensions'!$D$19) -> 0 | P37: 0 | Q37: TRUE | R37: DA036 | T37: 442
A38: Other Extension | B38: EX | C38: Other | D38: Fire | F38: 3.63e-05 | G38: TRUE | H38: TRUE | I38: TRUE | J38: FALSE | K38: FALSE | M38: 0 | N38: TRUE | O38: =IF(E38 < 'Fire Extensions'!$D$19, 'Domestic - Annual'!E38, 'Fire Extensions'!$D$19) -> 0 | P38: 0 | Q38: TRUE | R38: DA037 | T38: 443
A39: Other Extension | B39: EX | C39: Other | D39: Fire | F39: 3.63e-05 | G39: TRUE | H39: TRUE | I39: TRUE | J39: FALSE | K39: FALSE | M39: 0 | N39: TRUE | O39: =IF(E39 < 'Fire Extensions'!$D$19, 'Domestic - Annual'!E39, 'Fire Extensions'!$D$19) -> 0 | P39: 0 | Q39: TRUE | R39: DA038 | T39: 444
A40: Other Extension | B40: EX | C40: Other | D40: Fire | F40: 3.63e-05 | G40: TRUE | H40: TRUE | I40: TRUE | J40: FALSE | K40: FALSE | M40: 0 | N40: TRUE | O40: =IF(E40 < 'Fire Extensions'!$D$19, 'Domestic - Annual'!E40, 'Fire Extensions'!$D$19) -> 0 | P40: 0 | Q40: TRUE | R40: DA039 | T40: 445
A41: Other Extension | B41: EX | C41: Other | D41: Fire | F41: 3.63e-05 | G41: TRUE | H41: TRUE | I41: TRUE | J41: FALSE | K41: FALSE | M41: 0 | N41: TRUE | O41: =IF(E41 < 'Fire Extensions'!$D$19, 'Domestic - Annual'!E41, 'Fire Extensions'!$D$19) -> 0 | P41: 0 | Q41: TRUE | R41: DA040 | T41: 446
A42: Other Extension | B42: EX | C42: Other | D42: Fire | F42: 3.63e-05 | G42: TRUE | H42: TRUE | I42: TRUE | J42: FALSE | K42: FALSE | M42: 0 | N42: TRUE | O42: =IF(E42 < 'Fire Extensions'!$D$19, 'Domestic - Annual'!E42, 'Fire Extensions'!$D$19) -> 0 | P42: 0 | Q42: TRUE | R42: DA041 | T42: 447
A43: Other Extension | B43: EX | C43: Other | D43: Fire | F43: 3.63e-05 | G43: TRUE | H43: TRUE | I43: TRUE | J43: FALSE | K43: FALSE | M43: 0 | N43: TRUE | O43: =IF(E43 < 'Fire Extensions'!$D$19, 'Domestic - Annual'!E43, 'Fire Extensions'!$D$19) -> 0 | P43: 0 | Q43: TRUE | R43: DA042 | T43: 448
A44: Other Extension | B44: EX | C44: Other | D44: Fire | F44: 3.63e-05 | G44: TRUE | H44: TRUE | I44: TRUE | J44: FALSE | K44: FALSE | M44: 0 | N44: TRUE | O44: =IF(E44 < 'Fire Extensions'!$D$19, 'Domestic - Annual'!E44, 'Fire Extensions'!$D$19) -> 0 | P44: 0 | Q44: TRUE | R44: DA043 | T44: 449
A45: Other Extension | B45: EX | C45: Other | D45: Fire | F45: 3.63e-05 | G45: TRUE | H45: TRUE | I45: TRUE | J45: FALSE | K45: FALSE | M45: 0 | N45: TRUE | O45: =IF(E45 < 'Fire Extensions'!$D$19, 'Domestic - Annual'!E45, 'Fire Extensions'!$D$19) -> 0 | P45: 0 | Q45: TRUE | R45: DA044 | T45: 450
A46: Other Extension | B46: EX | C46: Other | D46: Fire | F46: 3.63e-05 | G46: TRUE | H46: TRUE | I46: TRUE | J46: FALSE | K46: FALSE | M46: 0 | N46: TRUE | O46: =IF(E46 < 'Fire Extensions'!$D$19, 'Domestic - Annual'!E46, 'Fire Extensions'!$D$19) -> 0 | P46: 0 | Q46: TRUE | R46: DA045 | T46: 451
A47: Other Extension | B47: EX | C47: Other | D47: Fire | F47: 3.63e-05 | G47: TRUE | H47: TRUE | I47: TRUE | J47: FALSE | K47: FALSE | M47: 0 | N47: TRUE | O47: =IF(E47 < 'Fire Extensions'!$D$19, 'Domestic - Annual'!E47, 'Fire Extensions'!$D$19) -> 0 | P47: 0 | Q47: TRUE | R47: DA046 | T47: 452
A48: Other Extension | B48: EX | C48: Other | D48: Fire | F48: 3.63e-05 | G48: TRUE | H48: TRUE | I48: TRUE | J48: FALSE | K48: FALSE | M48: 0 | N48: TRUE | O48: =IF(E48 < 'Fire Extensions'!$D$19, 'Domestic - Annual'!E48, 'Fire Extensions'!$D$19) -> 0 | P48: 0 | Q48: TRUE | R48: DA047 | T48: 453
A49: Other Extension | B49: EX | C49: Other | D49: Fire | F49: 3.63e-05 | G49: TRUE | H49: TRUE | I49: TRUE | J49: FALSE | K49: FALSE | M49: 0 | N49: TRUE | O49: =IF(E49 < 'Fire Extensions'!$D$19, 'Domestic - Annual'!E49, 'Fire Extensions'!$D$19) -> 0 | P49: 0 | Q49: TRUE | R49: DA048 | T49: 454
A50: Other Extension | B50: EX | C50: Other | D50: Fire | F50: 3.63e-05 | G50: TRUE | H50: TRUE | I50: TRUE | J50: FALSE | K50: FALSE | M50: 0 | N50: TRUE | O50: =IF(E50 < 'Fire Extensions'!$D$19, 'Domestic - Annual'!E50, 'Fire Extensions'!$D$19) -> 0 | P50: 0 | Q50: TRUE | R50: DA049 | T50: 455
A51: Other Extension | B51: EX | C51: Other | D51: Fire | F51: 3.63e-05 | G51: TRUE | H51: TRUE | I51: TRUE | J51: FALSE | K51: FALSE | M51: 0 | N51: TRUE | O51: =IF(E51 < 'Fire Extensions'!$D$19, 'Domestic - Annual'!E51, 'Fire Extensions'!$D$19) -> 0 | P51: 0 | Q51: TRUE | R51: DA050 | T51: 456
A52: Escalation | B52: Escalation and or Inflation
A53: Escalation UL | B53: Charge on U/L
A54: Escalation UL | C54: First Year (90-100%) | D54: Fire | F54: =IF(C54 = "", 0, VLOOKUP(C54, Escalation!$H$6:$I$50, 2, FALSE)) -> 3.63e-05 | G54: TRUE | H54: FALSE | I54: TRUE | J54: FALSE | K54: FALSE | M54: 0 | P54: 0 | Q54: TRUE | R54: DA051 | S54: =IF(E54 = 0, 0, MAX((E54 * F54) * (IF(I54 = TRUE, 1 - 'Loss Limit Discount'!$D$93, 1)) * (IF(K54 = TRUE, 1 - 'Contract Works Discount'!$D$11, 1)), M54)) -> 0 | T54: 1780
A55: Escalation UL | C55: Second Year (90-100%) | D55: Fire | F55: =IF(C55 = "", 0, VLOOKUP(C55, Escalation!$H$6:$I$50, 2, FALSE)) -> 1.815e-05 | G55: TRUE | H55: FALSE | I55: TRUE | J55: FALSE | K55: FALSE | M55: 0 | P55: 0 | Q55: TRUE | R55: DA052 | S55: =IF(E55 = 0, 0, MAX((E55 * F55) * (IF(I55 = TRUE, 1 - 'Loss Limit Discount'!$D$93, 1)) * (IF(K55 = TRUE, 1 - 'Contract Works Discount'!$D$11, 1)), M55)) -> 0 | T55: 1781
A56: Escalation UL | C56: Third Year (90-100%) | D56: Fire | F56: =IF(C56 = "", 0, VLOOKUP(C56, Escalation!$H$6:$I$50, 2, FALSE)) -> 9.075e-06 | G56: TRUE | H56: FALSE | I56: TRUE | J56: FALSE | K56: FALSE | M56: 0 | P56: 0 | Q56: TRUE | R56: DA053 | S56: =IF(E56 = 0, 0, MAX((E56 * F56) * (IF(I56 = TRUE, 1 - 'Loss Limit Discount'!$D$93, 1)) * (IF(K56 = TRUE, 1 - 'Contract Works Discount'!$D$11, 1)), M56)) -> 0 | T56: 1782
A57: Escalation UL | C57: Fourth Year (90-100%) | D57: Fire | F57: =IF(C57 = "", 0, VLOOKUP(C57, Escalation!$H$6:$I$50, 2, FALSE)) -> 7.26e-06 | G57: TRUE | H57: FALSE | I57: TRUE | J57: FALSE | K57: FALSE | M57: 0 | P57: 0 | Q57: TRUE | R57: DA054 | S57: =IF(E57 = 0, 0, MAX((E57 * F57) * (IF(I57 = TRUE, 1 - 'Loss Limit Discount'!$D$93, 1)) * (IF(K57 = TRUE, 1 - 'Contract Works Discount'!$D$11, 1)), M57)) -> 0 | T57: 1783
A58: Escalation UL | C58: Fifth Year (90-100%) | D58: Fire | F58: =IF(C58 = "", 0, VLOOKUP(C58, Escalation!$H$6:$I$50, 2, FALSE)) -> 5.445e-06 | G58: TRUE | H58: FALSE | I58: TRUE | J58: FALSE | K58: FALSE | M58: 0 | P58: 0 | Q58: TRUE | R58: DA055 | S58: =IF(E58 = 0, 0, MAX((E58 * F58) * (IF(I58 = TRUE, 1 - 'Loss Limit Discount'!$D$93, 1)) * (IF(K58 = TRUE, 1 - 'Contract Works Discount'!$D$11, 1)), M58)) -> 0 | T58: 1784
A59: Escalation Not UL | B59: Not Charged on U/L
A60: Escalation Not UL | C60: First Year | D60: Fire | F60: =$F$4 -> 3.63e-05 | G60: TRUE | H60: FALSE | I60: TRUE | J60: FALSE | K60: FALSE | M60: 0 | P60: 0 | Q60: TRUE | R60: DA096 | S60: =IF(E60 = 0, 0, MAX((E60 * F60) * (IF(I60 = TRUE, 1 - 'Loss Limit Discount'!$D$93, 1)) * (IF(K60 = TRUE, 1 - 'Contract Works Discount'!$D$11, 1)), M60)) -> 0 | T60: 465
A61: Escalation Not UL | C61: Second Year | D61: Fire | F61: =$F$4 * 0.5 -> 1.815e-05 | G61: TRUE | H61: FALSE | I61: TRUE | J61: FALSE | K61: FALSE | M61: 0 | P61: 0 | Q61: TRUE | R61: DA097 | S61: =IF(E61 = 0, 0, MAX((E61 * F61) * (IF(I61 = TRUE, 1 - 'Loss Limit Discount'!$D$93, 1)) * (IF(K61 = TRUE, 1 - 'Contract Works Discount'!$D$11, 1)), M61)) -> 0 | T61: 466
A62: Escalation Not UL | C62: Third Year | D62: Fire | F62: =$F$4 * 0.25 -> 9.075e-06 | G62: TRUE | H62: FALSE | I62: TRUE | J62: FALSE | K62: FALSE | M62: 0 | P62: 0 | Q62: TRUE | R62: DA098 | S62: =IF(E62 = 0, 0, MAX((E62 * F62) * (IF(I62 = TRUE, 1 - 'Loss Limit Discount'!$D$93, 1)) * (IF(K62 = TRUE, 1 - 'Contract Works Discount'!$D$11, 1)), M62)) -> 0 | T62: 467
A63: Escalation Not UL | C63: Fourth Year | D63: Fire | F63: =$F$4 * 0.2 -> 7.26e-06 | G63: TRUE | H63: FALSE | I63: TRUE | J63: FALSE | K63: FALSE | M63: 0 | P63: 0 | Q63: TRUE | R63: DA099 | S63: =IF(E63 = 0, 0, MAX((E63 * F63) * (IF(I63 = TRUE, 1 - 'Loss Limit Discount'!$D$93, 1)) * (IF(K63 = TRUE, 1 - 'Contract Works Discount'!$D$11, 1)), M63)) -> 0 | T63: 468
A64: Escalation Not UL | C64: Fifth Year | D64: Fire | F64: =$F$4 * 0.15 -> 5.445e-06 | G64: TRUE | H64: FALSE | I64: TRUE | J64: FALSE | K64: FALSE | M64: 0 | P64: 0 | Q64: TRUE | R64: DA100 | S64: =IF(E64 = 0, 0, MAX((E64 * F64) * (IF(I64 = TRUE, 1 - 'Loss Limit Discount'!$D$93, 1)) * (IF(K64 = TRUE, 1 - 'Contract Works Discount'!$D$11, 1)), M64)) -> 0 | T64: 469
B66: Business Interruption
B67: Specified Standing Charges
A68: Business Interruption | B68: SC | C68: 12 Months | D68: Standing Charges | F68: =_xlfn.IFNA(VLOOKUP(C68, Metadata!$H$2:$I$8, 2, FALSE),0) -> 3.63e-05 | G68: TRUE | H68: TRUE | I68: TRUE | J68: FALSE | K68: FALSE | M68: 50 | N68: FALSE | P68: 0 | Q68: TRUE | R68: DA101 | S68: =IF(E68 = 0, 0, MAX((E68 * F68) * (IF(I68 = TRUE, 1 - 'Loss Limit Discount'!$D$93, 1)) * (IF(K68 = TRUE, 1 - 'Contract Works Discount'!$D$11, 1)), M68)) -> 0 | T68: 472
A69: Business Interruption | B69: AICOW | C69: Additional Increase In Cost Of Working | D69: Standing Charges | F69: =F68 * 1.5 -> 5.445e-05 | G69: TRUE | H69: TRUE | I69: TRUE | J69: FALSE | K69: FALSE | M69: 0 | N69: FALSE | P69: 0 | Q69: TRUE | R69: DA108 | S69: =IF(E69 = 0, 0, MAX((E69 * F69) * (IF(I69 = TRUE, 1 - 'Loss Limit Discount'!$D$93, 1)) * (IF(K69 = TRUE, 1 - 'Contract Works Discount'!$D$11, 1)), M69)) -> 0 | T69: 480
B70: Working Expenses
A71: Business Interruption | B71: WE | C71: 12 Months | D71: Working Expenses | F71: =_xlfn.IFNA(VLOOKUP(C71, Metadata!$H$10:$I$16, 2, FALSE),0) -> 3.63e-05 | G71: TRUE | H71: TRUE | I71: TRUE | J71: FALSE | K71: FALSE | M71: 50 | N71: FALSE | P71: 0 | Q71: TRUE | R71: DA109 | S71: =IF(E71 = 0, 0, MAX((E71 * F71) * (IF(I71 = TRUE, 1 - 'Loss Limit Discount'!$D$93, 1)) * (IF(K71 = TRUE, 1 - 'Contract Works Discount'!$D$11, 1)), M71)) -> 0 | T71: 481
A72: Business Interruption | B72: AICOW | C72: Additional Increase In Cost Of Working | D72: Working Expenses | F72: =F71 * 1.5 -> 5.445e-05 | G72: TRUE | H72: TRUE | I72: TRUE | J72: FALSE | K72: FALSE | M72: 0 | N72: FALSE | P72: 0 | Q72: TRUE | R72: DA116 | S72: =IF(E72 = 0, 0, MAX((E72 * F72) * (IF(I72 = TRUE, 1 - 'Loss Limit Discount'!$D$93, 1)) * (IF(K72 = TRUE, 1 - 'Contract Works Discount'!$D$11, 1)), M72)) -> 0 | T72: 489
B73: Revenue
A74: Business Interruption | B74: R | C74: 12 Months | D74: Revenue | F74: =_xlfn.IFNA(VLOOKUP(C74, Metadata!$H$34:$I$40, 2, FALSE),0) -> 3.63e-05 | G74: TRUE | H74: TRUE | I74: TRUE | J74: FALSE | K74: FALSE | M74: 50 | N74: FALSE | P74: 0 | Q74: TRUE | R74: DA117 | S74: =IF(E74 = 0, 0, MAX((E74 * F74) * (IF(I74 = TRUE, 1 - 'Loss Limit Discount'!$D$93, 1)) * (IF(K74 = TRUE, 1 - 'Contract Works Discount'!$D$11, 1)), M74)) -> 0 | T74: 490
A75: Business Interruption | B75: AICOW | C75: Additional Increase In Cost Of Working | D75: Revenue | F75: =F74 * 1.5 -> 5.445e-05 | G75: TRUE | H75: TRUE | I75: TRUE | J75: FALSE | K75: FALSE | M75: 0 | N75: FALSE | P75: 0 | Q75: TRUE | R75: DA124 | S75: =IF(E75 = 0, 0, MAX((E75 * F75) * (IF(I75 = TRUE, 1 - 'Loss Limit Discount'!$D$93, 1)) * (IF(K75 = TRUE, 1 - 'Contract Works Discount'!$D$11, 1)), M75)) -> 0 | T75: 1673
B76: Net Profit
A77: Business Interruption | B77: NP | C77: 12 Months | D77: Net Profit | F77: =_xlfn.IFNA(VLOOKUP(C77, Metadata!$H$18:$I$24, 2, FALSE),0) -> 3.63e-05 | G77: TRUE | H77: TRUE | I77: TRUE | J77: FALSE | K77: FALSE | M77: 50 | N77: FALSE | P77: 0 | Q77: TRUE | R77: DA117 | S77: =IF(E77 = 0, 0, MAX((E77 * F77) * (IF(I77 = TRUE, 1 - 'Loss Limit Discount'!$D$93, 1)) * (IF(K77 = TRUE, 1 - 'Contract Works Discount'!$D$11, 1)), M77)) -> 0 | T77: 1612
A78: Business Interruption | B78: AICOW | C78: Additional Increase In Cost Of Working | D78: Net Profit | F78: =F77 * 1.5 -> 5.445e-05 | G78: TRUE | H78: TRUE | I78: TRUE | J78: FALSE | K78: FALSE | M78: 0 | N78: FALSE | P78: 0 | Q78: TRUE | R78: DA124 | S78: =IF(E78 = 0, 0, MAX((E78 * F78) * (IF(I78 = TRUE, 1 - 'Loss Limit Discount'!$D$93, 1)) * (IF(K78 = TRUE, 1 - 'Contract Works Discount'!$D$11, 1)), M78)) -> 0 | T78: 1669
B79: Gross Profit
A80: Business Interruption | B80: GP | C80: 12 Months | D80: Gross Profit | F80: =_xlfn.IFNA(VLOOKUP(C80, Metadata!$H$26:$I$32, 2, FALSE),0) -> 3.63e-05 | G80: TRUE | H80: TRUE | I80: TRUE | J80: FALSE | K80: FALSE | M80: 50 | N80: FALSE | P80: 0 | Q80: TRUE | R80: DA125 | S80: =IF(E80 = 0, 0, MAX((E80 * F80) * (IF(I80 = TRUE, 1 - 'Loss Limit Discount'!$D$93, 1)) * (IF(K80 = TRUE, 1 - 'Contract Works Discount'!$D$11, 1)), M80)) -> 0
A81: Business Interruption | B81: AICOW | C81: Additional Increase In Cost Of Working | D81: Gross Profit | F81: =F80 * 1.5 -> 5.445e-05 | G81: TRUE | H81: TRUE | I81: TRUE | J81: FALSE | K81: FALSE | M81: 0 | N81: FALSE | P81: 0 | Q81: TRUE | R81: DA132 | S81: =IF(E81 = 0, 0, MAX((E81 * F81) * (IF(I81 = TRUE, 1 - 'Loss Limit Discount'!$D$93, 1)) * (IF(K81 = TRUE, 1 - 'Contract Works Discount'!$D$11, 1)), M81)) -> 0
T82: 501
B83: Motor | T83: 502
B84: Motor | T84: 503
A85: Motor | B85: M1 | C85: Cars (Primary use: Domestic/Private) | D85: Motor | F85: 20.18 | G85: FALSE | H85: FALSE | I85: FALSE | J85: FALSE | K85: FALSE | M85: 20.18 | N85: FALSE | P85: 0 | Q85: TRUE | R85: DA133 | S85: =IF(E85 = 0, 0, MAX((F85 * E85) * (IF(I85 = TRUE, 1 - 'Loss Limit Discount'!$L$11, 1)) * (IF(K85 = TRUE, 1 - 'Contract Works Discount'!$D$11, 1)), M85 * E85)) -> 0 | T85: 504
A86: Motor | B86: M2 | C86: Light Commercial Vehicles (3500kg GVM or less) | D86: Motor | F86: 0.00070621 | G86: FALSE | H86: FALSE | I86: FALSE | J86: FALSE | K86: FALSE | M86: 45.39 | N86: FALSE | P86: 0 | Q86: TRUE | R86: DA134 | S86: =IF(E86 = 0, 0, MAX((E86 * F86) * (IF(I86 = TRUE, 1 - 'Loss Limit Discount'!$D$93, 1)) * (IF(K86 = TRUE, 1 - 'Contract Works Discount'!$D$11, 1)), M86)) -> 0 | T86: 505
A87: Motor | B87: M3 | C87: Taxis | D87: Motor | F87: 0.00021297 | G87: FALSE | H87: FALSE | I87: FALSE | J87: FALSE | K87: FALSE | M87: 45.39 | N87: FALSE | P87: 0 | Q87: TRUE | R87: DA135 | S87: =IF(E87 = 0, 0, MAX((E87 * F87) * (IF(I87 = TRUE, 1 - 'Loss Limit Discount'!$D$93, 1)) * (IF(K87 = TRUE, 1 - 'Contract Works Discount'!$D$11, 1)), M87)) -> 0
A88: Motor | B88: M4 | C88: Ferries & Traders | D88: Motor | F88: 8.68e-05 | G88: TRUE | H88: FALSE | I88: FALSE | J88: FALSE | K88: FALSE | M88: 100 | N88: FALSE | P88: 8.68e-05 | Q88: TRUE | R88: CA144 | S88: =IF(E88 = 0, 0, MAX((E88 * F88) * (IF(I88 = TRUE, 1 - 'Loss Limit Discount'!$D$93, 1)) * (IF(K88 = TRUE, 1 - 'Contract Works Discount'!$L$11, 1)), M88)) -> 0
A89: Motor | B89: M5 | C89: Buses | D89: Motor | F89: 0.00564987 | G89: TRUE | H89: FALSE | I89: FALSE | J89: FALSE | K89: FALSE | M89: 2000 | N89: FALSE | P89: 0 | Q89: TRUE | R89: DA136 | S89: =IF(E89 = 0, 0, MAX((E89 * F89) * (IF(I89 = TRUE, 1 - 'Loss Limit Discount'!$D$93, 1)) * (IF(K89 = TRUE, 1 - 'Contract Works Discount'!$D$11, 1)), M89)) -> 0
A90: Motor | B90: M6 | C90: Mobile Plant | D90: Motor | F90: 0.00056628 | G90: TRUE | H90: FALSE | I90: FALSE | J90: FALSE | K90: FALSE | M90: 500 | N90: FALSE | P90: 0 | Q90: TRUE | R90: DA137 | S90: =IF(E90 = 0, 0, MAX((E90 * F90) * (IF(I90 = TRUE, 1 - 'Loss Limit Discount'!$D$93, 1)) * (IF(K90 = TRUE, 1 - 'Contract Works Discount'!$D$11, 1)), M90)) -> 0
A91: Motor | B91: M8 | C91: Heavy Commercial Vehicles (>3500kg GVM) | D91: Motor | F91: 0.00345057 | G91: TRUE | H91: FALSE | I91: FALSE | J91: FALSE | K91: FALSE | M91: 54.47 | N91: FALSE | P91: 0.0001879 | Q91: TRUE | S91: =IF(E91 = 0, 0, MAX((E91 * F91) * (IF(I91 = TRUE, 1 - 'Loss Limit Discount'!$D$93, 1)) * (IF(K91 = TRUE, 1 - 'Contract Works Discount'!$L$11, 1)), M91)) -> 0
T92: 1660
B93: Contract Work / Construction Plant
B94: Contract Works | T94: 1657
A95: Contract Works | B95: CW | C95: =Input!$I$16 -> Over 48 months | D95: Contract Works | F95: 0.00011326 | G95: TRUE | H95: FALSE | I95: FALSE | J95: TRUE | K95: TRUE | M95: 500 | N95: FALSE | P95: 0.00726 | Q95: FALSE | R95: DA142 | S95: =IF(E95 = 0, 0, MAX((E95 * F95) * (IF(I95 = TRUE, 1 - 'Loss Limit Discount'!$D$93, 1)) * (IF(K95 = TRUE, 1 - 'Contract Works Discount'!$D$101, 1)), M95)) -> 0 | T95: 1658
B96: Construction plant
A97: Contract Works | B97: CW | C97: On Fee Basis | D97: Contract Works | F97: 0.0019188 | G97: TRUE | H97: FALSE | I97: FALSE | J97: FALSE | K97: FALSE | M97: 500 | N97: FALSE | P97: 0.00123 | Q97: FALSE | R97: CA176 | S97: =IF(E97 = 0, 0, MAX((E97 * F97) * (IF(I97 = TRUE, 1 - 'Loss Limit Discount'!$D$38, 1)) * (IF(K97 = TRUE, 1 - 'Contract Works Discount'!$D$96, 1)), M97)) -> 0 | T97: 1665
A98: Contract Works | B98: CW | C98: On Value Basis | D98: Contract Works | F98: 0.00056628 | G98: TRUE | H98: FALSE | I98: FALSE | J98: FALSE | K98: FALSE | M98: 500 | N98: FALSE | P98: 0.000363 | Q98: FALSE | R98: CA177 | S98: =IF(E98 = 0, 0, MAX((E98 * F98) * (IF(I98 = TRUE, 1 - 'Loss Limit Discount'!$D$38, 1)) * (IF(K98 = TRUE, 1 - 'Contract Works Discount'!$D$96, 1)), M98)) -> 0
B99: Mobile plant
A100: Contract Works | B100: CW | C100: On Value Basis | D100: Contract Works | F100: =F98 -> 0.00056628 | G100: TRUE | H100: FALSE | I100: FALSE | J100: FALSE | K100: FALSE | M100: 500 | N100: FALSE | P100: 0.000363 | Q100: FALSE | R100: CA179 | S100: =IF(E100 = 0, 0, MAX((E100 * F100) * (IF(I100 = TRUE, 1 - 'Loss Limit Discount'!$D$38, 1)) * (IF(K100 = TRUE, 1 - 'Contract Works Discount'!$D$96, 1)), M100)) -> 0

Sheet Domestic (Tertiary) - Monthly
A1: Domestic - Monthly | V1: Cells with green borders have a drop-down selection!
A2: Category | B2: Code | C2: Description | D2: Total Code | E2: Sum Insured/No. of insured items | F2: Rate | G2: Is Percent | H2: Add To Sum Insured Discount | I2: Receive Sum Insured Discount | J2: Add To CW Discount | K2: Receive CW Discount | L2: Contract Period Discount | M2: Minimum Premium | N2: Has Fire Extension Discount | O2: Amount within free extension threshold | P2: Special Dispensation Rate | Q2: N/A To Special Dispensation | R2: Unique Code | S2: Premium | T2: System ID
B3: Fire
A4: Domestic Fire | B4: F1-T | C4: Tertiary Institutions | D4: Fire | F4: 4.36e-06 | G4: TRUE | H4: TRUE | I4: TRUE | J4: FALSE | K4: FALSE | M4: 3 | N4: FALSE | P4: 0.25 | Q4: TRUE | S4: =IF(E4 = 0, 0, MAX((E4 * F4) * (IF(I4 = TRUE, 1 - 'Loss Limit Discount'!$D$93, 1)) + ('Fire Extensions'!$D$38 * F4) * (1 - 'Loss Limit Discount'!$D$93), M4)) -> 0 | T4: 2871
A5: Extension | B5: Sasria Extensions
A6: Extension | B6: EX | C6: Rent | D6: Fire | F6: =$F$4 -> 4.36e-06 | G6: TRUE | H6: TRUE | I6: TRUE | J6: FALSE | K6: FALSE | M6: 0 | N6: TRUE | O6: =IF(E6 < 'Fire Extensions'!$D$6, 'Domestic (Tertiary) - Monthly'!E6, 'Fire Extensions'!$D$6) -> 0 | P6: 0 | Q6: TRUE | R6: DM002 | T6: 154
A7: Extension | B7: EX | C7: Claims Preparation Costs | D7: Fire | F7: =$F$4 -> 4.36e-06 | G7: TRUE | H7: TRUE | I7: TRUE | J7: FALSE | K7: FALSE | M7: 0 | N7: TRUE | O7: =IF(E7 < 'Fire Extensions'!$D$6, 'Domestic (Tertiary) - Monthly'!E7, 'Fire Extensions'!$D$6) -> 0 | P7: 0 | Q7: TRUE | R7: DM003 | T7: 155
A8: Extension | B8: EX | C8: Capital Additions | D8: Fire | F8: 4.36e-06 | G8: TRUE | H8: TRUE | I8: TRUE | J8: FALSE | K8: FALSE | M8: 0 | N8: TRUE | O8: =IF(E8 < 'Fire Extensions'!$D$6, 'Domestic (Tertiary) - Monthly'!E8, 'Fire Extensions'!$D$6) -> 0 | P8: 0 | Q8: TRUE | R8: DM004 | T8: 156
A9: Extension | B9: EX | C9: Professional fees | D9: Fire | F9: 4.36e-06 | G9: TRUE | H9: TRUE | I9: TRUE | J9: FALSE | K9: FALSE | M9: 0 | N9: TRUE | O9: =IF(E9 < 'Fire Extensions'!$D$6, 'Domestic (Tertiary) - Monthly'!E9, 'Fire Extensions'!$D$6) -> 0 | P9: 0 | Q9: TRUE | R9: DM005 | T9: 157
A10: Extension | B10: EX | C10: Clearance costs | D10: Fire | F10: 4.36e-06 | G10: TRUE | H10: TRUE | I10: TRUE | J10: FALSE | K10: FALSE | M10: 0 | N10: TRUE | O10: =IF(E10 < 'Fire Extensions'!$D$6, 'Domestic (Tertiary) - Monthly'!E10, 'Fire Extensions'!$D$6) -> 0 | P10: 0 | Q10: TRUE | R10: DM006 | T10: 158
A11: Extension | B11: EX | C11: Security Costs (During and after a loss) | D11: Fire | F11: 4.36e-06 | G11: TRUE | H11: TRUE | I11: TRUE | J11: FALSE | K11: FALSE | M11: 0 | N11: TRUE | O11: =IF(E11 < 'Fire Extensions'!$D$6, 'Domestic (Tertiary) - Monthly'!E11, 'Fire Extensions'!$D$6) -> 0 | P11: 0 | Q11: TRUE | R11: DM007 | T11: 159
A12: Extension | B12: EX | C12: Statutory Duties | D12: Fire | F12: 4.36e-06 | G12: TRUE | H12: TRUE | I12: TRUE | J12: FALSE | K12: FALSE | M12: 0 | N12: TRUE | O12: =IF(E12 < 'Fire Extensions'!$D$6, 'Domestic (Tertiary) - Monthly'!E12, 'Fire Extensions'!$D$6) -> 0 | P12: 0 | Q12: TRUE | R12: DM010 | T12: 163
A13: Extension | B13: EX | C13: Additional Premises | D13: Fire | F13: 4.36e-06 | G13: TRUE | H13: TRUE | I13: TRUE | J13: FALSE | K13: FALSE | M13: 0 | N13: TRUE | O13: =IF(E13 < 'Fire Extensions'!$D$6, 'Domestic (Tertiary) - Monthly'!E13, 'Fire Extensions'!$D$6) -> 0 | P13: 0 | Q13: TRUE | R13: DM011 | T13: 164
A14: Extension | B14: EX | C14: Acquisition Limits | D14: Fire | F14: 4.36e-06 | G14: TRUE | H14: TRUE | I14: TRUE | J14: FALSE | K14: FALSE | M14: 0 | N14: TRUE | O14: =IF(E14 < 'Fire Extensions'!$D$6, 'Domestic (Tertiary) - Monthly'!E14, 'Fire Extensions'!$D$6) -> 0 | P14: 0 | Q14: TRUE | R14: DM012 | T14: 165
A15: Extension | B15: EX | C15: Import Surcharges | D15: Fire | F15: 4.36e-06 | G15: TRUE | H15: TRUE | I15: TRUE | J15: FALSE | K15: FALSE | M15: 0 | N15: TRUE | O15: =IF(E15 < 'Fire Extensions'!$D$6, 'Domestic (Tertiary) - Monthly'!E15, 'Fire Extensions'!$D$6) -> 0 | P15: 0 | Q15: TRUE | R15: DM014 | T15: 167
A16: Extension | B16: EX | C16: Fire Protection System Update | D16: Fire | F16: 4.36e-06 | G16: TRUE | H16: TRUE | I16: TRUE | J16: FALSE | K16: FALSE | M16: 0 | N16: TRUE | O16: =IF(E16 < 'Fire Extensions'!$D$6, 'Domestic (Tertiary) - Monthly'!E16, 'Fire Extensions'!$D$6) -> 0 | P16: 0 | Q16: TRUE | R16: DM015 | T16: 168
A17: Extension | B17: EX | C17: Goods in the open | D17: Fire | F17: 4.36e-06 | G17: TRUE | H17: TRUE | I17: TRUE | J17: FALSE | K17: FALSE | M17: 0 | N17: TRUE | O17: =IF(E17 < 'Fire Extensions'!$D$6, 'Domestic (Tertiary) - Monthly'!E17, 'Fire Extensions'!$D$6) -> 0 | P17: 0 | Q17: TRUE | R17: DM019 | T17: 172
A18: Extension | B18: EX | C18: Fire Extinguishing | D18: Fire | F18: 4.36e-06 | G18: TRUE | H18: TRUE | I18: TRUE | J18: FALSE | K18: FALSE | M18: 0 | N18: TRUE | O18: =IF(E18 < 'Fire Extensions'!$D$6, 'Domestic (Tertiary) - Monthly'!E18, 'Fire Extensions'!$D$6) -> 0 | P18: 0 | Q18: TRUE | R18: DM020 | T18: 173
A19: Extension | B19: EX | C19: Imminent Danger (Protection of property prior a loss) | D19: Fire | F19: 4.36e-06 | G19: TRUE | H19: TRUE | I19: TRUE | J19: FALSE | K19: FALSE | M19: 0 | N19: TRUE | O19: =IF(E19 < 'Fire Extensions'!$D$6, 'Domestic (Tertiary) - Monthly'!E19, 'Fire Extensions'!$D$6) -> 0 | P19: 0 | Q19: TRUE | T19: 2875
A20: Other Extension | B20: Other Extensions
A21: Other Extension | B21: EX | C21: Other | D21: Fire | F21: =$F$4 -> 4.36e-06 | G21: TRUE | H21: TRUE | I21: TRUE | J21: FALSE | K21: FALSE | M21: 0 | N21: TRUE | O21: =IF(E21 < 'Fire Extensions'!$D$6, 'Domestic (Tertiary) - Monthly'!E21, 'Fire Extensions'!$D$6) -> 0 | P21: 0 | Q21: TRUE | R21: DM021 | T21: 175
A22: Other Extension | B22: EX | C22: Other | D22: Fire | F22: 4.36e-06 | G22: TRUE | H22: TRUE | I22: TRUE | J22: FALSE | K22: FALSE | M22: 0 | N22: TRUE | O22: =IF(E22 < 'Fire Extensions'!$D$6, 'Domestic (Tertiary) - Monthly'!E22, 'Fire Extensions'!$D$6) -> 0 | P22: 0 | Q22: TRUE | R22: DM022 | T22: 176
A23: Other Extension | B23: EX | C23: Other | D23: Fire | F23: 4.36e-06 | G23: TRUE | H23: TRUE | I23: TRUE | J23: FALSE | K23: FALSE | M23: 0 | N23: TRUE | O23: =IF(E23 < 'Fire Extensions'!$D$6, 'Domestic (Tertiary) - Monthly'!E23, 'Fire Extensions'!$D$6) -> 0 | P23: 0 | Q23: TRUE | R23: DM023 | T23: 177
A24: Other Extension | B24: EX | C24: Other | D24: Fire | F24: 4.36e-06 | G24: TRUE | H24: TRUE | I24: TRUE | J24: FALSE | K24: FALSE | M24: 0 | N24: TRUE | O24: =IF(E24 < 'Fire Extensions'!$D$6, 'Domestic (Tertiary) - Monthly'!E24, 'Fire Extensions'!$D$6) -> 0 | P24: 0 | Q24: TRUE | R24: DM024 | T24: 178
A25: Other Extension | B25: EX | C25: Other | D25: Fire | F25: 4.36e-06 | G25: TRUE | H25: TRUE | I25: TRUE | J25: FALSE | K25: FALSE | M25: 0 | N25: TRUE | O25: =IF(E25 < 'Fire Extensions'!$D$6, 'Domestic (Tertiary) - Monthly'!E25, 'Fire Extensions'!$D$6) -> 0 | P25: 0 | Q25: TRUE | R25: DM025 | T25: 179
A26: Other Extension | B26: EX | C26: Other | D26: Fire | F26: 4.36e-06 | G26: TRUE | H26: TRUE | I26: TRUE | J26: FALSE | K26: FALSE | M26: 0 | N26: TRUE | O26: =IF(E26 < 'Fire Extensions'!$D$6, 'Domestic (Tertiary) - Monthly'!E26, 'Fire Extensions'!$D$6) -> 0 | P26: 0 | Q26: TRUE | R26: DM026 | T26: 180
A27: Other Extension | B27: EX | C27: Other | D27: Fire | F27: 4.36e-06 | G27: TRUE | H27: TRUE | I27: TRUE | J27: FALSE | K27: FALSE | M27: 0 | N27: TRUE | O27: =IF(E27 < 'Fire Extensions'!$D$6, 'Domestic (Tertiary) - Monthly'!E27, 'Fire Extensions'!$D$6) -> 0 | P27: 0 | Q27: TRUE | R27: DM027 | T27: 181
A28: Other Extension | B28: EX | C28: Other | D28: Fire | F28: 4.36e-06 | G28: TRUE | H28: TRUE | I28: TRUE | J28: FALSE | K28: FALSE | M28: 0 | N28: TRUE | O28: =IF(E28 < 'Fire Extensions'!$D$6, 'Domestic (Tertiary) - Monthly'!E28, 'Fire Extensions'!$D$6) -> 0 | P28: 0 | Q28: TRUE | R28: DM028 | T28: 182
A29: Other Extension | B29: EX | C29: Other | D29: Fire | F29: 4.36e-06 | G29: TRUE | H29: TRUE | I29: TRUE | J29: FALSE | K29: FALSE | M29: 0 | N29: TRUE | O29: =IF(E29 < 'Fire Extensions'!$D$6, 'Domestic (Tertiary) - Monthly'!E29, 'Fire Extensions'!$D$6) -> 0 | P29: 0 | Q29: TRUE | R29: DM029 | T29: 183
A30: Other Extension | B30: EX | C30: Other | D30: Fire | F30: 4.36e-06 | G30: TRUE | H30: TRUE | I30: TRUE | J30: FALSE | K30: FALSE | M30: 0 | N30: TRUE | O30: =IF(E30 < 'Fire Extensions'!$D$6, 'Domestic (Tertiary) - Monthly'!E30, 'Fire Extensions'!$D$6) -> 0 | P30: 0 | Q30: TRUE | R30: DM030 | T30: 184
A31: Other Extension | B31: EX | C31: Other | D31: Fire | F31: 4.36e-06 | G31: TRUE | H31: TRUE | I31: TRUE | J31: FALSE | K31: FALSE | M31: 0 | N31: TRUE | O31: =IF(E31 < 'Fire Extensions'!$D$6, 'Domestic (Tertiary) - Monthly'!E31, 'Fire Extensions'!$D$6) -> 0 | P31: 0 | Q31: TRUE | R31: DM031 | T31: 185
A32: Other Extension | B32: EX | C32: Other | D32: Fire | F32: 4.36e-06 | G32: TRUE | H32: TRUE | I32: TRUE | J32: FALSE | K32: FALSE | M32: 0 | N32: TRUE | O32: =IF(E32 < 'Fire Extensions'!$D$6, 'Domestic (Tertiary) - Monthly'!E32, 'Fire Extensions'!$D$6) -> 0 | P32: 0 | Q32: TRUE | R32: DM032 | T32: 186
A33: Other Extension | B33: EX | C33: Other | D33: Fire | F33: 4.36e-06 | G33: TRUE | H33: TRUE | I33: TRUE | J33: FALSE | K33: FALSE | M33: 0 | N33: TRUE | O33: =IF(E33 < 'Fire Extensions'!$D$6, 'Domestic (Tertiary) - Monthly'!E33, 'Fire Extensions'!$D$6) -> 0 | P33: 0 | Q33: TRUE | R33: DM033 | T33: 187
A34: Other Extension | B34: EX | C34: Other | D34: Fire | F34: 4.36e-06 | G34: TRUE | H34: TRUE | I34: TRUE | J34: FALSE | K34: FALSE | M34: 0 | N34: TRUE | O34: =IF(E34 < 'Fire Extensions'!$D$6, 'Domestic (Tertiary) - Monthly'!E34, 'Fire Extensions'!$D$6) -> 0 | P34: 0 | Q34: TRUE | R34: DM034 | T34: 188
A35: Other Extension | B35: EX | C35: Other | D35: Fire | F35: 4.36e-06 | G35: TRUE | H35: TRUE | I35: TRUE | J35: FALSE | K35: FALSE | M35: 0 | N35: TRUE | O35: =IF(E35 < 'Fire Extensions'!$D$6, 'Domestic (Tertiary) - Monthly'!E35, 'Fire Extensions'!$D$6) -> 0 | P35: 0 | Q35: TRUE | R35: DM035 | T35: 189
A36: Other Extension | B36: EX | C36: Other | D36: Fire | F36: 4.36e-06 | G36: TRUE | H36: TRUE | I36: TRUE | J36: FALSE | K36: FALSE | M36: 0 | N36: TRUE | O36: =IF(E36 < 'Fire Extensions'!$D$6, 'Domestic (Tertiary) - Monthly'!E36, 'Fire Extensions'!$D$6) -> 0 | P36: 0 | Q36: TRUE | R36: DM036 | T36: 190
A37: Other Extension | B37: EX | C37: Other | D37: Fire | F37: 4.36e-06 | G37: TRUE | H37: TRUE | I37: TRUE | J37: FALSE | K37: FALSE | M37: 0 | N37: TRUE | O37: =IF(E37 < 'Fire Extensions'!$D$6, 'Domestic (Tertiary) - Monthly'!E37, 'Fire Extensions'!$D$6) -> 0 | P37: 0 | Q37: TRUE | R37: DM037 | T37: 191
A38: Other Extension | B38: EX | C38: Other | D38: Fire | F38: 4.36e-06 | G38: TRUE | H38: TRUE | I38: TRUE | J38: FALSE | K38: FALSE | M38: 0 | N38: TRUE | O38: =IF(E38 < 'Fire Extensions'!$D$6, 'Domestic (Tertiary) - Monthly'!E38, 'Fire Extensions'!$D$6) -> 0 | P38: 0 | Q38: TRUE | R38: DM038 | T38: 192
A39: Other Extension | B39: EX | C39: Other | D39: Fire | F39: 4.36e-06 | G39: TRUE | H39: TRUE | I39: TRUE | J39: FALSE | K39: FALSE | M39: 0 | N39: TRUE | O39: =IF(E39 < 'Fire Extensions'!$D$6, 'Domestic (Tertiary) - Monthly'!E39, 'Fire Extensions'!$D$6) -> 0 | P39: 0 | Q39: TRUE | R39: DM039 | T39: 193
A40: Other Extension | B40: EX | C40: Other | D40: Fire | F40: 4.36e-06 | G40: TRUE | H40: TRUE | I40: TRUE | J40: FALSE | K40: FALSE | M40: 0 | N40: TRUE | O40: =IF(E40 < 'Fire Extensions'!$D$6, 'Domestic (Tertiary) - Monthly'!E40, 'Fire Extensions'!$D$6) -> 0 | P40: 0 | Q40: TRUE | R40: DM040 | T40: 194
A41: Other Extension | B41: EX | C41: Other | D41: Fire | F41: 4.36e-06 | G41: TRUE | H41: TRUE | I41: TRUE | J41: FALSE | K41: FALSE | M41: 0 | N41: TRUE | O41: =IF(E41 < 'Fire Extensions'!$D$6, 'Domestic (Tertiary) - Monthly'!E41, 'Fire Extensions'!$D$6) -> 0 | P41: 0 | Q41: TRUE | R41: DM041 | T41: 195
A42: Other Extension | B42: EX | C42: Other | D42: Fire | F42: 4.36e-06 | G42: TRUE | H42: TRUE | I42: TRUE | J42: FALSE | K42: FALSE | M42: 0 | N42: TRUE | O42: =IF(E42 < 'Fire Extensions'!$D$6, 'Domestic (Tertiary) - Monthly'!E42, 'Fire Extensions'!$D$6) -> 0 | P42: 0 | Q42: TRUE | R42: DM042 | T42: 196
A43: Other Extension | B43: EX | C43: Other | D43: Fire | F43: 4.36e-06 | G43: TRUE | H43: TRUE | I43: TRUE | J43: FALSE | K43: FALSE | M43: 0 | N43: TRUE | O43: =IF(E43 < 'Fire Extensions'!$D$6, 'Domestic (Tertiary) - Monthly'!E43, 'Fire Extensions'!$D$6) -> 0 | P43: 0 | Q43: TRUE | R43: DM043 | T43: 197
A44: Other Extension | B44: EX | C44: Other | D44: Fire | F44: 4.36e-06 | G44: TRUE | H44: TRUE | I44: TRUE | J44: FALSE | K44: FALSE | M44: 0 | N44: TRUE | O44: =IF(E44 < 'Fire Extensions'!$D$6, 'Domestic (Tertiary) - Monthly'!E44, 'Fire Extensions'!$D$6) -> 0 | P44: 0 | Q44: TRUE | R44: DM044 | T44: 198
A45: Other Extension | B45: EX | C45: Other | D45: Fire | F45: 4.36e-06 | G45: TRUE | H45: TRUE | I45: TRUE | J45: FALSE | K45: FALSE | M45: 0 | N45: TRUE | O45: =IF(E45 < 'Fire Extensions'!$D$6, 'Domestic (Tertiary) - Monthly'!E45, 'Fire Extensions'!$D$6) -> 0 | P45: 0 | Q45: TRUE | R45: DM045 | T45: 199
A46: Other Extension | B46: EX | C46: Other | D46: Fire | F46: 4.36e-06 | G46: TRUE | H46: TRUE | I46: TRUE | J46: FALSE | K46: FALSE | M46: 0 | N46: TRUE | O46: =IF(E46 < 'Fire Extensions'!$D$6, 'Domestic (Tertiary) - Monthly'!E46, 'Fire Extensions'!$D$6) -> 0 | P46: 0 | Q46: TRUE | R46: DM046 | T46: 200
A47: Other Extension | B47: EX | C47: Other | D47: Fire | F47: 4.36e-06 | G47: TRUE | H47: TRUE | I47: TRUE | J47: FALSE | K47: FALSE | M47: 0 | N47: TRUE | O47: =IF(E47 < 'Fire Extensions'!$D$6, 'Domestic (Tertiary) - Monthly'!E47, 'Fire Extensions'!$D$6) -> 0 | P47: 0 | Q47: TRUE | R47: DM047 | T47: 201
A48: Other Extension | B48: EX | C48: Other | D48: Fire | F48: 4.36e-06 | G48: TRUE | H48: TRUE | I48: TRUE | J48: FALSE | K48: FALSE | M48: 0 | N48: TRUE | O48: =IF(E48 < 'Fire Extensions'!$D$6, 'Domestic (Tertiary) - Monthly'!E48, 'Fire Extensions'!$D$6) -> 0 | P48: 0 | Q48: TRUE | R48: DM048 | T48: 202
A49: Other Extension | B49: EX | C49: Other | D49: Fire | F49: 4.36e-06 | G49: TRUE | H49: TRUE | I49: TRUE | J49: FALSE | K49: FALSE | M49: 0 | N49: TRUE | O49: =IF(E49 < 'Fire Extensions'!$D$6, 'Domestic (Tertiary) - Monthly'!E49, 'Fire Extensions'!$D$6) -> 0 | P49: 0 | Q49: TRUE | R49: DM049 | T49: 203
A50: Other Extension | B50: EX | C50: Other | D50: Fire | F50: 4.36e-06 | G50: TRUE | H50: TRUE | I50: TRUE | J50: FALSE | K50: FALSE | M50: 0 | N50: TRUE | O50: =IF(E50 < 'Fire Extensions'!$D$6, 'Domestic (Tertiary) - Monthly'!E50, 'Fire Extensions'!$D$6) -> 0 | P50: 0 | Q50: TRUE | R50: DM050 | T50: 204
A51: Escalation | B51: Escalation and or Inflation
A52: Escalation UL | B52: Charge on U/L
A53: Escalation UL | C53: First Year (90-100%) | D53: Fire | F53: =IF(C53 = "", 0, VLOOKUP(C53, Escalation!$C$163:$D$207, 2, FALSE)) -> 4.36e-06 | G53: TRUE | H53: FALSE | I53: TRUE | J53: FALSE | K53: FALSE | M53: 0 | P53: 0 | Q53: TRUE | R53: DM051 | S53: =IF(E53 = 0, 0, MAX((E53 * F53) * (IF(I53 = TRUE, 1 - 'Loss Limit Discount'!$D$93, 1)), M53)) -> 0 | T53: 1825
A54: Escalation UL | C54: Second Year (90-100%) | D54: Fire | F54: =IF(C54 = "", 0, VLOOKUP(C54, Escalation!$C$163:$D$207, 2, FALSE)) -> 2.18e-06 | G54: TRUE | H54: FALSE | I54: TRUE | J54: FALSE | K54: FALSE | M54: 0 | P54: 0 | Q54: TRUE | R54: DM052 | S54: =IF(E54 = 0, 0, MAX((E54 * F54) * (IF(I54 = TRUE, 1 - 'Loss Limit Discount'!$D$93, 1)), M54)) -> 0 | T54: 1826
A55: Escalation UL | C55: Third Year (90-100%) | D55: Fire | F55: =IF(C55 = "", 0, VLOOKUP(C55, Escalation!$C$163:$D$207, 2, FALSE)) -> 1.09e-06 | G55: TRUE | H55: FALSE | I55: TRUE | J55: FALSE | K55: FALSE | M55: 0 | P55: 0 | Q55: TRUE | R55: DM053 | S55: =IF(E55 = 0, 0, MAX((E55 * F55) * (IF(I55 = TRUE, 1 - 'Loss Limit Discount'!$D$93, 1)), M55)) -> 0 | T55: 1827
A56: Escalation UL | C56: Fourth Year (90-100%) | D56: Fire | F56: =IF(C56 = "", 0, VLOOKUP(C56, Escalation!$C$163:$D$207, 2, FALSE)) -> 8.72e-07 | G56: TRUE | H56: FALSE | I56: TRUE | J56: FALSE | K56: FALSE | M56: 0 | P56: 0 | Q56: TRUE | R56: DM054 | S56: =IF(E56 = 0, 0, MAX((E56 * F56) * (IF(I56 = TRUE, 1 - 'Loss Limit Discount'!$D$93, 1)), M56)) -> 0 | T56: 1828
A57: Escalation UL | C57: Fifth Year (90-100%) | D57: Fire | F57: =IF(C57 = "", 0, VLOOKUP(C57, Escalation!$C$163:$D$207, 2, FALSE)) -> 6.54e-07 | G57: TRUE | H57: FALSE | I57: TRUE | J57: FALSE | K57: FALSE | M57: 0 | P57: 0 | Q57: TRUE | R57: DM055 | S57: =IF(E57 = 0, 0, MAX((E57 * F57) * (IF(I57 = TRUE, 1 - 'Loss Limit Discount'!$D$93, 1)), M57)) -> 0 | T57: 1829
A58: Escalation Not UL | B58: Not Charged on U/L
A59: Escalation Not UL | C59: First Year | D59: Fire | F59: =$F$4 -> 4.36e-06 | G59: TRUE | H59: FALSE | I59: TRUE | J59: FALSE | K59: FALSE | M59: 0 | P59: 0 | Q59: TRUE | R59: DM097 | S59: =IF(E59 = 0, 0, MAX((E59 * F59) * (IF(I59 = TRUE, 1 - 'Loss Limit Discount'!$D$93, 1)), M59)) -> 0 | T59: 214
A60: Escalation Not UL | C60: Second Year | D60: Fire | F60: =$F$4 * 0.5 -> 2.18e-06 | G60: TRUE | H60: FALSE | I60: TRUE | J60: FALSE | K60: FALSE | M60: 0 | P60: 0 | Q60: TRUE | R60: DM098 | S60: =IF(E60 = 0, 0, MAX((E60 * F60) * (IF(I60 = TRUE, 1 - 'Loss Limit Discount'!$D$93, 1)), M60)) -> 0 | T60: 215
A61: Escalation Not UL | C61: Third Year | D61: Fire | F61: =$F$4 * 0.25 -> 1.09e-06 | G61: TRUE | H61: FALSE | I61: TRUE | J61: FALSE | K61: FALSE | M61: 0 | P61: 0 | Q61: TRUE | R61: DM099 | S61: =IF(E61 = 0, 0, MAX((E61 * F61) * (IF(I61 = TRUE, 1 - 'Loss Limit Discount'!$D$93, 1)), M61)) -> 0 | T61: 216
A62: Escalation Not UL | C62: Fourth Year | D62: Fire | F62: =$F$4 * 0.2 -> 8.72e-07 | G62: TRUE | H62: FALSE | I62: TRUE | J62: FALSE | K62: FALSE | M62: 0 | P62: 0 | Q62: TRUE | R62: DM100 | S62: =IF(E62 = 0, 0, MAX((E62 * F62) * (IF(I62 = TRUE, 1 - 'Loss Limit Discount'!$D$93, 1)), M62)) -> 0 | T62: 217
A63: Escalation Not UL | C63: Fifth Year | D63: Fire | F63: =$F$4 * 0.15 -> 6.54e-07 | H63: FALSE | I63: TRUE | J63: FALSE | K63: FALSE | S63: =IF(E63 = 0, 0, MAX((E63 * F63) * (IF(I63 = TRUE, 1 - 'Loss Limit Discount'!$D$93, 1)), M63)) -> 0
B64: Total Fire
B65: Business Interruption
B66: Specified Standing Charges
A67: Business Interruption | B67: SC | C67: 12 Months | D67: Standing Charges | F67: =_xlfn.IFNA(VLOOKUP(C67, Metadata!$D$2:$E$8, 2, FALSE),0) -> 3.63e-06 | G67: TRUE | H67: TRUE | I67: TRUE | J67: FALSE | K67: FALSE | M67: 5 | N67: FALSE | P67: 0 | Q67: TRUE | R67: DM101 | S67: =IF(E67 = 0, 0, MAX((E67 * F67) * (IF(I67 = TRUE, 1 - 'Loss Limit Discount'!$D$93, 1)), M67)) -> 0 | T67: 220
A68: Business Interruption | B68: AICOW | C68: Additional Increase In Cost Of Working | D68: Standing Charges | F68: =F67 * 1.5 -> 5.445e-06 | G68: TRUE | H68: TRUE | I68: TRUE | J68: FALSE | K68: FALSE | M68: 0 | N68: FALSE | P68: 0 | Q68: TRUE | R68: DM108 | S68: =IF(E68 = 0, 0, MAX((E68 * F68) * (IF(I68 = TRUE, 1 - 'Loss Limit Discount'!$D$93, 1)), M68)) -> 0 | T68: 398
B69: Working Expenses
A70: Business Interruption | B70: WE | C70: 12 Months | D70: Working Expenses | F70: =_xlfn.IFNA(VLOOKUP(C70, Metadata!$D$10:$E$16, 2, FALSE),0) -> 3.63e-06 | G70: TRUE | H70: TRUE | I70: TRUE | J70: FALSE | K70: FALSE | M70: 5 | N70: FALSE | P70: 0 | Q70: TRUE | R70: DM109 | S70: =IF(E70 = 0, 0, MAX((E70 * F70) * (IF(I70 = TRUE, 1 - 'Loss Limit Discount'!$D$93, 1)), M70)) -> 0 | T70: 228
A71: Business Interruption | B71: AICOW | C71: Additional Increase In Cost Of Working | D71: Working Expenses | F71: =F70 * 1.5 -> 5.445e-06 | G71: TRUE | H71: TRUE | I71: TRUE | J71: FALSE | K71: FALSE | M71: 0 | N71: FALSE | P71: 0 | Q71: TRUE | R71: DM116 | S71: =IF(E71 = 0, 0, MAX((E71 * F71) * (IF(I71 = TRUE, 1 - 'Loss Limit Discount'!$D$93, 1)), M71)) -> 0 | T71: 244
B72: Revenue
A73: Business Interruption | B73: R | C73: 12 Months | D73: Revenue | F73: =_xlfn.IFNA(VLOOKUP(C73, Metadata!$D$34:$E$40, 2, FALSE),0) -> 3.63e-06 | G73: TRUE | H73: TRUE | I73: TRUE | J73: FALSE | K73: FALSE | M73: 5 | N73: FALSE | P73: 0 | Q73: TRUE | R73: DM117 | S73: =IF(E73 = 0, 0, MAX((E73 * F73) * (IF(I73 = TRUE, 1 - 'Loss Limit Discount'!$D$93, 1)), M73)) -> 0 | T73: 236
A74: Business Interruption | B74: AICOW | C74: Additional Increase In Cost Of Working | D74: Revenue | F74: =F73 * 1.5 -> 5.445e-06 | G74: TRUE | H74: TRUE | I74: TRUE | J74: FALSE | K74: FALSE | M74: 0 | N74: FALSE | P74: 0 | Q74: TRUE | R74: DM124 | S74: =IF(E74 = 0, 0, MAX((E74 * F74) * (IF(I74 = TRUE, 1 - 'Loss Limit Discount'!$D$93, 1)), M74)) -> 0 | T74: 1672
B75: Net Profit
A76: Business Interruption | B76: NP | C76: 12 Months | D76: Net Profit | F76: =_xlfn.IFNA(VLOOKUP(C76, Metadata!$D$18:$E$24, 2, FALSE),0) -> 3.63e-06 | G76: TRUE | H76: TRUE | I76: TRUE | J76: FALSE | K76: FALSE | M76: 5 | N76: FALSE | P76: 0 | Q76: TRUE | R76: DM117 | S76: =IF(E76 = 0, 0, MAX((E76 * F76) * (IF(I76 = TRUE, 1 - 'Loss Limit Discount'!$D$93, 1)), M76)) -> 0 | T76: 1604
A77: Business Interruption | B77: AICOW | C77: Additional Increase In Cost Of Working | D77: Net Profit | F77: =F76 * 1.5 -> 5.445e-06 | G77: TRUE | H77: TRUE | I77: TRUE | J77: FALSE | K77: FALSE | M77: 0 | N77: FALSE | P77: 0 | Q77: TRUE | R77: DM124 | S77: =IF(E77 = 0, 0, MAX((E77 * F77) * (IF(I77 = TRUE, 1 - 'Loss Limit Discount'!$D$93, 1)), M77)) -> 0 | T77: 1668
B78: Gross Profit
A79: Business Interruption | B79: GP | C79: 12 Months | D79: Gross Profit | F79: =_xlfn.IFNA(VLOOKUP(C79, Metadata!$D$26:$E$32, 2, FALSE),0) -> 3.63e-06 | G79: TRUE | H79: TRUE | I79: TRUE | J79: FALSE | K79: FALSE | M79: 5 | N79: FALSE | P79: 0 | Q79: TRUE | R79: DM125 | S79: =IF(E79 = 0, 0, MAX((E79 * F79) * (IF(I79 = TRUE, 1 - 'Loss Limit Discount'!$D$93, 1)), M79)) -> 0
A80: Business Interruption | B80: AICOW | C80: Additional Increase In Cost Of Working | D80: Gross Profit | F80: =F79 * 1.5 -> 5.445e-06 | G80: TRUE | H80: TRUE | I80: TRUE | J80: FALSE | K80: FALSE | M80: 0 | N80: FALSE | P80: 0 | Q80: TRUE | R80: DM132 | S80: =IF(E80 = 0, 0, MAX((E80 * F80) * (IF(I80 = TRUE, 1 - 'Loss Limit Discount'!$D$93, 1)), M80)) -> 0
T81: 248
B82: Motor | T82: 249
B83: Motor | T83: 250
A84: Motor | B84: M1 | C84: Cars (Primary use: Domestic/Private) | D84: Motor | F84: 2.02 | G84: FALSE | H84: FALSE | I84: FALSE | J84: FALSE | K84: FALSE | M84: 2.02 | N84: FALSE | P84: 0 | Q84: TRUE | R84: DM133 | S84: =IF(E84 = 0, 0, MAX((F84 * E84) * (IF(I84 = TRUE, 1 - 'Loss Limit Discount'!$D$93, 1)), M84 * E84)) -> 0 | T84: 251
A85: Motor | B85: M2 | C85: Light Commercial Vehicles (3500kg GVM or less) | D85: Motor | F85: 7.062e-05 | G85: FALSE | H85: FALSE | I85: FALSE | J85: FALSE | K85: FALSE | M85: 4.54 | N85: FALSE | P85: 0 | Q85: TRUE | R85: DM134 | S85: =IF(E85 = 0, 0, MAX((E85 * F85) * (IF(I85 = TRUE, 1 - 'Loss Limit Discount'!$D$93, 1)), M85)) -> 0 | T85: 252
A86: Motor | B86: M3 | C86: Taxis | D86: Motor | F86: 2.13e-05 | G86: FALSE | H86: FALSE | I86: FALSE | J86: FALSE | K86: FALSE | M86: 4.54 | N86: FALSE | P86: 0 | Q86: TRUE | R86: DM135 | S86: =IF(E86 = 0, 0, MAX((E86 * F86) * (IF(I86 = TRUE, 1 - 'Loss Limit Discount'!$D$93, 1)), M86)) -> 0
A87: Motor | B87: M4 | C87: Ferries & Traders | D87: Motor | F87: 8.68e-06 | G87: TRUE | H87: FALSE | I87: FALSE | J87: FALSE | K87: FALSE | M87: 10 | N87: FALSE | P87: 8.68e-06 | Q87: TRUE | R87: CM144 | S87: =IF(E87 = 0, 0, MAX((E87 * F87) * (IF(I87 = TRUE, 1 - 'Loss Limit Discount'!$D$93, 1)), M87)) -> 0
A88: Motor | B88: M5 | C88: Buses | D88: Motor | F88: 0.00056499 | G88: TRUE | H88: FALSE | I88: FALSE | J88: FALSE | K88: FALSE | M88: 200 | N88: FALSE | P88: 0 | Q88: TRUE | R88: DM136 | S88: =IF(E88 = 0, 0, MAX((E88 * F88) * (IF(I88 = TRUE, 1 - 'Loss Limit Discount'!$D$93, 1)), M88)) -> 0
A89: Motor | B89: M6 | C89: Mobile Plant | D89: Motor | F89: 5.663e-05 | G89: TRUE | H89: FALSE | I89: FALSE | J89: FALSE | K89: FALSE | M89: 50 | N89: FALSE | P89: 0 | Q89: TRUE | R89: DM137 | S89: =IF(E89 = 0, 0, MAX((E89 * F89) * (IF(I89 = TRUE, 1 - 'Loss Limit Discount'!$D$93, 1)), M89)) -> 0
A90: Motor | B90: M8 | C90: Heavy Commercial Vehicles (>3500kg GVM) | D90: Motor | F90: 0.00034506 | G90: TRUE | H90: FALSE | I90: FALSE | J90: FALSE | K90: FALSE | M90: 5.45 | N90: FALSE | P90: 1.879e-05 | Q90: TRUE | S90: =IF(E90 = 0, 0, MAX((E90 * F90) * (IF(I90 = TRUE, 1 - 'Loss Limit Discount'!$D$93, 1)), M90)) -> 0
B92: Contract Work / Construction Plant
B93: Contract Works
A94: Contract Works | B94: CW | C94: =Input!$I$16 -> Over 48 months | D94: Contract Works | F94: 1.133e-05 | G94: TRUE | H94: FALSE | I94: FALSE | J94: TRUE | K94: TRUE | M94: 50 | N94: FALSE | P94: 7.26e-05 | Q94: FALSE | R94: CA173 | S94: =IF(E94 = 0, 0, MAX((E94 * F94) * (IF(I94 = TRUE, 1 - 'Loss Limit Discount'!$D$93, 1)) * (IF(K94 = TRUE, 1 - 'Contract Works Discount'!$D$101, 1)), M94)) -> 0
B95: Construction plant
A96: Contract Works | B96: CW | C96: On Fee Basis | D96: Contract Works | F96: 0.00019188 | G96: TRUE | H96: FALSE | I96: FALSE | J96: FALSE | K96: FALSE | M96: 50 | N96: FALSE | P96: 0.00123 | Q96: FALSE | R96: CA176 | S96: =IF(E96 = 0, 0, MAX((E96 * F96) * (IF(I96 = TRUE, 1 - 'Loss Limit Discount'!$D$38, 1)) * (IF(K96 = TRUE, 1 - 'Contract Works Discount'!$D$96, 1)), M96)) -> 0
A97: Contract Works | B97: CW | C97: On Value Basis | D97: Contract Works | F97: 5.663e-05 | G97: TRUE | H97: FALSE | I97: FALSE | J97: FALSE | K97: FALSE | M97: 50 | N97: FALSE | P97: 0.000363 | Q97: FALSE | R97: CA177 | S97: =IF(E97 = 0, 0, MAX((E97 * F97) * (IF(I97 = TRUE, 1 - 'Loss Limit Discount'!$D$38, 1)) * (IF(K97 = TRUE, 1 - 'Contract Works Discount'!$D$96, 1)), M97)) -> 0
B98: Mobile plant
A99: Contract Works | B99: CW | C99: On Value Basis | D99: Contract Works | F99: =F97 -> 5.663e-05 | G99: TRUE | H99: FALSE | I99: FALSE | J99: FALSE | K99: FALSE | M99: 50 | N99: FALSE | P99: 0.000363 | Q99: FALSE | R99: CA179 | S99: =IF(E99 = 0, 0, MAX((E99 * F99) * (IF(I99 = TRUE, 1 - 'Loss Limit Discount'!$D$38, 1)) * (IF(K99 = TRUE, 1 - 'Contract Works Discount'!$D$96, 1)), M99)) -> 0

Sheet Domestic (Tertiary) - Annual
A1: Domestic - Annual | V1: Cells with green borders have a drop-down selection!
A2: Category | B2: Code | C2: Description | D2: Total Code | E2: Sum Insured/No. of insured items | F2: Rate | G2: Is Percent | H2: Add To Sum Insured Discount | I2: Receive Sum Insured Discount | J2: Add To CW Discount | K2: Receive CW Discount | L2: Contract Period Discount | M2: Minimum Premium | N2: Has Fire Extension Discount | O2: Amount within free extension threshold | P2: Special Dispensation Rate | Q2: N/A To Special Dispensation | R2: Unique Code | S2: Premium | T2: System ID
A3: Header | B3: Fire
A4: Domestic Fire | B4: F1-T | C4: Tertiary Institutions | D4: Fire | F4: 4.36e-05 | G4: TRUE | H4: TRUE | I4: TRUE | J4: FALSE | K4: FALSE | M4: 30 | N4: FALSE | P4: 0 | Q4: TRUE | S4: =IF(E4 = 0, 0, MAX((E4 * F4) * (IF(I4 = TRUE, 1 - 'Loss Limit Discount'!$D$93, 1)) + ('Fire Extensions'!$I$38 * F4) * (1 - 'Loss Limit Discount'!$D$93), M4)) -> 0 | T4: 1872
A5: Extension | B5: Sasria Extensions
A6: Extension | B6: EX | C6: Rent | D6: Fire | F6: =$F$4 -> 4.36e-05 | G6: TRUE | H6: TRUE | I6: TRUE | J6: FALSE | K6: FALSE | M6: 0 | N6: TRUE | O6: =IF(E6 < 'Fire Extensions'!$D$19, 'Domestic (Tertiary) - Annual'!E6, 'Fire Extensions'!$D$19) -> 0 | P6: 0 | Q6: TRUE | R6: DA002 | T6: 406
A7: Extension | B7: EX | C7: Claims Preparation Costs | D7: Fire | F7: =$F$4 -> 4.36e-05 | G7: TRUE | H7: TRUE | I7: TRUE | J7: FALSE | K7: FALSE | M7: 0 | N7: TRUE | O7: =IF(E7 < 'Fire Extensions'!$D$19, 'Domestic (Tertiary) - Annual'!E7, 'Fire Extensions'!$D$19) -> 0 | P7: 0 | Q7: TRUE | R7: DA003 | T7: 407
A8: Extension | B8: EX | C8: Capital Additions | D8: Fire | F8: 4.36e-05 | G8: TRUE | H8: TRUE | I8: TRUE | J8: FALSE | K8: FALSE | M8: 0 | N8: TRUE | O8: =IF(E8 < 'Fire Extensions'!$D$19, 'Domestic (Tertiary) - Annual'!E8, 'Fire Extensions'!$D$19) -> 0 | P8: 0 | Q8: TRUE | R8: DA004 | T8: 408
A9: Extension | B9: EX | C9: Professional fees | D9: Fire | F9: 4.36e-05 | G9: TRUE | H9: TRUE | I9: TRUE | J9: FALSE | K9: FALSE | M9: 0 | N9: TRUE | O9: =IF(E9 < 'Fire Extensions'!$D$19, 'Domestic (Tertiary) - Annual'!E9, 'Fire Extensions'!$D$19) -> 0 | P9: 0 | Q9: TRUE | R9: DA005 | T9: 409
A10: Extension | B10: EX | C10: Clearance costs | D10: Fire | F10: 4.36e-05 | G10: TRUE | H10: TRUE | I10: TRUE | J10: FALSE | K10: FALSE | M10: 0 | N10: TRUE | O10: =IF(E10 < 'Fire Extensions'!$D$19, 'Domestic (Tertiary) - Annual'!E10, 'Fire Extensions'!$D$19) -> 0 | P10: 0 | Q10: TRUE | R10: DA006 | T10: 410
A11: Extension | B11: EX | C11: Security Costs (During and after a loss) | D11: Fire | F11: 4.36e-05 | G11: TRUE | H11: TRUE | I11: TRUE | J11: FALSE | K11: FALSE | M11: 0 | N11: TRUE | O11: =IF(E11 < 'Fire Extensions'!$D$19, 'Domestic (Tertiary) - Annual'!E11, 'Fire Extensions'!$D$19) -> 0 | P11: 0 | Q11: TRUE | R11: DA007 | T11: 411
A12: Extension | B12: EX | C12: Statutory Duties | D12: Fire | F12: 4.36e-05 | G12: TRUE | H12: TRUE | I12: TRUE | J12: FALSE | K12: FALSE | M12: 0 | N12: TRUE | O12: =IF(E12 < 'Fire Extensions'!$D$19, 'Domestic (Tertiary) - Annual'!E12, 'Fire Extensions'!$D$19) -> 0 | P12: 0 | Q12: TRUE | R12: DA010 | T12: 415
A13: Extension | B13: EX | C13: Additional Premises | D13: Fire | F13: 4.36e-05 | G13: TRUE | H13: TRUE | I13: TRUE | J13: FALSE | K13: FALSE | M13: 0 | N13: TRUE | O13: =IF(E13 < 'Fire Extensions'!$D$19, 'Domestic (Tertiary) - Annual'!E13, 'Fire Extensions'!$D$19) -> 0 | P13: 0 | Q13: TRUE | R13: DA011 | T13: 416
A14: Extension | B14: EX | C14: Acquisition Limits | D14: Fire | F14: 4.36e-05 | G14: TRUE | H14: TRUE | I14: TRUE | J14: FALSE | K14: FALSE | M14: 0 | N14: TRUE | O14: =IF(E14 < 'Fire Extensions'!$D$19, 'Domestic (Tertiary) - Annual'!E14, 'Fire Extensions'!$D$19) -> 0 | P14: 0 | Q14: TRUE | R14: DA012 | T14: 417
A15: Extension | B15: EX | C15: Import Surcharges | D15: Fire | F15: 4.36e-05 | G15: TRUE | H15: TRUE | I15: TRUE | J15: FALSE | K15: FALSE | M15: 0 | N15: TRUE | O15: =IF(E15 < 'Fire Extensions'!$D$19, 'Domestic (Tertiary) - Annual'!E15, 'Fire Extensions'!$D$19) -> 0 | P15: 0 | Q15: TRUE | R15: DA014 | T15: 419
A16: Extension | B16: EX | C16: Fire Protection System Update | D16: Fire | F16: 4.36e-05 | G16: TRUE | H16: TRUE | I16: TRUE | J16: FALSE | K16: FALSE | M16: 0 | N16: TRUE | O16: =IF(E16 < 'Fire Extensions'!$D$19, 'Domestic (Tertiary) - Annual'!E16, 'Fire Extensions'!$D$19) -> 0 | P16: 0 | Q16: TRUE | R16: DA015 | T16: 420
A17: Extension | B17: EX | C17: Goods in the open | D17: Fire | F17: 4.36e-05 | G17: TRUE | H17: TRUE | I17: TRUE | J17: FALSE | K17: FALSE | M17: 0 | N17: TRUE | O17: =IF(E17 < 'Fire Extensions'!$D$19, 'Domestic (Tertiary) - Annual'!E17, 'Fire Extensions'!$D$19) -> 0 | P17: 0 | Q17: TRUE | R17: DA019 | T17: 424
A18: Extension | B18: EX | C18: Fire Extinguishing | D18: Fire | F18: 4.36e-05 | G18: TRUE | H18: TRUE | I18: TRUE | J18: FALSE | K18: FALSE | M18: 0 | N18: TRUE | O18: =IF(E18 < 'Fire Extensions'!$D$19, 'Domestic (Tertiary) - Annual'!E18, 'Fire Extensions'!$D$19) -> 0 | P18: 0 | Q18: TRUE | R18: DA020 | T18: 425
A19: Extension | B19: EX | C19: Imminent Danger (Protection of property prior a loss) | D19: Fire | F19: 4.36e-05 | G19: TRUE | H19: TRUE | I19: TRUE | J19: FALSE | K19: FALSE | M19: 0 | N19: TRUE | O19: =IF(E19 < 'Fire Extensions'!$D$19, 'Domestic (Tertiary) - Annual'!E19, 'Fire Extensions'!$D$19) -> 0 | P19: 0 | Q19: TRUE | T19: 2874
A20: Other Extension | B20: Other Extensions
A21: Other Extension | B21: EX | C21: Other | D21: Fire | F21: =$F$4 -> 4.36e-05 | G21: TRUE | H21: TRUE | I21: TRUE | J21: FALSE | K21: FALSE | M21: 0 | N21: TRUE | O21: =IF(E21 < 'Fire Extensions'!$D$19, 'Domestic (Tertiary) - Annual'!E21, 'Fire Extensions'!$D$19) -> 0 | P21: 0 | Q21: TRUE | R21: DA021 | T21: 427
A22: Other Extension | B22: EX | C22: Other | D22: Fire | F22: 4.36e-05 | G22: TRUE | H22: TRUE | I22: TRUE | J22: FALSE | K22: FALSE | M22: 0 | N22: TRUE | O22: =IF(E22 < 'Fire Extensions'!$D$19, 'Domestic (Tertiary) - Annual'!E22, 'Fire Extensions'!$D$19) -> 0 | P22: 0 | Q22: TRUE | R22: DA022 | T22: 428
A23: Other Extension | B23: EX | C23: Other | D23: Fire | F23: 4.36e-05 | G23: TRUE | H23: TRUE | I23: TRUE | J23: FALSE | K23: FALSE | M23: 0 | N23: TRUE | O23: =IF(E23 < 'Fire Extensions'!$D$19, 'Domestic (Tertiary) - Annual'!E23, 'Fire Extensions'!$D$19) -> 0 | P23: 0 | Q23: TRUE | R23: DA023 | T23: 429
A24: Other Extension | B24: EX | C24: Other | D24: Fire | F24: 4.36e-05 | G24: TRUE | H24: TRUE | I24: TRUE | J24: FALSE | K24: FALSE | M24: 0 | N24: TRUE | O24: =IF(E24 < 'Fire Extensions'!$D$19, 'Domestic (Tertiary) - Annual'!E24, 'Fire Extensions'!$D$19) -> 0 | P24: 0 | Q24: TRUE | R24: DA024 | T24: 430
A25: Other Extension | B25: EX | C25: Other | D25: Fire | F25: 4.36e-05 | G25: TRUE | H25: TRUE | I25: TRUE | J25: FALSE | K25: FALSE | M25: 0 | N25: TRUE | O25: =IF(E25 < 'Fire Extensions'!$D$19, 'Domestic (Tertiary) - Annual'!E25, 'Fire Extensions'!$D$19) -> 0 | P25: 0 | Q25: TRUE | R25: DA025 | T25: 431
A26: Other Extension | B26: EX | C26: Other | D26: Fire | F26: 4.36e-05 | G26: TRUE | H26: TRUE | I26: TRUE | J26: FALSE | K26: FALSE | M26: 0 | N26: TRUE | O26: =IF(E26 < 'Fire Extensions'!$D$19, 'Domestic (Tertiary) - Annual'!E26, 'Fire Extensions'!$D$19) -> 0 | P26: 0 | Q26: TRUE | R26: DA026 | T26: 432
A27: Other Extension | B27: EX | C27: Other | D27: Fire | F27: 4.36e-05 | G27: TRUE | H27: TRUE | I27: TRUE | J27: FALSE | K27: FALSE | M27: 0 | N27: TRUE | O27: =IF(E27 < 'Fire Extensions'!$D$19, 'Domestic (Tertiary) - Annual'!E27, 'Fire Extensions'!$D$19) -> 0 | P27: 0 | Q27: TRUE | R27: DA027 | T27: 433
A28: Other Extension | B28: EX | C28: Other | D28: Fire | F28: 4.36e-05 | G28: TRUE | H28: TRUE | I28: TRUE | J28: FALSE | K28: FALSE | M28: 0 | N28: TRUE | O28: =IF(E28 < 'Fire Extensions'!$D$19, 'Domestic (Tertiary) - Annual'!E28, 'Fire Extensions'!$D$19) -> 0 | P28: 0 | Q28: TRUE | R28: DA028 | T28: 434
A29: Other Extension | B29: EX | C29: Other | D29: Fire | F29: 4.36e-05 | G29: TRUE | H29: TRUE | I29: TRUE | J29: FALSE | K29: FALSE | M29: 0 | N29: TRUE | O29: =IF(E29 < 'Fire Extensions'!$D$19, 'Domestic (Tertiary) - Annual'!E29, 'Fire Extensions'!$D$19) -> 0 | P29: 0 | Q29: TRUE | R29: DA029 | T29: 435
A30: Other Extension | B30: EX | C30: Other | D30: Fire | F30: 4.36e-05 | G30: TRUE | H30: TRUE | I30: TRUE | J30: FALSE | K30: FALSE | M30: 0 | N30: TRUE | O30: =IF(E30 < 'Fire Extensions'!$D$19, 'Domestic (Tertiary) - Annual'!E30, 'Fire Extensions'!$D$19) -> 0 | P30: 0 | Q30: TRUE | R30: DA030 | T30: 436
A31: Other Extension | B31: EX | C31: Other | D31: Fire | F31: 4.36e-05 | G31: TRUE | H31: TRUE | I31: TRUE | J31: FALSE | K31: FALSE | M31: 0 | N31: TRUE | O31: =IF(E31 < 'Fire Extensions'!$D$19, 'Domestic (Tertiary) - Annual'!E31, 'Fire Extensions'!$D$19) -> 0 | P31: 0 | Q31: TRUE | R31: DA031 | T31: 437
A32: Other Extension | B32: EX | C32: Other | D32: Fire | F32: 4.36e-05 | G32: TRUE | H32: TRUE | I32: TRUE | J32: FALSE | K32: FALSE | M32: 0 | N32: TRUE | O32: =IF(E32 < 'Fire Extensions'!$D$19, 'Domestic (Tertiary) - Annual'!E32, 'Fire Extensions'!$D$19) -> 0 | P32: 0 | Q32: TRUE | R32: DA032 | T32: 438
A33: Other Extension | B33: EX | C33: Other | D33: Fire | F33: 4.36e-05 | G33: TRUE | H33: TRUE | I33: TRUE | J33: FALSE | K33: FALSE | M33: 0 | N33: TRUE | O33: =IF(E33 < 'Fire Extensions'!$D$19, 'Domestic (Tertiary) - Annual'!E33, 'Fire Extensions'!$D$19) -> 0 | P33: 0 | Q33: TRUE | R33: DA033 | T33: 439
A34: Other Extension | B34: EX | C34: Other | D34: Fire | F34: 4.36e-05 | G34: TRUE | H34: TRUE | I34: TRUE | J34: FALSE | K34: FALSE | M34: 0 | N34: TRUE | O34: =IF(E34 < 'Fire Extensions'!$D$19, 'Domestic (Tertiary) - Annual'!E34, 'Fire Extensions'!$D$19) -> 0 | P34: 0 | Q34: TRUE | R34: DA034 | T34: 440
A35: Other Extension | B35: EX | C35: Other | D35: Fire | F35: 4.36e-05 | G35: TRUE | H35: TRUE | I35: TRUE | J35: FALSE | K35: FALSE | M35: 0 | N35: TRUE | O35: =IF(E35 < 'Fire Extensions'!$D$19, 'Domestic (Tertiary) - Annual'!E35, 'Fire Extensions'!$D$19) -> 0 | P35: 0 | Q35: TRUE | R35: DA035 | T35: 441
A36: Other Extension | B36: EX | C36: Other | D36: Fire | F36: 4.36e-05 | G36: TRUE | H36: TRUE | I36: TRUE | J36: FALSE | K36: FALSE | M36: 0 | N36: TRUE | O36: =IF(E36 < 'Fire Extensions'!$D$19, 'Domestic (Tertiary) - Annual'!E36, 'Fire Extensions'!$D$19) -> 0 | P36: 0 | Q36: TRUE | R36: DA036 | T36: 442
A37: Other Extension | B37: EX | C37: Other | D37: Fire | F37: 4.36e-05 | G37: TRUE | H37: TRUE | I37: TRUE | J37: FALSE | K37: FALSE | M37: 0 | N37: TRUE | O37: =IF(E37 < 'Fire Extensions'!$D$19, 'Domestic (Tertiary) - Annual'!E37, 'Fire Extensions'!$D$19) -> 0 | P37: 0 | Q37: TRUE | R37: DA037 | T37: 443
A38: Other Extension | B38: EX | C38: Other | D38: Fire | F38: 4.36e-05 | G38: TRUE | H38: TRUE | I38: TRUE | J38: FALSE | K38: FALSE | M38: 0 | N38: TRUE | O38: =IF(E38 < 'Fire Extensions'!$D$19, 'Domestic (Tertiary) - Annual'!E38, 'Fire Extensions'!$D$19) -> 0 | P38: 0 | Q38: TRUE | R38: DA038 | T38: 444
A39: Other Extension | B39: EX | C39: Other | D39: Fire | F39: 4.36e-05 | G39: TRUE | H39: TRUE | I39: TRUE | J39: FALSE | K39: FALSE | M39: 0 | N39: TRUE | O39: =IF(E39 < 'Fire Extensions'!$D$19, 'Domestic (Tertiary) - Annual'!E39, 'Fire Extensions'!$D$19) -> 0 | P39: 0 | Q39: TRUE | R39: DA039 | T39: 445
A40: Other Extension | B40: EX | C40: Other | D40: Fire | F40: 4.36e-05 | G40: TRUE | H40: TRUE | I40: TRUE | J40: FALSE | K40: FALSE | M40: 0 | N40: TRUE | O40: =IF(E40 < 'Fire Extensions'!$D$19, 'Domestic (Tertiary) - Annual'!E40, 'Fire Extensions'!$D$19) -> 0 | P40: 0 | Q40: TRUE | R40: DA040 | T40: 446
A41: Other Extension | B41: EX | C41: Other | D41: Fire | F41: 4.36e-05 | G41: TRUE | H41: TRUE | I41: TRUE | J41: FALSE | K41: FALSE | M41: 0 | N41: TRUE | O41: =IF(E41 < 'Fire Extensions'!$D$19, 'Domestic (Tertiary) - Annual'!E41, 'Fire Extensions'!$D$19) -> 0 | P41: 0 | Q41: TRUE | R41: DA041 | T41: 447
A42: Other Extension | B42: EX | C42: Other | D42: Fire | F42: 4.36e-05 | G42: TRUE | H42: TRUE | I42: TRUE | J42: FALSE | K42: FALSE | M42: 0 | N42: TRUE | O42: =IF(E42 < 'Fire Extensions'!$D$19, 'Domestic (Tertiary) - Annual'!E42, 'Fire Extensions'!$D$19) -> 0 | P42: 0 | Q42: TRUE | R42: DA042 | T42: 448
A43: Other Extension | B43: EX | C43: Other | D43: Fire | F43: 4.36e-05 | G43: TRUE | H43: TRUE | I43: TRUE | J43: FALSE | K43: FALSE | M43: 0 | N43: TRUE | O43: =IF(E43 < 'Fire Extensions'!$D$19, 'Domestic (Tertiary) - Annual'!E43, 'Fire Extensions'!$D$19) -> 0 | P43: 0 | Q43: TRUE | R43: DA043 | T43: 449
A44: Other Extension | B44: EX | C44: Other | D44: Fire | F44: 4.36e-05 | G44: TRUE | H44: TRUE | I44: TRUE | J44: FALSE | K44: FALSE | M44: 0 | N44: TRUE | O44: =IF(E44 < 'Fire Extensions'!$D$19, 'Domestic (Tertiary) - Annual'!E44, 'Fire Extensions'!$D$19) -> 0 | P44: 0 | Q44: TRUE | R44: DA044 | T44: 450
A45: Other Extension | B45: EX | C45: Other | D45: Fire | F45: 4.36e-05 | G45: TRUE | H45: TRUE | I45: TRUE | J45: FALSE | K45: FALSE | M45: 0 | N45: TRUE | O45: =IF(E45 < 'Fire Extensions'!$D$19, 'Domestic (Tertiary) - Annual'!E45, 'Fire Extensions'!$D$19) -> 0 | P45: 0 | Q45: TRUE | R45: DA045 | T45: 451
A46: Other Extension | B46: EX | C46: Other | D46: Fire | F46: 4.36e-05 | G46: TRUE | H46: TRUE | I46: TRUE | J46: FALSE | K46: FALSE | M46: 0 | N46: TRUE | O46: =IF(E46 < 'Fire Extensions'!$D$19, 'Domestic (Tertiary) - Annual'!E46, 'Fire Extensions'!$D$19) -> 0 | P46: 0 | Q46: TRUE | R46: DA046 | T46: 452
A47: Other Extension | B47: EX | C47: Other | D47: Fire | F47: 4.36e-05 | G47: TRUE | H47: TRUE | I47: TRUE | J47: FALSE | K47: FALSE | M47: 0 | N47: TRUE | O47: =IF(E47 < 'Fire Extensions'!$D$19, 'Domestic (Tertiary) - Annual'!E47, 'Fire Extensions'!$D$19) -> 0 | P47: 0 | Q47: TRUE | R47: DA047 | T47: 453
A48: Other Extension | B48: EX | C48: Other | D48: Fire | F48: 4.36e-05 | G48: TRUE | H48: TRUE | I48: TRUE | J48: FALSE | K48: FALSE | M48: 0 | N48: TRUE | O48: =IF(E48 < 'Fire Extensions'!$D$19, 'Domestic (Tertiary) - Annual'!E48, 'Fire Extensions'!$D$19) -> 0 | P48: 0 | Q48: TRUE | R48: DA048 | T48: 454
A49: Other Extension | B49: EX | C49: Other | D49: Fire | F49: 4.36e-05 | G49: TRUE | H49: TRUE | I49: TRUE | J49: FALSE | K49: FALSE | M49: 0 | N49: TRUE | O49: =IF(E49 < 'Fire Extensions'!$D$19, 'Domestic (Tertiary) - Annual'!E49, 'Fire Extensions'!$D$19) -> 0 | P49: 0 | Q49: TRUE | R49: DA049 | T49: 455
A50: Other Extension | B50: EX | C50: Other | D50: Fire | F50: 4.36e-05 | G50: TRUE | H50: TRUE | I50: TRUE | J50: FALSE | K50: FALSE | M50: 0 | N50: TRUE | O50: =IF(E50 < 'Fire Extensions'!$D$19, 'Domestic (Tertiary) - Annual'!E50, 'Fire Extensions'!$D$19) -> 0 | P50: 0 | Q50: TRUE | R50: DA050 | T50: 456
A51: Escalation | B51: Escalation and or Inflation
A52: Escalation UL | B52: Charge on U/L
A53: Escalation UL | C53: First Year (90-100%) | D53: Fire | F53: =IF(C53 = "", 0, VLOOKUP(C53, Escalation!$H$163:$I$207, 2, FALSE)) -> 4.36e-05 | G53: TRUE | H53: FALSE | I53: TRUE | J53: FALSE | K53: FALSE | M53: 0 | P53: 0 | Q53: TRUE | R53: DA051 | S53: =IF(E53 = 0, 0, MAX((E53 * F53) * (IF(I53 = TRUE, 1 - 'Loss Limit Discount'!$D$93, 1)) * (IF(K53 = TRUE, 1 - 'Contract Works Discount'!$D$11, 1)), M53)) -> 0 | T53: 1780
A54: Escalation UL | C54: Second Year (90-100%) | D54: Fire | F54: =IF(C54 = "", 0, VLOOKUP(C54, Escalation!$H$163:$I$207, 2, FALSE)) -> 2.18e-05 | G54: TRUE | H54: FALSE | I54: TRUE | J54: FALSE | K54: FALSE | M54: 0 | P54: 0 | Q54: TRUE | R54: DA052 | S54: =IF(E54 = 0, 0, MAX((E54 * F54) * (IF(I54 = TRUE, 1 - 'Loss Limit Discount'!$D$93, 1)) * (IF(K54 = TRUE, 1 - 'Contract Works Discount'!$D$11, 1)), M54)) -> 0 | T54: 1781
A55: Escalation UL | C55: Third Year (90-100%) | D55: Fire | F55: =IF(C55 = "", 0, VLOOKUP(C55, Escalation!$H$163:$I$207, 2, FALSE)) -> 1.09e-05 | G55: TRUE | H55: FALSE | I55: TRUE | J55: FALSE | K55: FALSE | M55: 0 | P55: 0 | Q55: TRUE | R55: DA053 | S55: =IF(E55 = 0, 0, MAX((E55 * F55) * (IF(I55 = TRUE, 1 - 'Loss Limit Discount'!$D$93, 1)) * (IF(K55 = TRUE, 1 - 'Contract Works Discount'!$D$11, 1)), M55)) -> 0 | T55: 1782
A56: Escalation UL | C56: Fourth Year (90-100%) | D56: Fire | F56: =IF(C56 = "", 0, VLOOKUP(C56, Escalation!$H$163:$I$207, 2, FALSE)) -> 8.72e-06 | G56: TRUE | H56: FALSE | I56: TRUE | J56: FALSE | K56: FALSE | M56: 0 | P56: 0 | Q56: TRUE | R56: DA054 | S56: =IF(E56 = 0, 0, MAX((E56 * F56) * (IF(I56 = TRUE, 1 - 'Loss Limit Discount'!$D$93, 1)) * (IF(K56 = TRUE, 1 - 'Contract Works Discount'!$D$11, 1)), M56)) -> 0 | T56: 1783
A57: Escalation UL | C57: Fifth Year (90-100%) | D57: Fire | F57: =IF(C57 = "", 0, VLOOKUP(C57, Escalation!$H$163:$I$207, 2, FALSE)) -> 6.54e-06 | G57: TRUE | H57: FALSE | I57: TRUE | J57: FALSE | K57: FALSE | M57: 0 | P57: 0 | Q57: TRUE | R57: DA055 | S57: =IF(E57 = 0, 0, MAX((E57 * F57) * (IF(I57 = TRUE, 1 - 'Loss Limit Discount'!$D$93, 1)) * (IF(K57 = TRUE, 1 - 'Contract Works Discount'!$D$11, 1)), M57)) -> 0 | T57: 1784
A58: Escalation Not UL | B58: Not Charged on U/L
A59: Escalation Not UL | C59: First Year | D59: Fire | F59: =$F$4 -> 4.36e-05 | G59: TRUE | H59: FALSE | I59: TRUE | J59: FALSE | K59: FALSE | M59: 0 | P59: 0 | Q59: TRUE | R59: DA096 | S59: =IF(E59 = 0, 0, MAX((E59 * F59) * (IF(I59 = TRUE, 1 - 'Loss Limit Discount'!$D$93, 1)) * (IF(K59 = TRUE, 1 - 'Contract Works Discount'!$D$11, 1)), M59)) -> 0 | T59: 465
A60: Escalation Not UL | C60: Second Year | D60: Fire | F60: =$F$4 * 0.5 -> 2.18e-05 | G60: TRUE | H60: FALSE | I60: TRUE | J60: FALSE | K60: FALSE | M60: 0 | P60: 0 | Q60: TRUE | R60: DA097 | S60: =IF(E60 = 0, 0, MAX((E60 * F60) * (IF(I60 = TRUE, 1 - 'Loss Limit Discount'!$D$93, 1)) * (IF(K60 = TRUE, 1 - 'Contract Works Discount'!$D$11, 1)), M60)) -> 0 | T60: 466
A61: Escalation Not UL | C61: Third Year | D61: Fire | F61: =$F$4 * 0.25 -> 1.09e-05 | G61: TRUE | H61: FALSE | I61: TRUE | J61: FALSE | K61: FALSE | M61: 0 | P61: 0 | Q61: TRUE | R61: DA098 | S61: =IF(E61 = 0, 0, MAX((E61 * F61) * (IF(I61 = TRUE, 1 - 'Loss Limit Discount'!$D$93, 1)) * (IF(K61 = TRUE, 1 - 'Contract Works Discount'!$D$11, 1)), M61)) -> 0 | T61: 467
A62: Escalation Not UL | C62: Fourth Year | D62: Fire | F62: =$F$4 * 0.2 -> 8.72e-06 | G62: TRUE | H62: FALSE | I62: TRUE | J62: FALSE | K62: FALSE | M62: 0 | P62: 0 | Q62: TRUE | R62: DA099 | S62: =IF(E62 = 0, 0, MAX((E62 * F62) * (IF(I62 = TRUE, 1 - 'Loss Limit Discount'!$D$93, 1)) * (IF(K62 = TRUE, 1 - 'Contract Works Discount'!$D$11, 1)), M62)) -> 0 | T62: 468
A63: Escalation Not UL | C63: Fifth Year | D63: Fire | F63: =$F$4 * 0.15 -> 6.54e-06 | G63: TRUE | H63: FALSE | I63: TRUE | J63: FALSE | K63: FALSE | M63: 0 | P63: 0 | Q63: TRUE | R63: DA100 | S63: =IF(E63 = 0, 0, MAX((E63 * F63) * (IF(I63 = TRUE, 1 - 'Loss Limit Discount'!$D$93, 1)) * (IF(K63 = TRUE, 1 - 'Contract Works Discount'!$D$11, 1)), M63)) -> 0 | T63: 469
B65: Business Interruption
B66: Specified Standing Charges
A67: Business Interruption | B67: SC | C67: 12 Months | D67: Standing Charges | F67: =_xlfn.IFNA(VLOOKUP(C67, Metadata!$H$2:$I$8, 2, FALSE),0) -> 3.63e-05 | G67: TRUE | H67: TRUE | I67: TRUE | J67: FALSE | K67: FALSE | M67: 50 | N67: FALSE | P67: 0 | Q67: TRUE | R67: DA101 | S67: =IF(E67 = 0, 0, MAX((E67 * F67) * (IF(I67 = TRUE, 1 - 'Loss Limit Discount'!$D$93, 1)) * (IF(K67 = TRUE, 1 - 'Contract Works Discount'!$D$11, 1)), M67)) -> 0 | T67: 472
A68: Business Interruption | B68: AICOW | C68: Additional Increase In Cost Of Working | D68: Standing Charges | F68: =F67 * 1.5 -> 5.445e-05 | G68: TRUE | H68: TRUE | I68: TRUE | J68: FALSE | K68: FALSE | M68: 0 | N68: FALSE | P68: 0 | Q68: TRUE | R68: DA108 | S68: =IF(E68 = 0, 0, MAX((E68 * F68) * (IF(I68 = TRUE, 1 - 'Loss Limit Discount'!$D$93, 1)) * (IF(K68 = TRUE, 1 - 'Contract Works Discount'!$D$11, 1)), M68)) -> 0 | T68: 480
B69: Working Expenses
A70: Business Interruption | B70: WE | C70: 12 Months | D70: Working Expenses | F70: =_xlfn.IFNA(VLOOKUP(C70, Metadata!$H$10:$I$16, 2, FALSE),0) -> 3.63e-05 | G70: TRUE | H70: TRUE | I70: TRUE | J70: FALSE | K70: FALSE | M70: 50 | N70: FALSE | P70: 0 | Q70: TRUE | R70: DA109 | S70: =IF(E70 = 0, 0, MAX((E70 * F70) * (IF(I70 = TRUE, 1 - 'Loss Limit Discount'!$D$93, 1)) * (IF(K70 = TRUE, 1 - 'Contract Works Discount'!$D$11, 1)), M70)) -> 0 | T70: 481
A71: Business Interruption | B71: AICOW | C71: Additional Increase In Cost Of Working | D71: Working Expenses | F71: =F70 * 1.5 -> 5.445e-05 | G71: TRUE | H71: TRUE | I71: TRUE | J71: FALSE | K71: FALSE | M71: 0 | N71: FALSE | P71: 0 | Q71: TRUE | R71: DA116 | S71: =IF(E71 = 0, 0, MAX((E71 * F71) * (IF(I71 = TRUE, 1 - 'Loss Limit Discount'!$D$93, 1)) * (IF(K71 = TRUE, 1 - 'Contract Works Discount'!$D$11, 1)), M71)) -> 0 | T71: 489
B72: Revenue
A73: Business Interruption | B73: R | C73: 12 Months | D73: Revenue | F73: =_xlfn.IFNA(VLOOKUP(C73, Metadata!$H$34:$I$40, 2, FALSE),0) -> 3.63e-05 | G73: TRUE | H73: TRUE | I73: TRUE | J73: FALSE | K73: FALSE | M73: 50 | N73: FALSE | P73: 0 | Q73: TRUE | R73: DA117 | S73: =IF(E73 = 0, 0, MAX((E73 * F73) * (IF(I73 = TRUE, 1 - 'Loss Limit Discount'!$D$93, 1)) * (IF(K73 = TRUE, 1 - 'Contract Works Discount'!$D$11, 1)), M73)) -> 0 | T73: 490
A74: Business Interruption | B74: AICOW | C74: Additional Increase In Cost Of Working | D74: Revenue | F74: =F73 * 1.5 -> 5.445e-05 | G74: TRUE | H74: TRUE | I74: TRUE | J74: FALSE | K74: FALSE | M74: 0 | N74: FALSE | P74: 0 | Q74: TRUE | R74: DA124 | S74: =IF(E74 = 0, 0, MAX((E74 * F74) * (IF(I74 = TRUE, 1 - 'Loss Limit Discount'!$D$93, 1)) * (IF(K74 = TRUE, 1 - 'Contract Works Discount'!$D$11, 1)), M74)) -> 0 | T74: 1673
B75: Net Profit
A76: Business Interruption | B76: NP | C76: 12 Months | D76: Net Profit | F76: =_xlfn.IFNA(VLOOKUP(C76, Metadata!$H$18:$I$24, 2, FALSE),0) -> 3.63e-05 | G76: TRUE | H76: TRUE | I76: TRUE | J76: FALSE | K76: FALSE | M76: 50 | N76: FALSE | P76: 0 | Q76: TRUE | R76: DA117 | S76: =IF(E76 = 0, 0, MAX((E76 * F76) * (IF(I76 = TRUE, 1 - 'Loss Limit Discount'!$D$93, 1)) * (IF(K76 = TRUE, 1 - 'Contract Works Discount'!$D$11, 1)), M76)) -> 0 | T76: 1612
A77: Business Interruption | B77: AICOW | C77: Additional Increase In Cost Of Working | D77: Net Profit | F77: =F76 * 1.5 -> 5.445e-05 | G77: TRUE | H77: TRUE | I77: TRUE | J77: FALSE | K77: FALSE | M77: 0 | N77: FALSE | P77: 0 | Q77: TRUE | R77: DA124 | S77: =IF(E77 = 0, 0, MAX((E77 * F77) * (IF(I77 = TRUE, 1 - 'Loss Limit Discount'!$D$93, 1)) * (IF(K77 = TRUE, 1 - 'Contract Works Discount'!$D$11, 1)), M77)) -> 0 | T77: 1669
B78: Gross Profit
A79: Business Interruption | B79: GP | C79: 12 Months | D79: Gross Profit | F79: =_xlfn.IFNA(VLOOKUP(C79, Metadata!$H$26:$I$32, 2, FALSE),0) -> 3.63e-05 | G79: TRUE | H79: TRUE | I79: TRUE | J79: FALSE | K79: FALSE | M79: 50 | N79: FALSE | P79: 0 | Q79: TRUE | R79: DA125 | S79: =IF(E79 = 0, 0, MAX((E79 * F79) * (IF(I79 = TRUE, 1 - 'Loss Limit Discount'!$D$93, 1)) * (IF(K79 = TRUE, 1 - 'Contract Works Discount'!$D$11, 1)), M79)) -> 0
A80: Business Interruption | B80: AICOW | C80: Additional Increase In Cost Of Working | D80: Gross Profit | F80: =F79 * 1.5 -> 5.445e-05 | G80: TRUE | H80: TRUE | I80: TRUE | J80: FALSE | K80: FALSE | M80: 0 | N80: FALSE | P80: 0 | Q80: TRUE | R80: DA132 | S80: =IF(E80 = 0, 0, MAX((E80 * F80) * (IF(I80 = TRUE, 1 - 'Loss Limit Discount'!$D$93, 1)) * (IF(K80 = TRUE, 1 - 'Contract Works Discount'!$D$11, 1)), M80)) -> 0
T81: 501
T82: 502
B83: Motor | T83: 503
A84: Motor | B84: M1 | C84: Cars (Primary use: Domestic/Private) | D84: Motor | F84: 20.18 | G84: FALSE | H84: FALSE | I84: FALSE | J84: FALSE | K84: FALSE | M84: 20.18 | N84: FALSE | P84: 0 | Q84: TRUE | R84: DA133 | S84: =IF(E84 = 0, 0, MAX((F84 * E84) * (IF(I84 = TRUE, 1 - 'Loss Limit Discount'!$L$65, 1)) * (IF(K84 = TRUE, 1 - 'Contract Works Discount'!$D$11, 1)), M84 * E84)) -> 0 | T84: 504
A85: Motor | B85: M2 | C85: Light Commercial Vehicles (3500kg GVM or less) | D85: Motor | F85: 0.00070621 | G85: FALSE | H85: FALSE | I85: FALSE | J85: FALSE | K85: FALSE | M85: 45.39 | N85: FALSE | P85: 0 | Q85: TRUE | R85: DA134 | S85: =IF(E85 = 0, 0, MAX((E85 * F85) * (IF(I85 = TRUE, 1 - 'Loss Limit Discount'!$D$93, 1)) * (IF(K85 = TRUE, 1 - 'Contract Works Discount'!$D$11, 1)), M85)) -> 0 | T85: 505
A86: Motor | B86: M3 | C86: Taxis | D86: Motor | F86: 0.00021297 | G86: FALSE | H86: FALSE | I86: FALSE | J86: FALSE | K86: FALSE | M86: 45.39 | N86: FALSE | P86: 0 | Q86: TRUE | R86: DA135 | S86: =IF(E86 = 0, 0, MAX((E86 * F86) * (IF(I86 = TRUE, 1 - 'Loss Limit Discount'!$D$93, 1)) * (IF(K86 = TRUE, 1 - 'Contract Works Discount'!$D$11, 1)), M86)) -> 0
A87: Motor | B87: M4 | C87: Ferries & Traders | D87: Motor | F87: 8.68e-05 | G87: TRUE | H87: FALSE | I87: FALSE | J87: FALSE | K87: FALSE | M87: 100 | N87: FALSE | P87: 8.68e-05 | Q87: TRUE | R87: CA144 | S87: =IF(E87 = 0, 0, MAX((E87 * F87) * (IF(I87 = TRUE, 1 - 'Loss Limit Discount'!$D$93, 1)) * (IF(K87 = TRUE, 1 - 'Contract Works Discount'!$L$11, 1)), M87)) -> 0
A88: Motor | B88: M5 | C88: Buses | D88: Motor | F88: 0.00564987 | G88: TRUE | H88: FALSE | I88: FALSE | J88: FALSE | K88: FALSE | M88: 2000 | N88: FALSE | P88: 0 | Q88: TRUE | R88: DA136 | S88: =IF(E88 = 0, 0, MAX((E88 * F88) * (IF(I88 = TRUE, 1 - 'Loss Limit Discount'!$D$93, 1)) * (IF(K88 = TRUE, 1 - 'Contract Works Discount'!$D$11, 1)), M88)) -> 0
A89: Motor | B89: M6 | C89: Mobile Plant | D89: Motor | F89: 0.00056628 | G89: TRUE | H89: FALSE | I89: FALSE | J89: FALSE | K89: FALSE | M89: 500 | N89: FALSE | P89: 0 | Q89: TRUE | R89: DA137 | S89: =IF(E89 = 0, 0, MAX((E89 * F89) * (IF(I89 = TRUE, 1 - 'Loss Limit Discount'!$D$93, 1)) * (IF(K89 = TRUE, 1 - 'Contract Works Discount'!$D$11, 1)), M89)) -> 0
A90: Motor | B90: M8 | C90: Heavy Commercial Vehicles (>3500kg GVM) | D90: Motor | F90: 0.00345057 | G90: TRUE | H90: FALSE | I90: FALSE | J90: FALSE | K90: FALSE | M90: 54.47 | N90: FALSE | P90: 0.0001879 | Q90: TRUE | S90: =IF(E90 = 0, 0, MAX((E90 * F90) * (IF(I90 = TRUE, 1 - 'Loss Limit Discount'!$D$93, 1)) * (IF(K90 = TRUE, 1 - 'Contract Works Discount'!$L$11, 1)), M90)) -> 0
T91: 1660
B92: Contract Work / Construction Plant
B93: Contract Works
A94: Contract Works | B94: CW | C94: =Input!$I$16 -> Over 48 months | D94: Contract Works | F94: 0.00726 | G94: TRUE | H94: FALSE | I94: FALSE | J94: TRUE | K94: TRUE | M94: 50 | N94: FALSE | P94: 0.00726 | Q94: FALSE | R94: DA142 | S94: =IF(E94 = 0, 0, MAX((E94 * F94) * (IF(I94 = TRUE, 1 - 'Loss Limit Discount'!$D$93, 1)) * (IF(K94 = TRUE, 1 - 'Contract Works Discount'!$D$101, 1)), M94)) -> 0
B95: Construction plant
A96: Contract Works | B96: CW | C96: On Fee Basis | D96: Contract Works | F96: 0.0019188 | G96: TRUE | H96: FALSE | I96: FALSE | J96: FALSE | K96: FALSE | M96: 500 | N96: FALSE | P96: 0.00123 | Q96: FALSE | R96: CA176 | S96: =IF(E96 = 0, 0, MAX((E96 * F96) * (IF(I96 = TRUE, 1 - 'Loss Limit Discount'!$D$38, 1)) * (IF(K96 = TRUE, 1 - 'Contract Works Discount'!$D$96, 1)), M96)) -> 0
A97: Contract Works | B97: CW | C97: On Value Basis | D97: Contract Works | F97: 0.00056628 | G97: TRUE | H97: FALSE | I97: FALSE | J97: FALSE | K97: FALSE | M97: 500 | N97: FALSE | P97: 0.000363 | Q97: FALSE | R97: CA177 | S97: =IF(E97 = 0, 0, MAX((E97 * F97) * (IF(I97 = TRUE, 1 - 'Loss Limit Discount'!$D$38, 1)) * (IF(K97 = TRUE, 1 - 'Contract Works Discount'!$D$96, 1)), M97)) -> 0
B98: Mobile plant
A99: Contract Works | B99: CW | C99: On Value Basis | D99: Contract Works | F99: =F97 -> 0.00056628 | G99: TRUE | H99: FALSE | I99: FALSE | J99: FALSE | K99: FALSE | M99: 500 | N99: FALSE | P99: 0.000363 | Q99: FALSE | R99: CA179 | S99: =IF(E99 = 0, 0, MAX((E99 * F99) * (IF(I99 = TRUE, 1 - 'Loss Limit Discount'!$D$38, 1)) * (IF(K99 = TRUE, 1 - 'Contract Works Discount'!$D$96, 1)), M99)) -> 0

Sheet Commercial - Monthly
A1: Commercial - Monthly | V1: Cells with green borders have a drop-down selection!
A2: Category | B2: Code | C2: Description | D2: Total Code | E2: Sum Insured/No. of insured items | F2: Rate | G2: Is Percent | H2: Add To Sum Insured Discount | I2: Receive Sum Insured Discount | J2: Add To CW Discount | K2: Receive CW Discount | L2: Contract Period Discount | M2: Minimum Premium | N2: Has Fire Extension Discount | O2: Amount within free extension threshold | P2: Special Dispensation Rate | Q2: N/A To Special Dispensation | S2: Premium | T2: System ID
B3: Fire
A4: Commercial Fire | B4: F2 | C4: Commercial Fire | D4: Fire | F4: 2.906e-05 | G4: TRUE | H4: TRUE | I4: TRUE | J4: FALSE | K4: FALSE | M4: 50 | N4: FALSE | P4: 3.63e-06 | Q4: FALSE | S4: =IF(E4 = 0, 0, MAX((E4 * F4) * (IF(I4 = TRUE, 1 - 'Loss Limit Discount'!$D$93, 1)) + ('Fire Extensions'!$I$12 * 'Commercial - Monthly'!$F$4) * (1 - 'Loss Limit Discount'!$D$93), M4)) -> 0 | T4: 261
A5: Commercial Fire | B5: F4 | C5: Fire - SME | D5: Fire | F5: =_xlfn.IFNA(VLOOKUP(E5, Metadata!$L$43:$M$46, 2, FALSE), 0) -> 0 | G5: TRUE | H5: FALSE | I5: FALSE | J5: FALSE | K5: FALSE | M5: 0 | S5: =F5 -> 0
A6: Extension | B6: Sasria Extensions
A7: Extension | B7: EX | C7: Rent | D7: Fire | F7: =$F$4 -> 2.906e-05 | G7: TRUE | H7: TRUE | I7: TRUE | J7: FALSE | K7: FALSE | M7: 0 | N7: TRUE | O7: =IF(E7 < 'Fire Extensions'!$I$6, 'Commercial - Monthly'!E7, 'Fire Extensions'!$I$6) -> 0 | P7: 3.63e-06 | Q7: TRUE | R7: =E7-O7 -> 0 | T7: 267
A8: Extension | B8: EX | C8: Claims Preparation Costs | D8: Fire | F8: =$F$4 -> 2.906e-05 | G8: TRUE | H8: TRUE | I8: TRUE | J8: FALSE | K8: FALSE | M8: 0 | N8: TRUE | O8: =IF(E8 < 'Fire Extensions'!$I$6, 'Commercial - Monthly'!E8, 'Fire Extensions'!$I$6) -> 0 | P8: 3.63e-06 | Q8: TRUE | R8: =E8-O8 -> 0 | T8: 268
A9: Extension | B9: EX | C9: Capital Additions | D9: Fire | F9: 2.906e-05 | G9: TRUE | H9: TRUE | I9: TRUE | J9: FALSE | K9: FALSE | M9: 0 | N9: TRUE | O9: =IF(E9 < 'Fire Extensions'!$I$6, 'Commercial - Monthly'!E9, 'Fire Extensions'!$I$6) -> 0 | P9: 3.63e-06 | Q9: TRUE | R9: 0 | T9: 269
A10: Extension | B10: EX | C10: Professional fees | D10: Fire | F10: 2.906e-05 | G10: TRUE | H10: TRUE | I10: TRUE | J10: FALSE | K10: FALSE | M10: 0 | N10: TRUE | O10: =IF(E10 < 'Fire Extensions'!$I$6, 'Commercial - Monthly'!E10, 'Fire Extensions'!$I$6) -> 0 | P10: 3.63e-06 | Q10: TRUE | R10: 0 | T10: 270
A11: Extension | B11: EX | C11: Clearance costs | D11: Fire | F11: 2.906e-05 | G11: TRUE | H11: TRUE | I11: TRUE | J11: FALSE | K11: FALSE | M11: 0 | N11: TRUE | O11: =IF(E11 < 'Fire Extensions'!$I$6, 'Commercial - Monthly'!E11, 'Fire Extensions'!$I$6) -> 0 | P11: 3.63e-06 | Q11: TRUE | R11: 0 | T11: 271
A12: Extension | B12: EX | C12: Security Costs (During and after a loss) | D12: Fire | F12: 2.906e-05 | G12: TRUE | H12: TRUE | I12: TRUE | J12: FALSE | K12: FALSE | M12: 0 | N12: TRUE | O12: =IF(E12 < 'Fire Extensions'!$I$6, 'Commercial - Monthly'!E12, 'Fire Extensions'!$I$6) -> 0 | P12: 3.63e-06 | Q12: TRUE | R12: 0 | T12: 272
A13: Extension | B13: EX | C13: Statutory Duties | D13: Fire | F13: 2.906e-05 | G13: TRUE | H13: TRUE | I13: TRUE | J13: FALSE | K13: FALSE | M13: 0 | N13: TRUE | O13: =IF(E13 < 'Fire Extensions'!$I$6, 'Commercial - Monthly'!E13, 'Fire Extensions'!$I$6) -> 0 | P13: 3.63e-06 | Q13: TRUE | R13: 0 | T13: 276
A14: Extension | B14: EX | C14: Additional Premises | D14: Fire | F14: 2.906e-05 | G14: TRUE | H14: TRUE | I14: TRUE | J14: FALSE | K14: FALSE | M14: 0 | N14: TRUE | O14: =IF(E14 < 'Fire Extensions'!$I$6, 'Commercial - Monthly'!E14, 'Fire Extensions'!$I$6) -> 0 | P14: 3.63e-06 | Q14: TRUE | R14: 0 | T14: 277
A15: Extension | B15: EX | C15: Acquisition Limits | D15: Fire | F15: 2.906e-05 | G15: TRUE | H15: TRUE | I15: TRUE | J15: FALSE | K15: FALSE | M15: 0 | N15: TRUE | O15: =IF(E15 < 'Fire Extensions'!$I$6, 'Commercial - Monthly'!E15, 'Fire Extensions'!$I$6) -> 0 | P15: 3.63e-06 | Q15: TRUE | R15: 0 | T15: 278
A16: Extension | B16: EX | C16: Import Surcharges | D16: Fire | F16: 2.906e-05 | G16: TRUE | H16: TRUE | I16: TRUE | J16: FALSE | K16: FALSE | M16: 0 | N16: TRUE | O16: =IF(E16 < 'Fire Extensions'!$I$6, 'Commercial - Monthly'!E16, 'Fire Extensions'!$I$6) -> 0 | P16: 3.63e-06 | Q16: TRUE | R16: 0 | T16: 280
A17: Extension | B17: EX | C17: Fire Protection System Update | D17: Fire | F17: 2.906e-05 | G17: TRUE | H17: TRUE | I17: TRUE | J17: FALSE | K17: FALSE | M17: 0 | N17: TRUE | O17: =IF(E17 < 'Fire Extensions'!$I$6, 'Commercial - Monthly'!E17, 'Fire Extensions'!$I$6) -> 0 | P17: 3.63e-06 | Q17: TRUE | R17: 0 | T17: 281
A18: Extension | B18: EX | C18: Goods in the open | D18: Fire | F18: 2.906e-05 | G18: TRUE | H18: TRUE | I18: TRUE | J18: FALSE | K18: FALSE | M18: 0 | N18: TRUE | O18: =IF(E18 < 'Fire Extensions'!$I$6, 'Commercial - Monthly'!E18, 'Fire Extensions'!$I$6) -> 0 | P18: 3.63e-06 | Q18: TRUE | R18: 0 | T18: 285
A19: Extension | B19: EX | C19: Fire Extinguishing | D19: Fire | F19: 2.906e-05 | G19: TRUE | H19: TRUE | I19: TRUE | J19: FALSE | K19: FALSE | M19: 0 | N19: TRUE | O19: =IF(E19 < 'Fire Extensions'!$I$6, 'Commercial - Monthly'!E19, 'Fire Extensions'!$I$6) -> 0 | P19: 3.63e-06 | Q19: TRUE | R19: 0 | T19: 286
A20: Extension | B20: EX | C20: Imminent Danger (Protection of property prior a loss) | D20: Fire | F20: 2.906e-05 | G20: TRUE | H20: TRUE | I20: TRUE | J20: FALSE | K20: FALSE | M20: 0 | N20: TRUE | O20: =IF(E20 < 'Fire Extensions'!$I$6, 'Commercial - Monthly'!E20, 'Fire Extensions'!$I$6) -> 0 | P20: 0 | Q20: TRUE | R20: 0 | T20: 2873
A21: Other Extension | B21: Other Extensions
A22: Other Extension | B22: EX | C22: Other | D22: Fire | F22: =$F$4 -> 2.906e-05 | G22: TRUE | H22: TRUE | I22: TRUE | J22: FALSE | K22: FALSE | M22: 0 | N22: TRUE | O22: =IF(E22 < 'Fire Extensions'!$I$6, 'Commercial - Monthly'!E22, 'Fire Extensions'!$I$6) -> 0 | P22: 3.63e-06 | Q22: TRUE | T22: 288
A23: Other Extension | B23: EX | C23: Other | D23: Fire | F23: 2.906e-05 | G23: TRUE | H23: TRUE | I23: TRUE | J23: FALSE | K23: FALSE | M23: 0 | N23: TRUE | O23: =IF(E23 < 'Fire Extensions'!$I$6, 'Commercial - Monthly'!E23, 'Fire Extensions'!$I$6) -> 0 | P23: 3.63e-06 | Q23: TRUE | T23: 289
A24: Other Extension | B24: EX | C24: Other | D24: Fire | F24: 2.906e-05 | G24: TRUE | H24: TRUE | I24: TRUE | J24: FALSE | K24: FALSE | M24: 0 | N24: TRUE | O24: =IF(E24 < 'Fire Extensions'!$I$6, 'Commercial - Monthly'!E24, 'Fire Extensions'!$I$6) -> 0 | P24: 3.63e-06 | Q24: TRUE | T24: 290
A25: Other Extension | B25: EX | C25: Other | D25: Fire | F25: 2.906e-05 | G25: TRUE | H25: TRUE | I25: TRUE | J25: FALSE | K25: FALSE | M25: 0 | N25: TRUE | O25: =IF(E25 < 'Fire Extensions'!$I$6, 'Commercial - Monthly'!E25, 'Fire Extensions'!$I$6) -> 0 | P25: 3.63e-06 | Q25: TRUE | T25: 291
A26: Other Extension | B26: EX | C26: Other | D26: Fire | F26: 2.906e-05 | G26: TRUE | H26: TRUE | I26: TRUE | J26: FALSE | K26: FALSE | M26: 0 | N26: TRUE | O26: =IF(E26 < 'Fire Extensions'!$I$6, 'Commercial - Monthly'!E26, 'Fire Extensions'!$I$6) -> 0 | P26: 3.63e-06 | Q26: TRUE | T26: 292
A27: Other Extension | B27: EX | C27: Other | D27: Fire | F27: 2.906e-05 | G27: TRUE | H27: TRUE | I27: TRUE | J27: FALSE | K27: FALSE | M27: 0 | N27: TRUE | O27: =IF(E27 < 'Fire Extensions'!$I$6, 'Commercial - Monthly'!E27, 'Fire Extensions'!$I$6) -> 0 | P27: 3.63e-06 | Q27: TRUE | T27: 293
A28: Other Extension | B28: EX | C28: Other | D28: Fire | F28: 2.906e-05 | G28: TRUE | H28: TRUE | I28: TRUE | J28: FALSE | K28: FALSE | M28: 0 | N28: TRUE | O28: =IF(E28 < 'Fire Extensions'!$I$6, 'Commercial - Monthly'!E28, 'Fire Extensions'!$I$6) -> 0 | P28: 3.63e-06 | Q28: TRUE | T28: 294
A29: Other Extension | B29: EX | C29: Other | D29: Fire | F29: 2.906e-05 | G29: TRUE | H29: TRUE | I29: TRUE | J29: FALSE | K29: FALSE | M29: 0 | N29: TRUE | O29: =IF(E29 < 'Fire Extensions'!$I$6, 'Commercial - Monthly'!E29, 'Fire Extensions'!$I$6) -> 0 | P29: 3.63e-06 | Q29: TRUE | T29: 295
A30: Other Extension | B30: EX | C30: Other | D30: Fire | F30: 2.906e-05 | G30: TRUE | H30: TRUE | I30: TRUE | J30: FALSE | K30: FALSE | M30: 0 | N30: TRUE | O30: =IF(E30 < 'Fire Extensions'!$I$6, 'Commercial - Monthly'!E30, 'Fire Extensions'!$I$6) -> 0 | P30: 3.63e-06 | Q30: TRUE | T30: 296
A31: Other Extension | B31: EX | C31: Other | D31: Fire | F31: 2.906e-05 | G31: TRUE | H31: TRUE | I31: TRUE | J31: FALSE | K31: FALSE | M31: 0 | N31: TRUE | O31: =IF(E31 < 'Fire Extensions'!$I$6, 'Commercial - Monthly'!E31, 'Fire Extensions'!$I$6) -> 0 | P31: 3.63e-06 | Q31: TRUE | T31: 297
A32: Other Extension | B32: EX | C32: Other | D32: Fire | F32: 2.906e-05 | G32: TRUE | H32: TRUE | I32: TRUE | J32: FALSE | K32: FALSE | M32: 0 | N32: TRUE | O32: =IF(E32 < 'Fire Extensions'!$I$6, 'Commercial - Monthly'!E32, 'Fire Extensions'!$I$6) -> 0 | P32: 3.63e-06 | Q32: TRUE | T32: 298
A33: Other Extension | B33: EX | C33: Other | D33: Fire | F33: 2.906e-05 | G33: TRUE | H33: TRUE | I33: TRUE | J33: FALSE | K33: FALSE | M33: 0 | N33: TRUE | O33: =IF(E33 < 'Fire Extensions'!$I$6, 'Commercial - Monthly'!E33, 'Fire Extensions'!$I$6) -> 0 | P33: 3.63e-06 | Q33: TRUE | T33: 299
A34: Other Extension | B34: EX | C34: Other | D34: Fire | F34: 2.906e-05 | G34: TRUE | H34: TRUE | I34: TRUE | J34: FALSE | K34: FALSE | M34: 0 | N34: TRUE | O34: =IF(E34 < 'Fire Extensions'!$I$6, 'Commercial - Monthly'!E34, 'Fire Extensions'!$I$6) -> 0 | P34: 3.63e-06 | Q34: TRUE | T34: 300
A35: Other Extension | B35: EX | C35: Other | D35: Fire | F35: 2.906e-05 | G35: TRUE | H35: TRUE | I35: TRUE | J35: FALSE | K35: FALSE | M35: 0 | N35: TRUE | O35: =IF(E35 < 'Fire Extensions'!$I$6, 'Commercial - Monthly'!E35, 'Fire Extensions'!$I$6) -> 0 | P35: 3.63e-06 | Q35: TRUE | T35: 301
A36: Other Extension | B36: EX | C36: Other | D36: Fire | F36: 2.906e-05 | G36: TRUE | H36: TRUE | I36: TRUE | J36: FALSE | K36: FALSE | M36: 0 | N36: TRUE | O36: =IF(E36 < 'Fire Extensions'!$I$6, 'Commercial - Monthly'!E36, 'Fire Extensions'!$I$6) -> 0 | P36: 3.63e-06 | Q36: TRUE | T36: 302
A37: Other Extension | B37: EX | C37: Other | D37: Fire | F37: 2.906e-05 | G37: TRUE | H37: TRUE | I37: TRUE | J37: FALSE | K37: FALSE | M37: 0 | N37: TRUE | O37: =IF(E37 < 'Fire Extensions'!$I$6, 'Commercial - Monthly'!E37, 'Fire Extensions'!$I$6) -> 0 | P37: 3.63e-06 | Q37: TRUE | T37: 303
A38: Other Extension | B38: EX | C38: Other | D38: Fire | F38: 2.906e-05 | G38: TRUE | H38: TRUE | I38: TRUE | J38: FALSE | K38: FALSE | M38: 0 | N38: TRUE | O38: =IF(E38 < 'Fire Extensions'!$I$6, 'Commercial - Monthly'!E38, 'Fire Extensions'!$I$6) -> 0 | P38: 3.63e-06 | Q38: TRUE | T38: 304
A39: Other Extension | B39: EX | C39: Other | D39: Fire | F39: 2.906e-05 | G39: TRUE | H39: TRUE | I39: TRUE | J39: FALSE | K39: FALSE | M39: 0 | N39: TRUE | O39: =IF(E39 < 'Fire Extensions'!$I$6, 'Commercial - Monthly'!E39, 'Fire Extensions'!$I$6) -> 0 | P39: 3.63e-06 | Q39: TRUE | T39: 305
A40: Other Extension | B40: EX | C40: Other | D40: Fire | F40: 2.906e-05 | G40: TRUE | H40: TRUE | I40: TRUE | J40: FALSE | K40: FALSE | M40: 0 | N40: TRUE | O40: =IF(E40 < 'Fire Extensions'!$I$6, 'Commercial - Monthly'!E40, 'Fire Extensions'!$I$6) -> 0 | P40: 3.63e-06 | Q40: TRUE | T40: 306
A41: Other Extension | B41: EX | C41: Other | D41: Fire | F41: 2.906e-05 | G41: TRUE | H41: TRUE | I41: TRUE | J41: FALSE | K41: FALSE | M41: 0 | N41: TRUE | O41: =IF(E41 < 'Fire Extensions'!$I$6, 'Commercial - Monthly'!E41, 'Fire Extensions'!$I$6) -> 0 | P41: 3.63e-06 | Q41: TRUE | T41: 307
A42: Other Extension | B42: EX | C42: Other | D42: Fire | F42: 2.906e-05 | G42: TRUE | H42: TRUE | I42: TRUE | J42: FALSE | K42: FALSE | M42: 0 | N42: TRUE | O42: =IF(E42 < 'Fire Extensions'!$I$6, 'Commercial - Monthly'!E42, 'Fire Extensions'!$I$6) -> 0 | P42: 3.63e-06 | Q42: TRUE | T42: 308
A43: Other Extension | B43: EX | C43: Other | D43: Fire | F43: 2.906e-05 | G43: TRUE | H43: TRUE | I43: TRUE | J43: FALSE | K43: FALSE | M43: 0 | N43: TRUE | O43: =IF(E43 < 'Fire Extensions'!$I$6, 'Commercial - Monthly'!E43, 'Fire Extensions'!$I$6) -> 0 | P43: 3.63e-06 | Q43: TRUE | T43: 309
A44: Other Extension | B44: EX | C44: Other | D44: Fire | F44: 2.906e-05 | G44: TRUE | H44: TRUE | I44: TRUE | J44: FALSE | K44: FALSE | M44: 0 | N44: TRUE | O44: =IF(E44 < 'Fire Extensions'!$I$6, 'Commercial - Monthly'!E44, 'Fire Extensions'!$I$6) -> 0 | P44: 3.63e-06 | Q44: TRUE | T44: 310
A45: Other Extension | B45: EX | C45: Other | D45: Fire | F45: 2.906e-05 | G45: TRUE | H45: TRUE | I45: TRUE | J45: FALSE | K45: FALSE | M45: 0 | N45: TRUE | O45: =IF(E45 < 'Fire Extensions'!$I$6, 'Commercial - Monthly'!E45, 'Fire Extensions'!$I$6) -> 0 | P45: 3.63e-06 | Q45: TRUE | T45: 311
A46: Other Extension | B46: EX | C46: Other | D46: Fire | F46: 2.906e-05 | G46: TRUE | H46: TRUE | I46: TRUE | J46: FALSE | K46: FALSE | M46: 0 | N46: TRUE | O46: =IF(E46 < 'Fire Extensions'!$I$6, 'Commercial - Monthly'!E46, 'Fire Extensions'!$I$6) -> 0 | P46: 3.63e-06 | Q46: TRUE | T46: 312
A47: Other Extension | B47: EX | C47: Other | D47: Fire | F47: 2.906e-05 | G47: TRUE | H47: TRUE | I47: TRUE | J47: FALSE | K47: FALSE | M47: 0 | N47: TRUE | O47: =IF(E47 < 'Fire Extensions'!$I$6, 'Commercial - Monthly'!E47, 'Fire Extensions'!$I$6) -> 0 | P47: 3.63e-06 | Q47: TRUE | T47: 313
A48: Other Extension | B48: EX | C48: Other | D48: Fire | F48: 2.906e-05 | G48: TRUE | H48: TRUE | I48: TRUE | J48: FALSE | K48: FALSE | M48: 0 | N48: TRUE | O48: =IF(E48 < 'Fire Extensions'!$I$6, 'Commercial - Monthly'!E48, 'Fire Extensions'!$I$6) -> 0 | P48: 3.63e-06 | Q48: TRUE | T48: 314
A49: Other Extension | B49: EX | C49: Other | D49: Fire | F49: 2.906e-05 | G49: TRUE | H49: TRUE | I49: TRUE | J49: FALSE | K49: FALSE | M49: 0 | N49: TRUE | O49: =IF(E49 < 'Fire Extensions'!$I$6, 'Commercial - Monthly'!E49, 'Fire Extensions'!$I$6) -> 0 | P49: 3.63e-06 | Q49: TRUE | T49: 315
A50: Other Extension | B50: EX | C50: Other | D50: Fire | F50: 2.906e-05 | G50: TRUE | H50: TRUE | I50: TRUE | J50: FALSE | K50: FALSE | M50: 0 | N50: TRUE | O50: =IF(E50 < 'Fire Extensions'!$I$6, 'Commercial - Monthly'!E50, 'Fire Extensions'!$I$6) -> 0 | P50: 3.63e-06 | Q50: TRUE | T50: 316
A51: Other Extension | B51: EX | C51: Other | D51: Fire | F51: 2.906e-05 | G51: TRUE | H51: TRUE | I51: TRUE | J51: FALSE | K51: FALSE | M51: 0 | N51: TRUE | O51: =IF(E51 < 'Fire Extensions'!$I$6, 'Commercial - Monthly'!E51, 'Fire Extensions'!$I$6) -> 0 | P51: 3.63e-06 | Q51: TRUE | T51: 317
B52: Escalation and or Inflation
A53: Escalation UL | B53: Charge on U/L
A54: Escalation UL | C54: First Year (90-100%) | D54: Fire | F54: =IF(C54 = "", 0, VLOOKUP(C54, Escalation!$C$59:$D$103, 2, FALSE)) -> 2.906e-05 | G54: TRUE | H54: FALSE | I54: TRUE | J54: FALSE | K54: FALSE | M54: 0 | P54: 0 | Q54: TRUE | S54: =IF(E54 = 0, 0, MAX((E54 * F54) * (IF(I54 = TRUE, 1 - 'Loss Limit Discount'!$D$93, 1)), M54)) -> 0 | T54: 1735
A55: Escalation UL | C55: Second Year (90-100%) | D55: Fire | F55: =IF(C55 = "", 0, VLOOKUP(C55, Escalation!$C$59:$D$103, 2, FALSE)) -> 1.453e-05 | G55: TRUE | H55: FALSE | I55: TRUE | J55: FALSE | K55: FALSE | M55: 0 | P55: 0 | Q55: TRUE | S55: =IF(E55 = 0, 0, MAX((E55 * F55) * (IF(I55 = TRUE, 1 - 'Loss Limit Discount'!$D$93, 1)), M55)) -> 0 | T55: 1736
A56: Escalation UL | C56: Third Year (90-100%) | D56: Fire | F56: =IF(C56 = "", 0, VLOOKUP(C56, Escalation!$C$59:$D$103, 2, FALSE)) -> 7.265e-06 | G56: TRUE | H56: FALSE | I56: TRUE | J56: FALSE | K56: FALSE | M56: 0 | P56: 0 | Q56: TRUE | S56: =IF(E56 = 0, 0, MAX((E56 * F56) * (IF(I56 = TRUE, 1 - 'Loss Limit Discount'!$D$93, 1)), M56)) -> 0 | T56: 1737
A57: Escalation UL | C57: Fourth Year (90-100%) | D57: Fire | F57: =IF(C57 = "", 0, VLOOKUP(C57, Escalation!$C$59:$D$103, 2, FALSE)) -> 5.812e-06 | G57: TRUE | H57: FALSE | I57: TRUE | J57: FALSE | K57: FALSE | M57: 0 | P57: 0 | Q57: TRUE | S57: =IF(E57 = 0, 0, MAX((E57 * F57) * (IF(I57 = TRUE, 1 - 'Loss Limit Discount'!$D$93, 1)), M57)) -> 0 | T57: 1738
A58: Escalation UL | C58: Fifth Year (90-100%) | D58: Fire | F58: =IF(C58 = "", 0, VLOOKUP(C58, Escalation!$C$59:$D$103, 2, FALSE)) -> 4.359e-06 | G58: TRUE | H58: FALSE | I58: TRUE | J58: FALSE | K58: FALSE | M58: 0 | P58: 0 | Q58: TRUE | S58: =IF(E58 = 0, 0, MAX((E58 * F58) * (IF(I58 = TRUE, 1 - 'Loss Limit Discount'!$D$93, 1)), M58)) -> 0 | T58: 1739
A59: Escalation Not UL | B59: Not Charge on U/L
A60: Escalation Not UL | C60: First Year | D60: Fire | F60: =$F$4 -> 2.906e-05 | G60: TRUE | H60: FALSE | I60: TRUE | J60: FALSE | K60: FALSE | M60: 0 | P60: 3.63e-06 | Q60: FALSE | S60: =IF(E60 = 0, 0, MAX((E60 * F60) * (IF(I60 = TRUE, 1 - 'Loss Limit Discount'!$D$93, 1)), M60)) -> 0 | T60: 326
A61: Escalation Not UL | C61: Second Year | D61: Fire | F61: =$F$4 * 0.5 -> 1.453e-05 | G61: TRUE | H61: FALSE | I61: TRUE | J61: FALSE | K61: FALSE | M61: 0 | P61: 1.82e-06 | Q61: FALSE | S61: =IF(E61 = 0, 0, MAX((E61 * F61) * (IF(I61 = TRUE, 1 - 'Loss Limit Discount'!$D$93, 1)), M61)) -> 0 | T61: 327
A62: Escalation Not UL | C62: Third Year | D62: Fire | F62: =$F$4 * 0.25 -> 7.265e-06 | G62: TRUE | H62: FALSE | I62: TRUE | J62: FALSE | K62: FALSE | M62: 0 | P62: 9.08e-07 | Q62: FALSE | S62: =IF(E62 = 0, 0, MAX((E62 * F62) * (IF(I62 = TRUE, 1 - 'Loss Limit Discount'!$D$93, 1)), M62)) -> 0 | T62: 328
A63: Escalation Not UL | C63: Fourth Year | D63: Fire | F63: =$F$4 * 0.2 -> 5.812e-06 | G63: TRUE | H63: FALSE | I63: TRUE | J63: FALSE | K63: FALSE | M63: 0 | P63: 7.26e-07 | Q63: FALSE | S63: =IF(E63 = 0, 0, MAX((E63 * F63) * (IF(I63 = TRUE, 1 - 'Loss Limit Discount'!$D$93, 1)), M63)) -> 0 | T63: 329
A64: Escalation Not UL | C64: Fifth Year | D64: Fire | F64: =$F$4 * 0.15 -> 4.359e-06 | G64: TRUE | H64: FALSE | I64: TRUE | J64: FALSE | K64: FALSE | M64: 0 | P64: 5.45e-07 | Q64: FALSE | S64: =IF(E64 = 0, 0, MAX((E64 * F64) * (IF(I64 = TRUE, 1 - 'Loss Limit Discount'!$D$93, 1)), M64)) -> 0 | T64: 330
B66: Business Interruption
B67: Advance Specified Standing Charges
A68: Business Interruption | B68: ASC | C68: 12 Months | D68: Advance Standing Charges | F68: =_xlfn.IFNA(VLOOKUP(C68, Metadata!$L$2:$M$5, 2, FALSE),0) -> 6.4e-05 | G68: TRUE | H68: FALSE | I68: FALSE | J68: TRUE | K68: TRUE | M68: 5 | N68: FALSE | P68: 6.4e-05 | Q68: TRUE | S68: =IF(E68 = 0, 0, MAX((E68 * F68) * (IF(I68 = TRUE, 1 - 'Loss Limit Discount'!$D$93, 1)) * (IF(K68 = TRUE, 1 - 'Contract Works Discount'!$D$101, 1)), M68)) -> 0 | T68: 333
B69: Specified Standing Charges
A70: Business Interruption | B70: SC | C70: 12 Months | D70: Standing Charges | F70: =_xlfn.IFNA(VLOOKUP(C70, Metadata!$L$7:$M$14, 2, FALSE),0) -> 6.4e-05 | G70: TRUE | H70: TRUE | I70: TRUE | J70: FALSE | K70: FALSE | M70: 5 | N70: FALSE | P70: 3.63e-06 | Q70: TRUE | S70: =IF(E70 = 0, 0, MAX((E70 * F70) * (IF(I70 = TRUE, 1 - 'Loss Limit Discount'!$D$93, 1)), M70)) -> 0 | T70: 337
A71: Business Interruption | B71: AICOW | C71: Additional Increase In Cost Of Working | D71: Standing Charges | F71: =F70 * 1.5 -> 9.6e-05 | G71: TRUE | H71: TRUE | I71: TRUE | J71: FALSE | K71: FALSE | M71: 0 | N71: FALSE | P71: 0 | Q71: TRUE | S71: =IF(E71 = 0, 0, MAX((E71 * F71) * (IF(I71 = TRUE, 1 - 'Loss Limit Discount'!$D$93, 1)), M71)) -> 0 | T71: 397
B72: Working Expenses
A73: Business Interruption | B73: WE | C73: 12 Months | D73: Working Expenses | F73: =_xlfn.IFNA(VLOOKUP(C73, Metadata!L16:M23, 2, FALSE),0) -> 6.4e-05 | G73: TRUE | H73: TRUE | I73: TRUE | J73: FALSE | K73: FALSE | M73: 5 | N73: FALSE | P73: 3.63e-06 | Q73: TRUE | S73: =IF(E73 = 0, 0, MAX((E73 * F73) * (IF(I73 = TRUE, 1 - 'Loss Limit Discount'!$D$93, 1)), M73)) -> 0 | T73: 345
A74: Business Interruption | B74: AICOW | C74: Additional Increase In Cost Of Working | D74: Working Expenses | F74: =F73 * 1.5 -> 9.6e-05 | G74: TRUE | H74: TRUE | I74: TRUE | J74: FALSE | K74: FALSE | M74: 0 | N74: FALSE | P74: 0 | Q74: TRUE | S74: =IF(E74 = 0, 0, MAX((E74 * F74) * (IF(I74 = TRUE, 1 - 'Loss Limit Discount'!$D$93, 1)), M74)) -> 0 | T74: 361
B75: Revenue
A76: Business Interruption | B76: R | C76: 12 Months | D76: Revenue | F76: =_xlfn.IFNA(VLOOKUP(C76, Metadata!$L$48:$M$55, 2, FALSE),0) -> 6.4e-05 | G76: TRUE | H76: TRUE | I76: TRUE | J76: FALSE | K76: FALSE | M76: 5 | N76: FALSE | P76: 3.63e-06 | Q76: TRUE | S76: =IF(E76 = 0, 0, MAX((E76 * F76) * (IF(I76 = TRUE, 1 - 'Loss Limit Discount'!$D$93, 1)), M76)) -> 0 | T76: 353
A77: Business Interruption | B77: AICOW | C77: Additional Increase In Cost Of Working | D77: Revenue | F77: =F76 * 1.5 -> 9.6e-05 | G77: TRUE | H77: TRUE | I77: TRUE | J77: FALSE | K77: FALSE | M77: 0 | N77: FALSE | P77: 0 | Q77: TRUE | S77: =IF(E77 = 0, 0, MAX((E77 * F77) * (IF(I77 = TRUE, 1 - 'Loss Limit Discount'!$D$93, 1)), M77)) -> 0 | T77: 1671
B78: Net Profit
A79: Business Interruption | B79: NP | C79: 12 Months | D79: Net Profit | F79: =_xlfn.IFNA(VLOOKUP(C79, Metadata!$L$25:$M$32, 2, FALSE),0) -> 6.4e-05 | G79: TRUE | H79: TRUE | I79: TRUE | J79: FALSE | K79: FALSE | M79: 5 | N79: FALSE | P79: 3.63e-06 | Q79: TRUE | S79: =IF(E79 = 0, 0, MAX((E79 * F79) * (IF(I79 = TRUE, 1 - 'Loss Limit Discount'!$D$93, 1)), M79)) -> 0 | T79: 1595
A80: Business Interruption | B80: AICOW | C80: Additional Increase In Cost Of Working | D80: Net Profit | F80: =F79 * 1.5 -> 9.6e-05 | G80: TRUE | H80: TRUE | I80: TRUE | J80: FALSE | K80: FALSE | M80: 0 | N80: FALSE | P80: 0 | Q80: TRUE | S80: =IF(E80 = 0, 0, MAX((E80 * F80) * (IF(I80 = TRUE, 1 - 'Loss Limit Discount'!$D$93, 1)), M80)) -> 0 | T80: 1667
B81: Gross Profit
A82: Business Interruption | B82: GP | C82: 12 Months | D82: Gross Profit | F82: =_xlfn.IFNA(VLOOKUP(C82, Metadata!$L$34:$M$41, 2, FALSE),0) -> 6.4e-05 | G82: TRUE | H82: TRUE | I82: TRUE | J82: FALSE | K82: FALSE | M82: 5 | N82: FALSE | P82: 3.63e-05 | Q82: TRUE | S82: =IF(E82 = 0, 0, MAX((E82 * F82) * (IF(I82 = TRUE, 1 - 'Loss Limit Discount'!$D$93, 1)), M82)) -> 0
A83: Business Interruption | B83: AICOW | C83: Additional Increase In Cost Of Working | D83: Gross Profit | F83: =F82 * 1.5 -> 9.6e-05 | G83: TRUE | H83: TRUE | I83: TRUE | J83: FALSE | K83: FALSE | M83: 0 | N83: FALSE | P83: 0 | Q83: TRUE | S83: =IF(E83 = 0, 0, MAX((E83 * F83) * (IF(I83 = TRUE, 1 - 'Loss Limit Discount'!$D$93, 1)), M83)) -> 0
T84: 365
T85: 366
B86: Motor | T86: 367
A87: Motor | B87: M1 | C87: Cars (Primary use: Domestic/Private) | D87: Motor | F87: 2.02 | G87: FALSE | H87: FALSE | I87: FALSE | J87: FALSE | K87: FALSE | M87: 2.02 | N87: FALSE | P87: 2.02 | Q87: TRUE | S87: =IF(E87 = 0, 0, MAX((F87 * E87) * (IF(I87 = TRUE, 1 - 'Loss Limit Discount'!$D$93, 1)), M87 * E87)) -> 0 | T87: 368
A88: Motor | B88: M2 | C88: Light Commercial Vehicles (3500kg GVM or less) | D88: Motor | F88: 7.062e-05 | G88: FALSE | H88: FALSE | I88: FALSE | J88: FALSE | K88: FALSE | M88: 4.54 | N88: FALSE | P88: 4.54 | Q88: TRUE | S88: =IF(E88 = 0, 0, MAX((E88 * F88) * (IF(I88 = TRUE, 1 - 'Loss Limit Discount'!$D$93, 1)), M88)) -> 0 | T88: 369
A89: Motor | B89: M3 | C89: Taxis | D89: Motor | F89: 2.13e-05 | G89: FALSE | H89: FALSE | I89: FALSE | J89: FALSE | K89: FALSE | M89: 4.54 | N89: FALSE | P89: 4.54 | Q89: TRUE | S89: =IF(E89 = 0, 0, MAX((E89 * F89) * (IF(I89 = TRUE, 1 - 'Loss Limit Discount'!$D$93, 1)), M89)) -> 0 | T89: 370
A90: Motor | B90: M4 | C90: Ferries & Traders | D90: Motor | F90: 8.68e-06 | G90: TRUE | H90: FALSE | I90: FALSE | J90: FALSE | K90: FALSE | M90: 10 | N90: FALSE | P90: 8.68e-06 | Q90: TRUE | S90: =IF(E90 = 0, 0, MAX((E90 * F90) * (IF(I90 = TRUE, 1 - 'Loss Limit Discount'!$D$93, 1)), M90)) -> 0
A91: Motor | B91: M5 | C91: Buses | D91: Motor | F91: 0.00056499 | G91: TRUE | H91: FALSE | I91: FALSE | J91: FALSE | K91: FALSE | M91: 200 | N91: FALSE | P91: 0.000404 | Q91: TRUE | S91: =IF(E91 = 0, 0, MAX((E91 * F91) * (IF(I91 = TRUE, 1 - 'Loss Limit Discount'!$D$93, 1)), M91)) -> 0
A92: Motor | B92: M6 | C92: Mobile Plant | D92: Motor | F92: 5.663e-05 | G92: TRUE | H92: FALSE | I92: FALSE | J92: FALSE | K92: FALSE | M92: 50 | N92: FALSE | P92: 3.63e-05 | Q92: TRUE | S92: =IF(E92 = 0, 0, MAX((E92 * F92) * (IF(I92 = TRUE, 1 - 'Loss Limit Discount'!$D$93, 1)), M92)) -> 0
A93: Motor | B93: M8 | C93: Heavy Commercial Vehicles (>3500kg GVM) | D93: Motor | F93: 0.00034506 | G93: TRUE | H93: FALSE | I93: FALSE | J93: FALSE | K93: FALSE | M93: 5.45 | N93: FALSE | P93: 1.879e-05 | Q93: TRUE | S93: =IF(E93 = 0, 0, MAX((E93 * F93) * (IF(I93 = TRUE, 1 - 'Loss Limit Discount'!$D$93, 1)), M93)) -> 0 | T93: 380
B95: Money
A96: Money | B96: MON | C96: Money | D96: Money | F96: 0.00726 | G96: TRUE | H96: FALSE | I96: TRUE | J96: FALSE | K96: FALSE | M96: 5 | N96: FALSE | P96: 0.00726 | Q96: FALSE | S96: =IF(E96 = 0, 0, MAX((E96 * F96) * (IF(I96 = TRUE, 1 - 'Loss Limit Discount'!$D$93, 1)), M96)) -> 0
B98: Goods In Transit & Marine Cargo | T98: 1643
B99: Without RSCC
B100: ="Marine " & B99 -> Marine Without RSCC
A101: Goods In Transit | B101: GIT | C101: Marine Cargo & Goods in Transit | D101: Goods In Transit | F101: =IF($B$99 = "With RSCC", VLOOKUP($C101, Metadata!$W$4:$Y$16, 2, FALSE), VLOOKUP($C101, Metadata!$W$4:$Y$16, 3, FALSE)) -> 2.088e-06 | G101: TRUE | H101: FALSE | I101: TRUE | J101: FALSE | K101: FALSE | M101: 50 | N101: FALSE | P101: 7.26e-07 | Q101: FALSE | S101: =IF(E101 = 0, 0, MAX((E101 * F101) * (IF(I101 = TRUE, 1 - 'Loss Limit Discount'!$D$93, 1)), M101)) -> 0
A102: Goods In Transit | B102: =IF($B$99 = "With RSCC", "", "GIT") -> GIT | C102: =IF($B$99 = "With RSCC", "N/A", "Storage at final w/house or depot") -> Storage at final w/house or depot | D102: =IF($B$99 = "With RSCC", "", "Goods In Transit") -> Goods In Transit | F102: =_xlfn.IFNA(IF($B$99 = "With RSCC", VLOOKUP($C102, Metadata!$W$4:$Y$16, 2, FALSE), VLOOKUP($C102, Metadata!$W$4:$Y$16, 3, FALSE)), "N/A") -> 2.088e-05 | G102: TRUE | H102: FALSE | I102: TRUE | J102: FALSE | K102: FALSE | M102: 50 | S102: =IFERROR(IF(E102 = 0, 0, MAX((E102 * F102) * (IF(I102 = TRUE, 1 - 'Loss Limit Discount'!$D$93, 1)), M102)), 0) -> 0
A103: Goods In Transit | B103: GIT | C103: Estimated Gross Annual Turnover | D103: Goods In Transit | F103: =IF($B$99 = "With RSCC", VLOOKUP($C103, Metadata!$W$4:$Y$16, 2, FALSE), VLOOKUP($C103, Metadata!$W$4:$Y$16, 3, FALSE)) -> 1.742e-06 | G103: TRUE | H103: FALSE | I103: TRUE | J103: FALSE | K103: FALSE | M103: 50 | S103: =IF(E103 = 0, 0, MAX((E103 * F103) * (IF(I103 = TRUE, 1 - 'Loss Limit Discount'!$D$93, 1)), M103)) -> 0
A104: Goods In Transit | B104: =IF($B$99 = "With RSCC", "", "GIT") -> GIT | C104: =IF($B$99 = "With RSCC", "N/A", "Stock and Storage Limits") -> Stock and Storage Limits | D104: =IF($B$99 = "With RSCC", "", "Goods In Transit") -> Goods In Transit | F104: =_xlfn.IFNA(IF($B$99 = "With RSCC", VLOOKUP($C104, Metadata!$W$4:$Y$16, 2, FALSE), VLOOKUP($C104, Metadata!$W$4:$Y$16, 3, FALSE)), "N/A") -> 2.088e-05 | G104: TRUE | H104: FALSE | I104: TRUE | J104: FALSE | K104: FALSE | M104: 50 | S104: =IFERROR(IF(E104 = 0, 0, MAX((E104 * F104) * (IF(I104 = TRUE, 1 - 'Loss Limit Discount'!$D$93, 1)), M104)), 0) -> 0
A105: Goods In Transit | B105: GIT | C105: Haulage Fees/Earnings | D105: Goods In Transit | F105: =IF($B$99 = "With RSCC", VLOOKUP($C105, Metadata!$W$4:$Y$16, 2, FALSE), VLOOKUP($C105, Metadata!$W$4:$Y$16, 3, FALSE)) -> 2.088e-05 | G105: TRUE | H105: FALSE | I105: TRUE | J105: FALSE | K105: FALSE | M105: 50 | S105: =IF(E105 = 0, 0, MAX((E105 * F105) * (IF(I105 = TRUE, 1 - 'Loss Limit Discount'!$D$93, 1)), M105)) -> 0
A106: Goods In Transit | B106: GIT | C106: Fixed and Non-adjustable Underlying Policy Premiums | D106: Goods In Transit | F106: =IF($B$99 = "With RSCC", VLOOKUP($C106, Metadata!$W$4:$Y$16, 2, FALSE), VLOOKUP($C106, Metadata!$W$4:$Y$16, 3, FALSE)) -> 0.017712 | G106: TRUE | H106: FALSE | I106: TRUE | J106: FALSE | K106: FALSE | M106: 50 | S106: =IF(E106 = 0, 0, MAX((E106 * F106) * (IF(I106 = TRUE, 1 - 'Loss Limit Discount'!$D$93, 1)), M106)) -> 0 | T106: 1644
A107: Goods In Transit | B107: =IF($B$99 = "With RSCC", "", "GIT") -> GIT | C107: =IF($B$99 = "With RSCC", "N/A", "Deliberate Storage") -> Deliberate Storage | D107: =IF($B$99 = "With RSCC", "", "Goods In Transit") -> Goods In Transit | F107: =_xlfn.IFNA(IF($B$99 = "With RSCC", VLOOKUP($C107, Metadata!$W$4:$Y$16, 2, FALSE), VLOOKUP($C107, Metadata!$W$4:$Y$16, 3, FALSE)), "N/A") -> 0 | G107: TRUE | H107: FALSE | I107: TRUE | J107: FALSE | K107: FALSE | M107: 50 | S107: =IFERROR(IF(E107 = 0, 0, MAX((E107 * F107) * (IF(I107 = TRUE, 1 - 'Loss Limit Discount'!$D$93, 1)), M107)), 0) -> 0
B108: ="Hull " & B99 -> Hull Without RSCC
A109: Goods In Transit | B109: GIT | C109: Pleasure Craft | D109: Goods In Transit | F109: =IF($B$99 = "With RSCC", VLOOKUP($C109, Metadata!$W$4:$Y$16, 2, FALSE), VLOOKUP($C109, Metadata!$W$4:$Y$16, 3, FALSE)) -> 1.5696e-05 | G109: TRUE | H109: FALSE | I109: TRUE | J109: FALSE | K109: FALSE | M109: 50 | N109: FALSE | P109: 6.05e-07 | Q109: FALSE | S109: =IF(E109 = 0, 0, MAX((E109 * F109) * (IF(I109 = TRUE, 1 - 'Loss Limit Discount'!$D$93, 1)), M109)) -> 0
A110: Goods In Transit | B110: GIT | C110: Commercial Vessels | D110: Goods In Transit | F110: =IF($B$99 = "With RSCC", VLOOKUP($C110, Metadata!$W$4:$Y$16, 2, FALSE), VLOOKUP($C110, Metadata!$W$4:$Y$16, 3, FALSE)) -> 2.088e-05 | G110: TRUE | H110: FALSE | I110: TRUE | J110: FALSE | K110: FALSE | M110: 50 | S110: =IF(E110 = 0, 0, MAX((E110 * F110) * (IF(I110 = TRUE, 1 - 'Loss Limit Discount'!$D$93, 1)), M110)) -> 0
A111: Goods In Transit | B111: GIT | C111: Builders Risk | D111: Goods In Transit | F111: =IF($B$99 = "With RSCC", VLOOKUP($C111, Metadata!$W$4:$Y$16, 2, FALSE), VLOOKUP($C111, Metadata!$W$4:$Y$16, 3, FALSE)) -> 1.7712e-05 | G111: TRUE | H111: FALSE | I111: TRUE | J111: FALSE | K111: FALSE | M111: 50 | S111: =IF(E111 = 0, 0, MAX((E111 * F111) * (IF(I111 = TRUE, 1 - 'Loss Limit Discount'!$D$93, 1)), M111)) -> 0
A112: Goods In Transit | B112: GIT | C112: Single Bouy Moorings | D112: Goods In Transit | F112: =IF($B$99 = "With RSCC", VLOOKUP($C112, Metadata!$W$4:$Y$16, 2, FALSE), VLOOKUP($C112, Metadata!$W$4:$Y$16, 3, FALSE)) -> 2.088e-05 | G112: TRUE | H112: FALSE | I112: TRUE | J112: FALSE | K112: FALSE | M112: 50 | S112: =IF(E112 = 0, 0, MAX((E112 * F112) * (IF(I112 = TRUE, 1 - 'Loss Limit Discount'!$D$93, 1)), M112)) -> 0
T113: 1654
B114: Contract Work / Construction Plant
B115: Contract Works | T115: 1657
A116: Contract Works | B116: CW | C116: =Input!$I$16 -> Over 48 months | D116: Contract Works | F116: 1.133e-05 | G116: TRUE | H116: FALSE | I116: FALSE | J116: TRUE | K116: TRUE | M116: 50 | N116: FALSE | P116: 7.26e-05 | Q116: FALSE | S116: =IF(E116 = 0, 0, MAX((E116 * F116) * (IF(I116 = TRUE, 1 - 'Loss Limit Discount'!$D$93, 1)) * (IF(K116 = TRUE, 1 - 'Contract Works Discount'!$D$101, 1)), M116)) -> 0 | T116: 1658
B117: Construction plant
A118: Contract Works | B118: CW | C118: On Fee Basis | D118: Contract Works | F118: 0.00019188 | G118: TRUE | H118: FALSE | I118: FALSE | J118: FALSE | K118: FALSE | M118: 50 | N118: FALSE | P118: 0.00123 | Q118: FALSE | S118: =IF(E118 = 0, 0, MAX((E118 * F118) * (IF(I118 = TRUE, 1 - 'Loss Limit Discount'!$D$38, 1)) * (IF(K118 = TRUE, 1 - 'Contract Works Discount'!$D$96, 1)), M118)) -> 0 | T118: 1665
A119: Contract Works | B119: CW | C119: On Value Basis | D119: Contract Works | F119: 5.663e-05 | G119: TRUE | H119: FALSE | I119: FALSE | J119: FALSE | K119: FALSE | M119: 50 | N119: FALSE | P119: 0.000363 | Q119: FALSE | S119: =IF(E119 = 0, 0, MAX((E119 * F119) * (IF(I119 = TRUE, 1 - 'Loss Limit Discount'!$D$38, 1)) * (IF(K119 = TRUE, 1 - 'Contract Works Discount'!$D$96, 1)), M119)) -> 0
B120: Mobile plant
A121: Contract Works | B121: CW | C121: On Value Basis | D121: Contract Works | F121: =F119 -> 5.663e-05 | G121: TRUE | H121: FALSE | I121: FALSE | J121: FALSE | K121: FALSE | M121: 50 | N121: FALSE | P121: 0.000363 | Q121: FALSE | S121: =IF(E121 = 0, 0, MAX((E121 * F121) * (IF(I121 = TRUE, 1 - 'Loss Limit Discount'!$D$38, 1)) * (IF(K121 = TRUE, 1 - 'Contract Works Discount'!$D$96, 1)), M121)) -> 0

Sheet Commercial - Annual
A1: Commercial - Annual | V1: Cells with green borders have a drop-down selection!
A2: Category | B2: Code | C2: Description | D2: Total Code | E2: Sum Insured/No. of insured items | F2: Rate | G2: Is Percent | H2: Add To Sum Insured Discount | I2: Receive Sum Insured Discount | J2: Add To CW Discount | K2: Receive CW Discount | L2: Contract Period Discount | M2: Minimum Premium | N2: Has Fire Extension Discount | O2: Amount within free extension threshold | P2: Special Dispensation Rate | Q2: N/A To Special Dispensation | R2: Unique Code | S2: Premium | T2: System ID
B3: Fire
A4: Commercial Fire | B4: F2 | C4: Commercial Fire | D4: Fire | F4: 0.00029058 | G4: TRUE | H4: TRUE | I4: TRUE | J4: FALSE | K4: FALSE | M4: 500 | N4: FALSE | P4: 3.63e-05 | Q4: FALSE | R4: CA001 | S4: =IF(E4 = 0, 0, MAX((E4 * F4) * (IF(I4 = TRUE, 1 - 'Loss Limit Discount'!$D$93, 1)) + ('Fire Extensions'!$I$25 * F4) * (1 - 'Loss Limit Discount'!$D$93), M4)) -> 0 | T4: 2
A5: Commercial Fire | B5: F4 | C5: Fire - SME | D5: Fire | F5: =_xlfn.IFNA(VLOOKUP(E5, Metadata!$P$43:$Q$46, 2, FALSE), 0) -> 0 | G5: FALSE | H5: FALSE | I5: FALSE | J5: FALSE | K5: FALSE | M5: 0 | S5: =F5 -> 0
A6: Extensions | B6: Sasria Extensions
A7: Extensions | B7: EX | C7: Rent | D7: Fire | F7: 0.00029058 | G7: TRUE | H7: TRUE | I7: TRUE | J7: FALSE | K7: FALSE | M7: 0 | N7: TRUE | O7: =IF(E7 < 'Fire Extensions'!$I$19, 'Commercial - Annual'!E7, 'Fire Extensions'!$I$19) -> 0 | P7: 3.63e-05 | Q7: TRUE | R7: CA002 | T7: 76
A8: Extensions | B8: EX | C8: Claims Preparation Costs | D8: Fire | F8: 0.00029058 | G8: TRUE | H8: TRUE | I8: TRUE | J8: FALSE | K8: FALSE | M8: 0 | N8: TRUE | O8: =IF(E8 < 'Fire Extensions'!$I$19, 'Commercial - Annual'!E8, 'Fire Extensions'!$I$19) -> 0 | P8: 3.63e-05 | Q8: TRUE | R8: CA003 | T8: 77
A9: Extensions | B9: EX | C9: Capital Additions | D9: Fire | F9: 0.00029058 | G9: TRUE | H9: TRUE | I9: TRUE | J9: FALSE | K9: FALSE | M9: 0 | N9: TRUE | O9: =IF(E9 < 'Fire Extensions'!$I$19, 'Commercial - Annual'!E9, 'Fire Extensions'!$I$19) -> 0 | P9: 3.63e-05 | Q9: TRUE | R9: CA004 | T9: 78
A10: Extensions | B10: EX | C10: Professional fees | D10: Fire | F10: 0.00029058 | G10: TRUE | H10: TRUE | I10: TRUE | J10: FALSE | K10: FALSE | M10: 0 | N10: TRUE | O10: =IF(E10 < 'Fire Extensions'!$I$19, 'Commercial - Annual'!E10, 'Fire Extensions'!$I$19) -> 0 | P10: 3.63e-05 | Q10: TRUE | R10: CA005 | T10: 79
A11: Extensions | B11: EX | C11: Clearance costs | D11: Fire | F11: 0.00029058 | G11: TRUE | H11: TRUE | I11: TRUE | J11: FALSE | K11: FALSE | M11: 0 | N11: TRUE | O11: =IF(E11 < 'Fire Extensions'!$I$19, 'Commercial - Annual'!E11, 'Fire Extensions'!$I$19) -> 0 | P11: 3.63e-05 | Q11: TRUE | R11: CA006 | T11: 80
A12: Extensions | B12: EX | C12: Security Costs (During and after a loss) | D12: Fire | F12: 0.00029058 | G12: TRUE | H12: TRUE | I12: TRUE | J12: FALSE | K12: FALSE | M12: 0 | N12: TRUE | O12: =IF(E12 < 'Fire Extensions'!$I$19, 'Commercial - Annual'!E12, 'Fire Extensions'!$I$19) -> 0 | P12: 3.63e-05 | Q12: TRUE | R12: CA007 | T12: 81
A13: Extensions | B13: EX | C13: Statutory Duties | D13: Fire | F13: 0.00029058 | G13: TRUE | H13: TRUE | I13: TRUE | J13: FALSE | K13: FALSE | M13: 0 | N13: TRUE | O13: =IF(E13 < 'Fire Extensions'!$I$19, 'Commercial - Annual'!E13, 'Fire Extensions'!$I$19) -> 0 | P13: 3.63e-05 | Q13: TRUE | R13: CA010 | T13: 85
A14: Extensions | B14: EX | C14: Additional Premises | D14: Fire | F14: 0.00029058 | G14: TRUE | H14: TRUE | I14: TRUE | J14: FALSE | K14: FALSE | M14: 0 | N14: TRUE | O14: =IF(E14 < 'Fire Extensions'!$I$19, 'Commercial - Annual'!E14, 'Fire Extensions'!$I$19) -> 0 | P14: 3.63e-05 | Q14: TRUE | R14: CA011 | T14: 86
A15: Extensions | B15: EX | C15: Acquisition Limits | D15: Fire | F15: 0.00029058 | G15: TRUE | H15: TRUE | I15: TRUE | J15: FALSE | K15: FALSE | M15: 0 | N15: TRUE | O15: =IF(E15 < 'Fire Extensions'!$I$19, 'Commercial - Annual'!E15, 'Fire Extensions'!$I$19) -> 0 | P15: 3.63e-05 | Q15: TRUE | R15: CA012 | T15: 87
A16: Extensions | B16: EX | C16: Import Surcharges | D16: Fire | F16: 0.00029058 | G16: TRUE | H16: TRUE | I16: TRUE | J16: FALSE | K16: FALSE | M16: 0 | N16: TRUE | O16: =IF(E16 < 'Fire Extensions'!$I$19, 'Commercial - Annual'!E16, 'Fire Extensions'!$I$19) -> 0 | P16: 3.63e-05 | Q16: TRUE | R16: CA014 | T16: 89
A17: Extensions | B17: EX | C17: Fire Protection System Update | D17: Fire | F17: 0.00029058 | G17: TRUE | H17: TRUE | I17: TRUE | J17: FALSE | K17: FALSE | M17: 0 | N17: TRUE | O17: =IF(E17 < 'Fire Extensions'!$I$19, 'Commercial - Annual'!E17, 'Fire Extensions'!$I$19) -> 0 | P17: 3.63e-05 | Q17: TRUE | R17: CA015 | T17: 90
A18: Extensions | B18: EX | C18: Goods in the open | D18: Fire | F18: 0.00029058 | G18: TRUE | H18: TRUE | I18: TRUE | J18: FALSE | K18: FALSE | M18: 0 | N18: TRUE | O18: =IF(E18 < 'Fire Extensions'!$I$19, 'Commercial - Annual'!E18, 'Fire Extensions'!$I$19) -> 0 | P18: 3.63e-05 | Q18: TRUE | R18: CA019 | T18: 94
A19: Extensions | B19: EX | C19: Fire Extinguishing | D19: Fire | F19: 0.00029058 | G19: TRUE | H19: TRUE | I19: TRUE | J19: FALSE | K19: FALSE | M19: 0 | N19: TRUE | O19: =IF(E19 < 'Fire Extensions'!$I$19, 'Commercial - Annual'!E19, 'Fire Extensions'!$I$19) -> 0 | P19: 3.63e-05 | Q19: TRUE | R19: CA020 | T19: 95
A20: Extensions | B20: EX | C20: Imminent Danger (Protection of property prior a loss) | D20: Fire | F20: 0.00029058 | G20: TRUE | H20: TRUE | I20: TRUE | J20: FALSE | K20: FALSE | M20: 0 | N20: TRUE | O20: =IF(E20 < 'Fire Extensions'!$I$19, 'Commercial - Annual'!E20, 'Fire Extensions'!$I$19) -> 0 | P20: 0 | Q20: TRUE | T20: 2872
A21: Extensions | B21: Other Extensions
A22: Other Extension | B22: EX | C22: Other | D22: Fire | F22: 0.00029058 | G22: TRUE | H22: TRUE | I22: TRUE | J22: FALSE | K22: FALSE | M22: 0 | N22: TRUE | O22: =IF(E22 < 'Fire Extensions'!$I$19, 'Commercial - Annual'!E22, 'Fire Extensions'!$I$19) -> 0 | P22: 3.63e-05 | Q22: TRUE | R22: CA021 | T22: 96
A23: Other Extension | B23: EX | C23: Other | D23: Fire | F23: 0.00029058 | G23: TRUE | H23: TRUE | I23: TRUE | J23: FALSE | K23: FALSE | M23: 0 | N23: TRUE | O23: =IF(E23 < 'Fire Extensions'!$I$19, 'Commercial - Annual'!E23, 'Fire Extensions'!$I$19) -> 0 | P23: 3.63e-05 | Q23: TRUE | R23: CA022 | T23: 97
A24: Other Extension | B24: EX | C24: Other | D24: Fire | F24: 0.00029058 | G24: TRUE | H24: TRUE | I24: TRUE | J24: FALSE | K24: FALSE | M24: 0 | N24: TRUE | O24: =IF(E24 < 'Fire Extensions'!$I$19, 'Commercial - Annual'!E24, 'Fire Extensions'!$I$19) -> 0 | P24: 3.63e-05 | Q24: TRUE | R24: CA023 | T24: 98
A25: Other Extension | B25: EX | C25: Other | D25: Fire | F25: 0.00029058 | G25: TRUE | H25: TRUE | I25: TRUE | J25: FALSE | K25: FALSE | M25: 0 | N25: TRUE | O25: =IF(E25 < 'Fire Extensions'!$I$19, 'Commercial - Annual'!E25, 'Fire Extensions'!$I$19) -> 0 | P25: 3.63e-05 | Q25: TRUE | R25: CA024 | T25: 99
A26: Other Extension | B26: EX | C26: Other | D26: Fire | F26: 0.00029058 | G26: TRUE | H26: TRUE | I26: TRUE | J26: FALSE | K26: FALSE | M26: 0 | N26: TRUE | O26: =IF(E26 < 'Fire Extensions'!$I$19, 'Commercial - Annual'!E26, 'Fire Extensions'!$I$19) -> 0 | P26: 3.63e-05 | Q26: TRUE | R26: CA025 | T26: 100
A27: Other Extension | B27: EX | C27: Other | D27: Fire | F27: 0.00029058 | G27: TRUE | H27: TRUE | I27: TRUE | J27: FALSE | K27: FALSE | M27: 0 | N27: TRUE | O27: =IF(E27 < 'Fire Extensions'!$I$19, 'Commercial - Annual'!E27, 'Fire Extensions'!$I$19) -> 0 | P27: 3.63e-05 | Q27: TRUE | R27: CA026 | T27: 101
A28: Other Extension | B28: EX | C28: Other | D28: Fire | F28: 0.00029058 | G28: TRUE | H28: TRUE | I28: TRUE | J28: FALSE | K28: FALSE | M28: 0 | N28: TRUE | O28: =IF(E28 < 'Fire Extensions'!$I$19, 'Commercial - Annual'!E28, 'Fire Extensions'!$I$19) -> 0 | P28: 3.63e-05 | Q28: TRUE | R28: CA027 | T28: 102
A29: Other Extension | B29: EX | C29: Other | D29: Fire | F29: 0.00029058 | G29: TRUE | H29: TRUE | I29: TRUE | J29: FALSE | K29: FALSE | M29: 0 | N29: TRUE | O29: =IF(E29 < 'Fire Extensions'!$I$19, 'Commercial - Annual'!E29, 'Fire Extensions'!$I$19) -> 0 | P29: 3.63e-05 | Q29: TRUE | R29: CA028 | T29: 103
A30: Other Extension | B30: EX | C30: Other | D30: Fire | F30: 0.00029058 | G30: TRUE | H30: TRUE | I30: TRUE | J30: FALSE | K30: FALSE | M30: 0 | N30: TRUE | O30: =IF(E30 < 'Fire Extensions'!$I$19, 'Commercial - Annual'!E30, 'Fire Extensions'!$I$19) -> 0 | P30: 3.63e-05 | Q30: TRUE | R30: CA029 | T30: 104
A31: Other Extension | B31: EX | C31: Other | D31: Fire | F31: 0.00029058 | G31: TRUE | H31: TRUE | I31: TRUE | J31: FALSE | K31: FALSE | M31: 0 | N31: TRUE | O31: =IF(E31 < 'Fire Extensions'!$I$19, 'Commercial - Annual'!E31, 'Fire Extensions'!$I$19) -> 0 | P31: 3.63e-05 | Q31: TRUE | R31: CA030 | T31: 105
A32: Other Extension | B32: EX | C32: Other | D32: Fire | F32: 0.00029058 | G32: TRUE | H32: TRUE | I32: TRUE | J32: FALSE | K32: FALSE | M32: 0 | N32: TRUE | O32: =IF(E32 < 'Fire Extensions'!$I$19, 'Commercial - Annual'!E32, 'Fire Extensions'!$I$19) -> 0 | P32: 3.63e-05 | Q32: TRUE | R32: CA031 | T32: 106
A33: Other Extension | B33: EX | C33: Other | D33: Fire | F33: 0.00029058 | G33: TRUE | H33: TRUE | I33: TRUE | J33: FALSE | K33: FALSE | M33: 0 | N33: TRUE | O33: =IF(E33 < 'Fire Extensions'!$I$19, 'Commercial - Annual'!E33, 'Fire Extensions'!$I$19) -> 0 | P33: 3.63e-05 | Q33: TRUE | R33: CA032 | T33: 107
A34: Other Extension | B34: EX | C34: Other | D34: Fire | F34: 0.00029058 | G34: TRUE | H34: TRUE | I34: TRUE | J34: FALSE | K34: FALSE | M34: 0 | N34: TRUE | O34: =IF(E34 < 'Fire Extensions'!$I$19, 'Commercial - Annual'!E34, 'Fire Extensions'!$I$19) -> 0 | P34: 3.63e-05 | Q34: TRUE | R34: CA033 | T34: 108
A35: Other Extension | B35: EX | C35: Other | D35: Fire | F35: 0.00029058 | G35: TRUE | H35: TRUE | I35: TRUE | J35: FALSE | K35: FALSE | M35: 0 | N35: TRUE | O35: =IF(E35 < 'Fire Extensions'!$I$19, 'Commercial - Annual'!E35, 'Fire Extensions'!$I$19) -> 0 | P35: 3.63e-05 | Q35: TRUE | R35: CA034 | T35: 109
A36: Other Extension | B36: EX | C36: Other | D36: Fire | F36: 0.00029058 | G36: TRUE | H36: TRUE | I36: TRUE | J36: FALSE | K36: FALSE | M36: 0 | N36: TRUE | O36: =IF(E36 < 'Fire Extensions'!$I$19, 'Commercial - Annual'!E36, 'Fire Extensions'!$I$19) -> 0 | P36: 3.63e-05 | Q36: TRUE | R36: CA035 | T36: 110
A37: Other Extension | B37: EX | C37: Other | D37: Fire | F37: 0.00029058 | G37: TRUE | H37: TRUE | I37: TRUE | J37: FALSE | K37: FALSE | M37: 0 | N37: TRUE | O37: =IF(E37 < 'Fire Extensions'!$I$19, 'Commercial - Annual'!E37, 'Fire Extensions'!$I$19) -> 0 | P37: 3.63e-05 | Q37: TRUE | R37: CA036 | T37: 111
A38: Other Extension | B38: EX | C38: Other | D38: Fire | F38: 0.00029058 | G38: TRUE | H38: TRUE | I38: TRUE | J38: FALSE | K38: FALSE | M38: 0 | N38: TRUE | O38: =IF(E38 < 'Fire Extensions'!$I$19, 'Commercial - Annual'!E38, 'Fire Extensions'!$I$19) -> 0 | P38: 3.63e-05 | Q38: TRUE | R38: CA037 | T38: 112
A39: Other Extension | B39: EX | C39: Other | D39: Fire | F39: 0.00029058 | G39: TRUE | H39: TRUE | I39: TRUE | J39: FALSE | K39: FALSE | M39: 0 | N39: TRUE | O39: =IF(E39 < 'Fire Extensions'!$I$19, 'Commercial - Annual'!E39, 'Fire Extensions'!$I$19) -> 0 | P39: 3.63e-05 | Q39: TRUE | R39: CA038 | T39: 113
A40: Other Extension | B40: EX | C40: Other | D40: Fire | F40: 0.00029058 | G40: TRUE | H40: TRUE | I40: TRUE | J40: FALSE | K40: FALSE | M40: 0 | N40: TRUE | O40: =IF(E40 < 'Fire Extensions'!$I$19, 'Commercial - Annual'!E40, 'Fire Extensions'!$I$19) -> 0 | P40: 3.63e-05 | Q40: TRUE | R40: CA039 | T40: 114
A41: Other Extension | B41: EX | C41: Other | D41: Fire | F41: 0.00029058 | G41: TRUE | H41: TRUE | I41: TRUE | J41: FALSE | K41: FALSE | M41: 0 | N41: TRUE | O41: =IF(E41 < 'Fire Extensions'!$I$19, 'Commercial - Annual'!E41, 'Fire Extensions'!$I$19) -> 0 | P41: 3.63e-05 | Q41: TRUE | R41: CA040 | T41: 115
A42: Other Extension | B42: EX | C42: Other | D42: Fire | F42: 0.00029058 | G42: TRUE | H42: TRUE | I42: TRUE | J42: FALSE | K42: FALSE | M42: 0 | N42: TRUE | O42: =IF(E42 < 'Fire Extensions'!$I$19, 'Commercial - Annual'!E42, 'Fire Extensions'!$I$19) -> 0 | P42: 3.63e-05 | Q42: TRUE | R42: CA041 | T42: 116
A43: Other Extension | B43: EX | C43: Other | D43: Fire | F43: 0.00029058 | G43: TRUE | H43: TRUE | I43: TRUE | J43: FALSE | K43: FALSE | M43: 0 | N43: TRUE | O43: =IF(E43 < 'Fire Extensions'!$I$19, 'Commercial - Annual'!E43, 'Fire Extensions'!$I$19) -> 0 | P43: 3.63e-05 | Q43: TRUE | R43: CA042 | T43: 117
A44: Other Extension | B44: EX | C44: Other | D44: Fire | F44: 0.00029058 | G44: TRUE | H44: TRUE | I44: TRUE | J44: FALSE | K44: FALSE | M44: 0 | N44: TRUE | O44: =IF(E44 < 'Fire Extensions'!$I$19, 'Commercial - Annual'!E44, 'Fire Extensions'!$I$19) -> 0 | P44: 3.63e-05 | Q44: TRUE | R44: CA043 | T44: 118
A45: Other Extension | B45: EX | C45: Other | D45: Fire | F45: 0.00029058 | G45: TRUE | H45: TRUE | I45: TRUE | J45: FALSE | K45: FALSE | M45: 0 | N45: TRUE | O45: =IF(E45 < 'Fire Extensions'!$I$19, 'Commercial - Annual'!E45, 'Fire Extensions'!$I$19) -> 0 | P45: 3.63e-05 | Q45: TRUE | R45: CA044 | T45: 119
A46: Other Extension | B46: EX | C46: Other | D46: Fire | F46: 0.00029058 | G46: TRUE | H46: TRUE | I46: TRUE | J46: FALSE | K46: FALSE | M46: 0 | N46: TRUE | O46: =IF(E46 < 'Fire Extensions'!$I$19, 'Commercial - Annual'!E46, 'Fire Extensions'!$I$19) -> 0 | P46: 3.63e-05 | Q46: TRUE | R46: CA045 | T46: 120
A47: Other Extension | B47: EX | C47: Other | D47: Fire | F47: 0.00029058 | G47: TRUE | H47: TRUE | I47: TRUE | J47: FALSE | K47: FALSE | M47: 0 | N47: TRUE | O47: =IF(E47 < 'Fire Extensions'!$I$19, 'Commercial - Annual'!E47, 'Fire Extensions'!$I$19) -> 0 | P47: 3.63e-05 | Q47: TRUE | R47: CA046 | T47: 121
A48: Other Extension | B48: EX | C48: Other | D48: Fire | F48: 0.00029058 | G48: TRUE | H48: TRUE | I48: TRUE | J48: FALSE | K48: FALSE | M48: 0 | N48: TRUE | O48: =IF(E48 < 'Fire Extensions'!$I$19, 'Commercial - Annual'!E48, 'Fire Extensions'!$I$19) -> 0 | P48: 3.63e-05 | Q48: TRUE | R48: CA047 | T48: 122
A49: Other Extension | B49: EX | C49: Other | D49: Fire | F49: 0.00029058 | G49: TRUE | H49: TRUE | I49: TRUE | J49: FALSE | K49: FALSE | M49: 0 | N49: TRUE | O49: =IF(E49 < 'Fire Extensions'!$I$19, 'Commercial - Annual'!E49, 'Fire Extensions'!$I$19) -> 0 | P49: 3.63e-05 | Q49: TRUE | R49: CA048 | T49: 123
A50: Other Extension | B50: EX | C50: Other | D50: Fire | F50: 0.00029058 | G50: TRUE | H50: TRUE | I50: TRUE | J50: FALSE | K50: FALSE | M50: 0 | N50: TRUE | O50: =IF(E50 < 'Fire Extensions'!$I$19, 'Commercial - Annual'!E50, 'Fire Extensions'!$I$19) -> 0 | P50: 3.63e-05 | Q50: TRUE | R50: CA049 | T50: 124
A51: Other Extension | B51: EX | C51: Other | D51: Fire | F51: 0.00029058 | G51: TRUE | H51: TRUE | I51: TRUE | J51: FALSE | K51: FALSE | M51: 0 | N51: TRUE | O51: =IF(E51 < 'Fire Extensions'!$I$19, 'Commercial - Annual'!E51, 'Fire Extensions'!$I$19) -> 0 | P51: 3.63e-05 | Q51: TRUE | R51: CA050 | T51: 125
B52: Escalation and or Inflation
A53: Escalation UL | B53: Charge on U/L
A54: Escalation UL | C54: First Year (90-100%) | D54: Fire | F54: =IF(C54 = "", 0, VLOOKUP(C54, Escalation!$H$59:$I$103, 2, FALSE)) -> 0.00029058 | G54: TRUE | H54: FALSE | I54: TRUE | J54: FALSE | K54: FALSE | M54: 0 | P54: 0 | Q54: TRUE | R54: CA051 | S54: =IF(E54 = 0, 0, MAX((E54 * F54) * (IF(I54 = TRUE, 1 - 'Loss Limit Discount'!$D$93, 1)) * (IF(K54 = TRUE, 1 - 'Contract Works Discount'!$L$11, 1)), M54)) -> 0 | T54: 1690
A55: Escalation UL | C55: Second Year (90-100%) | D55: Fire | F55: =IF(C55 = "", 0, VLOOKUP(C55, Escalation!$H$59:$I$103, 2, FALSE)) -> 0.00014529 | G55: TRUE | H55: FALSE | I55: TRUE | J55: FALSE | K55: FALSE | M55: 0 | P55: 0 | Q55: TRUE | R55: CA052 | S55: =IF(E55 = 0, 0, MAX((E55 * F55) * (IF(I55 = TRUE, 1 - 'Loss Limit Discount'!$D$93, 1)) * (IF(K55 = TRUE, 1 - 'Contract Works Discount'!$L$11, 1)), M55)) -> 0 | T55: 1691
A56: Escalation UL | C56: Third Year (90-100%) | D56: Fire | F56: =IF(C56 = "", 0, VLOOKUP(C56, Escalation!$H$59:$I$103, 2, FALSE)) -> 7.2645e-05 | G56: TRUE | H56: FALSE | I56: TRUE | J56: FALSE | K56: FALSE | M56: 0 | P56: 0 | Q56: TRUE | R56: CA053 | S56: =IF(E56 = 0, 0, MAX((E56 * F56) * (IF(I56 = TRUE, 1 - 'Loss Limit Discount'!$D$93, 1)) * (IF(K56 = TRUE, 1 - 'Contract Works Discount'!$L$11, 1)), M56)) -> 0 | T56: 1692
A57: Escalation UL | C57: Fourth Year (90-100%) | D57: Fire | F57: =IF(C57 = "", 0, VLOOKUP(C57, Escalation!$H$59:$I$103, 2, FALSE)) -> 5.8116e-05 | G57: TRUE | H57: FALSE | I57: TRUE | J57: FALSE | K57: FALSE | M57: 0 | P57: 0 | Q57: TRUE | R57: CA054 | S57: =IF(E57 = 0, 0, MAX((E57 * F57) * (IF(I57 = TRUE, 1 - 'Loss Limit Discount'!$D$93, 1)) * (IF(K57 = TRUE, 1 - 'Contract Works Discount'!$L$11, 1)), M57)) -> 0 | T57: 1693
A58: Escalation UL | C58: Fifth Year (90-100%) | D58: Fire | F58: =IF(C58 = "", 0, VLOOKUP(C58, Escalation!$H$59:$I$103, 2, FALSE)) -> 4.3587e-05 | G58: TRUE | H58: FALSE | I58: TRUE | J58: FALSE | K58: FALSE | M58: 0 | P58: 0 | Q58: TRUE | R58: CA055 | S58: =IF(E58 = 0, 0, MAX((E58 * F58) * (IF(I58 = TRUE, 1 - 'Loss Limit Discount'!$D$93, 1)) * (IF(K58 = TRUE, 1 - 'Contract Works Discount'!$L$11, 1)), M58)) -> 0 | T58: 1694
A59: Escalation Not UL | B59: Not Charge on U/L
A60: Escalation Not UL | C60: First Year | D60: Fire | F60: =$F$4 -> 0.00029058 | G60: TRUE | H60: FALSE | I60: TRUE | J60: FALSE | K60: FALSE | M60: 0 | P60: 3.63e-05 | Q60: FALSE | R60: CA096 | S60: =IF(E60 = 0, 0, MAX((E60 * F60) * (IF(I60 = TRUE, 1 - 'Loss Limit Discount'!$D$93, 1)) * (IF(K60 = TRUE, 1 - 'Contract Works Discount'!$L$11, 1)), M60)) -> 0 | T60: 67
A61: Escalation Not UL | C61: Second Year | D61: Fire | F61: =$F$4 * 0.5 -> 0.00014529 | G61: TRUE | H61: FALSE | I61: TRUE | J61: FALSE | K61: FALSE | M61: 0 | P61: 1.82e-05 | Q61: FALSE | R61: CA097 | S61: =IF(E61 = 0, 0, MAX((E61 * F61) * (IF(I61 = TRUE, 1 - 'Loss Limit Discount'!$D$93, 1)) * (IF(K61 = TRUE, 1 - 'Contract Works Discount'!$L$11, 1)), M61)) -> 0 | T61: 68
A62: Escalation Not UL | C62: Third Year | D62: Fire | F62: =$F$4 * 0.25 -> 7.2645e-05 | G62: TRUE | H62: FALSE | I62: TRUE | J62: FALSE | K62: FALSE | M62: 0 | P62: 9.08e-06 | Q62: FALSE | R62: CA098 | S62: =IF(E62 = 0, 0, MAX((E62 * F62) * (IF(I62 = TRUE, 1 - 'Loss Limit Discount'!$D$93, 1)) * (IF(K62 = TRUE, 1 - 'Contract Works Discount'!$L$11, 1)), M62)) -> 0 | T62: 69
A63: Escalation Not UL | C63: Fourth Year | D63: Fire | F63: =$F$4 * 0.2 -> 5.8116e-05 | G63: TRUE | H63: FALSE | I63: TRUE | J63: FALSE | K63: FALSE | M63: 0 | P63: 7.26e-06 | Q63: FALSE | R63: CA099 | S63: =IF(E63 = 0, 0, MAX((E63 * F63) * (IF(I63 = TRUE, 1 - 'Loss Limit Discount'!$D$93, 1)) * (IF(K63 = TRUE, 1 - 'Contract Works Discount'!$L$11, 1)), M63)) -> 0 | T63: 70
A64: Escalation Not UL | C64: Fifth Year | D64: Fire | F64: =$F$4 * 0.15 -> 4.3587e-05 | G64: TRUE | H64: FALSE | I64: TRUE | J64: FALSE | K64: FALSE | M64: 0 | P64: 5.45e-06 | Q64: FALSE | R64: CA100 | S64: =IF(E64 = 0, 0, MAX((E64 * F64) * (IF(I64 = TRUE, 1 - 'Loss Limit Discount'!$D$93, 1)) * (IF(K64 = TRUE, 1 - 'Contract Works Discount'!$L$11, 1)), M64)) -> 0 | T64: 71
B66: Business Interruption
B67: Advance Specified Standing Charges
A68: Business Interruption | B68: ASC | C68: 12 Months | D68: Advance Standing Charges | F68: =_xlfn.IFNA(VLOOKUP(C68, Metadata!$P$2:$Q$5, 2, FALSE),0) -> 0.00064 | G68: TRUE | H68: FALSE | I68: FALSE | J68: TRUE | K68: TRUE | M68: 50 | N68: FALSE | P68: 0.00064 | Q68: TRUE | R68: CA101 | S68: =IF(E68 = 0, 0, MAX((E68 * F68) * (IF(I68 = TRUE, 1 - 'Loss Limit Discount'!$D$93, 1)) * (IF(K68 = TRUE, 1 - 'Contract Works Discount'!$D$101, 1)), M68)) -> 0 | T68: 5
B69: Specified Standing Charges
A70: Business Interruption | B70: SC | C70: 12 Months | D70: Standing Charges | F70: =_xlfn.IFNA(VLOOKUP(C70, Metadata!$P$7:$Q$14, 2, FALSE),0) -> 0.00064 | G70: TRUE | H70: TRUE | I70: TRUE | J70: FALSE | K70: FALSE | M70: 50 | N70: FALSE | P70: 3.63e-05 | Q70: FALSE | R70: CA105 | S70: =IF(E70 = 0, 0, MAX((E70 * F70) * (IF(I70 = TRUE, 1 - 'Loss Limit Discount'!$D$93, 1)) * (IF(K70 = TRUE, 1 - 'Contract Works Discount'!$L$11, 1)), M70)) -> 0 | T70: 577
A71: Business Interruption | B71: AICOW | C71: Additional Increase In Cost Of Working | D71: Standing Charges | F71: =F70 * 1.5 -> 0.00096 | G71: TRUE | H71: TRUE | I71: TRUE | J71: FALSE | K71: FALSE | M71: 0 | N71: FALSE | P71: 0 | Q71: TRUE | R71: CA113 | S71: =IF(E71 = 0, 0, MAX((E71 * F71) * (IF(I71 = TRUE, 1 - 'Loss Limit Discount'!$D$93, 1)) * (IF(K71 = TRUE, 1 - 'Contract Works Discount'!$L$11, 1)), M71)) -> 0 | T71: 396
B72: Working Expenses
A73: Business Interruption | B73: WE | C73: 12 Months | D73: Working Expenses | F73: =_xlfn.IFNA(VLOOKUP(C73, Metadata!$P$16:$Q$23, 2, FALSE),0) -> 0.00064 | G73: TRUE | H73: TRUE | I73: TRUE | J73: FALSE | K73: FALSE | M73: 50 | N73: FALSE | P73: 3.63e-05 | Q73: TRUE | R73: CA114 | S73: =IF(E73 = 0, 0, MAX((E73 * F73) * (IF(I73 = TRUE, 1 - 'Loss Limit Discount'!$D$93, 1)) * (IF(K73 = TRUE, 1 - 'Contract Works Discount'!$L$11, 1)), M73)) -> 0 | T73: 137
A74: Business Interruption | B74: AICOW | C74: Additional Increase In Cost Of Working | D74: Working Expenses | F74: =F73 * 1.5 -> 0.00096 | G74: TRUE | H74: TRUE | I74: TRUE | J74: FALSE | K74: FALSE | M74: 0 | N74: FALSE | P74: 0 | Q74: TRUE | R74: CA122 | S74: =IF(E74 = 0, 0, MAX((E74 * F74) * (IF(I74 = TRUE, 1 - 'Loss Limit Discount'!$D$93, 1)) * (IF(K74 = TRUE, 1 - 'Contract Works Discount'!$L$11, 1)), M74)) -> 0 | T74: 55
B75: Revenue
A76: Business Interruption | B76: R | C76: 12 Months | D76: Revenue | F76: =_xlfn.IFNA(VLOOKUP(C76, Metadata!$P$48:$Q$55, 2, FALSE),0) -> 0.00064 | G76: TRUE | H76: TRUE | I76: TRUE | J76: FALSE | K76: FALSE | M76: 50 | N76: FALSE | P76: 3.63e-05 | Q76: TRUE | R76: CA123 | S76: =IF(E76 = 0, 0, MAX((E76 * F76) * (IF(I76 = TRUE, 1 - 'Loss Limit Discount'!$D$93, 1)) * (IF(K76 = TRUE, 1 - 'Contract Works Discount'!$L$11, 1)), M76)) -> 0 | T76: 47
A77: Business Interruption | B77: AICOW | C77: Additional Increase In Cost Of Working | D77: Revenue | F77: =F76 * 1.5 -> 0.00096 | G77: TRUE | H77: TRUE | I77: TRUE | J77: FALSE | K77: FALSE | M77: 0 | N77: FALSE | P77: 0 | Q77: TRUE | R77: CA131 | S77: =IF(E77 = 0, 0, MAX((E77 * F77) * (IF(I77 = TRUE, 1 - 'Loss Limit Discount'!$D$93, 1)) * (IF(K77 = TRUE, 1 - 'Contract Works Discount'!$L$11, 1)), M77)) -> 0 | T77: 1670
B78: Net Profit
A79: Business Interruption | B79: NP | C79: 12 Months | D79: Net Profit | F79: =_xlfn.IFNA(VLOOKUP(C79, Metadata!$P$25:$Q$32, 2, FALSE),0) -> 0.00064 | G79: TRUE | H79: TRUE | I79: TRUE | J79: FALSE | K79: FALSE | M79: 50 | N79: FALSE | P79: 3.63e-05 | Q79: TRUE | R79: CA123 | S79: =IF(E79 = 0, 0, MAX((E79 * F79) * (IF(I79 = TRUE, 1 - 'Loss Limit Discount'!$D$93, 1)) * (IF(K79 = TRUE, 1 - 'Contract Works Discount'!$L$11, 1)), M79)) -> 0 | T79: 47
A80: Business Interruption | B80: AICOW | C80: Additional Increase In Cost Of Working | D80: Net Profit | F80: =F79 * 1.5 -> 0.00096 | G80: TRUE | H80: TRUE | I80: TRUE | J80: FALSE | K80: FALSE | M80: 0 | N80: FALSE | P80: 0 | Q80: TRUE | R80: CA131 | S80: =IF(E80 = 0, 0, MAX((E80 * F80) * (IF(I80 = TRUE, 1 - 'Loss Limit Discount'!$D$93, 1)) * (IF(K80 = TRUE, 1 - 'Contract Works Discount'!$L$11, 1)), M80)) -> 0 | T80: 1670
B81: Gross Profit
A82: Business Interruption | B82: GP | C82: 12 Months | D82: Gross Profit | F82: =_xlfn.IFNA(VLOOKUP(C82, Metadata!$P$34:$Q$41, 2, FALSE),0) -> 0.00064 | G82: TRUE | H82: TRUE | I82: TRUE | J82: FALSE | K82: FALSE | M82: 50 | N82: FALSE | P82: 0.000436 | Q82: TRUE | R82: CA132 | S82: =IF(E82 = 0, 0, MAX((E82 * F82) * (IF(I82 = TRUE, 1 - 'Loss Limit Discount'!$D$93, 1)) * (IF(K82 = TRUE, 1 - 'Contract Works Discount'!$L$11, 1)), M82)) -> 0 | T82: 1587
A83: Business Interruption | B83: AICOW | C83: Additional Increase In Cost Of Working | D83: Gross Profit | F83: =F82 * 1.5 -> 0.00096 | G83: TRUE | H83: TRUE | I83: TRUE | J83: FALSE | K83: FALSE | M83: 0 | N83: FALSE | P83: 0 | Q83: TRUE | R83: CA140 | S83: =IF(E83 = 0, 0, MAX((E83 * F83) * (IF(I83 = TRUE, 1 - 'Loss Limit Discount'!$D$93, 1)) * (IF(K83 = TRUE, 1 - 'Contract Works Discount'!$L$11, 1)), M83)) -> 0 | T83: 1666
B86: Motor
A87: Motor | B87: M1 | C87: Cars (Primary use: Domestic/Private) | D87: Motor | F87: 20.18 | G87: FALSE | H87: FALSE | I87: FALSE | J87: FALSE | K87: FALSE | M87: 20.18 | N87: FALSE | P87: 20.18 | Q87: TRUE | R87: CA141 | S87: =IF(E87 = 0, 0, MAX((F87 * E87) * (IF(I87 = TRUE, 1 - 'Loss Limit Discount'!$D$93, 1)) * (IF(K87 = TRUE, 1 - 'Contract Works Discount'!$L$11, 1)), M87 * E87)) -> 0 | T87: 11
A88: Motor | B88: M2 | C88: Light Commercial Vehicles (3500kg GVM or less) | D88: Motor | F88: 0.00070621 | G88: FALSE | H88: FALSE | I88: FALSE | J88: FALSE | K88: FALSE | M88: 45.39 | N88: FALSE | P88: 45.39 | Q88: TRUE | R88: CA142 | S88: =IF(E88 = 0, 0, MAX((F88 * E88) * (IF(I88 = TRUE, 1 - 'Loss Limit Discount'!$D$93, 1)) * (IF(K88 = TRUE, 1 - 'Contract Works Discount'!$L$11, 1)), M88)) -> 0 | T88: 12
A89: Motor | B89: M3 | C89: Taxis | D89: Motor | F89: 0.00021297 | G89: FALSE | H89: FALSE | I89: FALSE | J89: FALSE | K89: FALSE | M89: 45.39 | N89: FALSE | P89: 45.39 | Q89: TRUE | R89: CA143 | S89: =IF(E89 = 0, 0, MAX((F89 * E89) * (IF(I89 = TRUE, 1 - 'Loss Limit Discount'!$D$93, 1)) * (IF(K89 = TRUE, 1 - 'Contract Works Discount'!$L$11, 1)), M89)) -> 0 | T89: 13
A90: Motor | B90: M4 | C90: Ferries & Traders | D90: Motor | F90: 8.68e-05 | G90: TRUE | H90: FALSE | I90: FALSE | J90: FALSE | K90: FALSE | M90: 100 | N90: FALSE | P90: 8.68e-05 | Q90: TRUE | R90: CA144 | S90: =IF(E90 = 0, 0, MAX((E90 * F90) * (IF(I90 = TRUE, 1 - 'Loss Limit Discount'!$D$93, 1)) * (IF(K90 = TRUE, 1 - 'Contract Works Discount'!$L$11, 1)), M90)) -> 0 | T90: 14
A91: Motor | B91: M5 | C91: Buses | D91: Motor | F91: 0.00564987 | G91: TRUE | H91: FALSE | I91: FALSE | J91: FALSE | K91: FALSE | M91: 2000 | N91: FALSE | P91: 0.00404 | Q91: TRUE | R91: CA145 | S91: =IF(E91 = 0, 0, MAX((E91 * F91) * (IF(I91 = TRUE, 1 - 'Loss Limit Discount'!$D$93, 1)) * (IF(K91 = TRUE, 1 - 'Contract Works Discount'!$L$11, 1)), M91)) -> 0 | T91: 15
A92: Motor | B92: M6 | C92: Mobile Plant | D92: Motor | F92: 0.00056628 | G92: TRUE | H92: FALSE | I92: FALSE | J92: FALSE | K92: FALSE | M92: 500 | N92: FALSE | P92: 0.000363 | Q92: TRUE | R92: CA146 | S92: =IF(E92 = 0, 0, MAX((E92 * F92) * (IF(I92 = TRUE, 1 - 'Loss Limit Discount'!$D$93, 1)) * (IF(K92 = TRUE, 1 - 'Contract Works Discount'!$L$11, 1)), M92)) -> 0 | T92: 16
A93: Motor | B93: M8 | C93: Heavy Commercial Vehicles (>3500kg GVM) | D93: Motor | F93: 0.00345057 | G93: TRUE | H93: FALSE | I93: FALSE | J93: FALSE | K93: FALSE | M93: 54.47 | N93: FALSE | P93: 0.0001879 | Q93: TRUE | S93: =IF(E93 = 0, 0, MAX((E93 * F93) * (IF(I93 = TRUE, 1 - 'Loss Limit Discount'!$D$93, 1)) * (IF(K93 = TRUE, 1 - 'Contract Works Discount'!$L$11, 1)), M93)) -> 0
B95: Money
A96: Motor | B96: MON | C96: Money | D96: Money | F96: 0.00726 | G96: TRUE | H96: FALSE | I96: TRUE | J96: FALSE | K96: FALSE | M96: 50 | N96: FALSE | P96: 0.00726 | Q96: TRUE | R96: CA153 | S96: =IF(E96 = 0, 0, MAX((E96 * F96) * (IF(I96 = TRUE, 1 - 'Loss Limit Discount'!$D$93, 1)) * (IF(K96 = TRUE, 1 - 'Contract Works Discount'!$L$11, 1)), M96)) -> 0 | T96: 25
B98: Goods In Transit & Marine Cargo
B99: Without RSCC
B100: ="Marine " & B99 -> Marine Without RSCC
A101: Goods In Transit | B101: GIT | C101: Marine Cargo & Goods in Transit | D101: Goods In Transit | F101: =IF($B$99 = "With RSCC", VLOOKUP($C101, Metadata!$AA$4:$AC$16, 2, FALSE), VLOOKUP($C101, Metadata!$AA$4:$AC$16, 3, FALSE)) -> 2.088e-05 | G101: TRUE | H101: FALSE | I101: TRUE | J101: FALSE | K101: FALSE | M101: 500 | N101: FALSE | P101: 7.26e-06 | Q101: FALSE | R101: CA154 | S101: =IF(E101 = 0, 0, MAX((E101 * F101) * (IF(I101 = TRUE, 1 - 'Loss Limit Discount'!$D$93, 1)) * (IF(K101 = TRUE, 1 - 'Contract Works Discount'!$L$11, 1)), M101)) -> 0 | T101: 1621
A102: Goods In Transit | B102: =IF($B$99 = "With RSCC", "", "GIT") -> GIT | C102: =IF($B$99 = "With RSCC", "N/A", "Storage at final w/house or depot") -> Storage at final w/house or depot | D102: =IF($B$99 = "With RSCC", "", "Goods In Transit") -> Goods In Transit | F102: =_xlfn.IFNA(IF($B$99 = "With RSCC", VLOOKUP($C102, Metadata!$AA$4:$AC$16, 2, FALSE), VLOOKUP($C102, Metadata!$AA$4:$AC$16, 3, FALSE)), "N/A") -> 0.0002088 | G102: TRUE | H102: FALSE | I102: TRUE | J102: FALSE | K102: FALSE | M102: 500 | S102: =IFERROR(IF(E102 = 0, 0, MAX((E102 * F102) * (IF(I102 = TRUE, 1 - 'Loss Limit Discount'!$D$93, 1)) * (IF(K102 = TRUE, 1 - 'Contract Works Discount'!$L$11, 1)), M102)), 0) -> 0
A103: Goods In Transit | B103: GIT | C103: Estimated Gross Annual Turnover | D103: Goods In Transit | F103: =IF($B$99 = "With RSCC", VLOOKUP($C103, Metadata!$AA$4:$AC$16, 2, FALSE), VLOOKUP($C103, Metadata!$AA$4:$AC$16, 3, FALSE)) -> 1.742e-05 | G103: TRUE | H103: FALSE | I103: TRUE | J103: FALSE | K103: FALSE | M103: 500 | S103: =IF(E103 = 0, 0, MAX((E103 * F103) * (IF(I103 = TRUE, 1 - 'Loss Limit Discount'!$D$93, 1)) * (IF(K103 = TRUE, 1 - 'Contract Works Discount'!$L$11, 1)), M103)) -> 0
A104: Goods In Transit | B104: =IF($B$99 = "With RSCC", "", "GIT") -> GIT | C104: =IF($B$99 = "With RSCC", "N/A", "Stock and Storage Limits") -> Stock and Storage Limits | D104: =IF($B$99 = "With RSCC", "", "Goods In Transit") -> Goods In Transit | F104: =_xlfn.IFNA(IF($B$99 = "With RSCC", VLOOKUP($C104, Metadata!$AA$4:$AC$16, 2, FALSE), VLOOKUP($C104, Metadata!$AA$4:$AC$16, 3, FALSE)), "N/A") -> 0.0002088 | G104: TRUE | H104: FALSE | I104: TRUE | J104: FALSE | K104: FALSE | M104: 500 | S104: =IFERROR(IF(E104 = 0, 0, MAX((E104 * F104) * (IF(I104 = TRUE, 1 - 'Loss Limit Discount'!$D$93, 1)) * (IF(K104 = TRUE, 1 - 'Contract Works Discount'!$L$11, 1)), M104)), 0) -> 0
A105: Goods In Transit | B105: GIT | C105: Haulage Fees/Earnings | D105: Goods In Transit | F105: =IF($B$99 = "With RSCC", VLOOKUP($C105, Metadata!$AA$4:$AC$16, 2, FALSE), VLOOKUP($C105, Metadata!$AA$4:$AC$16, 3, FALSE)) -> 0.0002088 | G105: TRUE | H105: FALSE | I105: TRUE | J105: FALSE | K105: FALSE | M105: 500 | S105: =IF(E105 = 0, 0, MAX((E105 * F105) * (IF(I105 = TRUE, 1 - 'Loss Limit Discount'!$D$93, 1)) * (IF(K105 = TRUE, 1 - 'Contract Works Discount'!$L$11, 1)), M105)) -> 0
A106: Goods In Transit | B106: GIT | C106: Fixed and Non-adjustable Underlying Policy Premiums | D106: Goods In Transit | F106: =IF($B$99 = "With RSCC", VLOOKUP($C106, Metadata!$AA$4:$AC$16, 2, FALSE), VLOOKUP($C106, Metadata!$AA$4:$AC$16, 3, FALSE)) -> 0.017712 | G106: TRUE | H106: FALSE | I106: TRUE | J106: FALSE | K106: FALSE | M106: 500 | S106: =IF(E106 = 0, 0, MAX((E106 * F106) * (IF(I106 = TRUE, 1 - 'Loss Limit Discount'!$D$93, 1)) * (IF(K106 = TRUE, 1 - 'Contract Works Discount'!$L$11, 1)), M106)) -> 0
A107: Goods In Transit | B107: =IF($B$99 = "With RSCC", "", "GIT") -> GIT | C107: =IF($B$99 = "With RSCC", "N/A", "Deliberate Storage") -> Deliberate Storage | D107: =IF($B$99 = "With RSCC", "", "Goods In Transit") -> Goods In Transit | F107: =_xlfn.IFNA(IF($B$99 = "With RSCC", VLOOKUP($C107, Metadata!$AA$4:$AC$16, 2, FALSE), VLOOKUP($C107, Metadata!$AA$4:$AC$16, 3, FALSE)), "N/A") -> 2.088e-05 | G107: TRUE | H107: FALSE | I107: TRUE | J107: FALSE | K107: FALSE | M107: 500 | S107: =IFERROR(IF(E107 = 0, 0, MAX((E107 * F107) * (IF(I107 = TRUE, 1 - 'Loss Limit Discount'!$D$93, 1)) * (IF(K107 = TRUE, 1 - 'Contract Works Discount'!$L$11, 1)), M107)), 0) -> 0
B108: ="Hull " & B99 -> Hull Without RSCC
A109: Goods In Transit | B109: GIT | C109: Pleasure Craft | D109: Goods In Transit | F109: =IF($B$99 = "With RSCC", VLOOKUP($C109, Metadata!$AA$4:$AC$16, 2, FALSE), VLOOKUP($C109, Metadata!$AA$4:$AC$16, 3, FALSE)) -> 0.00015696 | G109: TRUE | H109: FALSE | I109: TRUE | J109: FALSE | K109: FALSE | M109: 500 | N109: FALSE | P109: 6.05e-07 | Q109: FALSE | R109: CA155 | S109: =IF(E109 = 0, 0, MAX((E109 * F109) * (IF(I109 = TRUE, 1 - 'Loss Limit Discount'!$D$93, 1)) * (IF(K109 = TRUE, 1 - 'Contract Works Discount'!$L$11, 1)), M109)) -> 0 | T109: 1622
A110: Goods In Transit | B110: GIT | C110: Commercial Vessels | D110: Goods In Transit | F110: =IF($B$99 = "With RSCC", VLOOKUP($C110, Metadata!$AA$4:$AC$16, 2, FALSE), VLOOKUP($C110, Metadata!$AA$4:$AC$16, 3, FALSE)) -> 0.0002088 | G110: TRUE | H110: FALSE | I110: TRUE | J110: FALSE | K110: FALSE | M110: 500 | S110: =IF(E110 = 0, 0, MAX((E110 * F110) * (IF(I110 = TRUE, 1 - 'Loss Limit Discount'!$D$93, 1)) * (IF(K110 = TRUE, 1 - 'Contract Works Discount'!$L$11, 1)), M110)) -> 0
A111: Goods In Transit | B111: GIT | C111: Builders Risk | D111: Goods In Transit | F111: =IF($B$99 = "With RSCC", VLOOKUP($C111, Metadata!$AA$4:$AC$16, 2, FALSE), VLOOKUP($C111, Metadata!$AA$4:$AC$16, 3, FALSE)) -> 0.00017712 | G111: TRUE | H111: FALSE | I111: TRUE | J111: FALSE | K111: FALSE | M111: 500 | S111: =IF(E111 = 0, 0, MAX((E111 * F111) * (IF(I111 = TRUE, 1 - 'Loss Limit Discount'!$D$93, 1)) * (IF(K111 = TRUE, 1 - 'Contract Works Discount'!$L$11, 1)), M111)) -> 0
A112: Goods In Transit | B112: GIT | C112: Single Bouy Moorings | D112: Goods In Transit | F112: =IF($B$99 = "With RSCC", VLOOKUP($C112, Metadata!$AA$4:$AC$16, 2, FALSE), VLOOKUP($C112, Metadata!$AA$4:$AC$16, 3, FALSE)) -> 0.0002088 | G112: TRUE | H112: FALSE | I112: TRUE | J112: FALSE | K112: FALSE | M112: 500 | S112: =IF(E112 = 0, 0, MAX((E112 * F112) * (IF(I112 = TRUE, 1 - 'Loss Limit Discount'!$D$93, 1)) * (IF(K112 = TRUE, 1 - 'Contract Works Discount'!$L$11, 1)), M112)) -> 0
B114: Contract Work / Construction Plant
B115: Contract Works
A116: Contract Works | B116: CW | C116: =Input!I16 -> Over 48 months | D116: Contract Works | F116: 0.00011326 | G116: TRUE | H116: FALSE | I116: FALSE | J116: TRUE | K116: TRUE | M116: 500 | N116: FALSE | P116: 7.26e-05 | Q116: FALSE | R116: CA173 | S116: =IF(E116 = 0, 0, MAX((E116 * F116) * (IF(I116 = TRUE, 1 - 'Loss Limit Discount'!$D$93, 1)) * (IF(K116 = TRUE, 1 - 'Contract Works Discount'!$D$101, 1)), M116)) -> 0 | T116: 1654
B117: Construction plant
A118: Contract Works | B118: CW | C118: On Fee Basis | D118: Contract Works | F118: 0.0019188 | G118: TRUE | H118: FALSE | I118: FALSE | J118: FALSE | K118: FALSE | M118: 500 | N118: FALSE | P118: 0.00123 | Q118: FALSE | R118: CA176 | S118: =IF(E118 = 0, 0, MAX((E118 * F118) * (IF(I118 = TRUE, 1 - 'Loss Limit Discount'!$D$93, 1)) * (IF(K118 = TRUE, 1 - 'Contract Works Discount'!$D$96, 1)), M118)) -> 0 | T118: 1657
A119: Contract Works | B119: CW | C119: On Value Basis | D119: Contract Works | F119: 0.00056628 | G119: TRUE | H119: FALSE | I119: FALSE | J119: FALSE | K119: FALSE | M119: 500 | N119: FALSE | P119: 0.000363 | Q119: FALSE | R119: CA177 | S119: =IF(E119 = 0, 0, MAX((E119 * F119) * (IF(I119 = TRUE, 1 - 'Loss Limit Discount'!$D$93, 1)) * (IF(K119 = TRUE, 1 - 'Contract Works Discount'!$D$96, 1)), M119)) -> 0 | T119: 1658
B120: Mobile plant
A121: Contract Works | B121: CW | C121: On Value Basis | D121: Contract Works | F121: =F119 -> 0.00056628 | G121: TRUE | H121: FALSE | I121: FALSE | J121: FALSE | K121: FALSE | M121: 500 | N121: FALSE | P121: 0.000363 | Q121: FALSE | R121: CA179 | S121: =IF(E121 = 0, 0, MAX((E121 * F121) * (IF(I121 = TRUE, 1 - 'Loss Limit Discount'!$D$93, 1)) * (IF(K121 = TRUE, 1 - 'Contract Works Discount'!$D$96, 1)), M121)) -> 0 | T121: 1665
M122: .

Sheet Fire (Office) - Monthly
A1: Commercial - Monthly | V1: Cells with green borders have a drop-down selection!
A2: Category | B2: Code | C2: Description | D2: Total Code | E2: Sum Insured/No. of insured items | F2: Rate | G2: Is Percent | H2: Add To Sum Insured Discount | I2: Receive Sum Insured Discount | J2: Add To CW Discount | K2: Receive CW Discount | L2: Contract Period Discount | M2: Minimum Premium | N2: Has Fire Extension Discount | O2: Amount within free extension threshold | P2: Special Dispensation Rate | Q2: N/A To Special Dispensation | S2: Premium | T2: System ID
B3: Fire
A4: Commercial Fire | B4: F2(O) | C4: Commercial Fire (Office) | D4: Fire | F4: 2.088e-05 | G4: TRUE | H4: TRUE | I4: TRUE | J4: FALSE | K4: FALSE | M4: 50 | S4: =IF(E4 = 0, 0, MAX((E4 * F4) * (IF(I4 = TRUE, 1 - 'Loss Limit Discount'!$D$93, 1)) + ('Fire Extensions'!$D$51 * F4) * (1 - 'Loss Limit Discount'!$D$93), M4)) -> 0
A5: Extension | B5: Sasria Extensions
A6: Extension | B6: EX | C6: Rent | D6: Fire | F6: =$F$4 -> 2.088e-05 | G6: TRUE | H6: TRUE | I6: TRUE | J6: FALSE | K6: FALSE | M6: 0 | N6: TRUE | O6: =IF(E6 < 'Fire Extensions'!$I$6, 'Fire (Office) - Monthly'!E6, 'Fire Extensions'!$I$6) -> 0 | P6: 3.63e-06 | Q6: TRUE | R6: =E6-O6 -> 0 | T6: 267
A7: Extension | B7: EX | C7: Claims Preparation Costs | D7: Fire | F7: =$F$4 -> 2.088e-05 | G7: TRUE | H7: TRUE | I7: TRUE | J7: FALSE | K7: FALSE | M7: 0 | N7: TRUE | O7: =IF(E7 < 'Fire Extensions'!$I$6, 'Fire (Office) - Monthly'!E7, 'Fire Extensions'!$I$6) -> 0 | P7: 3.63e-06 | Q7: TRUE | R7: =E7-O7 -> 0 | T7: 268
A8: Extension | B8: EX | C8: Capital Additions | D8: Fire | F8: 2.088e-05 | G8: TRUE | H8: TRUE | I8: TRUE | J8: FALSE | K8: FALSE | M8: 0 | N8: TRUE | O8: =IF(E8 < 'Fire Extensions'!$I$6, 'Fire (Office) - Monthly'!E8, 'Fire Extensions'!$I$6) -> 0 | P8: 3.63e-06 | Q8: TRUE | R8: 0 | T8: 269
A9: Extension | B9: EX | C9: Professional fees | D9: Fire | F9: 2.088e-05 | G9: TRUE | H9: TRUE | I9: TRUE | J9: FALSE | K9: FALSE | M9: 0 | N9: TRUE | O9: =IF(E9 < 'Fire Extensions'!$I$6, 'Fire (Office) - Monthly'!E9, 'Fire Extensions'!$I$6) -> 0 | P9: 3.63e-06 | Q9: TRUE | R9: 0 | T9: 270
A10: Extension | B10: EX | C10: Clearance costs | D10: Fire | F10: 2.088e-05 | G10: TRUE | H10: TRUE | I10: TRUE | J10: FALSE | K10: FALSE | M10: 0 | N10: TRUE | O10: =IF(E10 < 'Fire Extensions'!$I$6, 'Fire (Office) - Monthly'!E10, 'Fire Extensions'!$I$6) -> 0 | P10: 3.63e-06 | Q10: TRUE | R10: 0 | T10: 271
A11: Extension | B11: EX | C11: Security Costs (During and after a loss) | D11: Fire | F11: 2.088e-05 | G11: TRUE | H11: TRUE | I11: TRUE | J11: FALSE | K11: FALSE | M11: 0 | N11: TRUE | O11: =IF(E11 < 'Fire Extensions'!$I$6, 'Fire (Office) - Monthly'!E11, 'Fire Extensions'!$I$6) -> 0 | P11: 3.63e-06 | Q11: TRUE | R11: 0 | T11: 272
A12: Extension | B12: EX | C12: Statutory Duties | D12: Fire | F12: 2.088e-05 | G12: TRUE | H12: TRUE | I12: TRUE | J12: FALSE | K12: FALSE | M12: 0 | N12: TRUE | O12: =IF(E12 < 'Fire Extensions'!$I$6, 'Fire (Office) - Monthly'!E12, 'Fire Extensions'!$I$6) -> 0 | P12: 3.63e-06 | Q12: TRUE | R12: 0 | T12: 276
A13: Extension | B13: EX | C13: Additional Premises | D13: Fire | F13: 2.088e-05 | G13: TRUE | H13: TRUE | I13: TRUE | J13: FALSE | K13: FALSE | M13: 0 | N13: TRUE | O13: =IF(E13 < 'Fire Extensions'!$I$6, 'Fire (Office) - Monthly'!E13, 'Fire Extensions'!$I$6) -> 0 | P13: 3.63e-06 | Q13: TRUE | R13: 0 | T13: 277
A14: Extension | B14: EX | C14: Acquisition Limits | D14: Fire | F14: 2.088e-05 | G14: TRUE | H14: TRUE | I14: TRUE | J14: FALSE | K14: FALSE | M14: 0 | N14: TRUE | O14: =IF(E14 < 'Fire Extensions'!$I$6, 'Fire (Office) - Monthly'!E14, 'Fire Extensions'!$I$6) -> 0 | P14: 3.63e-06 | Q14: TRUE | R14: 0 | T14: 278
A15: Extension | B15: EX | C15: Import Surcharges | D15: Fire | F15: 2.088e-05 | G15: TRUE | H15: TRUE | I15: TRUE | J15: FALSE | K15: FALSE | M15: 0 | N15: TRUE | O15: =IF(E15 < 'Fire Extensions'!$I$6, 'Fire (Office) - Monthly'!E15, 'Fire Extensions'!$I$6) -> 0 | P15: 3.63e-06 | Q15: TRUE | R15: 0 | T15: 280
A16: Extension | B16: EX | C16: Fire Protection System Update | D16: Fire | F16: 2.088e-05 | G16: TRUE | H16: TRUE | I16: TRUE | J16: FALSE | K16: FALSE | M16: 0 | N16: TRUE | O16: =IF(E16 < 'Fire Extensions'!$I$6, 'Fire (Office) - Monthly'!E16, 'Fire Extensions'!$I$6) -> 0 | P16: 3.63e-06 | Q16: TRUE | R16: 0 | T16: 281
A17: Extension | B17: EX | C17: Goods in the open | D17: Fire | F17: 2.088e-05 | G17: TRUE | H17: TRUE | I17: TRUE | J17: FALSE | K17: FALSE | M17: 0 | N17: TRUE | O17: =IF(E17 < 'Fire Extensions'!$I$6, 'Fire (Office) - Monthly'!E17, 'Fire Extensions'!$I$6) -> 0 | P17: 3.63e-06 | Q17: TRUE | R17: 0 | T17: 285
A18: Extension | B18: EX | C18: Fire Extinguishing | D18: Fire | F18: 2.088e-05 | G18: TRUE | H18: TRUE | I18: TRUE | J18: FALSE | K18: FALSE | M18: 0 | N18: TRUE | O18: =IF(E18 < 'Fire Extensions'!$I$6, 'Fire (Office) - Monthly'!E18, 'Fire Extensions'!$I$6) -> 0 | P18: 3.63e-06 | Q18: TRUE | R18: 0 | T18: 286
A19: Extension | B19: EX | C19: Imminent Danger (Protection of property prior a loss) | D19: Fire | F19: 2.088e-05 | G19: TRUE | H19: TRUE | I19: TRUE | J19: FALSE | K19: FALSE | M19: 0 | N19: TRUE | O19: =IF(E19 < 'Fire Extensions'!$I$6, 'Fire (Office) - Monthly'!E19, 'Fire Extensions'!$I$6) -> 0 | P19: 0 | Q19: TRUE | R19: 0 | T19: 2873
A20: Other Extension | B20: Other Extensions
A21: Other Extension | B21: EX | C21: Other | D21: Fire | F21: =$F$4 -> 2.088e-05 | G21: TRUE | H21: TRUE | I21: TRUE | J21: FALSE | K21: FALSE | M21: 0 | N21: TRUE | O21: =IF(E21 < 'Fire Extensions'!$I$6, 'Fire (Office) - Monthly'!E21, 'Fire Extensions'!$I$6) -> 0 | P21: 3.63e-06 | Q21: TRUE | T21: 288
A22: Other Extension | B22: EX | C22: Other | D22: Fire | F22: 2.088e-05 | G22: TRUE | H22: TRUE | I22: TRUE | J22: FALSE | K22: FALSE | M22: 0 | N22: TRUE | O22: =IF(E22 < 'Fire Extensions'!$I$6, 'Fire (Office) - Monthly'!E22, 'Fire Extensions'!$I$6) -> 0 | P22: 3.63e-06 | Q22: TRUE | T22: 289
A23: Other Extension | B23: EX | C23: Other | D23: Fire | F23: 2.088e-05 | G23: TRUE | H23: TRUE | I23: TRUE | J23: FALSE | K23: FALSE | M23: 0 | N23: TRUE | O23: =IF(E23 < 'Fire Extensions'!$I$6, 'Fire (Office) - Monthly'!E23, 'Fire Extensions'!$I$6) -> 0 | P23: 3.63e-06 | Q23: TRUE | T23: 290
A24: Other Extension | B24: EX | C24: Other | D24: Fire | F24: 2.088e-05 | G24: TRUE | H24: TRUE | I24: TRUE | J24: FALSE | K24: FALSE | M24: 0 | N24: TRUE | O24: =IF(E24 < 'Fire Extensions'!$I$6, 'Fire (Office) - Monthly'!E24, 'Fire Extensions'!$I$6) -> 0 | P24: 3.63e-06 | Q24: TRUE | T24: 291
A25: Other Extension | B25: EX | C25: Other | D25: Fire | F25: 2.088e-05 | G25: TRUE | H25: TRUE | I25: TRUE | J25: FALSE | K25: FALSE | M25: 0 | N25: TRUE | O25: =IF(E25 < 'Fire Extensions'!$I$6, 'Fire (Office) - Monthly'!E25, 'Fire Extensions'!$I$6) -> 0 | P25: 3.63e-06 | Q25: TRUE | T25: 292
A26: Other Extension | B26: EX | C26: Other | D26: Fire | F26: 2.088e-05 | G26: TRUE | H26: TRUE | I26: TRUE | J26: FALSE | K26: FALSE | M26: 0 | N26: TRUE | O26: =IF(E26 < 'Fire Extensions'!$I$6, 'Fire (Office) - Monthly'!E26, 'Fire Extensions'!$I$6) -> 0 | P26: 3.63e-06 | Q26: TRUE | T26: 293
A27: Other Extension | B27: EX | C27: Other | D27: Fire | F27: 2.088e-05 | G27: TRUE | H27: TRUE | I27: TRUE | J27: FALSE | K27: FALSE | M27: 0 | N27: TRUE | O27: =IF(E27 < 'Fire Extensions'!$I$6, 'Fire (Office) - Monthly'!E27, 'Fire Extensions'!$I$6) -> 0 | P27: 3.63e-06 | Q27: TRUE | T27: 294
A28: Other Extension | B28: EX | C28: Other | D28: Fire | F28: 2.088e-05 | G28: TRUE | H28: TRUE | I28: TRUE | J28: FALSE | K28: FALSE | M28: 0 | N28: TRUE | O28: =IF(E28 < 'Fire Extensions'!$I$6, 'Fire (Office) - Monthly'!E28, 'Fire Extensions'!$I$6) -> 0 | P28: 3.63e-06 | Q28: TRUE | T28: 295
A29: Other Extension | B29: EX | C29: Other | D29: Fire | F29: 2.088e-05 | G29: TRUE | H29: TRUE | I29: TRUE | J29: FALSE | K29: FALSE | M29: 0 | N29: TRUE | O29: =IF(E29 < 'Fire Extensions'!$I$6, 'Fire (Office) - Monthly'!E29, 'Fire Extensions'!$I$6) -> 0 | P29: 3.63e-06 | Q29: TRUE | T29: 296
A30: Other Extension | B30: EX | C30: Other | D30: Fire | F30: 2.088e-05 | G30: TRUE | H30: TRUE | I30: TRUE | J30: FALSE | K30: FALSE | M30: 0 | N30: TRUE | O30: =IF(E30 < 'Fire Extensions'!$I$6, 'Fire (Office) - Monthly'!E30, 'Fire Extensions'!$I$6) -> 0 | P30: 3.63e-06 | Q30: TRUE | T30: 297
A31: Other Extension | B31: EX | C31: Other | D31: Fire | F31: 2.088e-05 | G31: TRUE | H31: TRUE | I31: TRUE | J31: FALSE | K31: FALSE | M31: 0 | N31: TRUE | O31: =IF(E31 < 'Fire Extensions'!$I$6, 'Fire (Office) - Monthly'!E31, 'Fire Extensions'!$I$6) -> 0 | P31: 3.63e-06 | Q31: TRUE | T31: 298
A32: Other Extension | B32: EX | C32: Other | D32: Fire | F32: 2.088e-05 | G32: TRUE | H32: TRUE | I32: TRUE | J32: FALSE | K32: FALSE | M32: 0 | N32: TRUE | O32: =IF(E32 < 'Fire Extensions'!$I$6, 'Fire (Office) - Monthly'!E32, 'Fire Extensions'!$I$6) -> 0 | P32: 3.63e-06 | Q32: TRUE | T32: 299
A33: Other Extension | B33: EX | C33: Other | D33: Fire | F33: 2.088e-05 | G33: TRUE | H33: TRUE | I33: TRUE | J33: FALSE | K33: FALSE | M33: 0 | N33: TRUE | O33: =IF(E33 < 'Fire Extensions'!$I$6, 'Fire (Office) - Monthly'!E33, 'Fire Extensions'!$I$6) -> 0 | P33: 3.63e-06 | Q33: TRUE | T33: 300
A34: Other Extension | B34: EX | C34: Other | D34: Fire | F34: 2.088e-05 | G34: TRUE | H34: TRUE | I34: TRUE | J34: FALSE | K34: FALSE | M34: 0 | N34: TRUE | O34: =IF(E34 < 'Fire Extensions'!$I$6, 'Fire (Office) - Monthly'!E34, 'Fire Extensions'!$I$6) -> 0 | P34: 3.63e-06 | Q34: TRUE | T34: 301
A35: Other Extension | B35: EX | C35: Other | D35: Fire | F35: 2.088e-05 | G35: TRUE | H35: TRUE | I35: TRUE | J35: FALSE | K35: FALSE | M35: 0 | N35: TRUE | O35: =IF(E35 < 'Fire Extensions'!$I$6, 'Fire (Office) - Monthly'!E35, 'Fire Extensions'!$I$6) -> 0 | P35: 3.63e-06 | Q35: TRUE | T35: 302
A36: Other Extension | B36: EX | C36: Other | D36: Fire | F36: 2.088e-05 | G36: TRUE | H36: TRUE | I36: TRUE | J36: FALSE | K36: FALSE | M36: 0 | N36: TRUE | O36: =IF(E36 < 'Fire Extensions'!$I$6, 'Fire (Office) - Monthly'!E36, 'Fire Extensions'!$I$6) -> 0 | P36: 3.63e-06 | Q36: TRUE | T36: 303
A37: Other Extension | B37: EX | C37: Other | D37: Fire | F37: 2.088e-05 | G37: TRUE | H37: TRUE | I37: TRUE | J37: FALSE | K37: FALSE | M37: 0 | N37: TRUE | O37: =IF(E37 < 'Fire Extensions'!$I$6, 'Fire (Office) - Monthly'!E37, 'Fire Extensions'!$I$6) -> 0 | P37: 3.63e-06 | Q37: TRUE | T37: 304
A38: Other Extension | B38: EX | C38: Other | D38: Fire | F38: 2.088e-05 | G38: TRUE | H38: TRUE | I38: TRUE | J38: FALSE | K38: FALSE | M38: 0 | N38: TRUE | O38: =IF(E38 < 'Fire Extensions'!$I$6, 'Fire (Office) - Monthly'!E38, 'Fire Extensions'!$I$6) -> 0 | P38: 3.63e-06 | Q38: TRUE | T38: 305
A39: Other Extension | B39: EX | C39: Other | D39: Fire | F39: 2.088e-05 | G39: TRUE | H39: TRUE | I39: TRUE | J39: FALSE | K39: FALSE | M39: 0 | N39: TRUE | O39: =IF(E39 < 'Fire Extensions'!$I$6, 'Fire (Office) - Monthly'!E39, 'Fire Extensions'!$I$6) -> 0 | P39: 3.63e-06 | Q39: TRUE | T39: 306
A40: Other Extension | B40: EX | C40: Other | D40: Fire | F40: 2.088e-05 | G40: TRUE | H40: TRUE | I40: TRUE | J40: FALSE | K40: FALSE | M40: 0 | N40: TRUE | O40: =IF(E40 < 'Fire Extensions'!$I$6, 'Fire (Office) - Monthly'!E40, 'Fire Extensions'!$I$6) -> 0 | P40: 3.63e-06 | Q40: TRUE | T40: 307
A41: Other Extension | B41: EX | C41: Other | D41: Fire | F41: 2.088e-05 | G41: TRUE | H41: TRUE | I41: TRUE | J41: FALSE | K41: FALSE | M41: 0 | N41: TRUE | O41: =IF(E41 < 'Fire Extensions'!$I$6, 'Fire (Office) - Monthly'!E41, 'Fire Extensions'!$I$6) -> 0 | P41: 3.63e-06 | Q41: TRUE | T41: 308
A42: Other Extension | B42: EX | C42: Other | D42: Fire | F42: 2.088e-05 | G42: TRUE | H42: TRUE | I42: TRUE | J42: FALSE | K42: FALSE | M42: 0 | N42: TRUE | O42: =IF(E42 < 'Fire Extensions'!$I$6, 'Fire (Office) - Monthly'!E42, 'Fire Extensions'!$I$6) -> 0 | P42: 3.63e-06 | Q42: TRUE | T42: 309
A43: Other Extension | B43: EX | C43: Other | D43: Fire | F43: 2.088e-05 | G43: TRUE | H43: TRUE | I43: TRUE | J43: FALSE | K43: FALSE | M43: 0 | N43: TRUE | O43: =IF(E43 < 'Fire Extensions'!$I$6, 'Fire (Office) - Monthly'!E43, 'Fire Extensions'!$I$6) -> 0 | P43: 3.63e-06 | Q43: TRUE | T43: 310
A44: Other Extension | B44: EX | C44: Other | D44: Fire | F44: 2.088e-05 | G44: TRUE | H44: TRUE | I44: TRUE | J44: FALSE | K44: FALSE | M44: 0 | N44: TRUE | O44: =IF(E44 < 'Fire Extensions'!$I$6, 'Fire (Office) - Monthly'!E44, 'Fire Extensions'!$I$6) -> 0 | P44: 3.63e-06 | Q44: TRUE | T44: 311
A45: Other Extension | B45: EX | C45: Other | D45: Fire | F45: 2.088e-05 | G45: TRUE | H45: TRUE | I45: TRUE | J45: FALSE | K45: FALSE | M45: 0 | N45: TRUE | O45: =IF(E45 < 'Fire Extensions'!$I$6, 'Fire (Office) - Monthly'!E45, 'Fire Extensions'!$I$6) -> 0 | P45: 3.63e-06 | Q45: TRUE | T45: 312
A46: Other Extension | B46: EX | C46: Other | D46: Fire | F46: 2.088e-05 | G46: TRUE | H46: TRUE | I46: TRUE | J46: FALSE | K46: FALSE | M46: 0 | N46: TRUE | O46: =IF(E46 < 'Fire Extensions'!$I$6, 'Fire (Office) - Monthly'!E46, 'Fire Extensions'!$I$6) -> 0 | P46: 3.63e-06 | Q46: TRUE | T46: 313
A47: Other Extension | B47: EX | C47: Other | D47: Fire | F47: 2.088e-05 | G47: TRUE | H47: TRUE | I47: TRUE | J47: FALSE | K47: FALSE | M47: 0 | N47: TRUE | O47: =IF(E47 < 'Fire Extensions'!$I$6, 'Fire (Office) - Monthly'!E47, 'Fire Extensions'!$I$6) -> 0 | P47: 3.63e-06 | Q47: TRUE | T47: 314
A48: Other Extension | B48: EX | C48: Other | D48: Fire | F48: 2.088e-05 | G48: TRUE | H48: TRUE | I48: TRUE | J48: FALSE | K48: FALSE | M48: 0 | N48: TRUE | O48: =IF(E48 < 'Fire Extensions'!$I$6, 'Fire (Office) - Monthly'!E48, 'Fire Extensions'!$I$6) -> 0 | P48: 3.63e-06 | Q48: TRUE | T48: 315
A49: Other Extension | B49: EX | C49: Other | D49: Fire | F49: 2.088e-05 | G49: TRUE | H49: TRUE | I49: TRUE | J49: FALSE | K49: FALSE | M49: 0 | N49: TRUE | O49: =IF(E49 < 'Fire Extensions'!$I$6, 'Fire (Office) - Monthly'!E49, 'Fire Extensions'!$I$6) -> 0 | P49: 3.63e-06 | Q49: TRUE | T49: 316
A50: Other Extension | B50: EX | C50: Other | D50: Fire | F50: 2.088e-05 | G50: TRUE | H50: TRUE | I50: TRUE | J50: FALSE | K50: FALSE | M50: 0 | N50: TRUE | O50: =IF(E50 < 'Fire Extensions'!$I$6, 'Fire (Office) - Monthly'!E50, 'Fire Extensions'!$I$6) -> 0 | P50: 3.63e-06 | Q50: TRUE | T50: 317
B51: Escalation and or Inflation
A52: Escalation UL | B52: Charge on U/L
A53: Escalation UL | C53: First Year (90-100%) | D53: Fire | F53: =IF(C53 = "", 0, VLOOKUP(C53, Escalation!$C$111:$D$155, 2, FALSE)) -> 2.088e-05 | G53: TRUE | H53: FALSE | I53: TRUE | J53: FALSE | K53: FALSE | M53: 0 | P53: 0 | Q53: TRUE | S53: =IF(E53 = 0, 0, MAX((E53 * F53) * (IF(I53 = TRUE, 1 - 'Loss Limit Discount'!$D$93, 1)), M53)) -> 0 | T53: 1735
A54: Escalation UL | C54: Second Year (90-100%) | D54: Fire | F54: =IF(C54 = "", 0, VLOOKUP(C54, Escalation!$C$111:$D$155, 2, FALSE)) -> 1.044e-05 | G54: TRUE | H54: FALSE | I54: TRUE | J54: FALSE | K54: FALSE | M54: 0 | P54: 0 | Q54: TRUE | S54: =IF(E54 = 0, 0, MAX((E54 * F54) * (IF(I54 = TRUE, 1 - 'Loss Limit Discount'!$D$93, 1)), M54)) -> 0 | T54: 1736
A55: Escalation UL | C55: Third Year (90-100%) | D55: Fire | F55: =IF(C55 = "", 0, VLOOKUP(C55, Escalation!$C$111:$D$155, 2, FALSE)) -> 5.22e-06 | G55: TRUE | H55: FALSE | I55: TRUE | J55: FALSE | K55: FALSE | M55: 0 | P55: 0 | Q55: TRUE | S55: =IF(E55 = 0, 0, MAX((E55 * F55) * (IF(I55 = TRUE, 1 - 'Loss Limit Discount'!$D$93, 1)), M55)) -> 0 | T55: 1737
A56: Escalation UL | C56: Fourth Year (90-100%) | D56: Fire | F56: =IF(C56 = "", 0, VLOOKUP(C56, Escalation!$C$111:$D$155, 2, FALSE)) -> 4.176e-06 | G56: TRUE | H56: FALSE | I56: TRUE | J56: FALSE | K56: FALSE | M56: 0 | P56: 0 | Q56: TRUE | S56: =IF(E56 = 0, 0, MAX((E56 * F56) * (IF(I56 = TRUE, 1 - 'Loss Limit Discount'!$D$93, 1)), M56)) -> 0 | T56: 1738
A57: Escalation UL | C57: Fifth Year (90-100%) | D57: Fire | F57: =IF(C57 = "", 0, VLOOKUP(C57, Escalation!$C$111:$D$155, 2, FALSE)) -> 3.132e-06 | G57: TRUE | H57: FALSE | I57: TRUE | J57: FALSE | K57: FALSE | M57: 0 | P57: 0 | Q57: TRUE | S57: =IF(E57 = 0, 0, MAX((E57 * F57) * (IF(I57 = TRUE, 1 - 'Loss Limit Discount'!$D$93, 1)), M57)) -> 0 | T57: 1739
A58: Escalation Not UL | B58: Not Charge on U/L
A59: Escalation Not UL | C59: First Year | D59: Fire | F59: =$F$4 -> 2.088e-05 | G59: TRUE | H59: FALSE | I59: TRUE | J59: FALSE | K59: FALSE | M59: 0 | P59: 3.63e-06 | Q59: FALSE | S59: =IF(E59 = 0, 0, MAX((E59 * F59) * (IF(I59 = TRUE, 1 - 'Loss Limit Discount'!$D$93, 1)), M59)) -> 0 | T59: 326
A60: Escalation Not UL | C60: Second Year | D60: Fire | F60: =$F$4 * 0.5 -> 1.044e-05 | G60: TRUE | H60: FALSE | I60: TRUE | J60: FALSE | K60: FALSE | M60: 0 | P60: 1.82e-06 | Q60: FALSE | S60: =IF(E60 = 0, 0, MAX((E60 * F60) * (IF(I60 = TRUE, 1 - 'Loss Limit Discount'!$D$93, 1)), M60)) -> 0 | T60: 327
A61: Escalation Not UL | C61: Third Year | D61: Fire | F61: =$F$4 * 0.25 -> 5.22e-06 | G61: TRUE | H61: FALSE | I61: TRUE | J61: FALSE | K61: FALSE | M61: 0 | P61: 9.08e-07 | Q61: FALSE | S61: =IF(E61 = 0, 0, MAX((E61 * F61) * (IF(I61 = TRUE, 1 - 'Loss Limit Discount'!$D$93, 1)), M61)) -> 0 | T61: 328
A62: Escalation Not UL | C62: Fourth Year | D62: Fire | F62: =$F$4 * 0.2 -> 4.176e-06 | G62: TRUE | H62: FALSE | I62: TRUE | J62: FALSE | K62: FALSE | M62: 0 | P62: 7.26e-07 | Q62: FALSE | S62: =IF(E62 = 0, 0, MAX((E62 * F62) * (IF(I62 = TRUE, 1 - 'Loss Limit Discount'!$D$93, 1)), M62)) -> 0 | T62: 329
A63: Escalation Not UL | C63: Fifth Year | D63: Fire | F63: =$F$4 * 0.15 -> 3.132e-06 | G63: TRUE | H63: FALSE | I63: TRUE | J63: FALSE | K63: FALSE | M63: 0 | P63: 5.45e-07 | Q63: FALSE | S63: =IF(E63 = 0, 0, MAX((E63 * F63) * (IF(I63 = TRUE, 1 - 'Loss Limit Discount'!$D$93, 1)), M63)) -> 0 | T63: 330
B65: Business Interruption
B66: Advance Specified Standing Charges
A67: Business Interruption | B67: ASC | C67: 12 Months | D67: Advance Standing Charges | F67: =_xlfn.IFNA(VLOOKUP(C67, Metadata!$L$2:$M$5, 2, FALSE),0) -> 6.4e-05 | G67: TRUE | H67: FALSE | I67: FALSE | J67: TRUE | K67: TRUE | M67: 5 | N67: FALSE | P67: 6.4e-05 | Q67: TRUE | S67: =IF(E67 = 0, 0, MAX((E67 * F67) * (IF(I67 = TRUE, 1 - 'Loss Limit Discount'!$D$93, 1)) * (IF(K67 = TRUE, 1 - 'Contract Works Discount'!$D$101, 1)), M67)) -> 0 | T67: 333
B68: Specified Standing Charges
A69: Business Interruption | B69: SC | C69: 12 Months | D69: Standing Charges | F69: =_xlfn.IFNA(VLOOKUP(C69, Metadata!$L$7:$M$14, 2, FALSE),0) -> 6.4e-05 | G69: TRUE | H69: TRUE | I69: TRUE | J69: FALSE | K69: FALSE | M69: 5 | N69: FALSE | P69: 3.63e-06 | Q69: TRUE | S69: =IF(E69 = 0, 0, MAX((E69 * F69) * (IF(I69 = TRUE, 1 - 'Loss Limit Discount'!$D$93, 1)), M69)) -> 0 | T69: 337
A70: Business Interruption | B70: AICOW | C70: Additional Increase In Cost Of Working | D70: Standing Charges | F70: =F69 * 1.5 -> 9.6e-05 | G70: TRUE | H70: TRUE | I70: TRUE | J70: FALSE | K70: FALSE | M70: 0 | N70: FALSE | P70: 0 | Q70: TRUE | S70: =IF(E70 = 0, 0, MAX((E70 * F70) * (IF(I70 = TRUE, 1 - 'Loss Limit Discount'!$D$93, 1)), M70)) -> 0 | T70: 397
B71: Working Expenses
A72: Business Interruption | B72: WE | C72: 12 Months | D72: Working Expenses | F72: =_xlfn.IFNA(VLOOKUP(C72, Metadata!L16:M23, 2, FALSE),0) -> 6.4e-05 | G72: TRUE | H72: TRUE | I72: TRUE | J72: FALSE | K72: FALSE | M72: 5 | N72: FALSE | P72: 3.63e-06 | Q72: TRUE | S72: =IF(E72 = 0, 0, MAX((E72 * F72) * (IF(I72 = TRUE, 1 - 'Loss Limit Discount'!$D$93, 1)), M72)) -> 0 | T72: 345
A73: Business Interruption | B73: AICOW | C73: Additional Increase In Cost Of Working | D73: Working Expenses | F73: =F72 * 1.5 -> 9.6e-05 | G73: TRUE | H73: TRUE | I73: TRUE | J73: FALSE | K73: FALSE | M73: 0 | N73: FALSE | P73: 0 | Q73: TRUE | S73: =IF(E73 = 0, 0, MAX((E73 * F73) * (IF(I73 = TRUE, 1 - 'Loss Limit Discount'!$D$93, 1)), M73)) -> 0 | T73: 361
B74: Revenue
A75: Business Interruption | B75: R | C75: 12 Months | D75: Revenue | F75: =_xlfn.IFNA(VLOOKUP(C75, Metadata!$L$48:$M$55, 2, FALSE),0) -> 6.4e-05 | G75: TRUE | H75: TRUE | I75: TRUE | J75: FALSE | K75: FALSE | M75: 5 | N75: FALSE | P75: 3.63e-06 | Q75: TRUE | S75: =IF(E75 = 0, 0, MAX((E75 * F75) * (IF(I75 = TRUE, 1 - 'Loss Limit Discount'!$D$93, 1)), M75)) -> 0 | T75: 353
A76: Business Interruption | B76: AICOW | C76: Additional Increase In Cost Of Working | D76: Revenue | F76: =F75 * 1.5 -> 9.6e-05 | G76: TRUE | H76: TRUE | I76: TRUE | J76: FALSE | K76: FALSE | M76: 0 | N76: FALSE | P76: 0 | Q76: TRUE | S76: =IF(E76 = 0, 0, MAX((E76 * F76) * (IF(I76 = TRUE, 1 - 'Loss Limit Discount'!$D$93, 1)), M76)) -> 0 | T76: 1671
B77: Net Profit
A78: Business Interruption | B78: NP | C78: 12 Months | D78: Net Profit | F78: =_xlfn.IFNA(VLOOKUP(C78, Metadata!$L$25:$M$32, 2, FALSE),0) -> 6.4e-05 | G78: TRUE | H78: TRUE | I78: TRUE | J78: FALSE | K78: FALSE | M78: 5 | N78: FALSE | P78: 3.63e-06 | Q78: TRUE | S78: =IF(E78 = 0, 0, MAX((E78 * F78) * (IF(I78 = TRUE, 1 - 'Loss Limit Discount'!$D$93, 1)), M78)) -> 0 | T78: 1595
A79: Business Interruption | B79: AICOW | C79: Additional Increase In Cost Of Working | D79: Net Profit | F79: =F78 * 1.5 -> 9.6e-05 | G79: TRUE | H79: TRUE | I79: TRUE | J79: FALSE | K79: FALSE | M79: 0 | N79: FALSE | P79: 0 | Q79: TRUE | S79: =IF(E79 = 0, 0, MAX((E79 * F79) * (IF(I79 = TRUE, 1 - 'Loss Limit Discount'!$D$93, 1)), M79)) -> 0 | T79: 1667
B80: Gross Profit
A81: Business Interruption | B81: GP | C81: 12 Months | D81: Gross Profit | F81: =_xlfn.IFNA(VLOOKUP(C81, Metadata!$L$34:$M$41, 2, FALSE),0) -> 6.4e-05 | G81: TRUE | H81: TRUE | I81: TRUE | J81: FALSE | K81: FALSE | M81: 5 | N81: FALSE | P81: 3.63e-05 | Q81: TRUE | S81: =IF(E81 = 0, 0, MAX((E81 * F81) * (IF(I81 = TRUE, 1 - 'Loss Limit Discount'!$D$93, 1)), M81)) -> 0
A82: Business Interruption | B82: AICOW | C82: Additional Increase In Cost Of Working | D82: Gross Profit | F82: =F81 * 1.5 -> 9.6e-05 | G82: TRUE | H82: TRUE | I82: TRUE | J82: FALSE | K82: FALSE | M82: 0 | N82: FALSE | P82: 0 | Q82: TRUE | S82: =IF(E82 = 0, 0, MAX((E82 * F82) * (IF(I82 = TRUE, 1 - 'Loss Limit Discount'!$D$93, 1)), M82)) -> 0
T83: 365

Sheet Fire (Office) - Annual
A1: Commercial - Annual | V1: Cells with green borders have a drop-down selection!
A2: Category | B2: Code | C2: Description | D2: Total Code | E2: Sum Insured/No. of insured items | F2: Rate | G2: Is Percent | H2: Add To Sum Insured Discount | I2: Receive Sum Insured Discount | J2: Add To CW Discount | K2: Receive CW Discount | L2: Contract Period Discount | M2: Minimum Premium | N2: Has Fire Extension Discount | O2: Amount within free extension threshold | P2: Special Dispensation Rate | Q2: N/A To Special Dispensation | R2: Unique Code | S2: Premium | T2: System ID
B3: Fire
A4: Commercial Fire | B4: F2(O) | C4: Commercial Fire (Office) | D4: Fire | F4: 0.0002088 | G4: TRUE | H4: TRUE | I4: TRUE | J4: FALSE | K4: FALSE | M4: 500 | S4: =IF(E4 = 0, 0, MAX((E4 * F4) * (IF(I4 = TRUE, 1 - 'Loss Limit Discount'!$D$93, 1)) + ('Fire Extensions'!$I$51 * F4) * (1 - 'Loss Limit Discount'!$D$93), M4)) -> 0
A5: Extensions | B5: Sasria Extensions
A6: Extensions | B6: EX | C6: Rent | D6: Fire | F6: =$F$4 -> 0.0002088 | G6: TRUE | H6: TRUE | I6: TRUE | J6: FALSE | K6: FALSE | M6: 0 | N6: TRUE | O6: =IF(E6 < 'Fire Extensions'!$I$19, 'Fire (Office) - Annual'!E6, 'Fire Extensions'!$I$19) -> 0 | P6: 3.63e-05 | Q6: TRUE | R6: CA002 | T6: 76
A7: Extensions | B7: EX | C7: Claims Preparation Costs | D7: Fire | F7: =$F$4 -> 0.0002088 | G7: TRUE | H7: TRUE | I7: TRUE | J7: FALSE | K7: FALSE | M7: 0 | N7: TRUE | O7: =IF(E7 < 'Fire Extensions'!$I$19, 'Fire (Office) - Annual'!E7, 'Fire Extensions'!$I$19) -> 0 | P7: 3.63e-05 | Q7: TRUE | R7: CA003 | T7: 77
A8: Extensions | B8: EX | C8: Capital Additions | D8: Fire | F8: 0.0002088 | G8: TRUE | H8: TRUE | I8: TRUE | J8: FALSE | K8: FALSE | M8: 0 | N8: TRUE | O8: =IF(E8 < 'Fire Extensions'!$I$19, 'Fire (Office) - Annual'!E8, 'Fire Extensions'!$I$19) -> 0 | P8: 3.63e-05 | Q8: TRUE | R8: CA004 | T8: 78
A9: Extensions | B9: EX | C9: Professional fees | D9: Fire | F9: 0.0002088 | G9: TRUE | H9: TRUE | I9: TRUE | J9: FALSE | K9: FALSE | M9: 0 | N9: TRUE | O9: =IF(E9 < 'Fire Extensions'!$I$19, 'Fire (Office) - Annual'!E9, 'Fire Extensions'!$I$19) -> 0 | P9: 3.63e-05 | Q9: TRUE | R9: CA005 | T9: 79
A10: Extensions | B10: EX | C10: Clearance costs | D10: Fire | F10: 0.0002088 | G10: TRUE | H10: TRUE | I10: TRUE | J10: FALSE | K10: FALSE | M10: 0 | N10: TRUE | O10: =IF(E10 < 'Fire Extensions'!$I$19, 'Fire (Office) - Annual'!E10, 'Fire Extensions'!$I$19) -> 0 | P10: 3.63e-05 | Q10: TRUE | R10: CA006 | T10: 80
A11: Extensions | B11: EX | C11: Security Costs (During and after a loss) | D11: Fire | F11: 0.0002088 | G11: TRUE | H11: TRUE | I11: TRUE | J11: FALSE | K11: FALSE | M11: 0 | N11: TRUE | O11: =IF(E11 < 'Fire Extensions'!$I$19, 'Fire (Office) - Annual'!E11, 'Fire Extensions'!$I$19) -> 0 | P11: 3.63e-05 | Q11: TRUE | R11: CA007 | T11: 81
A12: Extensions | B12: EX | C12: Statutory Duties | D12: Fire | F12: 0.0002088 | G12: TRUE | H12: TRUE | I12: TRUE | J12: FALSE | K12: FALSE | M12: 0 | N12: TRUE | O12: =IF(E12 < 'Fire Extensions'!$I$19, 'Fire (Office) - Annual'!E12, 'Fire Extensions'!$I$19) -> 0 | P12: 3.63e-05 | Q12: TRUE | R12: CA010 | T12: 85
A13: Extensions | B13: EX | C13: Additional Premises | D13: Fire | F13: 0.0002088 | G13: TRUE | H13: TRUE | I13: TRUE | J13: FALSE | K13: FALSE | M13: 0 | N13: TRUE | O13: =IF(E13 < 'Fire Extensions'!$I$19, 'Fire (Office) - Annual'!E13, 'Fire Extensions'!$I$19) -> 0 | P13: 3.63e-05 | Q13: TRUE | R13: CA011 | T13: 86
A14: Extensions | B14: EX | C14: Acquisition Limits | D14: Fire | F14: 0.0002088 | G14: TRUE | H14: TRUE | I14: TRUE | J14: FALSE | K14: FALSE | M14: 0 | N14: TRUE | O14: =IF(E14 < 'Fire Extensions'!$I$19, 'Fire (Office) - Annual'!E14, 'Fire Extensions'!$I$19) -> 0 | P14: 3.63e-05 | Q14: TRUE | R14: CA012 | T14: 87
A15: Extensions | B15: EX | C15: Import Surcharges | D15: Fire | F15: 0.0002088 | G15: TRUE | H15: TRUE | I15: TRUE | J15: FALSE | K15: FALSE | M15: 0 | N15: TRUE | O15: =IF(E15 < 'Fire Extensions'!$I$19, 'Fire (Office) - Annual'!E15, 'Fire Extensions'!$I$19) -> 0 | P15: 3.63e-05 | Q15: TRUE | R15: CA014 | T15: 89
A16: Extensions | B16: EX | C16: Fire Protection System Update | D16: Fire | F16: 0.0002088 | G16: TRUE | H16: TRUE | I16: TRUE | J16: FALSE | K16: FALSE | M16: 0 | N16: TRUE | O16: =IF(E16 < 'Fire Extensions'!$I$19, 'Fire (Office) - Annual'!E16, 'Fire Extensions'!$I$19) -> 0 | P16: 3.63e-05 | Q16: TRUE | R16: CA015 | T16: 90
A17: Extensions | B17: EX | C17: Goods in the open | D17: Fire | F17: 0.0002088 | G17: TRUE | H17: TRUE | I17: TRUE | J17: FALSE | K17: FALSE | M17: 0 | N17: TRUE | O17: =IF(E17 < 'Fire Extensions'!$I$19, 'Fire (Office) - Annual'!E17, 'Fire Extensions'!$I$19) -> 0 | P17: 3.63e-05 | Q17: TRUE | R17: CA019 | T17: 94
A18: Extensions | B18: EX | C18: Fire Extinguishing | D18: Fire | F18: 0.0002088 | G18: TRUE | H18: TRUE | I18: TRUE | J18: FALSE | K18: FALSE | M18: 0 | N18: TRUE | O18: =IF(E18 < 'Fire Extensions'!$I$19, 'Fire (Office) - Annual'!E18, 'Fire Extensions'!$I$19) -> 0 | P18: 3.63e-05 | Q18: TRUE | R18: CA020 | T18: 95
A19: Extensions | B19: EX | C19: Imminent Danger (Protection of property prior a loss) | D19: Fire | F19: 0.0002088 | G19: TRUE | H19: TRUE | I19: TRUE | J19: FALSE | K19: FALSE | M19: 0 | N19: TRUE | O19: =IF(E19 < 'Fire Extensions'!$I$19, 'Fire (Office) - Annual'!E19, 'Fire Extensions'!$I$19) -> 0 | P19: 0 | Q19: TRUE | T19: 2872
A20: Extensions | B20: Other Extensions
A21: Other Extension | B21: EX | C21: Other | D21: Fire | F21: =$F$4 -> 0.0002088 | G21: TRUE | H21: TRUE | I21: TRUE | J21: FALSE | K21: FALSE | M21: 0 | N21: TRUE | O21: =IF(E21 < 'Fire Extensions'!$I$19, 'Fire (Office) - Annual'!E21, 'Fire Extensions'!$I$19) -> 0 | P21: 3.63e-05 | Q21: TRUE | R21: CA021 | T21: 96
A22: Other Extension | B22: EX | C22: Other | D22: Fire | F22: 0.0002088 | G22: TRUE | H22: TRUE | I22: TRUE | J22: FALSE | K22: FALSE | M22: 0 | N22: TRUE | O22: =IF(E22 < 'Fire Extensions'!$I$19, 'Fire (Office) - Annual'!E22, 'Fire Extensions'!$I$19) -> 0 | P22: 3.63e-05 | Q22: TRUE | R22: CA022 | T22: 97
A23: Other Extension | B23: EX | C23: Other | D23: Fire | F23: 0.0002088 | G23: TRUE | H23: TRUE | I23: TRUE | J23: FALSE | K23: FALSE | M23: 0 | N23: TRUE | O23: =IF(E23 < 'Fire Extensions'!$I$19, 'Fire (Office) - Annual'!E23, 'Fire Extensions'!$I$19) -> 0 | P23: 3.63e-05 | Q23: TRUE | R23: CA023 | T23: 98
A24: Other Extension | B24: EX | C24: Other | D24: Fire | F24: 0.0002088 | G24: TRUE | H24: TRUE | I24: TRUE | J24: FALSE | K24: FALSE | M24: 0 | N24: TRUE | O24: =IF(E24 < 'Fire Extensions'!$I$19, 'Fire (Office) - Annual'!E24, 'Fire Extensions'!$I$19) -> 0 | P24: 3.63e-05 | Q24: TRUE | R24: CA024 | T24: 99
A25: Other Extension | B25: EX | C25: Other | D25: Fire | F25: 0.0002088 | G25: TRUE | H25: TRUE | I25: TRUE | J25: FALSE | K25: FALSE | M25: 0 | N25: TRUE | O25: =IF(E25 < 'Fire Extensions'!$I$19, 'Fire (Office) - Annual'!E25, 'Fire Extensions'!$I$19) -> 0 | P25: 3.63e-05 | Q25: TRUE | R25: CA025 | T25: 100
A26: Other Extension | B26: EX | C26: Other | D26: Fire | F26: 0.0002088 | G26: TRUE | H26: TRUE | I26: TRUE | J26: FALSE | K26: FALSE | M26: 0 | N26: TRUE | O26: =IF(E26 < 'Fire Extensions'!$I$19, 'Fire (Office) - Annual'!E26, 'Fire Extensions'!$I$19) -> 0 | P26: 3.63e-05 | Q26: TRUE | R26: CA026 | T26: 101
A27: Other Extension | B27: EX | C27: Other | D27: Fire | F27: 0.0002088 | G27: TRUE | H27: TRUE | I27: TRUE | J27: FALSE | K27: FALSE | M27: 0 | N27: TRUE | O27: =IF(E27 < 'Fire Extensions'!$I$19, 'Fire (Office) - Annual'!E27, 'Fire Extensions'!$I$19) -> 0 | P27: 3.63e-05 | Q27: TRUE | R27: CA027 | T27: 102
A28: Other Extension | B28: EX | C28: Other | D28: Fire | F28: 0.0002088 | G28: TRUE | H28: TRUE | I28: TRUE | J28: FALSE | K28: FALSE | M28: 0 | N28: TRUE | O28: =IF(E28 < 'Fire Extensions'!$I$19, 'Fire (Office) - Annual'!E28, 'Fire Extensions'!$I$19) -> 0 | P28: 3.63e-05 | Q28: TRUE | R28: CA028 | T28: 103
A29: Other Extension | B29: EX | C29: Other | D29: Fire | F29: 0.0002088 | G29: TRUE | H29: TRUE | I29: TRUE | J29: FALSE | K29: FALSE | M29: 0 | N29: TRUE | O29: =IF(E29 < 'Fire Extensions'!$I$19, 'Fire (Office) - Annual'!E29, 'Fire Extensions'!$I$19) -> 0 | P29: 3.63e-05 | Q29: TRUE | R29: CA029 | T29: 104
A30: Other Extension | B30: EX | C30: Other | D30: Fire | F30: 0.0002088 | G30: TRUE | H30: TRUE | I30: TRUE | J30: FALSE | K30: FALSE | M30: 0 | N30: TRUE | O30: =IF(E30 < 'Fire Extensions'!$I$19, 'Fire (Office) - Annual'!E30, 'Fire Extensions'!$I$19) -> 0 | P30: 3.63e-05 | Q30: TRUE | R30: CA030 | T30: 105
A31: Other Extension | B31: EX | C31: Other | D31: Fire | F31: 0.0002088 | G31: TRUE | H31: TRUE | I31: TRUE | J31: FALSE | K31: FALSE | M31: 0 | N31: TRUE | O31: =IF(E31 < 'Fire Extensions'!$I$19, 'Fire (Office) - Annual'!E31, 'Fire Extensions'!$I$19) -> 0 | P31: 3.63e-05 | Q31: TRUE | R31: CA031 | T31: 106
A32: Other Extension | B32: EX | C32: Other | D32: Fire | F32: 0.0002088 | G32: TRUE | H32: TRUE | I32: TRUE | J32: FALSE | K32: FALSE | M32: 0 | N32: TRUE | O32: =IF(E32 < 'Fire Extensions'!$I$19, 'Fire (Office) - Annual'!E32, 'Fire Extensions'!$I$19) -> 0 | P32: 3.63e-05 | Q32: TRUE | R32: CA032 | T32: 107
A33: Other Extension | B33: EX | C33: Other | D33: Fire | F33: 0.0002088 | G33: TRUE | H33: TRUE | I33: TRUE | J33: FALSE | K33: FALSE | M33: 0 | N33: TRUE | O33: =IF(E33 < 'Fire Extensions'!$I$19, 'Fire (Office) - Annual'!E33, 'Fire Extensions'!$I$19) -> 0 | P33: 3.63e-05 | Q33: TRUE | R33: CA033 | T33: 108
A34: Other Extension | B34: EX | C34: Other | D34: Fire | F34: 0.0002088 | G34: TRUE | H34: TRUE | I34: TRUE | J34: FALSE | K34: FALSE | M34: 0 | N34: TRUE | O34: =IF(E34 < 'Fire Extensions'!$I$19, 'Fire (Office) - Annual'!E34, 'Fire Extensions'!$I$19) -> 0 | P34: 3.63e-05 | Q34: TRUE | R34: CA034 | T34: 109
A35: Other Extension | B35: EX | C35: Other | D35: Fire | F35: 0.0002088 | G35: TRUE | H35: TRUE | I35: TRUE | J35: FALSE | K35: FALSE | M35: 0 | N35: TRUE | O35: =IF(E35 < 'Fire Extensions'!$I$19, 'Fire (Office) - Annual'!E35, 'Fire Extensions'!$I$19) -> 0 | P35: 3.63e-05 | Q35: TRUE | R35: CA035 | T35: 110
A36: Other Extension | B36: EX | C36: Other | D36: Fire | F36: 0.0002088 | G36: TRUE | H36: TRUE | I36: TRUE | J36: FALSE | K36: FALSE | M36: 0 | N36: TRUE | O36: =IF(E36 < 'Fire Extensions'!$I$19, 'Fire (Office) - Annual'!E36, 'Fire Extensions'!$I$19) -> 0 | P36: 3.63e-05 | Q36: TRUE | R36: CA036 | T36: 111
A37: Other Extension | B37: EX | C37: Other | D37: Fire | F37: 0.0002088 | G37: TRUE | H37: TRUE | I37: TRUE | J37: FALSE | K37: FALSE | M37: 0 | N37: TRUE | O37: =IF(E37 < 'Fire Extensions'!$I$19, 'Fire (Office) - Annual'!E37, 'Fire Extensions'!$I$19) -> 0 | P37: 3.63e-05 | Q37: TRUE | R37: CA037 | T37: 112
A38: Other Extension | B38: EX | C38: Other | D38: Fire | F38: 0.0002088 | G38: TRUE | H38: TRUE | I38: TRUE | J38: FALSE | K38: FALSE | M38: 0 | N38: TRUE | O38: =IF(E38 < 'Fire Extensions'!$I$19, 'Fire (Office) - Annual'!E38, 'Fire Extensions'!$I$19) -> 0 | P38: 3.63e-05 | Q38: TRUE | R38: CA038 | T38: 113
A39: Other Extension | B39: EX | C39: Other | D39: Fire | F39: 0.0002088 | G39: TRUE | H39: TRUE | I39: TRUE | J39: FALSE | K39: FALSE | M39: 0 | N39: TRUE | O39: =IF(E39 < 'Fire Extensions'!$I$19, 'Fire (Office) - Annual'!E39, 'Fire Extensions'!$I$19) -> 0 | P39: 3.63e-05 | Q39: TRUE | R39: CA039 | T39: 114
A40: Other Extension | B40: EX | C40: Other | D40: Fire | F40: 0.0002088 | G40: TRUE | H40: TRUE | I40: TRUE | J40: FALSE | K40: FALSE | M40: 0 | N40: TRUE | O40: =IF(E40 < 'Fire Extensions'!$I$19, 'Fire (Office) - Annual'!E40, 'Fire Extensions'!$I$19) -> 0 | P40: 3.63e-05 | Q40: TRUE | R40: CA040 | T40: 115
A41: Other Extension | B41: EX | C41: Other | D41: Fire | F41: 0.0002088 | G41: TRUE | H41: TRUE | I41: TRUE | J41: FALSE | K41: FALSE | M41: 0 | N41: TRUE | O41: =IF(E41 < 'Fire Extensions'!$I$19, 'Fire (Office) - Annual'!E41, 'Fire Extensions'!$I$19) -> 0 | P41: 3.63e-05 | Q41: TRUE | R41: CA041 | T41: 116
A42: Other Extension | B42: EX | C42: Other | D42: Fire | F42: 0.0002088 | G42: TRUE | H42: TRUE | I42: TRUE | J42: FALSE | K42: FALSE | M42: 0 | N42: TRUE | O42: =IF(E42 < 'Fire Extensions'!$I$19, 'Fire (Office) - Annual'!E42, 'Fire Extensions'!$I$19) -> 0 | P42: 3.63e-05 | Q42: TRUE | R42: CA042 | T42: 117
A43: Other Extension | B43: EX | C43: Other | D43: Fire | F43: 0.0002088 | G43: TRUE | H43: TRUE | I43: TRUE | J43: FALSE | K43: FALSE | M43: 0 | N43: TRUE | O43: =IF(E43 < 'Fire Extensions'!$I$19, 'Fire (Office) - Annual'!E43, 'Fire Extensions'!$I$19) -> 0 | P43: 3.63e-05 | Q43: TRUE | R43: CA043 | T43: 118
A44: Other Extension | B44: EX | C44: Other | D44: Fire | F44: 0.0002088 | G44: TRUE | H44: TRUE | I44: TRUE | J44: FALSE | K44: FALSE | M44: 0 | N44: TRUE | O44: =IF(E44 < 'Fire Extensions'!$I$19, 'Fire (Office) - Annual'!E44, 'Fire Extensions'!$I$19) -> 0 | P44: 3.63e-05 | Q44: TRUE | R44: CA044 | T44: 119
A45: Other Extension | B45: EX | C45: Other | D45: Fire | F45: 0.0002088 | G45: TRUE | H45: TRUE | I45: TRUE | J45: FALSE | K45: FALSE | M45: 0 | N45: TRUE | O45: =IF(E45 < 'Fire Extensions'!$I$19, 'Fire (Office) - Annual'!E45, 'Fire Extensions'!$I$19) -> 0 | P45: 3.63e-05 | Q45: TRUE | R45: CA045 | T45: 120
A46: Other Extension | B46: EX | C46: Other | D46: Fire | F46: 0.0002088 | G46: TRUE | H46: TRUE | I46: TRUE | J46: FALSE | K46: FALSE | M46: 0 | N46: TRUE | O46: =IF(E46 < 'Fire Extensions'!$I$19, 'Fire (Office) - Annual'!E46, 'Fire Extensions'!$I$19) -> 0 | P46: 3.63e-05 | Q46: TRUE | R46: CA046 | T46: 121
A47: Other Extension | B47: EX | C47: Other | D47: Fire | F47: 0.0002088 | G47: TRUE | H47: TRUE | I47: TRUE | J47: FALSE | K47: FALSE | M47: 0 | N47: TRUE | O47: =IF(E47 < 'Fire Extensions'!$I$19, 'Fire (Office) - Annual'!E47, 'Fire Extensions'!$I$19) -> 0 | P47: 3.63e-05 | Q47: TRUE | R47: CA047 | T47: 122
A48: Other Extension | B48: EX | C48: Other | D48: Fire | F48: 0.0002088 | G48: TRUE | H48: TRUE | I48: TRUE | J48: FALSE | K48: FALSE | M48: 0 | N48: TRUE | O48: =IF(E48 < 'Fire Extensions'!$I$19, 'Fire (Office) - Annual'!E48, 'Fire Extensions'!$I$19) -> 0 | P48: 3.63e-05 | Q48: TRUE | R48: CA048 | T48: 123
A49: Other Extension | B49: EX | C49: Other | D49: Fire | F49: 0.0002088 | G49: TRUE | H49: TRUE | I49: TRUE | J49: FALSE | K49: FALSE | M49: 0 | N49: TRUE | O49: =IF(E49 < 'Fire Extensions'!$I$19, 'Fire (Office) - Annual'!E49, 'Fire Extensions'!$I$19) -> 0 | P49: 3.63e-05 | Q49: TRUE | R49: CA049 | T49: 124
A50: Other Extension | B50: EX | C50: Other | D50: Fire | F50: 0.0002088 | G50: TRUE | H50: TRUE | I50: TRUE | J50: FALSE | K50: FALSE | M50: 0 | N50: TRUE | O50: =IF(E50 < 'Fire Extensions'!$I$19, 'Fire (Office) - Annual'!E50, 'Fire Extensions'!$I$19) -> 0 | P50: 3.63e-05 | Q50: TRUE | R50: CA050 | T50: 125
B51: Escalation and or Inflation
A52: Escalation UL | B52: Charge on U/L
A53: Escalation UL | C53: First Year (90-100%) | D53: Fire | F53: =IF(C53 = "", 0, VLOOKUP(C53, Escalation!$H$111:$I$155, 2, FALSE)) -> 0.0002088 | G53: TRUE | H53: FALSE | I53: TRUE | J53: FALSE | K53: FALSE | M53: 0 | P53: 0 | Q53: TRUE | R53: CA051 | S53: =IF(E53 = 0, 0, MAX((E53 * F53) * (IF(I53 = TRUE, 1 - 'Loss Limit Discount'!$D$93, 1)) * (IF(K53 = TRUE, 1 - 'Contract Works Discount'!$L$11, 1)), M53)) -> 0 | T53: 1690
A54: Escalation UL | C54: Second Year (90-100%) | D54: Fire | F54: =IF(C54 = "", 0, VLOOKUP(C54, Escalation!$H$111:$I$155, 2, FALSE)) -> 0.0001044 | G54: TRUE | H54: FALSE | I54: TRUE | J54: FALSE | K54: FALSE | M54: 0 | P54: 0 | Q54: TRUE | R54: CA052 | S54: =IF(E54 = 0, 0, MAX((E54 * F54) * (IF(I54 = TRUE, 1 - 'Loss Limit Discount'!$D$93, 1)) * (IF(K54 = TRUE, 1 - 'Contract Works Discount'!$L$11, 1)), M54)) -> 0 | T54: 1691
A55: Escalation UL | C55: Third Year (90-100%) | D55: Fire | F55: =IF(C55 = "", 0, VLOOKUP(C55, Escalation!$H$111:$I$155, 2, FALSE)) -> 5.22e-05 | G55: TRUE | H55: FALSE | I55: TRUE | J55: FALSE | K55: FALSE | M55: 0 | P55: 0 | Q55: TRUE | R55: CA053 | S55: =IF(E55 = 0, 0, MAX((E55 * F55) * (IF(I55 = TRUE, 1 - 'Loss Limit Discount'!$D$93, 1)) * (IF(K55 = TRUE, 1 - 'Contract Works Discount'!$L$11, 1)), M55)) -> 0 | T55: 1692
A56: Escalation UL | C56: Fourth Year (90-100%) | D56: Fire | F56: =IF(C56 = "", 0, VLOOKUP(C56, Escalation!$H$111:$I$155, 2, FALSE)) -> 4.176e-05 | G56: TRUE | H56: FALSE | I56: TRUE | J56: FALSE | K56: FALSE | M56: 0 | P56: 0 | Q56: TRUE | R56: CA054 | S56: =IF(E56 = 0, 0, MAX((E56 * F56) * (IF(I56 = TRUE, 1 - 'Loss Limit Discount'!$D$93, 1)) * (IF(K56 = TRUE, 1 - 'Contract Works Discount'!$L$11, 1)), M56)) -> 0 | T56: 1693
A57: Escalation UL | C57: Fifth Year (90-100%) | D57: Fire | F57: =IF(C57 = "", 0, VLOOKUP(C57, Escalation!$H$111:$I$155, 2, FALSE)) -> 3.132e-05 | G57: TRUE | H57: FALSE | I57: TRUE | J57: FALSE | K57: FALSE | M57: 0 | P57: 0 | Q57: TRUE | R57: CA055 | S57: =IF(E57 = 0, 0, MAX((E57 * F57) * (IF(I57 = TRUE, 1 - 'Loss Limit Discount'!$D$93, 1)) * (IF(K57 = TRUE, 1 - 'Contract Works Discount'!$L$11, 1)), M57)) -> 0 | T57: 1694
A58: Escalation Not UL | B58: Not Charge on U/L
A59: Escalation Not UL | C59: First Year | D59: Fire | F59: =$F$4 -> 0.0002088 | G59: TRUE | H59: FALSE | I59: TRUE | J59: FALSE | K59: FALSE | M59: 0 | P59: 3.63e-05 | Q59: FALSE | R59: CA096 | S59: =IF(E59 = 0, 0, MAX((E59 * F59) * (IF(I59 = TRUE, 1 - 'Loss Limit Discount'!$D$93, 1)) * (IF(K59 = TRUE, 1 - 'Contract Works Discount'!$L$11, 1)), M59)) -> 0 | T59: 67
A60: Escalation Not UL | C60: Second Year | D60: Fire | F60: =$F$4 * 0.5 -> 0.0001044 | G60: TRUE | H60: FALSE | I60: TRUE | J60: FALSE | K60: FALSE | M60: 0 | P60: 1.82e-05 | Q60: FALSE | R60: CA097 | S60: =IF(E60 = 0, 0, MAX((E60 * F60) * (IF(I60 = TRUE, 1 - 'Loss Limit Discount'!$D$93, 1)) * (IF(K60 = TRUE, 1 - 'Contract Works Discount'!$L$11, 1)), M60)) -> 0 | T60: 68
A61: Escalation Not UL | C61: Third Year | D61: Fire | F61: =$F$4 * 0.25 -> 5.22e-05 | G61: TRUE | H61: FALSE | I61: TRUE | J61: FALSE | K61: FALSE | M61: 0 | P61: 9.08e-06 | Q61: FALSE | R61: CA098 | S61: =IF(E61 = 0, 0, MAX((E61 * F61) * (IF(I61 = TRUE, 1 - 'Loss Limit Discount'!$D$93, 1)) * (IF(K61 = TRUE, 1 - 'Contract Works Discount'!$L$11, 1)), M61)) -> 0 | T61: 69
A62: Escalation Not UL | C62: Fourth Year | D62: Fire | F62: =$F$4 * 0.2 -> 4.176e-05 | G62: TRUE | H62: FALSE | I62: TRUE | J62: FALSE | K62: FALSE | M62: 0 | P62: 7.26e-06 | Q62: FALSE | R62: CA099 | S62: =IF(E62 = 0, 0, MAX((E62 * F62) * (IF(I62 = TRUE, 1 - 'Loss Limit Discount'!$D$93, 1)) * (IF(K62 = TRUE, 1 - 'Contract Works Discount'!$L$11, 1)), M62)) -> 0 | T62: 70
A63: Escalation Not UL | C63: Fifth Year | D63: Fire | F63: =$F$4 * 0.15 -> 3.132e-05 | G63: TRUE | H63: FALSE | I63: TRUE | J63: FALSE | K63: FALSE | M63: 0 | P63: 5.45e-06 | Q63: FALSE | R63: CA100 | S63: =IF(E63 = 0, 0, MAX((E63 * F63) * (IF(I63 = TRUE, 1 - 'Loss Limit Discount'!$D$93, 1)) * (IF(K63 = TRUE, 1 - 'Contract Works Discount'!$L$11, 1)), M63)) -> 0 | T63: 71
B65: Business Interruption
B66: Advance Specified Standing Charges
A67: Business Interruption | B67: ASC | C67: 12 Months | D67: Advance Standing Charges | F67: =_xlfn.IFNA(VLOOKUP(C67, Metadata!$P$2:$Q$5, 2, FALSE),0) -> 0.00064 | G67: TRUE | H67: FALSE | I67: FALSE | J67: TRUE | K67: TRUE | M67: 50 | N67: FALSE | P67: 0.00064 | Q67: TRUE | R67: CA101 | S67: =IF(E67 = 0, 0, MAX((E67 * F67) * (IF(I67 = TRUE, 1 - 'Loss Limit Discount'!$D$93, 1)) * (IF(K67 = TRUE, 1 - 'Contract Works Discount'!$L$101, 1)), M67)) -> 0 | T67: 5
B68: Specified Standing Charges
A69: Business Interruption | B69: SC | C69: 12 Months | D69: Standing Charges | F69: =_xlfn.IFNA(VLOOKUP(C69, Metadata!$P$7:$Q$14, 2, FALSE),0) -> 0.00064 | G69: TRUE | H69: TRUE | I69: TRUE | J69: FALSE | K69: FALSE | M69: 50 | N69: FALSE | P69: 3.63e-05 | Q69: FALSE | R69: CA105 | S69: =IF(E69 = 0, 0, MAX((E69 * F69) * (IF(I69 = TRUE, 1 - 'Loss Limit Discount'!$D$93, 1)) * (IF(K69 = TRUE, 1 - 'Contract Works Discount'!$L$11, 1)), M69)) -> 0 | T69: 577
A70: Business Interruption | B70: AICOW | C70: Additional Increase In Cost Of Working | D70: Standing Charges | F70: =F69 * 1.5 -> 0.00096 | G70: TRUE | H70: TRUE | I70: TRUE | J70: FALSE | K70: FALSE | M70: 0 | N70: FALSE | P70: 0 | Q70: TRUE | R70: CA113 | S70: =IF(E70 = 0, 0, MAX((E70 * F70) * (IF(I70 = TRUE, 1 - 'Loss Limit Discount'!$D$93, 1)) * (IF(K70 = TRUE, 1 - 'Contract Works Discount'!$L$11, 1)), M70)) -> 0 | T70: 396
B71: Working Expenses
A72: Business Interruption | B72: WE | C72: 12 Months | D72: Working Expenses | F72: =_xlfn.IFNA(VLOOKUP(C72, Metadata!$P$16:$Q$23, 2, FALSE),0) -> 0.00064 | G72: TRUE | H72: TRUE | I72: TRUE | J72: FALSE | K72: FALSE | M72: 50 | N72: FALSE | P72: 3.63e-05 | Q72: TRUE | R72: CA114 | S72: =IF(E72 = 0, 0, MAX((E72 * F72) * (IF(I72 = TRUE, 1 - 'Loss Limit Discount'!$D$93, 1)) * (IF(K72 = TRUE, 1 - 'Contract Works Discount'!$L$11, 1)), M72)) -> 0 | T72: 137
A73: Business Interruption | B73: AICOW | C73: Additional Increase In Cost Of Working | D73: Working Expenses | F73: =F72 * 1.5 -> 0.00096 | G73: TRUE | H73: TRUE | I73: TRUE | J73: FALSE | K73: FALSE | M73: 0 | N73: FALSE | P73: 0 | Q73: TRUE | R73: CA122 | S73: =IF(E73 = 0, 0, MAX((E73 * F73) * (IF(I73 = TRUE, 1 - 'Loss Limit Discount'!$D$93, 1)) * (IF(K73 = TRUE, 1 - 'Contract Works Discount'!$L$11, 1)), M73)) -> 0 | T73: 55
B74: Revenue
A75: Business Interruption | B75: R | C75: 12 Months | D75: Revenue | F75: =_xlfn.IFNA(VLOOKUP(C75, Metadata!$P$48:$Q$55, 2, FALSE),0) -> 0.00064 | G75: TRUE | H75: TRUE | I75: TRUE | J75: FALSE | K75: FALSE | M75: 50 | N75: FALSE | P75: 3.63e-05 | Q75: TRUE | R75: CA123 | S75: =IF(E75 = 0, 0, MAX((E75 * F75) * (IF(I75 = TRUE, 1 - 'Loss Limit Discount'!$D$93, 1)) * (IF(K75 = TRUE, 1 - 'Contract Works Discount'!$L$11, 1)), M75)) -> 0 | T75: 47
A76: Business Interruption | B76: AICOW | C76: Additional Increase In Cost Of Working | D76: Revenue | F76: =F75 * 1.5 -> 0.00096 | G76: TRUE | H76: TRUE | I76: TRUE | J76: FALSE | K76: FALSE | M76: 0 | N76: FALSE | P76: 0 | Q76: TRUE | R76: CA131 | S76: =IF(E76 = 0, 0, MAX((E76 * F76) * (IF(I76 = TRUE, 1 - 'Loss Limit Discount'!$D$93, 1)) * (IF(K76 = TRUE, 1 - 'Contract Works Discount'!$L$11, 1)), M76)) -> 0 | T76: 1670
B77: Net Profit
A78: Business Interruption | B78: NP | C78: 12 Months | D78: Net Profit | F78: =_xlfn.IFNA(VLOOKUP(C78, Metadata!$P$25:$Q$32, 2, FALSE),0) -> 0.00064 | G78: TRUE | H78: TRUE | I78: TRUE | J78: FALSE | K78: FALSE | M78: 50 | N78: FALSE | P78: 3.63e-05 | Q78: TRUE | R78: CA123 | S78: =IF(E78 = 0, 0, MAX((E78 * F78) * (IF(I78 = TRUE, 1 - 'Loss Limit Discount'!$D$93, 1)) * (IF(K78 = TRUE, 1 - 'Contract Works Discount'!$L$11, 1)), M78)) -> 0 | T78: 47
A79: Business Interruption | B79: AICOW | C79: Additional Increase In Cost Of Working | D79: Net Profit | F79: =F78 * 1.5 -> 0.00096 | G79: TRUE | H79: TRUE | I79: TRUE | J79: FALSE | K79: FALSE | M79: 0 | N79: FALSE | P79: 0 | Q79: TRUE | R79: CA131 | S79: =IF(E79 = 0, 0, MAX((E79 * F79) * (IF(I79 = TRUE, 1 - 'Loss Limit Discount'!$D$93, 1)) * (IF(K79 = TRUE, 1 - 'Contract Works Discount'!$L$11, 1)), M79)) -> 0 | T79: 1670
B80: Gross Profit
A81: Business Interruption | B81: GP | C81: 12 Months | D81: Gross Profit | F81: =_xlfn.IFNA(VLOOKUP(C81, Metadata!$P$34:$Q$41, 2, FALSE),0) -> 0.00064 | G81: TRUE | H81: TRUE | I81: TRUE | J81: FALSE | K81: FALSE | M81: 50 | N81: FALSE | P81: 0.000436 | Q81: TRUE | R81: CA132 | S81: =IF(E81 = 0, 0, MAX((E81 * F81) * (IF(I81 = TRUE, 1 - 'Loss Limit Discount'!$D$93, 1)) * (IF(K81 = TRUE, 1 - 'Contract Works Discount'!$L$11, 1)), M81)) -> 0 | T81: 1587
A82: Business Interruption | B82: AICOW | C82: Additional Increase In Cost Of Working | D82: Gross Profit | F82: =F81 * 1.5 -> 0.00096 | G82: TRUE | H82: TRUE | I82: TRUE | J82: FALSE | K82: FALSE | M82: 0 | N82: FALSE | P82: 0 | Q82: TRUE | R82: CA140 | S82: =IF(E82 = 0, 0, MAX((E82 * F82) * (IF(I82 = TRUE, 1 - 'Loss Limit Discount'!$D$93, 1)) * (IF(K82 = TRUE, 1 - 'Contract Works Discount'!$L$11, 1)), M82)) -> 0 | T82: 1666

Sheet Municipalities - Monthly
A1: Commercial - Monthly | V1: Cells with green borders have a drop-down selection!
A2: Category | B2: Code | C2: Description | D2: Total Code | E2: Sum Insured/No. of insured items | F2: Rate | G2: Is Percent | H2: Add To Sum Insured Discount | I2: Receive Sum Insured Discount | J2: Add To CW Discount | K2: Receive CW Discount | L2: Contract Period Discount | M2: Minimum Premium | N2: Has Fire Extension Discount | O2: Amount within free extension threshold | P2: Special Dispensation Rate | Q2: N/A To Special Dispensation | S2: Premium | T2: System ID
B3: Fire
A4: Commercial Fire | B4: Mun | C4: Municipalities | D4: Fire | F4: 2.958e-05 | G4: FALSE | H4: TRUE | I4: TRUE | J4: FALSE | K4: FALSE | M4: 50 | S4: =IF(E4 = 0, 0, MAX((E4 * F4) * (IF(I4 = TRUE, 1 - 'Loss Limit Discount'!$D$93, 1)) + ('Fire Extensions'!$D$64 * 'Commercial - Monthly'!$F$4) * (1 - 'Loss Limit Discount'!$D$93), M4)) -> 0
A5: Extension | B5: Sasria Extensions
A6: Extension | B6: EX | C6: Rent | D6: Fire | F6: =$F$4 -> 2.958e-05 | G6: TRUE | H6: TRUE | I6: TRUE | J6: FALSE | K6: FALSE | M6: 0 | N6: TRUE | O6: =IF(E6 < 'Fire Extensions'!$I$6, 'Municipalities - Monthly'!E6, 'Fire Extensions'!$I$6) -> 0 | P6: 3.63e-06 | Q6: TRUE | R6: =E6-O6 -> 0 | T6: 267
A7: Extension | B7: EX | C7: Claims Preparation Costs | D7: Fire | F7: =$F$4 -> 2.958e-05 | G7: TRUE | H7: TRUE | I7: TRUE | J7: FALSE | K7: FALSE | M7: 0 | N7: TRUE | O7: =IF(E7 < 'Fire Extensions'!$I$6, 'Municipalities - Monthly'!E7, 'Fire Extensions'!$I$6) -> 0 | P7: 3.63e-06 | Q7: TRUE | R7: =E7-O7 -> 0 | T7: 268
A8: Extension | B8: EX | C8: Capital Additions | D8: Fire | F8: 2.958e-05 | G8: TRUE | H8: TRUE | I8: TRUE | J8: FALSE | K8: FALSE | M8: 0 | N8: TRUE | O8: =IF(E8 < 'Fire Extensions'!$I$6, 'Municipalities - Monthly'!E8, 'Fire Extensions'!$I$6) -> 0 | P8: 3.63e-06 | Q8: TRUE | R8: 0 | T8: 269
A9: Extension | B9: EX | C9: Professional fees | D9: Fire | F9: 2.958e-05 | G9: TRUE | H9: TRUE | I9: TRUE | J9: FALSE | K9: FALSE | M9: 0 | N9: TRUE | O9: =IF(E9 < 'Fire Extensions'!$I$6, 'Municipalities - Monthly'!E9, 'Fire Extensions'!$I$6) -> 0 | P9: 3.63e-06 | Q9: TRUE | R9: 0 | T9: 270
A10: Extension | B10: EX | C10: Clearance costs | D10: Fire | F10: 2.958e-05 | G10: TRUE | H10: TRUE | I10: TRUE | J10: FALSE | K10: FALSE | M10: 0 | N10: TRUE | O10: =IF(E10 < 'Fire Extensions'!$I$6, 'Municipalities - Monthly'!E10, 'Fire Extensions'!$I$6) -> 0 | P10: 3.63e-06 | Q10: TRUE | R10: 0 | T10: 271
A11: Extension | B11: EX | C11: Security Costs (During and after a loss) | D11: Fire | F11: 2.958e-05 | G11: TRUE | H11: TRUE | I11: TRUE | J11: FALSE | K11: FALSE | M11: 0 | N11: TRUE | O11: =IF(E11 < 'Fire Extensions'!$I$6, 'Municipalities - Monthly'!E11, 'Fire Extensions'!$I$6) -> 0 | P11: 3.63e-06 | Q11: TRUE | R11: 0 | T11: 272
A12: Extension | B12: EX | C12: Statutory Duties | D12: Fire | F12: 2.958e-05 | G12: TRUE | H12: TRUE | I12: TRUE | J12: FALSE | K12: FALSE | M12: 0 | N12: TRUE | O12: =IF(E12 < 'Fire Extensions'!$I$6, 'Municipalities - Monthly'!E12, 'Fire Extensions'!$I$6) -> 0 | P12: 3.63e-06 | Q12: TRUE | R12: 0 | T12: 276
A13: Extension | B13: EX | C13: Additional Premises | D13: Fire | F13: 2.958e-05 | G13: TRUE | H13: TRUE | I13: TRUE | J13: FALSE | K13: FALSE | M13: 0 | N13: TRUE | O13: =IF(E13 < 'Fire Extensions'!$I$6, 'Municipalities - Monthly'!E13, 'Fire Extensions'!$I$6) -> 0 | P13: 3.63e-06 | Q13: TRUE | R13: 0 | T13: 277
A14: Extension | B14: EX | C14: Acquisition Limits | D14: Fire | F14: 2.958e-05 | G14: TRUE | H14: TRUE | I14: TRUE | J14: FALSE | K14: FALSE | M14: 0 | N14: TRUE | O14: =IF(E14 < 'Fire Extensions'!$I$6, 'Municipalities - Monthly'!E14, 'Fire Extensions'!$I$6) -> 0 | P14: 3.63e-06 | Q14: TRUE | R14: 0 | T14: 278
A15: Extension | B15: EX | C15: Import Surcharges | D15: Fire | F15: 2.958e-05 | G15: TRUE | H15: TRUE | I15: TRUE | J15: FALSE | K15: FALSE | M15: 0 | N15: TRUE | O15: =IF(E15 < 'Fire Extensions'!$I$6, 'Municipalities - Monthly'!E15, 'Fire Extensions'!$I$6) -> 0 | P15: 3.63e-06 | Q15: TRUE | R15: 0 | T15: 280
A16: Extension | B16: EX | C16: Fire Protection System Update | D16: Fire | F16: 2.958e-05 | G16: TRUE | H16: TRUE | I16: TRUE | J16: FALSE | K16: FALSE | M16: 0 | N16: TRUE | O16: =IF(E16 < 'Fire Extensions'!$I$6, 'Municipalities - Monthly'!E16, 'Fire Extensions'!$I$6) -> 0 | P16: 3.63e-06 | Q16: TRUE | R16: 0 | T16: 281
A17: Extension | B17: EX | C17: Goods in the open | D17: Fire | F17: 2.958e-05 | G17: TRUE | H17: TRUE | I17: TRUE | J17: FALSE | K17: FALSE | M17: 0 | N17: TRUE | O17: =IF(E17 < 'Fire Extensions'!$I$6, 'Municipalities - Monthly'!E17, 'Fire Extensions'!$I$6) -> 0 | P17: 3.63e-06 | Q17: TRUE | R17: 0 | T17: 285
A18: Extension | B18: EX | C18: Fire Extinguishing | D18: Fire | F18: 2.958e-05 | G18: TRUE | H18: TRUE | I18: TRUE | J18: FALSE | K18: FALSE | M18: 0 | N18: TRUE | O18: =IF(E18 < 'Fire Extensions'!$I$6, 'Municipalities - Monthly'!E18, 'Fire Extensions'!$I$6) -> 0 | P18: 3.63e-06 | Q18: TRUE | R18: 0 | T18: 286
A19: Extension | B19: EX | C19: Imminent Danger (Protection of property prior a loss) | D19: Fire | F19: 2.958e-05 | G19: TRUE | H19: TRUE | I19: TRUE | J19: FALSE | K19: FALSE | M19: 0 | N19: TRUE | O19: =IF(E19 < 'Fire Extensions'!$I$6, 'Municipalities - Monthly'!E19, 'Fire Extensions'!$I$6) -> 0 | P19: 0 | Q19: TRUE | R19: 0 | T19: 2873
A20: Other Extension | B20: Other Extensions
A21: Other Extension | B21: EX | C21: Other | D21: Fire | F21: =$F$4 -> 2.958e-05 | G21: TRUE | H21: TRUE | I21: TRUE | J21: FALSE | K21: FALSE | M21: 0 | N21: TRUE | O21: =IF(E21 < 'Fire Extensions'!$I$6, 'Municipalities - Monthly'!E21, 'Fire Extensions'!$I$6) -> 0 | P21: 3.63e-06 | Q21: TRUE | T21: 288
A22: Other Extension | B22: EX | C22: Other | D22: Fire | F22: 2.958e-05 | G22: TRUE | H22: TRUE | I22: TRUE | J22: FALSE | K22: FALSE | M22: 0 | N22: TRUE | O22: =IF(E22 < 'Fire Extensions'!$I$6, 'Municipalities - Monthly'!E22, 'Fire Extensions'!$I$6) -> 0 | P22: 3.63e-06 | Q22: TRUE | T22: 289
A23: Other Extension | B23: EX | C23: Other | D23: Fire | F23: 2.958e-05 | G23: TRUE | H23: TRUE | I23: TRUE | J23: FALSE | K23: FALSE | M23: 0 | N23: TRUE | O23: =IF(E23 < 'Fire Extensions'!$I$6, 'Municipalities - Monthly'!E23, 'Fire Extensions'!$I$6) -> 0 | P23: 3.63e-06 | Q23: TRUE | T23: 290
A24: Other Extension | B24: EX | C24: Other | D24: Fire | F24: 2.958e-05 | G24: TRUE | H24: TRUE | I24: TRUE | J24: FALSE | K24: FALSE | M24: 0 | N24: TRUE | O24: =IF(E24 < 'Fire Extensions'!$I$6, 'Municipalities - Monthly'!E24, 'Fire Extensions'!$I$6) -> 0 | P24: 3.63e-06 | Q24: TRUE | T24: 291
A25: Other Extension | B25: EX | C25: Other | D25: Fire | F25: 2.958e-05 | G25: TRUE | H25: TRUE | I25: TRUE | J25: FALSE | K25: FALSE | M25: 0 | N25: TRUE | O25: =IF(E25 < 'Fire Extensions'!$I$6, 'Municipalities - Monthly'!E25, 'Fire Extensions'!$I$6) -> 0 | P25: 3.63e-06 | Q25: TRUE | T25: 292
A26: Other Extension | B26: EX | C26: Other | D26: Fire | F26: 2.958e-05 | G26: TRUE | H26: TRUE | I26: TRUE | J26: FALSE | K26: FALSE | M26: 0 | N26: TRUE | O26: =IF(E26 < 'Fire Extensions'!$I$6, 'Municipalities - Monthly'!E26, 'Fire Extensions'!$I$6) -> 0 | P26: 3.63e-06 | Q26: TRUE | T26: 293
A27: Other Extension | B27: EX | C27: Other | D27: Fire | F27: 2.958e-05 | G27: TRUE | H27: TRUE | I27: TRUE | J27: FALSE | K27: FALSE | M27: 0 | N27: TRUE | O27: =IF(E27 < 'Fire Extensions'!$I$6, 'Municipalities - Monthly'!E27, 'Fire Extensions'!$I$6) -> 0 | P27: 3.63e-06 | Q27: TRUE | T27: 294
A28: Other Extension | B28: EX | C28: Other | D28: Fire | F28: 2.958e-05 | G28: TRUE | H28: TRUE | I28: TRUE | J28: FALSE | K28: FALSE | M28: 0 | N28: TRUE | O28: =IF(E28 < 'Fire Extensions'!$I$6, 'Municipalities - Monthly'!E28, 'Fire Extensions'!$I$6) -> 0 | P28: 3.63e-06 | Q28: TRUE | T28: 295
A29: Other Extension | B29: EX | C29: Other | D29: Fire | F29: 2.958e-05 | G29: TRUE | H29: TRUE | I29: TRUE | J29: FALSE | K29: FALSE | M29: 0 | N29: TRUE | O29: =IF(E29 < 'Fire Extensions'!$I$6, 'Municipalities - Monthly'!E29, 'Fire Extensions'!$I$6) -> 0 | P29: 3.63e-06 | Q29: TRUE | T29: 296
A30: Other Extension | B30: EX | C30: Other | D30: Fire | F30: 2.958e-05 | G30: TRUE | H30: TRUE | I30: TRUE | J30: FALSE | K30: FALSE | M30: 0 | N30: TRUE | O30: =IF(E30 < 'Fire Extensions'!$I$6, 'Municipalities - Monthly'!E30, 'Fire Extensions'!$I$6) -> 0 | P30: 3.63e-06 | Q30: TRUE | T30: 297
A31: Other Extension | B31: EX | C31: Other | D31: Fire | F31: 2.958e-05 | G31: TRUE | H31: TRUE | I31: TRUE | J31: FALSE | K31: FALSE | M31: 0 | N31: TRUE | O31: =IF(E31 < 'Fire Extensions'!$I$6, 'Municipalities - Monthly'!E31, 'Fire Extensions'!$I$6) -> 0 | P31: 3.63e-06 | Q31: TRUE | T31: 298
A32: Other Extension | B32: EX | C32: Other | D32: Fire | F32: 2.958e-05 | G32: TRUE | H32: TRUE | I32: TRUE | J32: FALSE | K32: FALSE | M32: 0 | N32: TRUE | O32: =IF(E32 < 'Fire Extensions'!$I$6, 'Municipalities - Monthly'!E32, 'Fire Extensions'!$I$6) -> 0 | P32: 3.63e-06 | Q32: TRUE | T32: 299
A33: Other Extension | B33: EX | C33: Other | D33: Fire | F33: 2.958e-05 | G33: TRUE | H33: TRUE | I33: TRUE | J33: FALSE | K33: FALSE | M33: 0 | N33: TRUE | O33: =IF(E33 < 'Fire Extensions'!$I$6, 'Municipalities - Monthly'!E33, 'Fire Extensions'!$I$6) -> 0 | P33: 3.63e-06 | Q33: TRUE | T33: 300
A34: Other Extension | B34: EX | C34: Other | D34: Fire | F34: 2.958e-05 | G34: TRUE | H34: TRUE | I34: TRUE | J34: FALSE | K34: FALSE | M34: 0 | N34: TRUE | O34: =IF(E34 < 'Fire Extensions'!$I$6, 'Municipalities - Monthly'!E34, 'Fire Extensions'!$I$6) -> 0 | P34: 3.63e-06 | Q34: TRUE | T34: 301
A35: Other Extension | B35: EX | C35: Other | D35: Fire | F35: 2.958e-05 | G35: TRUE | H35: TRUE | I35: TRUE | J35: FALSE | K35: FALSE | M35: 0 | N35: TRUE | O35: =IF(E35 < 'Fire Extensions'!$I$6, 'Municipalities - Monthly'!E35, 'Fire Extensions'!$I$6) -> 0 | P35: 3.63e-06 | Q35: TRUE | T35: 302
A36: Other Extension | B36: EX | C36: Other | D36: Fire | F36: 2.958e-05 | G36: TRUE | H36: TRUE | I36: TRUE | J36: FALSE | K36: FALSE | M36: 0 | N36: TRUE | O36: =IF(E36 < 'Fire Extensions'!$I$6, 'Municipalities - Monthly'!E36, 'Fire Extensions'!$I$6) -> 0 | P36: 3.63e-06 | Q36: TRUE | T36: 303
A37: Other Extension | B37: EX | C37: Other | D37: Fire | F37: 2.958e-05 | G37: TRUE | H37: TRUE | I37: TRUE | J37: FALSE | K37: FALSE | M37: 0 | N37: TRUE | O37: =IF(E37 < 'Fire Extensions'!$I$6, 'Municipalities - Monthly'!E37, 'Fire Extensions'!$I$6) -> 0 | P37: 3.63e-06 | Q37: TRUE | T37: 304
A38: Other Extension | B38: EX | C38: Other | D38: Fire | F38: 2.958e-05 | G38: TRUE | H38: TRUE | I38: TRUE | J38: FALSE | K38: FALSE | M38: 0 | N38: TRUE | O38: =IF(E38 < 'Fire Extensions'!$I$6, 'Municipalities - Monthly'!E38, 'Fire Extensions'!$I$6) -> 0 | P38: 3.63e-06 | Q38: TRUE | T38: 305
A39: Other Extension | B39: EX | C39: Other | D39: Fire | F39: 2.958e-05 | G39: TRUE | H39: TRUE | I39: TRUE | J39: FALSE | K39: FALSE | M39: 0 | N39: TRUE | O39: =IF(E39 < 'Fire Extensions'!$I$6, 'Municipalities - Monthly'!E39, 'Fire Extensions'!$I$6) -> 0 | P39: 3.63e-06 | Q39: TRUE | T39: 306
A40: Other Extension | B40: EX | C40: Other | D40: Fire | F40: 2.958e-05 | G40: TRUE | H40: TRUE | I40: TRUE | J40: FALSE | K40: FALSE | M40: 0 | N40: TRUE | O40: =IF(E40 < 'Fire Extensions'!$I$6, 'Municipalities - Monthly'!E40, 'Fire Extensions'!$I$6) -> 0 | P40: 3.63e-06 | Q40: TRUE | T40: 307
A41: Other Extension | B41: EX | C41: Other | D41: Fire | F41: 2.958e-05 | G41: TRUE | H41: TRUE | I41: TRUE | J41: FALSE | K41: FALSE | M41: 0 | N41: TRUE | O41: =IF(E41 < 'Fire Extensions'!$I$6, 'Municipalities - Monthly'!E41, 'Fire Extensions'!$I$6) -> 0 | P41: 3.63e-06 | Q41: TRUE | T41: 308
A42: Other Extension | B42: EX | C42: Other | D42: Fire | F42: 2.958e-05 | G42: TRUE | H42: TRUE | I42: TRUE | J42: FALSE | K42: FALSE | M42: 0 | N42: TRUE | O42: =IF(E42 < 'Fire Extensions'!$I$6, 'Municipalities - Monthly'!E42, 'Fire Extensions'!$I$6) -> 0 | P42: 3.63e-06 | Q42: TRUE | T42: 309
A43: Other Extension | B43: EX | C43: Other | D43: Fire | F43: 2.958e-05 | G43: TRUE | H43: TRUE | I43: TRUE | J43: FALSE | K43: FALSE | M43: 0 | N43: TRUE | O43: =IF(E43 < 'Fire Extensions'!$I$6, 'Municipalities - Monthly'!E43, 'Fire Extensions'!$I$6) -> 0 | P43: 3.63e-06 | Q43: TRUE | T43: 310
A44: Other Extension | B44: EX | C44: Other | D44: Fire | F44: 2.958e-05 | G44: TRUE | H44: TRUE | I44: TRUE | J44: FALSE | K44: FALSE | M44: 0 | N44: TRUE | O44: =IF(E44 < 'Fire Extensions'!$I$6, 'Municipalities - Monthly'!E44, 'Fire Extensions'!$I$6) -> 0 | P44: 3.63e-06 | Q44: TRUE | T44: 311
A45: Other Extension | B45: EX | C45: Other | D45: Fire | F45: 2.958e-05 | G45: TRUE | H45: TRUE | I45: TRUE | J45: FALSE | K45: FALSE | M45: 0 | N45: TRUE | O45: =IF(E45 < 'Fire Extensions'!$I$6, 'Municipalities - Monthly'!E45, 'Fire Extensions'!$I$6) -> 0 | P45: 3.63e-06 | Q45: TRUE | T45: 312
A46: Other Extension | B46: EX | C46: Other | D46: Fire | F46: 2.958e-05 | G46: TRUE | H46: TRUE | I46: TRUE | J46: FALSE | K46: FALSE | M46: 0 | N46: TRUE | O46: =IF(E46 < 'Fire Extensions'!$I$6, 'Municipalities - Monthly'!E46, 'Fire Extensions'!$I$6) -> 0 | P46: 3.63e-06 | Q46: TRUE | T46: 313
A47: Other Extension | B47: EX | C47: Other | D47: Fire | F47: 2.958e-05 | G47: TRUE | H47: TRUE | I47: TRUE | J47: FALSE | K47: FALSE | M47: 0 | N47: TRUE | O47: =IF(E47 < 'Fire Extensions'!$I$6, 'Municipalities - Monthly'!E47, 'Fire Extensions'!$I$6) -> 0 | P47: 3.63e-06 | Q47: TRUE | T47: 314
A48: Other Extension | B48: EX | C48: Other | D48: Fire | F48: 2.958e-05 | G48: TRUE | H48: TRUE | I48: TRUE | J48: FALSE | K48: FALSE | M48: 0 | N48: TRUE | O48: =IF(E48 < 'Fire Extensions'!$I$6, 'Municipalities - Monthly'!E48, 'Fire Extensions'!$I$6) -> 0 | P48: 3.63e-06 | Q48: TRUE | T48: 315
A49: Other Extension | B49: EX | C49: Other | D49: Fire | F49: 2.958e-05 | G49: TRUE | H49: TRUE | I49: TRUE | J49: FALSE | K49: FALSE | M49: 0 | N49: TRUE | O49: =IF(E49 < 'Fire Extensions'!$I$6, 'Municipalities - Monthly'!E49, 'Fire Extensions'!$I$6) -> 0 | P49: 3.63e-06 | Q49: TRUE | T49: 316
A50: Other Extension | B50: EX | C50: Other | D50: Fire | F50: 2.958e-05 | G50: TRUE | H50: TRUE | I50: TRUE | J50: FALSE | K50: FALSE | M50: 0 | N50: TRUE | O50: =IF(E50 < 'Fire Extensions'!$I$6, 'Municipalities - Monthly'!E50, 'Fire Extensions'!$I$6) -> 0 | P50: 3.63e-06 | Q50: TRUE | T50: 317
B51: Escalation and or Inflation
A52: Escalation UL | B52: Charge on U/L
A53: Escalation UL | C53: First Year (90-100%) | D53: Fire | F53: =IF(C53 = "", 0, VLOOKUP(C53, Escalation!$C$216:$D$260, 2, FALSE)) -> 2.958e-05 | G53: TRUE | H53: FALSE | I53: TRUE | J53: FALSE | K53: FALSE | M53: 0 | P53: 0 | Q53: TRUE | S53: =IF(E53 = 0, 0, MAX((E53 * F53) * (IF(I53 = TRUE, 1 - 'Loss Limit Discount'!$D$93, 1)), M53)) -> 0 | T53: 1735
A54: Escalation UL | C54: Second Year (90-100%) | D54: Fire | F54: =IF(C54 = "", 0, VLOOKUP(C54, Escalation!$C$216:$D$260, 2, FALSE)) -> 1.479e-05 | G54: TRUE | H54: FALSE | I54: TRUE | J54: FALSE | K54: FALSE | M54: 0 | P54: 0 | Q54: TRUE | S54: =IF(E54 = 0, 0, MAX((E54 * F54) * (IF(I54 = TRUE, 1 - 'Loss Limit Discount'!$D$93, 1)), M54)) -> 0 | T54: 1736
A55: Escalation UL | C55: Third Year (90-100%) | D55: Fire | F55: =IF(C55 = "", 0, VLOOKUP(C55, Escalation!$C$216:$D$260, 2, FALSE)) -> 7.395e-06 | G55: TRUE | H55: FALSE | I55: TRUE | J55: FALSE | K55: FALSE | M55: 0 | P55: 0 | Q55: TRUE | S55: =IF(E55 = 0, 0, MAX((E55 * F55) * (IF(I55 = TRUE, 1 - 'Loss Limit Discount'!$D$93, 1)), M55)) -> 0 | T55: 1737
A56: Escalation UL | C56: Fourth Year (90-100%) | D56: Fire | F56: =IF(C56 = "", 0, VLOOKUP(C56, Escalation!$C$216:$D$260, 2, FALSE)) -> 5.916e-06 | G56: TRUE | H56: FALSE | I56: TRUE | J56: FALSE | K56: FALSE | M56: 0 | P56: 0 | Q56: TRUE | S56: =IF(E56 = 0, 0, MAX((E56 * F56) * (IF(I56 = TRUE, 1 - 'Loss Limit Discount'!$D$93, 1)), M56)) -> 0 | T56: 1738
A57: Escalation UL | C57: Fifth Year (90-100%) | D57: Fire | F57: =IF(C57 = "", 0, VLOOKUP(C57, Escalation!$C$216:$D$260, 2, FALSE)) -> 4.437e-06 | G57: TRUE | H57: FALSE | I57: TRUE | J57: FALSE | K57: FALSE | M57: 0 | P57: 0 | Q57: TRUE | S57: =IF(E57 = 0, 0, MAX((E57 * F57) * (IF(I57 = TRUE, 1 - 'Loss Limit Discount'!$D$93, 1)), M57)) -> 0 | T57: 1739
A58: Escalation Not UL | B58: Not Charge on U/L
A59: Escalation Not UL | C59: First Year | D59: Fire | F59: =$F$4 -> 2.958e-05 | G59: TRUE | H59: FALSE | I59: TRUE | J59: FALSE | K59: FALSE | M59: 0 | P59: 3.63e-06 | Q59: FALSE | S59: =IF(E59 = 0, 0, MAX((E59 * F59) * (IF(I59 = TRUE, 1 - 'Loss Limit Discount'!$D$93, 1)), M59)) -> 0 | T59: 326
A60: Escalation Not UL | C60: Second Year | D60: Fire | F60: =$F$4 * 0.5 -> 1.479e-05 | G60: TRUE | H60: FALSE | I60: TRUE | J60: FALSE | K60: FALSE | M60: 0 | P60: 1.82e-06 | Q60: FALSE | S60: =IF(E60 = 0, 0, MAX((E60 * F60) * (IF(I60 = TRUE, 1 - 'Loss Limit Discount'!$D$93, 1)), M60)) -> 0 | T60: 327
A61: Escalation Not UL | C61: Third Year | D61: Fire | F61: =$F$4 * 0.25 -> 7.395e-06 | G61: TRUE | H61: FALSE | I61: TRUE | J61: FALSE | K61: FALSE | M61: 0 | P61: 9.08e-07 | Q61: FALSE | S61: =IF(E61 = 0, 0, MAX((E61 * F61) * (IF(I61 = TRUE, 1 - 'Loss Limit Discount'!$D$93, 1)), M61)) -> 0 | T61: 328
A62: Escalation Not UL | C62: Fourth Year | D62: Fire | F62: =$F$4 * 0.2 -> 5.916e-06 | G62: TRUE | H62: FALSE | I62: TRUE | J62: FALSE | K62: FALSE | M62: 0 | P62: 7.26e-07 | Q62: FALSE | S62: =IF(E62 = 0, 0, MAX((E62 * F62) * (IF(I62 = TRUE, 1 - 'Loss Limit Discount'!$D$93, 1)), M62)) -> 0 | T62: 329
A63: Escalation Not UL | C63: Fifth Year | D63: Fire | F63: =$F$4 * 0.15 -> 4.437e-06 | G63: TRUE | H63: FALSE | I63: TRUE | J63: FALSE | K63: FALSE | M63: 0 | P63: 5.45e-07 | Q63: FALSE | S63: =IF(E63 = 0, 0, MAX((E63 * F63) * (IF(I63 = TRUE, 1 - 'Loss Limit Discount'!$D$93, 1)), M63)) -> 0 | T63: 330
B65: Business Interruption
B66: Advance Specified Standing Charges
A67: Business Interruption | B67: ASC | C67: 12 Months | D67: Advance Standing Charges | F67: =_xlfn.IFNA(VLOOKUP(C67, Metadata!$L$2:$M$5, 2, FALSE),0) -> 6.4e-05 | G67: TRUE | H67: FALSE | I67: FALSE | J67: TRUE | K67: TRUE | M67: 5 | N67: FALSE | P67: 6.4e-05 | Q67: TRUE | S67: =IF(E67 = 0, 0, MAX((E67 * F67) * (IF(I67 = TRUE, 1 - 'Loss Limit Discount'!$D$93, 1)) * (IF(K67 = TRUE, 1 - 'Contract Works Discount'!$D$101, 1)), M67)) -> 0 | T67: 333
B68: Specified Standing Charges
A69: Business Interruption | B69: SC | C69: 12 Months | D69: Standing Charges | F69: =_xlfn.IFNA(VLOOKUP(C69, Metadata!$L$7:$M$14, 2, FALSE),0) -> 6.4e-05 | G69: TRUE | H69: TRUE | I69: TRUE | J69: FALSE | K69: FALSE | M69: 5 | N69: FALSE | P69: 3.63e-06 | Q69: TRUE | S69: =IF(E69 = 0, 0, MAX((E69 * F69) * (IF(I69 = TRUE, 1 - 'Loss Limit Discount'!$D$93, 1)), M69)) -> 0 | T69: 337
A70: Business Interruption | B70: AICOW | C70: Additional Increase In Cost Of Working | D70: Standing Charges | F70: =F69 * 1.5 -> 9.6e-05 | G70: TRUE | H70: TRUE | I70: TRUE | J70: FALSE | K70: FALSE | M70: 0 | N70: FALSE | P70: 0 | Q70: TRUE | S70: =IF(E70 = 0, 0, MAX((E70 * F70) * (IF(I70 = TRUE, 1 - 'Loss Limit Discount'!$D$93, 1)), M70)) -> 0 | T70: 397
B71: Working Expenses
A72: Business Interruption | B72: WE | C72: 12 Months | D72: Working Expenses | F72: =_xlfn.IFNA(VLOOKUP(C72, Metadata!L16:M23, 2, FALSE),0) -> 6.4e-05 | G72: TRUE | H72: TRUE | I72: TRUE | J72: FALSE | K72: FALSE | M72: 5 | N72: FALSE | P72: 3.63e-06 | Q72: TRUE | S72: =IF(E72 = 0, 0, MAX((E72 * F72) * (IF(I72 = TRUE, 1 - 'Loss Limit Discount'!$D$93, 1)), M72)) -> 0 | T72: 345
A73: Business Interruption | B73: AICOW | C73: Additional Increase In Cost Of Working | D73: Working Expenses | F73: =F72 * 1.5 -> 9.6e-05 | G73: TRUE | H73: TRUE | I73: TRUE | J73: FALSE | K73: FALSE | M73: 0 | N73: FALSE | P73: 0 | Q73: TRUE | S73: =IF(E73 = 0, 0, MAX((E73 * F73) * (IF(I73 = TRUE, 1 - 'Loss Limit Discount'!$D$93, 1)), M73)) -> 0 | T73: 361
B74: Revenue
A75: Business Interruption | B75: R | C75: 12 Months | D75: Revenue | F75: =_xlfn.IFNA(VLOOKUP(C75, Metadata!$L$48:$M$55, 2, FALSE),0) -> 6.4e-05 | G75: TRUE | H75: TRUE | I75: TRUE | J75: FALSE | K75: FALSE | M75: 5 | N75: FALSE | P75: 3.63e-06 | Q75: TRUE | S75: =IF(E75 = 0, 0, MAX((E75 * F75) * (IF(I75 = TRUE, 1 - 'Loss Limit Discount'!$D$93, 1)), M75)) -> 0 | T75: 353
A76: Business Interruption | B76: AICOW | C76: Additional Increase In Cost Of Working | D76: Revenue | F76: =F75 * 1.5 -> 9.6e-05 | G76: TRUE | H76: TRUE | I76: TRUE | J76: FALSE | K76: FALSE | M76: 0 | N76: FALSE | P76: 0 | Q76: TRUE | S76: =IF(E76 = 0, 0, MAX((E76 * F76) * (IF(I76 = TRUE, 1 - 'Loss Limit Discount'!$D$93, 1)), M76)) -> 0 | T76: 1671
B77: Net Profit
A78: Business Interruption | B78: NP | C78: 12 Months | D78: Net Profit | F78: =_xlfn.IFNA(VLOOKUP(C78, Metadata!$L$25:$M$32, 2, FALSE),0) -> 6.4e-05 | G78: TRUE | H78: TRUE | I78: TRUE | J78: FALSE | K78: FALSE | M78: 5 | N78: FALSE | P78: 3.63e-06 | Q78: TRUE | S78: =IF(E78 = 0, 0, MAX((E78 * F78) * (IF(I78 = TRUE, 1 - 'Loss Limit Discount'!$D$93, 1)), M78)) -> 0 | T78: 1595
A79: Business Interruption | B79: AICOW | C79: Additional Increase In Cost Of Working | D79: Net Profit | F79: =F78 * 1.5 -> 9.6e-05 | G79: TRUE | H79: TRUE | I79: TRUE | J79: FALSE | K79: FALSE | M79: 0 | N79: FALSE | P79: 0 | Q79: TRUE | S79: =IF(E79 = 0, 0, MAX((E79 * F79) * (IF(I79 = TRUE, 1 - 'Loss Limit Discount'!$D$93, 1)), M79)) -> 0 | T79: 1667
B80: Gross Profit
A81: Business Interruption | B81: GP | C81: 12 Months | D81: Gross Profit | F81: =_xlfn.IFNA(VLOOKUP(C81, Metadata!$L$34:$M$41, 2, FALSE),0) -> 6.4e-05 | G81: TRUE | H81: TRUE | I81: TRUE | J81: FALSE | K81: FALSE | M81: 5 | N81: FALSE | P81: 3.63e-05 | Q81: TRUE | S81: =IF(E81 = 0, 0, MAX((E81 * F81) * (IF(I81 = TRUE, 1 - 'Loss Limit Discount'!$D$93, 1)), M81)) -> 0
A82: Business Interruption | B82: AICOW | C82: Additional Increase In Cost Of Working | D82: Gross Profit | F82: =F81 * 1.5 -> 9.6e-05 | G82: TRUE | H82: TRUE | I82: TRUE | J82: FALSE | K82: FALSE | M82: 0 | N82: FALSE | P82: 0 | Q82: TRUE | S82: =IF(E82 = 0, 0, MAX((E82 * F82) * (IF(I82 = TRUE, 1 - 'Loss Limit Discount'!$D$93, 1)), M82)) -> 0
T83: 365

Sheet Municipalities - Annual
A1: Commercial - Annual | V1: Cells with green borders have a drop-down selection!
A2: Category | B2: Code | C2: Description | D2: Total Code | E2: Sum Insured/No. of insured items | F2: Rate | G2: Is Percent | H2: Add To Sum Insured Discount | I2: Receive Sum Insured Discount | J2: Add To CW Discount | K2: Receive CW Discount | L2: Contract Period Discount | M2: Minimum Premium | N2: Has Fire Extension Discount | O2: Amount within free extension threshold | P2: Special Dispensation Rate | Q2: N/A To Special Dispensation | R2: Unique Code | S2: Premium | T2: System ID
B3: Fire
A4: Commercial Fire | B4: Mun | C4: Municipalities | D4: Fire | F4: 0.0002958 | G4: FALSE | H4: TRUE | I4: TRUE | J4: FALSE | K4: FALSE | M4: 500 | S4: =IF(E4 = 0, 0, MAX((E4 * F4) * (IF(I4 = TRUE, 1 - 'Loss Limit Discount'!$D$93, 1)) + ('Fire Extensions'!$I$64 * F4) * (1 - 'Loss Limit Discount'!$D$93), M4)) -> 0
A5: Extensions | B5: Sasria Extensions
A6: Extensions | B6: EX | C6: Rent | D6: Fire | F6: =$F$4 -> 0.0002958 | G6: TRUE | H6: TRUE | I6: TRUE | J6: FALSE | K6: FALSE | M6: 0 | N6: TRUE | O6: =IF(E6 < 'Fire Extensions'!$I$19, 'Municipalities - Annual'!E6, 'Fire Extensions'!$I$19) -> 0 | P6: 3.63e-05 | Q6: TRUE | R6: CA002 | T6: 76
A7: Extensions | B7: EX | C7: Claims Preparation Costs | D7: Fire | F7: =$F$4 -> 0.0002958 | G7: TRUE | H7: TRUE | I7: TRUE | J7: FALSE | K7: FALSE | M7: 0 | N7: TRUE | O7: =IF(E7 < 'Fire Extensions'!$I$19, 'Municipalities - Annual'!E7, 'Fire Extensions'!$I$19) -> 0 | P7: 3.63e-05 | Q7: TRUE | R7: CA003 | T7: 77
A8: Extensions | B8: EX | C8: Capital Additions | D8: Fire | F8: 0.0002958 | G8: TRUE | H8: TRUE | I8: TRUE | J8: FALSE | K8: FALSE | M8: 0 | N8: TRUE | O8: =IF(E8 < 'Fire Extensions'!$I$19, 'Municipalities - Annual'!E8, 'Fire Extensions'!$I$19) -> 0 | P8: 3.63e-05 | Q8: TRUE | R8: CA004 | T8: 78
A9: Extensions | B9: EX | C9: Professional fees | D9: Fire | F9: 0.0002958 | G9: TRUE | H9: TRUE | I9: TRUE | J9: FALSE | K9: FALSE | M9: 0 | N9: TRUE | O9: =IF(E9 < 'Fire Extensions'!$I$19, 'Municipalities - Annual'!E9, 'Fire Extensions'!$I$19) -> 0 | P9: 3.63e-05 | Q9: TRUE | R9: CA005 | T9: 79
A10: Extensions | B10: EX | C10: Clearance costs | D10: Fire | F10: 0.0002958 | G10: TRUE | H10: TRUE | I10: TRUE | J10: FALSE | K10: FALSE | M10: 0 | N10: TRUE | O10: =IF(E10 < 'Fire Extensions'!$I$19, 'Municipalities - Annual'!E10, 'Fire Extensions'!$I$19) -> 0 | P10: 3.63e-05 | Q10: TRUE | R10: CA006 | T10: 80
A11: Extensions | B11: EX | C11: Security Costs (During and after a loss) | D11: Fire | F11: 0.0002958 | G11: TRUE | H11: TRUE | I11: TRUE | J11: FALSE | K11: FALSE | M11: 0 | N11: TRUE | O11: =IF(E11 < 'Fire Extensions'!$I$19, 'Municipalities - Annual'!E11, 'Fire Extensions'!$I$19) -> 0 | P11: 3.63e-05 | Q11: TRUE | R11: CA007 | T11: 81
A12: Extensions | B12: EX | C12: Statutory Duties | D12: Fire | F12: 0.0002958 | G12: TRUE | H12: TRUE | I12: TRUE | J12: FALSE | K12: FALSE | M12: 0 | N12: TRUE | O12: =IF(E12 < 'Fire Extensions'!$I$19, 'Municipalities - Annual'!E12, 'Fire Extensions'!$I$19) -> 0 | P12: 3.63e-05 | Q12: TRUE | R12: CA010 | T12: 85
A13: Extensions | B13: EX | C13: Additional Premises | D13: Fire | F13: 0.0002958 | G13: TRUE | H13: TRUE | I13: TRUE | J13: FALSE | K13: FALSE | M13: 0 | N13: TRUE | O13: =IF(E13 < 'Fire Extensions'!$I$19, 'Municipalities - Annual'!E13, 'Fire Extensions'!$I$19) -> 0 | P13: 3.63e-05 | Q13: TRUE | R13: CA011 | T13: 86
A14: Extensions | B14: EX | C14: Acquisition Limits | D14: Fire | F14: 0.0002958 | G14: TRUE | H14: TRUE | I14: TRUE | J14: FALSE | K14: FALSE | M14: 0 | N14: TRUE | O14: =IF(E14 < 'Fire Extensions'!$I$19, 'Municipalities - Annual'!E14, 'Fire Extensions'!$I$19) -> 0 | P14: 3.63e-05 | Q14: TRUE | R14: CA012 | T14: 87
A15: Extensions | B15: EX | C15: Import Surcharges | D15: Fire | F15: 0.0002958 | G15: TRUE | H15: TRUE | I15: TRUE | J15: FALSE | K15: FALSE | M15: 0 | N15: TRUE | O15: =IF(E15 < 'Fire Extensions'!$I$19, 'Municipalities - Annual'!E15, 'Fire Extensions'!$I$19) -> 0 | P15: 3.63e-05 | Q15: TRUE | R15: CA014 | T15: 89
A16: Extensions | B16: EX | C16: Fire Protection System Update | D16: Fire | F16: 0.0002958 | G16: TRUE | H16: TRUE | I16: TRUE | J16: FALSE | K16: FALSE | M16: 0 | N16: TRUE | O16: =IF(E16 < 'Fire Extensions'!$I$19, 'Municipalities - Annual'!E16, 'Fire Extensions'!$I$19) -> 0 | P16: 3.63e-05 | Q16: TRUE | R16: CA015 | T16: 90
A17: Extensions | B17: EX | C17: Goods in the open | D17: Fire | F17: 0.0002958 | G17: TRUE | H17: TRUE | I17: TRUE | J17: FALSE | K17: FALSE | M17: 0 | N17: TRUE | O17: =IF(E17 < 'Fire Extensions'!$I$19, 'Municipalities - Annual'!E17, 'Fire Extensions'!$I$19) -> 0 | P17: 3.63e-05 | Q17: TRUE | R17: CA019 | T17: 94
A18: Extensions | B18: EX | C18: Fire Extinguishing | D18: Fire | F18: 0.0002958 | G18: TRUE | H18: TRUE | I18: TRUE | J18: FALSE | K18: FALSE | M18: 0 | N18: TRUE | O18: =IF(E18 < 'Fire Extensions'!$I$19, 'Municipalities - Annual'!E18, 'Fire Extensions'!$I$19) -> 0 | P18: 3.63e-05 | Q18: TRUE | R18: CA020 | T18: 95
A19: Extensions | B19: EX | C19: Imminent Danger (Protection of property prior a loss) | D19: Fire | F19: 0.0002958 | G19: TRUE | H19: TRUE | I19: TRUE | J19: FALSE | K19: FALSE | M19: 0 | N19: TRUE | O19: =IF(E19 < 'Fire Extensions'!$I$19, 'Municipalities - Annual'!E19, 'Fire Extensions'!$I$19) -> 0 | P19: 0 | Q19: TRUE | T19: 2872
A20: Extensions | B20: Other Extensions
A21: Other Extension | B21: EX | C21: Other | D21: Fire | F21: =$F$4 -> 0.0002958 | G21: TRUE | H21: TRUE | I21: TRUE | J21: FALSE | K21: FALSE | M21: 0 | N21: TRUE | O21: =IF(E21 < 'Fire Extensions'!$I$19, 'Municipalities - Annual'!E21, 'Fire Extensions'!$I$19) -> 0 | P21: 3.63e-05 | Q21: TRUE | R21: CA021 | T21: 96
A22: Other Extension | B22: EX | C22: Other | D22: Fire | F22: 0.0002958 | G22: TRUE | H22: TRUE | I22: TRUE | J22: FALSE | K22: FALSE | M22: 0 | N22: TRUE | O22: =IF(E22 < 'Fire Extensions'!$I$19, 'Municipalities - Annual'!E22, 'Fire Extensions'!$I$19) -> 0 | P22: 3.63e-05 | Q22: TRUE | R22: CA022 | T22: 97
A23: Other Extension | B23: EX | C23: Other | D23: Fire | F23: 0.0002958 | G23: TRUE | H23: TRUE | I23: TRUE | J23: FALSE | K23: FALSE | M23: 0 | N23: TRUE | O23: =IF(E23 < 'Fire Extensions'!$I$19, 'Municipalities - Annual'!E23, 'Fire Extensions'!$I$19) -> 0 | P23: 3.63e-05 | Q23: TRUE | R23: CA023 | T23: 98
A24: Other Extension | B24: EX | C24: Other | D24: Fire | F24: 0.0002958 | G24: TRUE | H24: TRUE | I24: TRUE | J24: FALSE | K24: FALSE | M24: 0 | N24: TRUE | O24: =IF(E24 < 'Fire Extensions'!$I$19, 'Municipalities - Annual'!E24, 'Fire Extensions'!$I$19) -> 0 | P24: 3.63e-05 | Q24: TRUE | R24: CA024 | T24: 99
A25: Other Extension | B25: EX | C25: Other | D25: Fire | F25: 0.0002958 | G25: TRUE | H25: TRUE | I25: TRUE | J25: FALSE | K25: FALSE | M25: 0 | N25: TRUE | O25: =IF(E25 < 'Fire Extensions'!$I$19, 'Municipalities - Annual'!E25, 'Fire Extensions'!$I$19) -> 0 | P25: 3.63e-05 | Q25: TRUE | R25: CA025 | T25: 100
A26: Other Extension | B26: EX | C26: Other | D26: Fire | F26: 0.0002958 | G26: TRUE | H26: TRUE | I26: TRUE | J26: FALSE | K26: FALSE | M26: 0 | N26: TRUE | O26: =IF(E26 < 'Fire Extensions'!$I$19, 'Municipalities - Annual'!E26, 'Fire Extensions'!$I$19) -> 0 | P26: 3.63e-05 | Q26: TRUE | R26: CA026 | T26: 101
A27: Other Extension | B27: EX | C27: Other | D27: Fire | F27: 0.0002958 | G27: TRUE | H27: TRUE | I27: TRUE | J27: FALSE | K27: FALSE | M27: 0 | N27: TRUE | O27: =IF(E27 < 'Fire Extensions'!$I$19, 'Municipalities - Annual'!E27, 'Fire Extensions'!$I$19) -> 0 | P27: 3.63e-05 | Q27: TRUE | R27: CA027 | T27: 102
A28: Other Extension | B28: EX | C28: Other | D28: Fire | F28: 0.0002958 | G28: TRUE | H28: TRUE | I28: TRUE | J28: FALSE | K28: FALSE | M28: 0 | N28: TRUE | O28: =IF(E28 < 'Fire Extensions'!$I$19, 'Municipalities - Annual'!E28, 'Fire Extensions'!$I$19) -> 0 | P28: 3.63e-05 | Q28: TRUE | R28: CA028 | T28: 103
A29: Other Extension | B29: EX | C29: Other | D29: Fire | F29: 0.0002958 | G29: TRUE | H29: TRUE | I29: TRUE | J29: FALSE | K29: FALSE | M29: 0 | N29: TRUE | O29: =IF(E29 < 'Fire Extensions'!$I$19, 'Municipalities - Annual'!E29, 'Fire Extensions'!$I$19) -> 0 | P29: 3.63e-05 | Q29: TRUE | R29: CA029 | T29: 104
A30: Other Extension | B30: EX | C30: Other | D30: Fire | F30: 0.0002958 | G30: TRUE | H30: TRUE | I30: TRUE | J30: FALSE | K30: FALSE | M30: 0 | N30: TRUE | O30: =IF(E30 < 'Fire Extensions'!$I$19, 'Municipalities - Annual'!E30, 'Fire Extensions'!$I$19) -> 0 | P30: 3.63e-05 | Q30: TRUE | R30: CA030 | T30: 105
A31: Other Extension | B31: EX | C31: Other | D31: Fire | F31: 0.0002958 | G31: TRUE | H31: TRUE | I31: TRUE | J31: FALSE | K31: FALSE | M31: 0 | N31: TRUE | O31: =IF(E31 < 'Fire Extensions'!$I$19, 'Municipalities - Annual'!E31, 'Fire Extensions'!$I$19) -> 0 | P31: 3.63e-05 | Q31: TRUE | R31: CA031 | T31: 106
A32: Other Extension | B32: EX | C32: Other | D32: Fire | F32: 0.0002958 | G32: TRUE | H32: TRUE | I32: TRUE | J32: FALSE | K32: FALSE | M32: 0 | N32: TRUE | O32: =IF(E32 < 'Fire Extensions'!$I$19, 'Municipalities - Annual'!E32, 'Fire Extensions'!$I$19) -> 0 | P32: 3.63e-05 | Q32: TRUE | R32: CA032 | T32: 107
A33: Other Extension | B33: EX | C33: Other | D33: Fire | F33: 0.0002958 | G33: TRUE | H33: TRUE | I33: TRUE | J33: FALSE | K33: FALSE | M33: 0 | N33: TRUE | O33: =IF(E33 < 'Fire Extensions'!$I$19, 'Municipalities - Annual'!E33, 'Fire Extensions'!$I$19) -> 0 | P33: 3.63e-05 | Q33: TRUE | R33: CA033 | T33: 108
A34: Other Extension | B34: EX | C34: Other | D34: Fire | F34: 0.0002958 | G34: TRUE | H34: TRUE | I34: TRUE | J34: FALSE | K34: FALSE | M34: 0 | N34: TRUE | O34: =IF(E34 < 'Fire Extensions'!$I$19, 'Municipalities - Annual'!E34, 'Fire Extensions'!$I$19) -> 0 | P34: 3.63e-05 | Q34: TRUE | R34: CA034 | T34: 109
A35: Other Extension | B35: EX | C35: Other | D35: Fire | F35: 0.0002958 | G35: TRUE | H35: TRUE | I35: TRUE | J35: FALSE | K35: FALSE | M35: 0 | N35: TRUE | O35: =IF(E35 < 'Fire Extensions'!$I$19, 'Municipalities - Annual'!E35, 'Fire Extensions'!$I$19) -> 0 | P35: 3.63e-05 | Q35: TRUE | R35: CA035 | T35: 110
A36: Other Extension | B36: EX | C36: Other | D36: Fire | F36: 0.0002958 | G36: TRUE | H36: TRUE | I36: TRUE | J36: FALSE | K36: FALSE | M36: 0 | N36: TRUE | O36: =IF(E36 < 'Fire Extensions'!$I$19, 'Municipalities - Annual'!E36, 'Fire Extensions'!$I$19) -> 0 | P36: 3.63e-05 | Q36: TRUE | R36: CA036 | T36: 111
A37: Other Extension | B37: EX | C37: Other | D37: Fire | F37: 0.0002958 | G37: TRUE | H37: TRUE | I37: TRUE | J37: FALSE | K37: FALSE | M37: 0 | N37: TRUE | O37: =IF(E37 < 'Fire Extensions'!$I$19, 'Municipalities - Annual'!E37, 'Fire Extensions'!$I$19) -> 0 | P37: 3.63e-05 | Q37: TRUE | R37: CA037 | T37: 112
A38: Other Extension | B38: EX | C38: Other | D38: Fire | F38: 0.0002958 | G38: TRUE | H38: TRUE | I38: TRUE | J38: FALSE | K38: FALSE | M38: 0 | N38: TRUE | O38: =IF(E38 < 'Fire Extensions'!$I$19, 'Municipalities - Annual'!E38, 'Fire Extensions'!$I$19) -> 0 | P38: 3.63e-05 | Q38: TRUE | R38: CA038 | T38: 113
A39: Other Extension | B39: EX | C39: Other | D39: Fire | F39: 0.0002958 | G39: TRUE | H39: TRUE | I39: TRUE | J39: FALSE | K39: FALSE | M39: 0 | N39: TRUE | O39: =IF(E39 < 'Fire Extensions'!$I$19, 'Municipalities - Annual'!E39, 'Fire Extensions'!$I$19) -> 0 | P39: 3.63e-05 | Q39: TRUE | R39: CA039 | T39: 114
A40: Other Extension | B40: EX | C40: Other | D40: Fire | F40: 0.0002958 | G40: TRUE | H40: TRUE | I40: TRUE | J40: FALSE | K40: FALSE | M40: 0 | N40: TRUE | O40: =IF(E40 < 'Fire Extensions'!$I$19, 'Municipalities - Annual'!E40, 'Fire Extensions'!$I$19) -> 0 | P40: 3.63e-05 | Q40: TRUE | R40: CA040 | T40: 115
A41: Other Extension | B41: EX | C41: Other | D41: Fire | F41: 0.0002958 | G41: TRUE | H41: TRUE | I41: TRUE | J41: FALSE | K41: FALSE | M41: 0 | N41: TRUE | O41: =IF(E41 < 'Fire Extensions'!$I$19, 'Municipalities - Annual'!E41, 'Fire Extensions'!$I$19) -> 0 | P41: 3.63e-05 | Q41: TRUE | R41: CA041 | T41: 116
A42: Other Extension | B42: EX | C42: Other | D42: Fire | F42: 0.0002958 | G42: TRUE | H42: TRUE | I42: TRUE | J42: FALSE | K42: FALSE | M42: 0 | N42: TRUE | O42: =IF(E42 < 'Fire Extensions'!$I$19, 'Municipalities - Annual'!E42, 'Fire Extensions'!$I$19) -> 0 | P42: 3.63e-05 | Q42: TRUE | R42: CA042 | T42: 117
A43: Other Extension | B43: EX | C43: Other | D43: Fire | F43: 0.0002958 | G43: TRUE | H43: TRUE | I43: TRUE | J43: FALSE | K43: FALSE | M43: 0 | N43: TRUE | O43: =IF(E43 < 'Fire Extensions'!$I$19, 'Municipalities - Annual'!E43, 'Fire Extensions'!$I$19) -> 0 | P43: 3.63e-05 | Q43: TRUE | R43: CA043 | T43: 118
A44: Other Extension | B44: EX | C44: Other | D44: Fire | F44: 0.0002958 | G44: TRUE | H44: TRUE | I44: TRUE | J44: FALSE | K44: FALSE | M44: 0 | N44: TRUE | O44: =IF(E44 < 'Fire Extensions'!$I$19, 'Municipalities - Annual'!E44, 'Fire Extensions'!$I$19) -> 0 | P44: 3.63e-05 | Q44: TRUE | R44: CA044 | T44: 119
A45: Other Extension | B45: EX | C45: Other | D45: Fire | F45: 0.0002958 | G45: TRUE | H45: TRUE | I45: TRUE | J45: FALSE | K45: FALSE | M45: 0 | N45: TRUE | O45: =IF(E45 < 'Fire Extensions'!$I$19, 'Municipalities - Annual'!E45, 'Fire Extensions'!$I$19) -> 0 | P45: 3.63e-05 | Q45: TRUE | R45: CA045 | T45: 120
A46: Other Extension | B46: EX | C46: Other | D46: Fire | F46: 0.0002958 | G46: TRUE | H46: TRUE | I46: TRUE | J46: FALSE | K46: FALSE | M46: 0 | N46: TRUE | O46: =IF(E46 < 'Fire Extensions'!$I$19, 'Municipalities - Annual'!E46, 'Fire Extensions'!$I$19) -> 0 | P46: 3.63e-05 | Q46: TRUE | R46: CA046 | T46: 121
A47: Other Extension | B47: EX | C47: Other | D47: Fire | F47: 0.0002958 | G47: TRUE | H47: TRUE | I47: TRUE | J47: FALSE | K47: FALSE | M47: 0 | N47: TRUE | O47: =IF(E47 < 'Fire Extensions'!$I$19, 'Municipalities - Annual'!E47, 'Fire Extensions'!$I$19) -> 0 | P47: 3.63e-05 | Q47: TRUE | R47: CA047 | T47: 122
A48: Other Extension | B48: EX | C48: Other | D48: Fire | F48: 0.0002958 | G48: TRUE | H48: TRUE | I48: TRUE | J48: FALSE | K48: FALSE | M48: 0 | N48: TRUE | O48: =IF(E48 < 'Fire Extensions'!$I$19, 'Municipalities - Annual'!E48, 'Fire Extensions'!$I$19) -> 0 | P48: 3.63e-05 | Q48: TRUE | R48: CA048 | T48: 123
A49: Other Extension | B49: EX | C49: Other | D49: Fire | F49: 0.0002958 | G49: TRUE | H49: TRUE | I49: TRUE | J49: FALSE | K49: FALSE | M49: 0 | N49: TRUE | O49: =IF(E49 < 'Fire Extensions'!$I$19, 'Municipalities - Annual'!E49, 'Fire Extensions'!$I$19) -> 0 | P49: 3.63e-05 | Q49: TRUE | R49: CA049 | T49: 124
A50: Other Extension | B50: EX | C50: Other | D50: Fire | F50: 0.0002958 | G50: TRUE | H50: TRUE | I50: TRUE | J50: FALSE | K50: FALSE | M50: 0 | N50: TRUE | O50: =IF(E50 < 'Fire Extensions'!$I$19, 'Municipalities - Annual'!E50, 'Fire Extensions'!$I$19) -> 0 | P50: 3.63e-05 | Q50: TRUE | R50: CA050 | T50: 125
B51: Escalation and or Inflation
A52: Escalation UL | B52: Charge on U/L
A53: Escalation UL | C53: First Year (90-100%) | D53: Fire | F53: =IF(C53 = "", 0, VLOOKUP(C53, Escalation!$H$216:$I$260, 2, FALSE)) -> 0.0002958 | G53: TRUE | H53: FALSE | I53: TRUE | J53: FALSE | K53: FALSE | M53: 0 | P53: 0 | Q53: TRUE | R53: CA051 | S53: =IF(E53 = 0, 0, MAX((E53 * F53) * (IF(I53 = TRUE, 1 - 'Loss Limit Discount'!$D$93, 1)) * (IF(K53 = TRUE, 1 - 'Contract Works Discount'!$L$11, 1)), M53)) -> 0 | T53: 1690
A54: Escalation UL | C54: Second Year (90-100%) | D54: Fire | F54: =IF(C54 = "", 0, VLOOKUP(C54, Escalation!$H$216:$I$260, 2, FALSE)) -> 0.0001479 | G54: TRUE | H54: FALSE | I54: TRUE | J54: FALSE | K54: FALSE | M54: 0 | P54: 0 | Q54: TRUE | R54: CA052 | S54: =IF(E54 = 0, 0, MAX((E54 * F54) * (IF(I54 = TRUE, 1 - 'Loss Limit Discount'!$D$93, 1)) * (IF(K54 = TRUE, 1 - 'Contract Works Discount'!$L$11, 1)), M54)) -> 0 | T54: 1691
A55: Escalation UL | C55: Third Year (90-100%) | D55: Fire | F55: =IF(C55 = "", 0, VLOOKUP(C55, Escalation!$H$216:$I$260, 2, FALSE)) -> 7.395e-05 | G55: TRUE | H55: FALSE | I55: TRUE | J55: FALSE | K55: FALSE | M55: 0 | P55: 0 | Q55: TRUE | R55: CA053 | S55: =IF(E55 = 0, 0, MAX((E55 * F55) * (IF(I55 = TRUE, 1 - 'Loss Limit Discount'!$D$93, 1)) * (IF(K55 = TRUE, 1 - 'Contract Works Discount'!$L$11, 1)), M55)) -> 0 | T55: 1692
A56: Escalation UL | C56: Fourth Year (90-100%) | D56: Fire | F56: =IF(C56 = "", 0, VLOOKUP(C56, Escalation!$H$216:$I$260, 2, FALSE)) -> 5.916e-05 | G56: TRUE | H56: FALSE | I56: TRUE | J56: FALSE | K56: FALSE | M56: 0 | P56: 0 | Q56: TRUE | R56: CA054 | S56: =IF(E56 = 0, 0, MAX((E56 * F56) * (IF(I56 = TRUE, 1 - 'Loss Limit Discount'!$D$93, 1)) * (IF(K56 = TRUE, 1 - 'Contract Works Discount'!$L$11, 1)), M56)) -> 0 | T56: 1693
A57: Escalation UL | C57: Fifth Year (90-100%) | D57: Fire | F57: =IF(C57 = "", 0, VLOOKUP(C57, Escalation!$H$216:$I$260, 2, FALSE)) -> 4.437e-05 | G57: TRUE | H57: FALSE | I57: TRUE | J57: FALSE | K57: FALSE | M57: 0 | P57: 0 | Q57: TRUE | R57: CA055 | S57: =IF(E57 = 0, 0, MAX((E57 * F57) * (IF(I57 = TRUE, 1 - 'Loss Limit Discount'!$D$93, 1)) * (IF(K57 = TRUE, 1 - 'Contract Works Discount'!$L$11, 1)), M57)) -> 0 | T57: 1694
A58: Escalation Not UL | B58: Not Charge on U/L
A59: Escalation Not UL | C59: First Year | D59: Fire | F59: =$F$4 -> 0.0002958 | G59: TRUE | H59: FALSE | I59: TRUE | J59: FALSE | K59: FALSE | M59: 0 | P59: 3.63e-05 | Q59: FALSE | R59: CA096 | S59: =IF(E59 = 0, 0, MAX((E59 * F59) * (IF(I59 = TRUE, 1 - 'Loss Limit Discount'!$D$93, 1)) * (IF(K59 = TRUE, 1 - 'Contract Works Discount'!$L$11, 1)), M59)) -> 0 | T59: 67
A60: Escalation Not UL | C60: Second Year | D60: Fire | F60: =$F$4 * 0.5 -> 0.0001479 | G60: TRUE | H60: FALSE | I60: TRUE | J60: FALSE | K60: FALSE | M60: 0 | P60: 1.82e-05 | Q60: FALSE | R60: CA097 | S60: =IF(E60 = 0, 0, MAX((E60 * F60) * (IF(I60 = TRUE, 1 - 'Loss Limit Discount'!$D$93, 1)) * (IF(K60 = TRUE, 1 - 'Contract Works Discount'!$L$11, 1)), M60)) -> 0 | T60: 68
A61: Escalation Not UL | C61: Third Year | D61: Fire | F61: =$F$4 * 0.25 -> 7.395e-05 | G61: TRUE | H61: FALSE | I61: TRUE | J61: FALSE | K61: FALSE | M61: 0 | P61: 9.08e-06 | Q61: FALSE | R61: CA098 | S61: =IF(E61 = 0, 0, MAX((E61 * F61) * (IF(I61 = TRUE, 1 - 'Loss Limit Discount'!$D$93, 1)) * (IF(K61 = TRUE, 1 - 'Contract Works Discount'!$L$11, 1)), M61)) -> 0 | T61: 69
A62: Escalation Not UL | C62: Fourth Year | D62: Fire | F62: =$F$4 * 0.2 -> 5.916e-05 | G62: TRUE | H62: FALSE | I62: TRUE | J62: FALSE | K62: FALSE | M62: 0 | P62: 7.26e-06 | Q62: FALSE | R62: CA099 | S62: =IF(E62 = 0, 0, MAX((E62 * F62) * (IF(I62 = TRUE, 1 - 'Loss Limit Discount'!$D$93, 1)) * (IF(K62 = TRUE, 1 - 'Contract Works Discount'!$L$11, 1)), M62)) -> 0 | T62: 70
A63: Escalation Not UL | C63: Fifth Year | D63: Fire | F63: =$F$4 * 0.15 -> 4.437e-05 | G63: TRUE | H63: FALSE | I63: TRUE | J63: FALSE | K63: FALSE | M63: 0 | P63: 5.45e-06 | Q63: FALSE | R63: CA100 | S63: =IF(E63 = 0, 0, MAX((E63 * F63) * (IF(I63 = TRUE, 1 - 'Loss Limit Discount'!$D$93, 1)) * (IF(K63 = TRUE, 1 - 'Contract Works Discount'!$L$11, 1)), M63)) -> 0 | T63: 71
B65: Business Interruption
B66: Advance Specified Standing Charges
A67: Business Interruption | B67: ASC | C67: 12 Months | D67: Advance Standing Charges | F67: =_xlfn.IFNA(VLOOKUP(C67, Metadata!$P$2:$Q$5, 2, FALSE),0) -> 0.00064 | G67: TRUE | H67: FALSE | I67: FALSE | J67: TRUE | K67: TRUE | M67: 50 | N67: FALSE | P67: 0.00064 | Q67: TRUE | R67: CA101 | S67: =IF(E67 = 0, 0, MAX((E67 * F67) * (IF(I67 = TRUE, 1 - 'Loss Limit Discount'!$D$93, 1)) * (IF(K67 = TRUE, 1 - 'Contract Works Discount'!$L$101, 1)), M67)) -> 0 | T67: 5
B68: Specified Standing Charges
A69: Business Interruption | B69: SC | C69: 12 Months | D69: Standing Charges | F69: =_xlfn.IFNA(VLOOKUP(C69, Metadata!$P$7:$Q$14, 2, FALSE),0) -> 0.00064 | G69: TRUE | H69: TRUE | I69: TRUE | J69: FALSE | K69: FALSE | M69: 50 | N69: FALSE | P69: 3.63e-05 | Q69: FALSE | R69: CA105 | S69: =IF(E69 = 0, 0, MAX((E69 * F69) * (IF(I69 = TRUE, 1 - 'Loss Limit Discount'!$D$93, 1)) * (IF(K69 = TRUE, 1 - 'Contract Works Discount'!$L$11, 1)), M69)) -> 0 | T69: 577
A70: Business Interruption | B70: AICOW | C70: Additional Increase In Cost Of Working | D70: Standing Charges | F70: =F69 * 1.5 -> 0.00096 | G70: TRUE | H70: TRUE | I70: TRUE | J70: FALSE | K70: FALSE | M70: 0 | N70: FALSE | P70: 0 | Q70: TRUE | R70: CA113 | S70: =IF(E70 = 0, 0, MAX((E70 * F70) * (IF(I70 = TRUE, 1 - 'Loss Limit Discount'!$D$93, 1)) * (IF(K70 = TRUE, 1 - 'Contract Works Discount'!$L$11, 1)), M70)) -> 0 | T70: 396
B71: Working Expenses
A72: Business Interruption | B72: WE | C72: 12 Months | D72: Working Expenses | F72: =_xlfn.IFNA(VLOOKUP(C72, Metadata!$P$16:$Q$23, 2, FALSE),0) -> 0.00064 | G72: TRUE | H72: TRUE | I72: TRUE | J72: FALSE | K72: FALSE | M72: 50 | N72: FALSE | P72: 3.63e-05 | Q72: TRUE | R72: CA114 | S72: =IF(E72 = 0, 0, MAX((E72 * F72) * (IF(I72 = TRUE, 1 - 'Loss Limit Discount'!$D$93, 1)) * (IF(K72 = TRUE, 1 - 'Contract Works Discount'!$L$11, 1)), M72)) -> 0 | T72: 137
A73: Business Interruption | B73: AICOW | C73: Additional Increase In Cost Of Working | D73: Working Expenses | F73: =F72 * 1.5 -> 0.00096 | G73: TRUE | H73: TRUE | I73: TRUE | J73: FALSE | K73: FALSE | M73: 0 | N73: FALSE | P73: 0 | Q73: TRUE | R73: CA122 | S73: =IF(E73 = 0, 0, MAX((E73 * F73) * (IF(I73 = TRUE, 1 - 'Loss Limit Discount'!$D$93, 1)) * (IF(K73 = TRUE, 1 - 'Contract Works Discount'!$L$11, 1)), M73)) -> 0 | T73: 55
B74: Revenue
A75: Business Interruption | B75: R | C75: 12 Months | D75: Revenue | F75: =_xlfn.IFNA(VLOOKUP(C75, Metadata!$P$48:$Q$55, 2, FALSE),0) -> 0.00064 | G75: TRUE | H75: TRUE | I75: TRUE | J75: FALSE | K75: FALSE | M75: 50 | N75: FALSE | P75: 3.63e-05 | Q75: TRUE | R75: CA123 | S75: =IF(E75 = 0, 0, MAX((E75 * F75) * (IF(I75 = TRUE, 1 - 'Loss Limit Discount'!$D$93, 1)) * (IF(K75 = TRUE, 1 - 'Contract Works Discount'!$L$11, 1)), M75)) -> 0 | T75: 47
A76: Business Interruption | B76: AICOW | C76: Additional Increase In Cost Of Working | D76: Revenue | F76: =F75 * 1.5 -> 0.00096 | G76: TRUE | H76: TRUE | I76: TRUE | J76: FALSE | K76: FALSE | M76: 0 | N76: FALSE | P76: 0 | Q76: TRUE | R76: CA131 | S76: =IF(E76 = 0, 0, MAX((E76 * F76) * (IF(I76 = TRUE, 1 - 'Loss Limit Discount'!$D$93, 1)) * (IF(K76 = TRUE, 1 - 'Contract Works Discount'!$L$11, 1)), M76)) -> 0 | T76: 1670
B77: Net Profit
A78: Business Interruption | B78: NP | C78: 12 Months | D78: Net Profit | F78: =_xlfn.IFNA(VLOOKUP(C78, Metadata!$P$25:$Q$32, 2, FALSE),0) -> 0.00064 | G78: TRUE | H78: TRUE | I78: TRUE | J78: FALSE | K78: FALSE | M78: 50 | N78: FALSE | P78: 3.63e-05 | Q78: TRUE | R78: CA123 | S78: =IF(E78 = 0, 0, MAX((E78 * F78) * (IF(I78 = TRUE, 1 - 'Loss Limit Discount'!$D$93, 1)) * (IF(K78 = TRUE, 1 - 'Contract Works Discount'!$L$11, 1)), M78)) -> 0 | T78: 47
A79: Business Interruption | B79: AICOW | C79: Additional Increase In Cost Of Working | D79: Net Profit | F79: =F78 * 1.5 -> 0.00096 | G79: TRUE | H79: TRUE | I79: TRUE | J79: FALSE | K79: FALSE | M79: 0 | N79: FALSE | P79: 0 | Q79: TRUE | R79: CA131 | S79: =IF(E79 = 0, 0, MAX((E79 * F79) * (IF(I79 = TRUE, 1 - 'Loss Limit Discount'!$D$93, 1)) * (IF(K79 = TRUE, 1 - 'Contract Works Discount'!$L$11, 1)), M79)) -> 0 | T79: 1670
B80: Gross Profit
A81: Business Interruption | B81: GP | C81: 12 Months | D81: Gross Profit | F81: =_xlfn.IFNA(VLOOKUP(C81, Metadata!$P$34:$Q$41, 2, FALSE),0) -> 0.00064 | G81: TRUE | H81: TRUE | I81: TRUE | J81: FALSE | K81: FALSE | M81: 50 | N81: FALSE | P81: 0.000436 | Q81: TRUE | R81: CA132 | S81: =IF(E81 = 0, 0, MAX((E81 * F81) * (IF(I81 = TRUE, 1 - 'Loss Limit Discount'!$D$93, 1)) * (IF(K81 = TRUE, 1 - 'Contract Works Discount'!$L$11, 1)), M81)) -> 0 | T81: 1587
A82: Business Interruption | B82: AICOW | C82: Additional Increase In Cost Of Working | D82: Gross Profit | F82: =F81 * 1.5 -> 0.00096 | G82: TRUE | H82: TRUE | I82: TRUE | J82: FALSE | K82: FALSE | M82: 0 | N82: FALSE | P82: 0 | Q82: TRUE | R82: CA140 | S82: =IF(E82 = 0, 0, MAX((E82 * F82) * (IF(I82 = TRUE, 1 - 'Loss Limit Discount'!$D$93, 1)) * (IF(K82 = TRUE, 1 - 'Contract Works Discount'!$L$11, 1)), M82)) -> 0 | T82: 1666

Sheet Loss Limit Discount (hidden)
C3: Domestic | K3: Domestic
C4: Annual | K4: Monthly
C6: Total Sum Insured | D6: =SUMIF('Domestic - Annual'!$H$4:$H$123, "TRUE", 'Domestic - Annual'!$E$4:$E$123) -> 0 | K6: Total Sum Insured | L6: =SUMIF('Domestic - Monthly'!$H$4:$H$123, "TRUE", 'Domestic - Monthly'!$E$4:$E$123) -> 0
C7: Discount | D7: =IF(D6 = 0, 0, VLOOKUP(TRUE, $B$15:$G$26, 4, FALSE)) -> 0 | K7: Discount | L7: =IF(L6 = 0, 0, VLOOKUP(TRUE, $J$15:$O$26, 4, FALSE)) -> 0
C8: Marginal Millions | D8: =IF(D6 = 0, 0, ROUNDDOWN((D6 - VLOOKUP(TRUE, $B$15:$G$26, 2, FALSE)) / 1000000, 0)) -> 0 | K8: Marginal Millions | L8: =IF(L6 = 0, 0, ROUNDDOWN((L6 - VLOOKUP(TRUE, $J$15:$O$26, 2, FALSE)) / 1000000, 0)) -> 0
C9: Marginal Discount | D9: =IF(D6 = 0, 0, (VLOOKUP(TRUE, $B$15:$G$26, 5, FALSE) / 100) * D8) -> 0 | K9: Marginal Discount | L9: =IF(L6 = 0, 0, (VLOOKUP(TRUE, $J$15:$O$26, 5, FALSE) / 100) * L8) -> 0
C10: Maximum Discount | D10: 0.9 | K10: Maximum Discount | L10: 0.9
C11: Discount granted | D11: =IF((D9 + D7) > D10, D10, D9 + D7) -> 0 | K11: Discount granted | L11: =IF((L9 + L7) > L10, L10, L9 + L7) -> 0
C14: Lower boundary | D14: Upper boundary | E14: Discount | F14: Marginal Discount | G14: Total Discount | K14: Lower boundary | L14: Upper boundary | M14: Discount | N14: Marginal Discount | O14: Total Discount
B15: =AND($D$6 > C15, $D$6 <=D15) -> FALSE | C15: 0 | D15: 500000000 | E15: 0 | F15: 0 | G15: =SUM(E15:F15) -> 0 | J15: =AND($L$6 > K15, $L$6 <=L15) -> FALSE | K15: 0 | L15: 500000000 | M15: 0 | N15: 0 | O15: =SUM(M15:N15) -> 0
B16: =AND($D$6 > C16, $D$6 <=D16) -> FALSE | C16: =D15 -> 500000000 | D16: 700000000 | E16: 0 | F16: 0.06 | G16: =SUM(E16:F16) -> 0.06 | J16: =AND($L$6 > K16, $L$6 <=L16) -> FALSE | K16: =L15 -> 500000000 | L16: 700000000 | M16: 0 | N16: 0.06 | O16: =SUM(M16:N16) -> 0.06
B17: FALSE | C17: =D16 -> 700000000 | D17: 950000000 | E17: 0.12 | F17: 0.028 | G17: 0.148 | J17: =AND($L$6 > K17, $L$6 <=L17) -> FALSE | K17: =L16 -> 700000000 | L17: 950000000 | M17: 0.12 | N17: 0.028 | O17: 0.148
B18: =AND($D$6 > C18, $D$6 <=D18) -> FALSE | C18: 950000000 | D18: 1450000000 | E18: 0.19 | F18: 0.02 | G18: 0.21 | J18: =AND($L$6 > K18, $L$6 <=L18) -> FALSE | K18: 950000000 | L18: 1450000000 | M18: 0.19 | N18: 0.02 | O18: 0.21
B19: =AND($D$6 > C19, $D$6 <=D19) -> FALSE | C19: 1450000000 | D19: 1950000000 | E19: 0.29 | F19: 0.012 | G19: 0.302 | J19: FALSE | K19: 1450000000 | L19: 1950000000 | M19: 0.29 | N19: 0.012 | O19: 0.302
B20: FALSE | C20: 1950000000 | D20: 2700000000 | E20: 0.35 | F20: 0.008 | G20: 0.358 | J20: FALSE | K20: 1950000000 | L20: 2700000000 | M20: 0.35 | N20: 0.008 | O20: 0.358
B21: FALSE | C21: 2700000000 | D21: 5200000000 | E21: 0.41 | F21: 0.0044 | G21: 0.4144 | J21: FALSE | K21: 2700000000 | L21: 5200000000 | M21: 0.41 | N21: 0.0044 | O21: 0.4144
B22: FALSE | C22: 5200000000 | D22: 7700000000 | E22: 0.52 | F22: 0.0028 | G22: 0.5228 | J22: FALSE | K22: 5200000000 | L22: 7700000000 | M22: 0.52 | N22: 0.0028 | O22: 0.5228
B23: FALSE | C23: 7700000000 | D23: 12700000000 | E23: 0.59 | F23: 0.0012 | G23: 0.5912 | J23: FALSE | K23: 7700000000 | L23: 12700000000 | M23: 0.59 | N23: 0.0012 | O23: 0.5912
B24: FALSE | C24: 12700000000 | D24: 25200000000 | E24: 0.65 | F24: 0.0008 | G24: 0.6508 | J24: FALSE | K24: 12700000000 | L24: 25200000000 | M24: 0.65 | N24: 0.0008 | O24: 0.6508
B25: FALSE | C25: 25200000000 | D25: 37700000000 | E25: 0.75 | F25: 0.0004 | G25: 0.7504 | J25: FALSE | K25: 25200000000 | L25: 37700000000 | M25: 0.75 | N25: 0.0004 | O25: 0.7504
B26: =$D$6 >= C26 -> FALSE | C26: 37700000000 | E26: 0.8 | F26: 0.0002 | G26: 0.8002 | J26: =$L$6 >= K26 -> FALSE | K26: 37700000000 | M26: 0.8 | N26: 0.0002 | O26: 0.8002
C30: Commercial | K30: Commercial
C31: Annual | K31: Monthly
C33: Total Sum Insured | D33: =SUMIF('Commercial - Annual'!$H$4:$H$123, "TRUE", 'Commercial - Annual'!$E$4:$E$123) -> 0 | K33: Total Sum Insured | L33: =SUMIF('Commercial - Monthly'!$H$4:$H$132, "TRUE", 'Commercial - Monthly'!$E$4:$E$132) -> 0
C34: Discount | D34: =IF(D33 = 0, 0, VLOOKUP(TRUE, $B$42:$G$53, 4, FALSE)) -> 0 | K34: Discount | L34: =IF(L33 = 0, 0, VLOOKUP(TRUE, $J$42:$O$53, 4, FALSE)) -> 0
C35: Marginal Millions | D35: =IF(D33 = 0, 0, ROUNDDOWN((D33 - VLOOKUP(TRUE, $B$42:$G$53, 2, FALSE)) / 1000000, 0)) -> 0 | K35: Marginal Millions | L35: =IF(L33 = 0, 0, ROUNDDOWN((L33 - VLOOKUP(TRUE, $J$42:$O$53, 2, FALSE)) / 1000000, 0)) -> 0
C36: Marginal Discount | D36: =IF(D33 = 0, 0, (VLOOKUP(TRUE, $B$42:$G$53, 5, FALSE) / 100) * D35) -> 0 | K36: Marginal Discount | L36: =IF(L33 = 0, 0, (VLOOKUP(TRUE, $J$42:$O$53, 5, FALSE) / 100) * L35) -> 0
C37: Maximum Discount | D37: 0.9 | K37: Maximum Discount | L37: 0.9
C38: Discount granted | D38: =IF((D36 + D34) > D37, D37, D36 + D34) -> 0 | K38: Discount granted | L38: =IF((L36 + L34) > L37, L37, L36 + L34) -> 0
C41: Lower boundary | D41: Upper boundary | E41: Discount | F41: Marginal Discount | G41: Total Discount | K41: Lower boundary | L41: Upper boundary | M41: Discount | N41: Marginal Discount | O41: Total Discount
B42: =AND($D$33 > C42, $D$33 <=D42) -> FALSE | C42: 0 | D42: 500000000 | E42: 0 | F42: 0 | G42: =SUM(E42:F42) -> 0 | J42: =AND($L$33 > K42, $L$33 <=L42) -> FALSE | K42: 0 | L42: 500000000 | M42: 0 | N42: 0 | O42: =SUM(M42:N42) -> 0
B43: =AND($D$33 > C43, $D$33 <=D43) -> FALSE | C43: =D42 -> 500000000 | D43: 700000000 | E43: 0 | F43: 0.06 | G43: =SUM(E43:F43) -> 0.06 | J43: =AND($L$33 > K43, $L$33 <=L43) -> FALSE | K43: =L42 -> 500000000 | L43: 700000000 | M43: 0 | N43: 0.06 | O43: =SUM(M43:N43) -> 0.06
